Workbook

Sheet Data entry
B2: Welcome to Cluster Analysis for Marketing
B4: This spreadsheet enables you to run up to 10 clusters, using up to 20 attributes, with up to 1,000 responses/variables.
B6: Once all your data is entered, go to the relevant 'segs' tab/s and select which clusters to run. From 2 segs to 10 segs - run as required.
B8: After you run the clusters you can then go to the 'Cluster outputs' tab - but you need to run the appropriate number of clusters first.
B10: IMPORTANT: Do NOT skip rows or columns in your data. RERUN the clusters if you change/edit the data! Spreadsheet set to MANUAL calculation.
C12: For more information, please visit: www.clusteranalysis4marketing.com
B14: Your Variables | C14: Enter your data below for up to 20 attributes - you can also name your attributes (type over Name?)
C15: Name? | D15: Name? | E15: Name? | F15: Name? | G15: Name? | H15: Name? | I15: Name? | J15: Name? | K15: Name? | L15: Name? | M15: Name? | N15: Name? | O15: Name? | P15: Name? | Q15: Name? | R15: Name? | S15: Name? | T15: Name? | U15: Name? | V15: Name?
C16: 1 | D16: 2 | E16: 3 | F16: 4 | G16: 5 | H16: 6 | I16: 7 | J16: 8 | K16: 9 | L16: 10 | M16: 11 | N16: 12 | O16: 13 | P16: 14 | Q16: 15 | R16: 16 | S16: 17 | T16: 18 | U16: 19 | V16: 20
B17: 1
B18: 2
B19: 3
B20: 4
B21: 5
B22: 6
B23: 7
B24: 8
B25: 9
B26: 10
B27: 11
B28: 12
B29: 13
B30: 14
B31: 15
B32: 16
B33: 17
B34: 18
B35: 19
B36: 20
B37: 21
B38: 22
B39: 23
B40: 24
B41: 25
B42: 26
B43: 27
B44: 28
B45: 29
B46: 30
B47: 31
B48: 32
B49: 33
B50: 34
B51: 35
B52: 36
B53: 37
B54: 38
B55: 39
B56: 40
B57: 41
B58: 42
B59: 43
B60: 44
B61: 45
B62: 46
B63: 47
B64: 48
B65: 49
B66: 50
B67: 51
B68: 52
B69: 53
B70: 54
B71: 55
B72: 56
B73: 57
B74: 58
B75: 59
B76: 60
B77: 61
B78: 62
B79: 63
B80: 64
B81: 65
B82: 66
B83: 67
B84: 68
B85: 69
B86: 70
B87: 71
B88: 72
B89: 73
B90: 74
B91: 75
B92: 76
B93: 77
B94: 78
B95: 79
B96: 80
B97: 81
B98: 82
B99: 83
B100: 84
B101: 85
B102: 86
B103: 87
B104: 88
B105: 89
B106: 90
B107: 91
B108: 92
B109: 93
B110: 94
B111: 95
B112: 96
B113: 97
B114: 98
B115: 99
B116: 100
B117: 101
B118: 102
B119: 103
B120: 104
B121: 105
B122: 106
B123: 107
B124: 108
B125: 109
B126: 110
B127: 111
B128: 112
B129: 113
B130: 114
B131: 115
B132: 116
B133: 117
B134: 118
B135: 119
B136: 120
B137: 121
B138: 122
B139: 123
B140: 124
B141: 125
B142: 126
B143: 127
B144: 128
B145: 129
B146: 130
B147: 131
B148: 132
B149: 133
B150: 134
B151: 135
B152: 136
B153: 137
B154: 138
B155: 139
B156: 140
B157: 141
B158: 142
B159: 143
B160: 144
B161: 145
B162: 146
B163: 147
B164: 148
B165: 149
B166: 150
B167: 151
B168: 152
B169: 153
B170: 154
B171: 155
B172: 156
B173: 157
B174: 158
B175: 159
B176: 160
B177: 161
B178: 162
B179: 163
B180: 164
B181: 165
B182: 166
B183: 167
B184: 168
B185: 169
B186: 170
B187: 171
B188: 172
B189: 173
B190: 174
B191: 175
B192: 176
B193: 177
B194: 178
B195: 179
B196: 180
B197: 181
B198: 182
B199: 183
B200: 184
B201: 185
B202: 186
B203: 187
B204: 188
B205: 189
B206: 190
B207: 191
... 1812 more rows

Sheet Cluster outputs
B2: IMPORTANT: You MUST run the relevant clustering macro first. Please use the 'segs' tab/s below.
B4: Output for TWO Clusters/Segments
C5: 1 | D5: 2 | E5: 3 | F5: 4 | G5: 5 | H5: 6 | I5: 7 | J5: 8 | K5: 9 | L5: 10 | M5: 11 | N5: 12 | O5: 13 | P5: 14 | Q5: 15 | R5: 16 | S5: 17 | T5: 18 | U5: 19 | V5: 20
B6: Mean/Centroid | C6: =IF('Data entry'!C15<>"Name?",'Data entry'!C15,'Cluster outputs'!C5) -> 1 | D6: =IF('Data entry'!D15<>"Name?",'Data entry'!D15,'Cluster outputs'!D5) -> 2 | E6: =IF('Data entry'!E15<>"Name?",'Data entry'!E15,'Cluster outputs'!E5) -> 3 | F6: =IF('Data entry'!F15<>"Name?",'Data entry'!F15,'Cluster outputs'!F5) -> 4 | G6: =IF('Data entry'!G15<>"Name?",'Data entry'!G15,'Cluster outputs'!G5) -> 5 | H6: =IF('Data entry'!H15<>"Name?",'Data entry'!H15,'Cluster outputs'!H5) -> 6 | I6: =IF('Data entry'!I15<>"Name?",'Data entry'!I15,'Cluster outputs'!I5) -> 7 | J6: =IF('Data entry'!J15<>"Name?",'Data entry'!J15,'Cluster outputs'!J5) -> 8 | K6: =IF('Data entry'!K15<>"Name?",'Data entry'!K15,'Cluster outputs'!K5) -> 9 | L6: =IF('Data entry'!L15<>"Name?",'Data entry'!L15,'Cluster outputs'!L5) -> 10 | M6: =IF('Data entry'!M15<>"Name?",'Data entry'!M15,'Cluster outputs'!M5) -> 11 | N6: =IF('Data entry'!N15<>"Name?",'Data entry'!N15,'Cluster outputs'!N5) -> 12 | O6: =IF('Data entry'!O15<>"Name?",'Data entry'!O15,'Cluster outputs'!O5) -> 13 | P6: =IF('Data entry'!P15<>"Name?",'Data entry'!P15,'Cluster outputs'!P5) -> 14 | Q6: =IF('Data entry'!Q15<>"Name?",'Data entry'!Q15,'Cluster outputs'!Q5) -> 15 | R6: =IF('Data entry'!R15<>"Name?",'Data entry'!R15,'Cluster outputs'!R5) -> 16 | S6: =IF('Data entry'!S15<>"Name?",'Data entry'!S15,'Cluster outputs'!S5) -> 17 | T6: =IF('Data entry'!T15<>"Name?",'Data entry'!T15,'Cluster outputs'!T5) -> 18 | U6: =IF('Data entry'!U15<>"Name?",'Data entry'!U15,'Cluster outputs'!U5) -> 19 | V6: =IF('Data entry'!V15<>"Name?",'Data entry'!V15,'Cluster outputs'!V5) -> 20
B8: Segment 1 | C8: =+'2 segs'!JC8 ->  | D8: =+'2 segs'!JD8 ->  | E8: =+'2 segs'!JE8 ->  | F8: =+'2 segs'!JF8 ->  | G8: =+'2 segs'!JG8 ->  | H8: =+'2 segs'!JH8 ->  | I8: =+'2 segs'!JI8 ->  | J8: =+'2 segs'!JJ8 ->  | K8: =+'2 segs'!JK8 ->  | L8: =+'2 segs'!JL8 ->  | M8: =+'2 segs'!JM8 ->  | N8: =+'2 segs'!JN8 ->  | O8: =+'2 segs'!JO8 ->  | P8: =+'2 segs'!JP8 ->  | Q8: =+'2 segs'!JQ8 ->  | R8: =+'2 segs'!JR8 ->  | S8: =+'2 segs'!JS8 ->  | T8: =+'2 segs'!JT8 ->  | U8: =+'2 segs'!JU8 ->  | V8: =+'2 segs'!JV8 -> 
B9: Segment 2 | C9: =+'2 segs'!JC9 ->  | D9: =+'2 segs'!JD9 ->  | E9: =+'2 segs'!JE9 ->  | F9: =+'2 segs'!JF9 ->  | G9: =+'2 segs'!JG9 ->  | H9: =+'2 segs'!JH9 ->  | I9: =+'2 segs'!JI9 ->  | J9: =+'2 segs'!JJ9 ->  | K9: =+'2 segs'!JK9 ->  | L9: =+'2 segs'!JL9 ->  | M9: =+'2 segs'!JM9 ->  | N9: =+'2 segs'!JN9 ->  | O9: =+'2 segs'!JO9 ->  | P9: =+'2 segs'!JP9 ->  | Q9: =+'2 segs'!JQ9 ->  | R9: =+'2 segs'!JR9 ->  | S9: =+'2 segs'!JS9 ->  | T9: =+'2 segs'!JT9 ->  | U9: =+'2 segs'!JU9 ->  | V9: =+'2 segs'!JV9 -> 
B10: AVERAGE | C10: =+'2 segs'!D10 ->  | D10: =+'2 segs'!E10 ->  | E10: =+'2 segs'!F10 ->  | F10: =+'2 segs'!G10 ->  | G10: =+'2 segs'!H10 ->  | H10: =+'2 segs'!I10 ->  | I10: =+'2 segs'!J10 ->  | J10: =+'2 segs'!K10 ->  | K10: =+'2 segs'!L10 ->  | L10: =+'2 segs'!M10 ->  | M10: =+'2 segs'!N10 ->  | N10: =+'2 segs'!O10 ->  | O10: =+'2 segs'!P10 ->  | P10: =+'2 segs'!Q10 ->  | Q10: =+'2 segs'!R10 ->  | R10: =+'2 segs'!S10 ->  | S10: =+'2 segs'!T10 ->  | T10: =+'2 segs'!U10 ->  | U10: =+'2 segs'!V10 ->  | V10: =+'2 segs'!W10 -> 
B11: Respondents | C11: Number | D11: % | E11: SSE/Segment
B12: Segment 1 | C12: =+'2 segs'!AZ9 -> 0 | D12: =IFERROR(C12/C$14,"") ->  | E12: =+'2 segs'!JO19 -> 0 | F12: SSE Total | G12: =SUM(E12:E13) -> 0
B13: Segment 2 | C13: =+'2 segs'!BA9 -> 0 | D13: =IFERROR(C13/C$14,"") ->  | E13: =+'2 segs'!JP19 -> 0
B14: TOTAL | C14: =SUM(C12:C13) -> 0 | E14: =SUM(E12:E13) -> 0
B15: Take care: Some random data may appear, unless you run the relevant clustering macro. Please ignore this output if it occurs.
B16: Output for THREE Clusters/Segments
C17: 1 | D17: 2 | E17: 3 | F17: 4 | G17: 5 | H17: 6 | I17: 7 | J17: 8 | K17: 9 | L17: 10 | M17: 11 | N17: 12 | O17: 13 | P17: 14 | Q17: 15 | R17: 16 | S17: 17 | T17: 18 | U17: 19 | V17: 20
B18: Mean/Centroid | C18: =+C6 -> 1 | D18: =+D6 -> 2 | E18: 3 | F18: 4 | G18: 5 | H18: 6 | I18: 7 | J18: 8 | K18: 9 | L18: 10 | M18: 11 | N18: 12 | O18: 13 | P18: 14 | Q18: 15 | R18: 16 | S18: 17 | T18: 18 | U18: 19 | V18: 20
B20: Segment 1 | C20: =+'3 segs'!JD8 ->  | D20: =+'3 segs'!JE8 ->  | E20: =+'3 segs'!JF8 ->  | F20: =+'3 segs'!JG8 ->  | G20: =+'3 segs'!JH8 ->  | H20: =+'3 segs'!JI8 ->  | I20: =+'3 segs'!JJ8 ->  | J20: =+'3 segs'!JK8 ->  | K20: =+'3 segs'!JL8 ->  | L20: =+'3 segs'!JM8 ->  | M20: =+'3 segs'!JN8 ->  | N20: =+'3 segs'!JO8 ->  | O20: =+'3 segs'!JP8 ->  | P20: =+'3 segs'!JQ8 ->  | Q20: =+'3 segs'!JR8 ->  | R20: =+'3 segs'!JS8 ->  | S20: =+'3 segs'!JT8 ->  | T20: =+'3 segs'!JU8 ->  | U20: =+'3 segs'!JV8 ->  | V20: =+'3 segs'!JW8 -> 
B21: Segment 2 | C21: =+'3 segs'!JD9 ->  | D21: =+'3 segs'!JE9 ->  | E21: =+'3 segs'!JF9 ->  | F21: =+'3 segs'!JG9 ->  | G21: =+'3 segs'!JH9 ->  | H21: =+'3 segs'!JI9 ->  | I21: =+'3 segs'!JJ9 ->  | J21: =+'3 segs'!JK9 ->  | K21: =+'3 segs'!JL9 ->  | L21: =+'3 segs'!JM9 ->  | M21: =+'3 segs'!JN9 ->  | N21: =+'3 segs'!JO9 ->  | O21: =+'3 segs'!JP9 ->  | P21: =+'3 segs'!JQ9 ->  | Q21: =+'3 segs'!JR9 ->  | R21: =+'3 segs'!JS9 ->  | S21: =+'3 segs'!JT9 ->  | T21: =+'3 segs'!JU9 ->  | U21: =+'3 segs'!JV9 ->  | V21: =+'3 segs'!JW9 -> 
B22: Segment 3 | C22: =+'3 segs'!JD10 ->  | D22: =+'3 segs'!JE10 ->  | E22: =+'3 segs'!JF10 ->  | F22: =+'3 segs'!JG10 ->  | G22: =+'3 segs'!JH10 ->  | H22: =+'3 segs'!JI10 ->  | I22: =+'3 segs'!JJ10 ->  | J22: =+'3 segs'!JK10 ->  | K22: =+'3 segs'!JL10 ->  | L22: =+'3 segs'!JM10 ->  | M22: =+'3 segs'!JN10 ->  | N22: =+'3 segs'!JO10 ->  | O22: =+'3 segs'!JP10 ->  | P22: =+'3 segs'!JQ10 ->  | Q22: =+'3 segs'!JR10 ->  | R22: =+'3 segs'!JS10 ->  | S22: =+'3 segs'!JT10 ->  | T22: =+'3 segs'!JU10 ->  | U22: =+'3 segs'!JV10 ->  | V22: =+'3 segs'!JW10 -> 
B23: AVERAGE | C23: =+'2 segs'!D10 ->  | D23: =+'2 segs'!E10 ->  | E23: =+'2 segs'!F10 ->  | F23: =+'2 segs'!G10 ->  | G23: =+'2 segs'!H10 ->  | H23: =+'2 segs'!I10 ->  | I23: =+'2 segs'!J10 ->  | J23: =+'2 segs'!K10 ->  | K23: =+'2 segs'!L10 ->  | L23: =+'2 segs'!M10 ->  | M23: =+'2 segs'!N10 ->  | N23: =+'2 segs'!O10 ->  | O23: =+'2 segs'!P10 ->  | P23: =+'2 segs'!Q10 ->  | Q23: =+'2 segs'!R10 ->  | R23: =+'2 segs'!S10 ->  | S23: =+'2 segs'!T10 ->  | T23: =+'2 segs'!U10 ->  | U23: =+'2 segs'!V10 ->  | V23: =+'2 segs'!W10 -> 
B24: Respondents | C24: Number | D24: % | E24: SSE/Segment
B25: Segment 1 | C25: =+'3 segs'!BA9 -> 0 | D25: =+IFERROR(C25/C$28,"") ->  | E25: =+'3 segs'!JP19 -> 0 | F25: SSE Total | G25: =SUM(E25:E27) -> 0
B26: Segment 2 | C26: =+'3 segs'!BB9 -> 0 | D26: =+IFERROR(C26/C$28,"") ->  | E26: =+'3 segs'!JQ19 -> 0
B27: Segment 3 | C27: =+'3 segs'!BC9 -> 0 | E27: =+'3 segs'!JR19 -> 0
B28: TOTAL | C28: =SUM(C25:C27) -> 0 | E28: =SUM(E25:E27) -> 0
B29: Take care: Some random data may appear, unless you run the relevant clustering macro. Please ignore this output if it occurs.
B30: Output for FOUR Clusters/Segments
C31: 1 | D31: 2 | E31: 3 | F31: 4 | G31: 5 | H31: 6 | I31: 7 | J31: 8 | K31: 9 | L31: 10 | M31: 11 | N31: 12 | O31: 13 | P31: 14 | Q31: 15 | R31: 16 | S31: 17 | T31: 18 | U31: 19 | V31: 20
B32: Mean/Centroid | C32: =+C18 -> 1 | D32: =+D18 -> 2 | E32: 3 | F32: 4 | G32: 5 | H32: 6 | I32: 7 | J32: 8 | K32: 9 | L32: 10 | M32: 11 | N32: 12 | O32: 13 | P32: 14 | Q32: 15 | R32: 16 | S32: 17 | T32: 18 | U32: 19 | V32: 20
B34: Segment 1 | C34: =+'4 segs'!JF8 ->  | D34: =+'4 segs'!JG8 ->  | E34: =+'4 segs'!JH8 ->  | F34: =+'4 segs'!JI8 ->  | G34: =+'4 segs'!JJ8 ->  | H34: =+'4 segs'!JK8 ->  | I34: =+'4 segs'!JL8 ->  | J34: =+'4 segs'!JM8 ->  | K34: =+'4 segs'!JN8 ->  | L34: =+'4 segs'!JO8 ->  | M34: =+'4 segs'!JP8 ->  | N34: =+'4 segs'!JQ8 ->  | O34: =+'4 segs'!JR8 ->  | P34: =+'4 segs'!JS8 ->  | Q34: =+'4 segs'!JT8 ->  | R34: =+'4 segs'!JU8 ->  | S34: =+'4 segs'!JV8 ->  | T34: =+'4 segs'!JW8 ->  | U34: =+'4 segs'!JX8 ->  | V34: =+'4 segs'!JY8 -> 
B35: Segment 2 | C35: =+'4 segs'!JF9 ->  | D35: =+'4 segs'!JG9 ->  | E35: =+'4 segs'!JH9 ->  | F35: =+'4 segs'!JI9 ->  | G35: =+'4 segs'!JJ9 ->  | H35: =+'4 segs'!JK9 ->  | I35: =+'4 segs'!JL9 ->  | J35: =+'4 segs'!JM9 ->  | K35: =+'4 segs'!JN9 ->  | L35: =+'4 segs'!JO9 ->  | M35: =+'4 segs'!JP9 ->  | N35: =+'4 segs'!JQ9 ->  | O35: =+'4 segs'!JR9 ->  | P35: =+'4 segs'!JS9 ->  | Q35: =+'4 segs'!JT9 ->  | R35: =+'4 segs'!JU9 ->  | S35: =+'4 segs'!JV9 ->  | T35: =+'4 segs'!JW9 ->  | U35: =+'4 segs'!JX9 ->  | V35: =+'4 segs'!JY9 -> 
B36: Segment 3 | C36: =+'4 segs'!JF10 ->  | D36: =+'4 segs'!JG10 ->  | E36: =+'4 segs'!JH10 ->  | F36: =+'4 segs'!JI10 ->  | G36: =+'4 segs'!JJ10 ->  | H36: =+'4 segs'!JK10 ->  | I36: =+'4 segs'!JL10 ->  | J36: =+'4 segs'!JM10 ->  | K36: =+'4 segs'!JN10 ->  | L36: =+'4 segs'!JO10 ->  | M36: =+'4 segs'!JP10 ->  | N36: =+'4 segs'!JQ10 ->  | O36: =+'4 segs'!JR10 ->  | P36: =+'4 segs'!JS10 ->  | Q36: =+'4 segs'!JT10 ->  | R36: =+'4 segs'!JU10 ->  | S36: =+'4 segs'!JV10 ->  | T36: =+'4 segs'!JW10 ->  | U36: =+'4 segs'!JX10 ->  | V36: =+'4 segs'!JY10 -> 
B37: Segment 4 | C37: =+'4 segs'!JF11 ->  | D37: =+'4 segs'!JG11 ->  | E37: =+'4 segs'!JH11 ->  | F37: =+'4 segs'!JI11 ->  | G37: =+'4 segs'!JJ11 ->  | H37: =+'4 segs'!JK11 ->  | I37: =+'4 segs'!JL11 ->  | J37: =+'4 segs'!JM11 ->  | K37: =+'4 segs'!JN11 ->  | L37: =+'4 segs'!JO11 ->  | M37: =+'4 segs'!JP11 ->  | N37: =+'4 segs'!JQ11 ->  | O37: =+'4 segs'!JR11 ->  | P37: =+'4 segs'!JS11 ->  | Q37: =+'4 segs'!JT11 ->  | R37: =+'4 segs'!JU11 ->  | S37: =+'4 segs'!JV11 ->  | T37: =+'4 segs'!JW11 ->  | U37: =+'4 segs'!JX11 ->  | V37: =+'4 segs'!JY11 -> 
B38: AVERAGE | C38: =+'2 segs'!D10 ->  | D38: =+'2 segs'!E10 ->  | E38: =+'2 segs'!F10 ->  | F38: =+'2 segs'!G10 ->  | G38: =+'2 segs'!H10 ->  | H38: =+'2 segs'!I10 ->  | I38: =+'2 segs'!J10 ->  | J38: =+'2 segs'!K10 ->  | K38: =+'2 segs'!L10 ->  | L38: =+'2 segs'!M10 ->  | M38: =+'2 segs'!N10 ->  | N38: =+'2 segs'!O10 ->  | O38: =+'2 segs'!P10 ->  | P38: =+'2 segs'!Q10 ->  | Q38: =+'2 segs'!R10 ->  | R38: =+'2 segs'!S10 ->  | S38: =+'2 segs'!T10 ->  | T38: =+'2 segs'!U10 ->  | U38: =+'2 segs'!V10 ->  | V38: =+'2 segs'!W10 -> 
B39: Respondents | C39: Number | D39: % | E39: SSE/Segment
B40: Segment 1 | C40: =+'4 segs'!BB9 -> 0 | D40: =IFERROR(C40/C$44,"") ->  | E40: =+'4 segs'!JR19 -> 0 | F40: SSE Total | G40: =SUM(E40:E43) -> 0
B41: Segment 2 | C41: =+'4 segs'!BC9 -> 0 | D41: =IFERROR(C41/C$44,"") ->  | E41: =+'4 segs'!JS19 -> 0
B42: Segment 3 | C42: =+'4 segs'!BD9 -> 0 | E42: =+'4 segs'!JT19 -> 0
B43: Segment 4 | C43: =+'4 segs'!BE9 -> 0 | E43: =+'4 segs'!JU19 -> 0
B44: TOTAL | C44: =SUM(C40:C43) -> 0 | E44: =SUM(E40:E43) -> 0
B45: Take care: Some random data may appear, unless you run the relevant clustering macro. Please ignore this output if it occurs.
B46: Output for FIVE Clusters/Segments
C47: 1 | D47: 2 | E47: 3 | F47: 4 | G47: 5 | H47: 6 | I47: 7 | J47: 8 | K47: 9 | L47: 10 | M47: 11 | N47: 12 | O47: 13 | P47: 14 | Q47: 15 | R47: 16 | S47: 17 | T47: 18 | U47: 19 | V47: 20
B48: Mean/Centroid | C48: =+C32 -> 1 | D48: =+D32 -> 2 | E48: 3 | F48: 4 | G48: 5 | H48: 6 | I48: 7 | J48: 8 | K48: 9 | L48: 10 | M48: 11 | N48: 12 | O48: 13 | P48: 14 | Q48: 15 | R48: 16 | S48: 17 | T48: 18 | U48: 19 | V48: 20
B50: Segment 1 | C50: =+'5 segs'!JG8 ->  | D50: =+'5 segs'!JH8 ->  | E50: =+'5 segs'!JI8 ->  | F50: =+'5 segs'!JJ8 ->  | G50: =+'5 segs'!JK8 ->  | H50: =+'5 segs'!JL8 ->  | I50: =+'5 segs'!JM8 ->  | J50: =+'5 segs'!JN8 ->  | K50: =+'5 segs'!JO8 ->  | L50: =+'5 segs'!JP8 ->  | M50: =+'5 segs'!JQ8 ->  | N50: =+'5 segs'!JR8 ->  | O50: =+'5 segs'!JS8 ->  | P50: =+'5 segs'!JT8 ->  | Q50: =+'5 segs'!JU8 ->  | R50: =+'5 segs'!JV8 ->  | S50: =+'5 segs'!JW8 ->  | T50: =+'5 segs'!JX8 ->  | U50: =+'5 segs'!JY8 ->  | V50: =+'5 segs'!JZ8 -> 
B51: Segment 2 | C51: =+'5 segs'!JG9 ->  | D51: =+'5 segs'!JH9 ->  | E51: =+'5 segs'!JI9 ->  | F51: =+'5 segs'!JJ9 ->  | G51: =+'5 segs'!JK9 ->  | H51: =+'5 segs'!JL9 ->  | I51: =+'5 segs'!JM9 ->  | J51: =+'5 segs'!JN9 ->  | K51: =+'5 segs'!JO9 ->  | L51: =+'5 segs'!JP9 ->  | M51: =+'5 segs'!JQ9 ->  | N51: =+'5 segs'!JR9 ->  | O51: =+'5 segs'!JS9 ->  | P51: =+'5 segs'!JT9 ->  | Q51: =+'5 segs'!JU9 ->  | R51: =+'5 segs'!JV9 ->  | S51: =+'5 segs'!JW9 ->  | T51: =+'5 segs'!JX9 ->  | U51: =+'5 segs'!JY9 ->  | V51: =+'5 segs'!JZ9 -> 
B52: Segment 3 | C52: =+'5 segs'!JG10 ->  | D52: =+'5 segs'!JH10 ->  | E52: =+'5 segs'!JI10 ->  | F52: =+'5 segs'!JJ10 ->  | G52: =+'5 segs'!JK10 ->  | H52: =+'5 segs'!JL10 ->  | I52: =+'5 segs'!JM10 ->  | J52: =+'5 segs'!JN10 ->  | K52: =+'5 segs'!JO10 ->  | L52: =+'5 segs'!JP10 ->  | M52: =+'5 segs'!JQ10 ->  | N52: =+'5 segs'!JR10 ->  | O52: =+'5 segs'!JS10 ->  | P52: =+'5 segs'!JT10 ->  | Q52: =+'5 segs'!JU10 ->  | R52: =+'5 segs'!JV10 ->  | S52: =+'5 segs'!JW10 ->  | T52: =+'5 segs'!JX10 ->  | U52: =+'5 segs'!JY10 ->  | V52: =+'5 segs'!JZ10 -> 
B53: Segment 4 | C53: =+'5 segs'!JG11 ->  | D53: =+'5 segs'!JH11 ->  | E53: =+'5 segs'!JI11 ->  | F53: =+'5 segs'!JJ11 ->  | G53: =+'5 segs'!JK11 ->  | H53: =+'5 segs'!JL11 ->  | I53: =+'5 segs'!JM11 ->  | J53: =+'5 segs'!JN11 ->  | K53: =+'5 segs'!JO11 ->  | L53: =+'5 segs'!JP11 ->  | M53: =+'5 segs'!JQ11 ->  | N53: =+'5 segs'!JR11 ->  | O53: =+'5 segs'!JS11 ->  | P53: =+'5 segs'!JT11 ->  | Q53: =+'5 segs'!JU11 ->  | R53: =+'5 segs'!JV11 ->  | S53: =+'5 segs'!JW11 ->  | T53: =+'5 segs'!JX11 ->  | U53: =+'5 segs'!JY11 ->  | V53: =+'5 segs'!JZ11 -> 
B54: Segment 5 | C54: =+'5 segs'!JG12 ->  | D54: =+'5 segs'!JH12 ->  | E54: =+'5 segs'!JI12 ->  | F54: =+'5 segs'!JJ12 ->  | G54: =+'5 segs'!JK12 ->  | H54: =+'5 segs'!JL12 ->  | I54: =+'5 segs'!JM12 ->  | J54: =+'5 segs'!JN12 ->  | K54: =+'5 segs'!JO12 ->  | L54: =+'5 segs'!JP12 ->  | M54: =+'5 segs'!JQ12 ->  | N54: =+'5 segs'!JR12 ->  | O54: =+'5 segs'!JS12 ->  | P54: =+'5 segs'!JT12 ->  | Q54: =+'5 segs'!JU12 ->  | R54: =+'5 segs'!JV12 ->  | S54: =+'5 segs'!JW12 ->  | T54: =+'5 segs'!JX12 ->  | U54: =+'5 segs'!JY12 ->  | V54: =+'5 segs'!JZ12 -> 
B55: AVERAGE | C55: =+'2 segs'!D10 ->  | D55: =+'2 segs'!E10 ->  | E55: =+'2 segs'!F10 ->  | F55: =+'2 segs'!G10 ->  | G55: =+'2 segs'!H10 ->  | H55: =+'2 segs'!I10 ->  | I55: =+'2 segs'!J10 ->  | J55: =+'2 segs'!K10 ->  | K55: =+'2 segs'!L10 ->  | L55: =+'2 segs'!M10 ->  | M55: =+'2 segs'!N10 ->  | N55: =+'2 segs'!O10 ->  | O55: =+'2 segs'!P10 ->  | P55: =+'2 segs'!Q10 ->  | Q55: =+'2 segs'!R10 ->  | R55: =+'2 segs'!S10 ->  | S55: =+'2 segs'!T10 ->  | T55: =+'2 segs'!U10 ->  | U55: =+'2 segs'!V10 ->  | V55: =+'2 segs'!W10 -> 
B56: Respondents | C56: Number | D56: % | E56: SSE/Segment
B57: Segment 1 | C57: =+'5 segs'!BC9 -> 0 | D57: =IFERROR(C57/C$62,"") ->  | E57: =+'5 segs'!JS19 -> 0 | F57: SSE Total | G57: =SUM(E57:E61) -> 0
B58: Segment 2 | C58: =+'5 segs'!BD9 -> 0 | D58: =IFERROR(C58/C$62,"") ->  | E58: =+'5 segs'!JT19 -> 0
B59: Segment 3 | C59: =+'5 segs'!BE9 -> 0 | E59: =+'5 segs'!JU19 -> 0
B60: Segment 4 | C60: =+'5 segs'!BF9 -> 0 | E60: =+'5 segs'!JV19 -> 0
B61: Segment 5 | C61: =+'5 segs'!BG9 -> 0 | E61: =+'5 segs'!JW19 -> 0
B62: TOTAL | C62: =SUM(C57:C61) -> 0 | E62: =SUM(E57:E61) -> 0
B63: Take care: Some random data may appear, unless you run the relevant clustering macro. Please ignore this output if it occurs.
B64: Output for SIX Clusters/Segments
C65: 1 | D65: 2 | E65: 3 | F65: 4 | G65: 5 | H65: 6 | I65: 7 | J65: 8 | K65: 9 | L65: 10 | M65: 11 | N65: 12 | O65: 13 | P65: 14 | Q65: 15 | R65: 16 | S65: 17 | T65: 18 | U65: 19 | V65: 20
B66: Mean/Centroid | C66: =+C48 -> 1 | D66: =+D48 -> 2 | E66: 3 | F66: 4 | G66: 5 | H66: 6 | I66: 7 | J66: 8 | K66: 9 | L66: 10 | M66: 11 | N66: 12 | O66: 13 | P66: 14 | Q66: 15 | R66: 16 | S66: 17 | T66: 18 | U66: 19 | V66: 20
B68: Segment 1 | C68: =+'6 segs'!JH8 ->  | D68: =+'6 segs'!JI8 ->  | E68: =+'6 segs'!JJ8 ->  | F68: =+'6 segs'!JK8 ->  | G68: =+'6 segs'!JL8 ->  | H68: =+'6 segs'!JM8 ->  | I68: =+'6 segs'!JN8 ->  | J68: =+'6 segs'!JO8 ->  | K68: =+'6 segs'!JP8 ->  | L68: =+'6 segs'!JQ8 ->  | M68: =+'6 segs'!JR8 ->  | N68: =+'6 segs'!JS8 ->  | O68: =+'6 segs'!JT8 ->  | P68: =+'6 segs'!JU8 ->  | Q68: =+'6 segs'!JV8 ->  | R68: =+'6 segs'!JW8 ->  | S68: =+'6 segs'!JX8 ->  | T68: =+'6 segs'!JY8 ->  | U68: =+'6 segs'!JZ8 ->  | V68: =+'6 segs'!KA8 -> 
B69: Segment 2 | C69: =+'6 segs'!JH9 ->  | D69: =+'6 segs'!JI9 ->  | E69: =+'6 segs'!JJ9 ->  | F69: =+'6 segs'!JK9 ->  | G69: =+'6 segs'!JL9 ->  | H69: =+'6 segs'!JM9 ->  | I69: =+'6 segs'!JN9 ->  | J69: =+'6 segs'!JO9 ->  | K69: =+'6 segs'!JP9 ->  | L69: =+'6 segs'!JQ9 ->  | M69: =+'6 segs'!JR9 ->  | N69: =+'6 segs'!JS9 ->  | O69: =+'6 segs'!JT9 ->  | P69: =+'6 segs'!JU9 ->  | Q69: =+'6 segs'!JV9 ->  | R69: =+'6 segs'!JW9 ->  | S69: =+'6 segs'!JX9 ->  | T69: =+'6 segs'!JY9 ->  | U69: =+'6 segs'!JZ9 ->  | V69: =+'6 segs'!KA9 -> 
B70: Segment 3 | C70: =+'6 segs'!JH10 ->  | D70: =+'6 segs'!JI10 ->  | E70: =+'6 segs'!JJ10 ->  | F70: =+'6 segs'!JK10 ->  | G70: =+'6 segs'!JL10 ->  | H70: =+'6 segs'!JM10 ->  | I70: =+'6 segs'!JN10 ->  | J70: =+'6 segs'!JO10 ->  | K70: =+'6 segs'!JP10 ->  | L70: =+'6 segs'!JQ10 ->  | M70: =+'6 segs'!JR10 ->  | N70: =+'6 segs'!JS10 ->  | O70: =+'6 segs'!JT10 ->  | P70: =+'6 segs'!JU10 ->  | Q70: =+'6 segs'!JV10 ->  | R70: =+'6 segs'!JW10 ->  | S70: =+'6 segs'!JX10 ->  | T70: =+'6 segs'!JY10 ->  | U70: =+'6 segs'!JZ10 ->  | V70: =+'6 segs'!KA10 -> 
B71: Segment 4 | C71: =+'6 segs'!JH11 ->  | D71: =+'6 segs'!JI11 ->  | E71: =+'6 segs'!JJ11 ->  | F71: =+'6 segs'!JK11 ->  | G71: =+'6 segs'!JL11 ->  | H71: =+'6 segs'!JM11 ->  | I71: =+'6 segs'!JN11 ->  | J71: =+'6 segs'!JO11 ->  | K71: =+'6 segs'!JP11 ->  | L71: =+'6 segs'!JQ11 ->  | M71: =+'6 segs'!JR11 ->  | N71: =+'6 segs'!JS11 ->  | O71: =+'6 segs'!JT11 ->  | P71: =+'6 segs'!JU11 ->  | Q71: =+'6 segs'!JV11 ->  | R71: =+'6 segs'!JW11 ->  | S71: =+'6 segs'!JX11 ->  | T71: =+'6 segs'!JY11 ->  | U71: =+'6 segs'!JZ11 ->  | V71: =+'6 segs'!KA11 -> 
B72: Segment 5 | C72: =+'6 segs'!JH12 ->  | D72: =+'6 segs'!JI12 ->  | E72: =+'6 segs'!JJ12 ->  | F72: =+'6 segs'!JK12 ->  | G72: =+'6 segs'!JL12 ->  | H72: =+'6 segs'!JM12 ->  | I72: =+'6 segs'!JN12 ->  | J72: =+'6 segs'!JO12 ->  | K72: =+'6 segs'!JP12 ->  | L72: =+'6 segs'!JQ12 ->  | M72: =+'6 segs'!JR12 ->  | N72: =+'6 segs'!JS12 ->  | O72: =+'6 segs'!JT12 ->  | P72: =+'6 segs'!JU12 ->  | Q72: =+'6 segs'!JV12 ->  | R72: =+'6 segs'!JW12 ->  | S72: =+'6 segs'!JX12 ->  | T72: =+'6 segs'!JY12 ->  | U72: =+'6 segs'!JZ12 ->  | V72: =+'6 segs'!KA12 -> 
B73: Segment 6 | C73: =+'6 segs'!JH13 ->  | D73: =+'6 segs'!JI13 ->  | E73: =+'6 segs'!JJ13 ->  | F73: =+'6 segs'!JK13 ->  | G73: =+'6 segs'!JL13 ->  | H73: =+'6 segs'!JM13 ->  | I73: =+'6 segs'!JN13 ->  | J73: =+'6 segs'!JO13 ->  | K73: =+'6 segs'!JP13 ->  | L73: =+'6 segs'!JQ13 ->  | M73: =+'6 segs'!JR13 ->  | N73: =+'6 segs'!JS13 ->  | O73: =+'6 segs'!JT13 ->  | P73: =+'6 segs'!JU13 ->  | Q73: =+'6 segs'!JV13 ->  | R73: =+'6 segs'!JW13 ->  | S73: =+'6 segs'!JX13 ->  | T73: =+'6 segs'!JY13 ->  | U73: =+'6 segs'!JZ13 ->  | V73: =+'6 segs'!KA13 -> 
B74: AVERAGE | C74: =+'2 segs'!D10 ->  | D74: =+'2 segs'!E10 ->  | E74: =+'2 segs'!F10 ->  | F74: =+'2 segs'!G10 ->  | G74: =+'2 segs'!H10 ->  | H74: =+'2 segs'!I10 ->  | I74: =+'2 segs'!J10 ->  | J74: =+'2 segs'!K10 ->  | K74: =+'2 segs'!L10 ->  | L74: =+'2 segs'!M10 ->  | M74: =+'2 segs'!N10 ->  | N74: =+'2 segs'!O10 ->  | O74: =+'2 segs'!P10 ->  | P74: =+'2 segs'!Q10 ->  | Q74: =+'2 segs'!R10 ->  | R74: =+'2 segs'!S10 ->  | S74: =+'2 segs'!T10 ->  | T74: =+'2 segs'!U10 ->  | U74: =+'2 segs'!V10 ->  | V74: =+'2 segs'!W10 -> 
B75: Respondents | C75: Number | D75: % | E75: SSE/Segment
B76: Segment 1 | C76: =+'6 segs'!BD9 -> 0 | D76: =IFERROR(C76/C$82,"") ->  | E76: =+'6 segs'!JT19 -> 0 | F76: SSE Total | G76: =SUM(E76:E81) -> 0
B77: Segment 2 | C77: =+'6 segs'!BE9 -> 0 | D77: =IFERROR(C77/C$82,"") ->  | E77: =+'6 segs'!JU19 -> 0
B78: Segment 3 | C78: =+'6 segs'!BF9 -> 0 | E78: =+'6 segs'!JV19 -> 0
B79: Segment 4 | C79: =+'6 segs'!BG9 -> 0 | E79: =+'6 segs'!JW19 -> 0
B80: Segment 5 | C80: =+'6 segs'!BH9 -> 0 | E80: =+'6 segs'!JX19 -> 0
B81: Segment 6 | C81: =+'6 segs'!BI9 -> 0 | E81: =+'6 segs'!JY19 -> 0
B82: TOTAL | C82: =SUM(C76:C81) -> 0 | E82: =SUM(E76:E81) -> 0
B83: Take care: Some random data may appear, unless you run the relevant clustering macro. Please ignore this output if it occurs.
B84: Output for SEVEN Clusters/Segments
C85: 1 | D85: 2 | E85: 3 | F85: 4 | G85: 5 | H85: 6 | I85: 7 | J85: 8 | K85: 9 | L85: 10 | M85: 11 | N85: 12 | O85: 13 | P85: 14 | Q85: 15 | R85: 16 | S85: 17 | T85: 18 | U85: 19 | V85: 20
B86: Mean/Centroid | C86: =+C66 -> 1 | D86: =+D66 -> 2 | E86: 3 | F86: 4 | G86: 5 | H86: 6 | I86: 7 | J86: 8 | K86: 9 | L86: 10 | M86: 11 | N86: 12 | O86: 13 | P86: 14 | Q86: 15 | R86: 16 | S86: 17 | T86: 18 | U86: 19 | V86: 20
B88: Segment 1 | C88: =+'7 segs'!JI8 ->  | D88: =+'7 segs'!JJ8 ->  | E88: =+'7 segs'!JK8 ->  | F88: =+'7 segs'!JL8 ->  | G88: =+'7 segs'!JM8 ->  | H88: =+'7 segs'!JN8 ->  | I88: =+'7 segs'!JO8 ->  | J88: =+'7 segs'!JP8 ->  | K88: =+'7 segs'!JQ8 ->  | L88: =+'7 segs'!JR8 ->  | M88: =+'7 segs'!JS8 ->  | N88: =+'7 segs'!JT8 ->  | O88: =+'7 segs'!JU8 ->  | P88: =+'7 segs'!JV8 ->  | Q88: =+'7 segs'!JW8 ->  | R88: =+'7 segs'!JX8 ->  | S88: =+'7 segs'!JY8 ->  | T88: =+'7 segs'!JZ8 ->  | U88: =+'7 segs'!KA8 ->  | V88: =+'7 segs'!KB8 -> 
B89: Segment 2 | C89: =+'7 segs'!JI9 ->  | D89: =+'7 segs'!JJ9 ->  | E89: =+'7 segs'!JK9 ->  | F89: =+'7 segs'!JL9 ->  | G89: =+'7 segs'!JM9 ->  | H89: =+'7 segs'!JN9 ->  | I89: =+'7 segs'!JO9 ->  | J89: =+'7 segs'!JP9 ->  | K89: =+'7 segs'!JQ9 ->  | L89: =+'7 segs'!JR9 ->  | M89: =+'7 segs'!JS9 ->  | N89: =+'7 segs'!JT9 ->  | O89: =+'7 segs'!JU9 ->  | P89: =+'7 segs'!JV9 ->  | Q89: =+'7 segs'!JW9 ->  | R89: =+'7 segs'!JX9 ->  | S89: =+'7 segs'!JY9 ->  | T89: =+'7 segs'!JZ9 ->  | U89: =+'7 segs'!KA9 ->  | V89: =+'7 segs'!KB9 -> 
B90: Segment 3 | C90: =+'7 segs'!JI10 ->  | D90: =+'7 segs'!JJ10 ->  | E90: =+'7 segs'!JK10 ->  | F90: =+'7 segs'!JL10 ->  | G90: =+'7 segs'!JM10 ->  | H90: =+'7 segs'!JN10 ->  | I90: =+'7 segs'!JO10 ->  | J90: =+'7 segs'!JP10 ->  | K90: =+'7 segs'!JQ10 ->  | L90: =+'7 segs'!JR10 ->  | M90: =+'7 segs'!JS10 ->  | N90: =+'7 segs'!JT10 ->  | O90: =+'7 segs'!JU10 ->  | P90: =+'7 segs'!JV10 ->  | Q90: =+'7 segs'!JW10 ->  | R90: =+'7 segs'!JX10 ->  | S90: =+'7 segs'!JY10 ->  | T90: =+'7 segs'!JZ10 ->  | U90: =+'7 segs'!KA10 ->  | V90: =+'7 segs'!KB10 -> 
B91: Segment 4 | C91: =+'7 segs'!JI11 ->  | D91: =+'7 segs'!JJ11 ->  | E91: =+'7 segs'!JK11 ->  | F91: =+'7 segs'!JL11 ->  | G91: =+'7 segs'!JM11 ->  | H91: =+'7 segs'!JN11 ->  | I91: =+'7 segs'!JO11 ->  | J91: =+'7 segs'!JP11 ->  | K91: =+'7 segs'!JQ11 ->  | L91: =+'7 segs'!JR11 ->  | M91: =+'7 segs'!JS11 ->  | N91: =+'7 segs'!JT11 ->  | O91: =+'7 segs'!JU11 ->  | P91: =+'7 segs'!JV11 ->  | Q91: =+'7 segs'!JW11 ->  | R91: =+'7 segs'!JX11 ->  | S91: =+'7 segs'!JY11 ->  | T91: =+'7 segs'!JZ11 ->  | U91: =+'7 segs'!KA11 ->  | V91: =+'7 segs'!KB11 -> 
B92: Segment 5 | C92: =+'7 segs'!JI12 ->  | D92: =+'7 segs'!JJ12 ->  | E92: =+'7 segs'!JK12 ->  | F92: =+'7 segs'!JL12 ->  | G92: =+'7 segs'!JM12 ->  | H92: =+'7 segs'!JN12 ->  | I92: =+'7 segs'!JO12 ->  | J92: =+'7 segs'!JP12 ->  | K92: =+'7 segs'!JQ12 ->  | L92: =+'7 segs'!JR12 ->  | M92: =+'7 segs'!JS12 ->  | N92: =+'7 segs'!JT12 ->  | O92: =+'7 segs'!JU12 ->  | P92: =+'7 segs'!JV12 ->  | Q92: =+'7 segs'!JW12 ->  | R92: =+'7 segs'!JX12 ->  | S92: =+'7 segs'!JY12 ->  | T92: =+'7 segs'!JZ12 ->  | U92: =+'7 segs'!KA12 ->  | V92: =+'7 segs'!KB12 -> 
B93: Segment 6 | C93: =+'7 segs'!JI13 ->  | D93: =+'7 segs'!JJ13 ->  | E93: =+'7 segs'!JK13 ->  | F93: =+'7 segs'!JL13 ->  | G93: =+'7 segs'!JM13 ->  | H93: =+'7 segs'!JN13 ->  | I93: =+'7 segs'!JO13 ->  | J93: =+'7 segs'!JP13 ->  | K93: =+'7 segs'!JQ13 ->  | L93: =+'7 segs'!JR13 ->  | M93: =+'7 segs'!JS13 ->  | N93: =+'7 segs'!JT13 ->  | O93: =+'7 segs'!JU13 ->  | P93: =+'7 segs'!JV13 ->  | Q93: =+'7 segs'!JW13 ->  | R93: =+'7 segs'!JX13 ->  | S93: =+'7 segs'!JY13 ->  | T93: =+'7 segs'!JZ13 ->  | U93: =+'7 segs'!KA13 ->  | V93: =+'7 segs'!KB13 -> 
B94: Segment 7 | C94: =+'7 segs'!JI14 ->  | D94: =+'7 segs'!JJ14 ->  | E94: =+'7 segs'!JK14 ->  | F94: =+'7 segs'!JL14 ->  | G94: =+'7 segs'!JM14 ->  | H94: =+'7 segs'!JN14 ->  | I94: =+'7 segs'!JO14 ->  | J94: =+'7 segs'!JP14 ->  | K94: =+'7 segs'!JQ14 ->  | L94: =+'7 segs'!JR14 ->  | M94: =+'7 segs'!JS14 ->  | N94: =+'7 segs'!JT14 ->  | O94: =+'7 segs'!JU14 ->  | P94: =+'7 segs'!JV14 ->  | Q94: =+'7 segs'!JW14 ->  | R94: =+'7 segs'!JX14 ->  | S94: =+'7 segs'!JY14 ->  | T94: =+'7 segs'!JZ14 ->  | U94: =+'7 segs'!KA14 ->  | V94: =+'7 segs'!KB14 -> 
B95: AVERAGE | C95: =+'2 segs'!D10 ->  | D95: =+'2 segs'!E10 ->  | E95: =+'2 segs'!F10 ->  | F95: =+'2 segs'!G10 ->  | G95: =+'2 segs'!H10 ->  | H95: =+'2 segs'!I10 ->  | I95: =+'2 segs'!J10 ->  | J95: =+'2 segs'!K10 ->  | K95: =+'2 segs'!L10 ->  | L95: =+'2 segs'!M10 ->  | M95: =+'2 segs'!N10 ->  | N95: =+'2 segs'!O10 ->  | O95: =+'2 segs'!P10 ->  | P95: =+'2 segs'!Q10 ->  | Q95: =+'2 segs'!R10 ->  | R95: =+'2 segs'!S10 ->  | S95: =+'2 segs'!T10 ->  | T95: =+'2 segs'!U10 ->  | U95: =+'2 segs'!V10 ->  | V95: =+'2 segs'!W10 -> 
B96: Respondents | C96: Number | D96: % | E96: SSE/Segment
B97: Segment 1 | C97: =+'7 segs'!BE9 -> 0 | D97: =IFERROR(C97/C$104,"") ->  | E97: =+'7 segs'!JU19 -> 0 | F97: SSE Total | G97: =SUM(E97:E103) -> 0
B98: Segment 2 | C98: =+'7 segs'!BF9 -> 0 | D98: =IFERROR(C98/C$104,"") ->  | E98: =+'7 segs'!JV19 -> 0
B99: Segment 3 | C99: =+'7 segs'!BG9 -> 0 | E99: =+'7 segs'!JW19 -> 0
B100: Segment 4 | C100: =+'7 segs'!BH9 -> 0 | E100: =+'7 segs'!JX19 -> 0
B101: Segment 5 | C101: =+'7 segs'!BI9 -> 0 | E101: =+'7 segs'!JY19 -> 0
B102: Segment 6 | C102: =+'7 segs'!BJ9 -> 0 | E102: =+'7 segs'!JZ19 -> 0
B103: Segment 7 | C103: =+'7 segs'!BK9 -> 0 | E103: =+'7 segs'!KA19 -> 0
B104: TOTAL | C104: =SUM(C97:C103) -> 0 | E104: =SUM(E97:E103) -> 0
B105: Take care: Some random data may appear, unless you run the relevant clustering macro. Please ignore this output if it occurs.
B106: Output for EIGHT Clusters/Segments
C107: 1 | D107: 2 | E107: 3 | F107: 4 | G107: 5 | H107: 6 | I107: 7 | J107: 8 | K107: 9 | L107: 10 | M107: 11 | N107: 12 | O107: 13 | P107: 14 | Q107: 15 | R107: 16 | S107: 17 | T107: 18 | U107: 19 | V107: 20
B108: Mean/Centroid | C108: =+C86 -> 1 | D108: =+D86 -> 2 | E108: 3 | F108: 4 | G108: 5 | H108: 6 | I108: 7 | J108: 8 | K108: 9 | L108: 10 | M108: 11 | N108: 12 | O108: 13 | P108: 14 | Q108: 15 | R108: 16 | S108: 17 | T108: 18 | U108: 19 | V108: 20
B110: Segment 1 | C110: =+'8 segs'!JK8 ->  | D110: =+'8 segs'!JL8 ->  | E110: =+'8 segs'!JM8 ->  | F110: =+'8 segs'!JN8 ->  | G110: =+'8 segs'!JO8 ->  | H110: =+'8 segs'!JP8 ->  | I110: =+'8 segs'!JQ8 ->  | J110: =+'8 segs'!JR8 ->  | K110: =+'8 segs'!JS8 ->  | L110: =+'8 segs'!JT8 ->  | M110: =+'8 segs'!JU8 ->  | N110: =+'8 segs'!JV8 ->  | O110: =+'8 segs'!JW8 ->  | P110: =+'8 segs'!JX8 ->  | Q110: =+'8 segs'!JY8 ->  | R110: =+'8 segs'!JZ8 ->  | S110: =+'8 segs'!KA8 ->  | T110: =+'8 segs'!KB8 ->  | U110: =+'8 segs'!KC8 ->  | V110: =+'8 segs'!KD8 -> 
B111: Segment 2 | C111: =+'8 segs'!JK9 ->  | D111: =+'8 segs'!JL9 ->  | E111: =+'8 segs'!JM9 ->  | F111: =+'8 segs'!JN9 ->  | G111: =+'8 segs'!JO9 ->  | H111: =+'8 segs'!JP9 ->  | I111: =+'8 segs'!JQ9 ->  | J111: =+'8 segs'!JR9 ->  | K111: =+'8 segs'!JS9 ->  | L111: =+'8 segs'!JT9 ->  | M111: =+'8 segs'!JU9 ->  | N111: =+'8 segs'!JV9 ->  | O111: =+'8 segs'!JW9 ->  | P111: =+'8 segs'!JX9 ->  | Q111: =+'8 segs'!JY9 ->  | R111: =+'8 segs'!JZ9 ->  | S111: =+'8 segs'!KA9 ->  | T111: =+'8 segs'!KB9 ->  | U111: =+'8 segs'!KC9 ->  | V111: =+'8 segs'!KD9 -> 
B112: Segment 3 | C112: =+'8 segs'!JK10 ->  | D112: =+'8 segs'!JL10 ->  | E112: =+'8 segs'!JM10 ->  | F112: =+'8 segs'!JN10 ->  | G112: =+'8 segs'!JO10 ->  | H112: =+'8 segs'!JP10 ->  | I112: =+'8 segs'!JQ10 ->  | J112: =+'8 segs'!JR10 ->  | K112: =+'8 segs'!JS10 ->  | L112: =+'8 segs'!JT10 ->  | M112: =+'8 segs'!JU10 ->  | N112: =+'8 segs'!JV10 ->  | O112: =+'8 segs'!JW10 ->  | P112: =+'8 segs'!JX10 ->  | Q112: =+'8 segs'!JY10 ->  | R112: =+'8 segs'!JZ10 ->  | S112: =+'8 segs'!KA10 ->  | T112: =+'8 segs'!KB10 ->  | U112: =+'8 segs'!KC10 ->  | V112: =+'8 segs'!KD10 -> 
B113: Segment 4 | C113: =+'8 segs'!JK11 ->  | D113: =+'8 segs'!JL11 ->  | E113: =+'8 segs'!JM11 ->  | F113: =+'8 segs'!JN11 ->  | G113: =+'8 segs'!JO11 ->  | H113: =+'8 segs'!JP11 ->  | I113: =+'8 segs'!JQ11 ->  | J113: =+'8 segs'!JR11 ->  | K113: =+'8 segs'!JS11 ->  | L113: =+'8 segs'!JT11 ->  | M113: =+'8 segs'!JU11 ->  | N113: =+'8 segs'!JV11 ->  | O113: =+'8 segs'!JW11 ->  | P113: =+'8 segs'!JX11 ->  | Q113: =+'8 segs'!JY11 ->  | R113: =+'8 segs'!JZ11 ->  | S113: =+'8 segs'!KA11 ->  | T113: =+'8 segs'!KB11 ->  | U113: =+'8 segs'!KC11 ->  | V113: =+'8 segs'!KD11 -> 
B114: Segment 5 | C114: =+'8 segs'!JK12 ->  | D114: =+'8 segs'!JL12 ->  | E114: =+'8 segs'!JM12 ->  | F114: =+'8 segs'!JN12 ->  | G114: =+'8 segs'!JO12 ->  | H114: =+'8 segs'!JP12 ->  | I114: =+'8 segs'!JQ12 ->  | J114: =+'8 segs'!JR12 ->  | K114: =+'8 segs'!JS12 ->  | L114: =+'8 segs'!JT12 ->  | M114: =+'8 segs'!JU12 ->  | N114: =+'8 segs'!JV12 ->  | O114: =+'8 segs'!JW12 ->  | P114: =+'8 segs'!JX12 ->  | Q114: =+'8 segs'!JY12 ->  | R114: =+'8 segs'!JZ12 ->  | S114: =+'8 segs'!KA12 ->  | T114: =+'8 segs'!KB12 ->  | U114: =+'8 segs'!KC12 ->  | V114: =+'8 segs'!KD12 -> 
B115: Segment 6 | C115: =+'8 segs'!JK13 ->  | D115: =+'8 segs'!JL13 ->  | E115: =+'8 segs'!JM13 ->  | F115: =+'8 segs'!JN13 ->  | G115: =+'8 segs'!JO13 ->  | H115: =+'8 segs'!JP13 ->  | I115: =+'8 segs'!JQ13 ->  | J115: =+'8 segs'!JR13 ->  | K115: =+'8 segs'!JS13 ->  | L115: =+'8 segs'!JT13 ->  | M115: =+'8 segs'!JU13 ->  | N115: =+'8 segs'!JV13 ->  | O115: =+'8 segs'!JW13 ->  | P115: =+'8 segs'!JX13 ->  | Q115: =+'8 segs'!JY13 ->  | R115: =+'8 segs'!JZ13 ->  | S115: =+'8 segs'!KA13 ->  | T115: =+'8 segs'!KB13 ->  | U115: =+'8 segs'!KC13 ->  | V115: =+'8 segs'!KD13 -> 
B116: Segment 7 | C116: =+'8 segs'!JK14 ->  | D116: =+'8 segs'!JL14 ->  | E116: =+'8 segs'!JM14 ->  | F116: =+'8 segs'!JN14 ->  | G116: =+'8 segs'!JO14 ->  | H116: =+'8 segs'!JP14 ->  | I116: =+'8 segs'!JQ14 ->  | J116: =+'8 segs'!JR14 ->  | K116: =+'8 segs'!JS14 ->  | L116: =+'8 segs'!JT14 ->  | M116: =+'8 segs'!JU14 ->  | N116: =+'8 segs'!JV14 ->  | O116: =+'8 segs'!JW14 ->  | P116: =+'8 segs'!JX14 ->  | Q116: =+'8 segs'!JY14 ->  | R116: =+'8 segs'!JZ14 ->  | S116: =+'8 segs'!KA14 ->  | T116: =+'8 segs'!KB14 ->  | U116: =+'8 segs'!KC14 ->  | V116: =+'8 segs'!KD14 -> 
B117: Segment 8 | C117: =+'8 segs'!JK15 ->  | D117: =+'8 segs'!JL15 ->  | E117: =+'8 segs'!JM15 ->  | F117: =+'8 segs'!JN15 ->  | G117: =+'8 segs'!JO15 ->  | H117: =+'8 segs'!JP15 ->  | I117: =+'8 segs'!JQ15 ->  | J117: =+'8 segs'!JR15 ->  | K117: =+'8 segs'!JS15 ->  | L117: =+'8 segs'!JT15 ->  | M117: =+'8 segs'!JU15 ->  | N117: =+'8 segs'!JV15 ->  | O117: =+'8 segs'!JW15 ->  | P117: =+'8 segs'!JX15 ->  | Q117: =+'8 segs'!JY15 ->  | R117: =+'8 segs'!JZ15 ->  | S117: =+'8 segs'!KA15 ->  | T117: =+'8 segs'!KB15 ->  | U117: =+'8 segs'!KC15 ->  | V117: =+'8 segs'!KD15 -> 
B118: AVERAGE | C118: =+'2 segs'!D10 ->  | D118: =+'2 segs'!E10 ->  | E118: =+'2 segs'!F10 ->  | F118: =+'2 segs'!G10 ->  | G118: =+'2 segs'!H10 ->  | H118: =+'2 segs'!I10 ->  | I118: =+'2 segs'!J10 ->  | J118: =+'2 segs'!K10 ->  | K118: =+'2 segs'!L10 ->  | L118: =+'2 segs'!M10 ->  | M118: =+'2 segs'!N10 ->  | N118: =+'2 segs'!O10 ->  | O118: =+'2 segs'!P10 ->  | P118: =+'2 segs'!Q10 ->  | Q118: =+'2 segs'!R10 ->  | R118: =+'2 segs'!S10 ->  | S118: =+'2 segs'!T10 ->  | T118: =+'2 segs'!U10 ->  | U118: =+'2 segs'!V10 ->  | V118: =+'2 segs'!W10 -> 
B119: Respondents | C119: Number | D119: % | E119: SSE/Segment
B120: Segment 1 | C120: =+'8 segs'!BF9 -> 0 | D120: =IFERROR(C120/C$128,"") ->  | E120: =+'8 segs'!JU16 -> 0 | F120: SSE Total | G120: =SUM(E120:E127) -> 0
B121: Segment 2 | C121: =+'8 segs'!BG9 -> 0 | D121: =IFERROR(C121/C$128,"") ->  | E121: =+'8 segs'!JV16 -> 0
B122: Segment 3 | C122: =+'8 segs'!BH9 -> 0 | E122: =+'8 segs'!JW16 -> 0
B123: Segment 4 | C123: =+'8 segs'!BI9 -> 0 | E123: =+'8 segs'!JX16 -> 0
B124: Segment 5 | C124: =+'8 segs'!BJ9 -> 0 | E124: =+'8 segs'!JY16 -> 0
B125: Segment 6 | C125: =+'8 segs'!BK9 -> 0 | E125: =+'8 segs'!JZ16 -> 0
B126: Segment 7 | C126: =+'8 segs'!BL9 -> 0 | E126: =+'8 segs'!KA16 -> 0
B127: Segment 8 | C127: =+'8 segs'!BM9 -> 0 | E127: =+'8 segs'!KB16 -> 0
B128: TOTAL | C128: =SUM(C120:C127) -> 0 | E128: =SUM(E120:E127) -> 0
B129: Take care: Some random data may appear, unless you run the relevant clustering macro. Please ignore this output if it occurs.
B130: Output for NINE Clusters/Segments
C131: 1 | D131: 2 | E131: 3 | F131: 4 | G131: 5 | H131: 6 | I131: 7 | J131: 8 | K131: 9 | L131: 10 | M131: 11 | N131: 12 | O131: 13 | P131: 14 | Q131: 15 | R131: 16 | S131: 17 | T131: 18 | U131: 19 | V131: 20
B132: Mean/Centroid | C132: =+C108 -> 1 | D132: =+D108 -> 2 | E132: 3 | F132: 4 | G132: 5 | H132: 6 | I132: 7 | J132: 8 | K132: 9 | L132: 10 | M132: 11 | N132: 12 | O132: 13 | P132: 14 | Q132: 15 | R132: 16 | S132: 17 | T132: 18 | U132: 19 | V132: 20
B134: Segment 1 | C134: =+'9 segs'!JL8 ->  | D134: =+'9 segs'!JM8 ->  | E134: =+'9 segs'!JN8 ->  | F134: =+'9 segs'!JO8 ->  | G134: =+'9 segs'!JP8 ->  | H134: =+'9 segs'!JQ8 ->  | I134: =+'9 segs'!JR8 ->  | J134: =+'9 segs'!JS8 ->  | K134: =+'9 segs'!JT8 ->  | L134: =+'9 segs'!JU8 ->  | M134: =+'9 segs'!JV8 ->  | N134: =+'9 segs'!JW8 ->  | O134: =+'9 segs'!JX8 ->  | P134: =+'9 segs'!JY8 ->  | Q134: =+'9 segs'!JZ8 ->  | R134: =+'9 segs'!KA8 ->  | S134: =+'9 segs'!KB8 ->  | T134: =+'9 segs'!KC8 ->  | U134: =+'9 segs'!KD8 ->  | V134: =+'9 segs'!KE8 -> 
B135: Segment 2 | C135: =+'9 segs'!JL9 ->  | D135: =+'9 segs'!JM9 ->  | E135: =+'9 segs'!JN9 ->  | F135: =+'9 segs'!JO9 ->  | G135: =+'9 segs'!JP9 ->  | H135: =+'9 segs'!JQ9 ->  | I135: =+'9 segs'!JR9 ->  | J135: =+'9 segs'!JS9 ->  | K135: =+'9 segs'!JT9 ->  | L135: =+'9 segs'!JU9 ->  | M135: =+'9 segs'!JV9 ->  | N135: =+'9 segs'!JW9 ->  | O135: =+'9 segs'!JX9 ->  | P135: =+'9 segs'!JY9 ->  | Q135: =+'9 segs'!JZ9 ->  | R135: =+'9 segs'!KA9 ->  | S135: =+'9 segs'!KB9 ->  | T135: =+'9 segs'!KC9 ->  | U135: =+'9 segs'!KD9 ->  | V135: =+'9 segs'!KE9 -> 
B136: Segment 3 | C136: =+'9 segs'!JL10 ->  | D136: =+'9 segs'!JM10 ->  | E136: =+'9 segs'!JN10 ->  | F136: =+'9 segs'!JO10 ->  | G136: =+'9 segs'!JP10 ->  | H136: =+'9 segs'!JQ10 ->  | I136: =+'9 segs'!JR10 ->  | J136: =+'9 segs'!JS10 ->  | K136: =+'9 segs'!JT10 ->  | L136: =+'9 segs'!JU10 ->  | M136: =+'9 segs'!JV10 ->  | N136: =+'9 segs'!JW10 ->  | O136: =+'9 segs'!JX10 ->  | P136: =+'9 segs'!JY10 ->  | Q136: =+'9 segs'!JZ10 ->  | R136: =+'9 segs'!KA10 ->  | S136: =+'9 segs'!KB10 ->  | T136: =+'9 segs'!KC10 ->  | U136: =+'9 segs'!KD10 ->  | V136: =+'9 segs'!KE10 -> 
B137: Segment 4 | C137: =+'9 segs'!JL11 ->  | D137: =+'9 segs'!JM11 ->  | E137: =+'9 segs'!JN11 ->  | F137: =+'9 segs'!JO11 ->  | G137: =+'9 segs'!JP11 ->  | H137: =+'9 segs'!JQ11 ->  | I137: =+'9 segs'!JR11 ->  | J137: =+'9 segs'!JS11 ->  | K137: =+'9 segs'!JT11 ->  | L137: =+'9 segs'!JU11 ->  | M137: =+'9 segs'!JV11 ->  | N137: =+'9 segs'!JW11 ->  | O137: =+'9 segs'!JX11 ->  | P137: =+'9 segs'!JY11 ->  | Q137: =+'9 segs'!JZ11 ->  | R137: =+'9 segs'!KA11 ->  | S137: =+'9 segs'!KB11 ->  | T137: =+'9 segs'!KC11 ->  | U137: =+'9 segs'!KD11 ->  | V137: =+'9 segs'!KE11 -> 
B138: Segment 5 | C138: =+'9 segs'!JL12 ->  | D138: =+'9 segs'!JM12 ->  | E138: =+'9 segs'!JN12 ->  | F138: =+'9 segs'!JO12 ->  | G138: =+'9 segs'!JP12 ->  | H138: =+'9 segs'!JQ12 ->  | I138: =+'9 segs'!JR12 ->  | J138: =+'9 segs'!JS12 ->  | K138: =+'9 segs'!JT12 ->  | L138: =+'9 segs'!JU12 ->  | M138: =+'9 segs'!JV12 ->  | N138: =+'9 segs'!JW12 ->  | O138: =+'9 segs'!JX12 ->  | P138: =+'9 segs'!JY12 ->  | Q138: =+'9 segs'!JZ12 ->  | R138: =+'9 segs'!KA12 ->  | S138: =+'9 segs'!KB12 ->  | T138: =+'9 segs'!KC12 ->  | U138: =+'9 segs'!KD12 ->  | V138: =+'9 segs'!KE12 -> 
B139: Segment 6 | C139: =+'9 segs'!JL13 ->  | D139: =+'9 segs'!JM13 ->  | E139: =+'9 segs'!JN13 ->  | F139: =+'9 segs'!JO13 ->  | G139: =+'9 segs'!JP13 ->  | H139: =+'9 segs'!JQ13 ->  | I139: =+'9 segs'!JR13 ->  | J139: =+'9 segs'!JS13 ->  | K139: =+'9 segs'!JT13 ->  | L139: =+'9 segs'!JU13 ->  | M139: =+'9 segs'!JV13 ->  | N139: =+'9 segs'!JW13 ->  | O139: =+'9 segs'!JX13 ->  | P139: =+'9 segs'!JY13 ->  | Q139: =+'9 segs'!JZ13 ->  | R139: =+'9 segs'!KA13 ->  | S139: =+'9 segs'!KB13 ->  | T139: =+'9 segs'!KC13 ->  | U139: =+'9 segs'!KD13 ->  | V139: =+'9 segs'!KE13 -> 
B140: Segment 7 | C140: =+'9 segs'!JL14 ->  | D140: =+'9 segs'!JM14 ->  | E140: =+'9 segs'!JN14 ->  | F140: =+'9 segs'!JO14 ->  | G140: =+'9 segs'!JP14 ->  | H140: =+'9 segs'!JQ14 ->  | I140: =+'9 segs'!JR14 ->  | J140: =+'9 segs'!JS14 ->  | K140: =+'9 segs'!JT14 ->  | L140: =+'9 segs'!JU14 ->  | M140: =+'9 segs'!JV14 ->  | N140: =+'9 segs'!JW14 ->  | O140: =+'9 segs'!JX14 ->  | P140: =+'9 segs'!JY14 ->  | Q140: =+'9 segs'!JZ14 ->  | R140: =+'9 segs'!KA14 ->  | S140: =+'9 segs'!KB14 ->  | T140: =+'9 segs'!KC14 ->  | U140: =+'9 segs'!KD14 ->  | V140: =+'9 segs'!KE14 -> 
B141: Segment 8 | C141: =+'9 segs'!JL15 ->  | D141: =+'9 segs'!JM15 ->  | E141: =+'9 segs'!JN15 ->  | F141: =+'9 segs'!JO15 ->  | G141: =+'9 segs'!JP15 ->  | H141: =+'9 segs'!JQ15 ->  | I141: =+'9 segs'!JR15 ->  | J141: =+'9 segs'!JS15 ->  | K141: =+'9 segs'!JT15 ->  | L141: =+'9 segs'!JU15 ->  | M141: =+'9 segs'!JV15 ->  | N141: =+'9 segs'!JW15 ->  | O141: =+'9 segs'!JX15 ->  | P141: =+'9 segs'!JY15 ->  | Q141: =+'9 segs'!JZ15 ->  | R141: =+'9 segs'!KA15 ->  | S141: =+'9 segs'!KB15 ->  | T141: =+'9 segs'!KC15 ->  | U141: =+'9 segs'!KD15 ->  | V141: =+'9 segs'!KE15 -> 
B142: Segment 9 | C142: =+'9 segs'!JL16 ->  | D142: =+'9 segs'!JM16 ->  | E142: =+'9 segs'!JN16 ->  | F142: =+'9 segs'!JO16 ->  | G142: =+'9 segs'!JP16 ->  | H142: =+'9 segs'!JQ16 ->  | I142: =+'9 segs'!JR16 ->  | J142: =+'9 segs'!JS16 ->  | K142: =+'9 segs'!JT16 ->  | L142: =+'9 segs'!JU16 ->  | M142: =+'9 segs'!JV16 ->  | N142: =+'9 segs'!JW16 ->  | O142: =+'9 segs'!JX16 ->  | P142: =+'9 segs'!JY16 ->  | Q142: =+'9 segs'!JZ16 ->  | R142: =+'9 segs'!KA16 ->  | S142: =+'9 segs'!KB16 ->  | T142: =+'9 segs'!KC16 ->  | U142: =+'9 segs'!KD16 ->  | V142: =+'9 segs'!KE16 -> 
B143: AVERAGE | C143: =+'2 segs'!D10 ->  | D143: =+'2 segs'!E10 ->  | E143: =+'2 segs'!F10 ->  | F143: =+'2 segs'!G10 ->  | G143: =+'2 segs'!H10 ->  | H143: =+'2 segs'!I10 ->  | I143: =+'2 segs'!J10 ->  | J143: =+'2 segs'!K10 ->  | K143: =+'2 segs'!L10 ->  | L143: =+'2 segs'!M10 ->  | M143: =+'2 segs'!N10 ->  | N143: =+'2 segs'!O10 ->  | O143: =+'2 segs'!P10 ->  | P143: =+'2 segs'!Q10 ->  | Q143: =+'2 segs'!R10 ->  | R143: =+'2 segs'!S10 ->  | S143: =+'2 segs'!T10 ->  | T143: =+'2 segs'!U10 ->  | U143: =+'2 segs'!V10 ->  | V143: =+'2 segs'!W10 -> 
B144: Respondents | C144: Number | D144: % | E144: SSE/Segment
B145: Segment 1 | C145: =+'9 segs'!BG9 -> 0 | D145: =IFERROR(C145/C$154,"") ->  | E145: =+'9 segs'!JX19 -> 0 | F145: SSE Total | G145: =SUM(E145:E153) -> 0
B146: Segment 2 | C146: =+'9 segs'!BH9 -> 0 | D146: =IFERROR(C146/C$154,"") ->  | E146: =+'9 segs'!JY19 -> 0
B147: Segment 3 | C147: =+'9 segs'!BI9 -> 0 | E147: =+'9 segs'!JZ19 -> 0
B148: Segment 4 | C148: =+'9 segs'!BJ9 -> 0 | E148: =+'9 segs'!KA19 -> 0
B149: Segment 5 | C149: =+'9 segs'!BK9 -> 0 | E149: =+'9 segs'!KB19 -> 0
B150: Segment 6 | C150: =+'9 segs'!BL9 -> 0 | E150: =+'9 segs'!KC19 -> 0
B151: Segment 7 | C151: =+'9 segs'!BM9 -> 0 | E151: =+'9 segs'!KD19 -> 0
B152: Segment 8 | C152: =+'9 segs'!BN9 -> 0 | E152: =+'9 segs'!KE19 -> 0
B153: Segment 9 | C153: =+'9 segs'!BO9 -> 0 | E153: =+'9 segs'!KF19 -> 0
B154: TOTAL | C154: =SUM(C145:C153) -> 0 | E154: =SUM(E145:E153) -> 0
B155: Take care: Some random data may appear, unless you run the relevant clustering macro. Please ignore this output if it occurs.
B156: Output for TEN Clusters/Segments
C157: 1 | D157: 2 | E157: 3 | F157: 4 | G157: 5 | H157: 6 | I157: 7 | J157: 8 | K157: 9 | L157: 10 | M157: 11 | N157: 12 | O157: 13 | P157: 14 | Q157: 15 | R157: 16 | S157: 17 | T157: 18 | U157: 19 | V157: 20
B158: Mean/Centroid | C158: =+C132 -> 1 | D158: =+D132 -> 2 | E158: 3 | F158: 4 | G158: 5 | H158: 6 | I158: 7 | J158: 8 | K158: 9 | L158: 10 | M158: 11 | N158: 12 | O158: 13 | P158: 14 | Q158: 15 | R158: 16 | S158: 17 | T158: 18 | U158: 19 | V158: 20
B160: Segment 1 | C160: =+'10 segs'!JM8 ->  | D160: =+'10 segs'!JN8 ->  | E160: =+'10 segs'!JO8 ->  | F160: =+'10 segs'!JP8 ->  | G160: =+'10 segs'!JQ8 ->  | H160: =+'10 segs'!JR8 ->  | I160: =+'10 segs'!JS8 ->  | J160: =+'10 segs'!JT8 ->  | K160: =+'10 segs'!JU8 ->  | L160: =+'10 segs'!JV8 ->  | M160: =+'10 segs'!JW8 ->  | N160: =+'10 segs'!JX8 ->  | O160: =+'10 segs'!JY8 ->  | P160: =+'10 segs'!JZ8 ->  | Q160: =+'10 segs'!KA8 ->  | R160: =+'10 segs'!KB8 ->  | S160: =+'10 segs'!KC8 ->  | T160: =+'10 segs'!KD8 ->  | U160: =+'10 segs'!KE8 ->  | V160: =+'10 segs'!KF8 -> 
B161: Segment 2 | C161: =+'10 segs'!JM9 ->  | D161: =+'10 segs'!JN9 ->  | E161: =+'10 segs'!JO9 ->  | F161: =+'10 segs'!JP9 ->  | G161: =+'10 segs'!JQ9 ->  | H161: =+'10 segs'!JR9 ->  | I161: =+'10 segs'!JS9 ->  | J161: =+'10 segs'!JT9 ->  | K161: =+'10 segs'!JU9 ->  | L161: =+'10 segs'!JV9 ->  | M161: =+'10 segs'!JW9 ->  | N161: =+'10 segs'!JX9 ->  | O161: =+'10 segs'!JY9 ->  | P161: =+'10 segs'!JZ9 ->  | Q161: =+'10 segs'!KA9 ->  | R161: =+'10 segs'!KB9 ->  | S161: =+'10 segs'!KC9 ->  | T161: =+'10 segs'!KD9 ->  | U161: =+'10 segs'!KE9 ->  | V161: =+'10 segs'!KF9 -> 
B162: Segment 3 | C162: =+'10 segs'!JM10 ->  | D162: =+'10 segs'!JN10 ->  | E162: =+'10 segs'!JO10 ->  | F162: =+'10 segs'!JP10 ->  | G162: =+'10 segs'!JQ10 ->  | H162: =+'10 segs'!JR10 ->  | I162: =+'10 segs'!JS10 ->  | J162: =+'10 segs'!JT10 ->  | K162: =+'10 segs'!JU10 ->  | L162: =+'10 segs'!JV10 ->  | M162: =+'10 segs'!JW10 ->  | N162: =+'10 segs'!JX10 ->  | O162: =+'10 segs'!JY10 ->  | P162: =+'10 segs'!JZ10 ->  | Q162: =+'10 segs'!KA10 ->  | R162: =+'10 segs'!KB10 ->  | S162: =+'10 segs'!KC10 ->  | T162: =+'10 segs'!KD10 ->  | U162: =+'10 segs'!KE10 ->  | V162: =+'10 segs'!KF10 -> 
B163: Segment 4 | C163: =+'10 segs'!JM11 ->  | D163: =+'10 segs'!JN11 ->  | E163: =+'10 segs'!JO11 ->  | F163: =+'10 segs'!JP11 ->  | G163: =+'10 segs'!JQ11 ->  | H163: =+'10 segs'!JR11 ->  | I163: =+'10 segs'!JS11 ->  | J163: =+'10 segs'!JT11 ->  | K163: =+'10 segs'!JU11 ->  | L163: =+'10 segs'!JV11 ->  | M163: =+'10 segs'!JW11 ->  | N163: =+'10 segs'!JX11 ->  | O163: =+'10 segs'!JY11 ->  | P163: =+'10 segs'!JZ11 ->  | Q163: =+'10 segs'!KA11 ->  | R163: =+'10 segs'!KB11 ->  | S163: =+'10 segs'!KC11 ->  | T163: =+'10 segs'!KD11 ->  | U163: =+'10 segs'!KE11 ->  | V163: =+'10 segs'!KF11 -> 
B164: Segment 5 | C164: =+'10 segs'!JM12 ->  | D164: =+'10 segs'!JN12 ->  | E164: =+'10 segs'!JO12 ->  | F164: =+'10 segs'!JP12 ->  | G164: =+'10 segs'!JQ12 ->  | H164: =+'10 segs'!JR12 ->  | I164: =+'10 segs'!JS12 ->  | J164: =+'10 segs'!JT12 ->  | K164: =+'10 segs'!JU12 ->  | L164: =+'10 segs'!JV12 ->  | M164: =+'10 segs'!JW12 ->  | N164: =+'10 segs'!JX12 ->  | O164: =+'10 segs'!JY12 ->  | P164: =+'10 segs'!JZ12 ->  | Q164: =+'10 segs'!KA12 ->  | R164: =+'10 segs'!KB12 ->  | S164: =+'10 segs'!KC12 ->  | T164: =+'10 segs'!KD12 ->  | U164: =+'10 segs'!KE12 ->  | V164: =+'10 segs'!KF12 -> 
B165: Segment 6 | C165: =+'10 segs'!JM13 ->  | D165: =+'10 segs'!JN13 ->  | E165: =+'10 segs'!JO13 ->  | F165: =+'10 segs'!JP13 ->  | G165: =+'10 segs'!JQ13 ->  | H165: =+'10 segs'!JR13 ->  | I165: =+'10 segs'!JS13 ->  | J165: =+'10 segs'!JT13 ->  | K165: =+'10 segs'!JU13 ->  | L165: =+'10 segs'!JV13 ->  | M165: =+'10 segs'!JW13 ->  | N165: =+'10 segs'!JX13 ->  | O165: =+'10 segs'!JY13 ->  | P165: =+'10 segs'!JZ13 ->  | Q165: =+'10 segs'!KA13 ->  | R165: =+'10 segs'!KB13 ->  | S165: =+'10 segs'!KC13 ->  | T165: =+'10 segs'!KD13 ->  | U165: =+'10 segs'!KE13 ->  | V165: =+'10 segs'!KF13 -> 
B166: Segment 7 | C166: =+'10 segs'!JM14 ->  | D166: =+'10 segs'!JN14 ->  | E166: =+'10 segs'!JO14 ->  | F166: =+'10 segs'!JP14 ->  | G166: =+'10 segs'!JQ14 ->  | H166: =+'10 segs'!JR14 ->  | I166: =+'10 segs'!JS14 ->  | J166: =+'10 segs'!JT14 ->  | K166: =+'10 segs'!JU14 ->  | L166: =+'10 segs'!JV14 ->  | M166: =+'10 segs'!JW14 ->  | N166: =+'10 segs'!JX14 ->  | O166: =+'10 segs'!JY14 ->  | P166: =+'10 segs'!JZ14 ->  | Q166: =+'10 segs'!KA14 ->  | R166: =+'10 segs'!KB14 ->  | S166: =+'10 segs'!KC14 ->  | T166: =+'10 segs'!KD14 ->  | U166: =+'10 segs'!KE14 ->  | V166: =+'10 segs'!KF14 -> 
B167: Segment 8 | C167: =+'10 segs'!JM15 ->  | D167: =+'10 segs'!JN15 ->  | E167: =+'10 segs'!JO15 ->  | F167: =+'10 segs'!JP15 ->  | G167: =+'10 segs'!JQ15 ->  | H167: =+'10 segs'!JR15 ->  | I167: =+'10 segs'!JS15 ->  | J167: =+'10 segs'!JT15 ->  | K167: =+'10 segs'!JU15 ->  | L167: =+'10 segs'!JV15 ->  | M167: =+'10 segs'!JW15 ->  | N167: =+'10 segs'!JX15 ->  | O167: =+'10 segs'!JY15 ->  | P167: =+'10 segs'!JZ15 ->  | Q167: =+'10 segs'!KA15 ->  | R167: =+'10 segs'!KB15 ->  | S167: =+'10 segs'!KC15 ->  | T167: =+'10 segs'!KD15 ->  | U167: =+'10 segs'!KE15 ->  | V167: =+'10 segs'!KF15 -> 
B168: Segment 9 | C168: =+'10 segs'!JM16 ->  | D168: =+'10 segs'!JN16 ->  | E168: =+'10 segs'!JO16 ->  | F168: =+'10 segs'!JP16 ->  | G168: =+'10 segs'!JQ16 ->  | H168: =+'10 segs'!JR16 ->  | I168: =+'10 segs'!JS16 ->  | J168: =+'10 segs'!JT16 ->  | K168: =+'10 segs'!JU16 ->  | L168: =+'10 segs'!JV16 ->  | M168: =+'10 segs'!JW16 ->  | N168: =+'10 segs'!JX16 ->  | O168: =+'10 segs'!JY16 ->  | P168: =+'10 segs'!JZ16 ->  | Q168: =+'10 segs'!KA16 ->  | R168: =+'10 segs'!KB16 ->  | S168: =+'10 segs'!KC16 ->  | T168: =+'10 segs'!KD16 ->  | U168: =+'10 segs'!KE16 ->  | V168: =+'10 segs'!KF16 -> 
B169: Segment 10 | C169: =+'10 segs'!JM17 ->  | D169: =+'10 segs'!JN17 ->  | E169: =+'10 segs'!JO17 ->  | F169: =+'10 segs'!JP17 ->  | G169: =+'10 segs'!JQ17 ->  | H169: =+'10 segs'!JR17 ->  | I169: =+'10 segs'!JS17 ->  | J169: =+'10 segs'!JT17 ->  | K169: =+'10 segs'!JU17 ->  | L169: =+'10 segs'!JV17 ->  | M169: =+'10 segs'!JW17 ->  | N169: =+'10 segs'!JX17 ->  | O169: =+'10 segs'!JY17 ->  | P169: =+'10 segs'!JZ17 ->  | Q169: =+'10 segs'!KA17 ->  | R169: =+'10 segs'!KB17 ->  | S169: =+'10 segs'!KC17 ->  | T169: =+'10 segs'!KD17 ->  | U169: =+'10 segs'!KE17 ->  | V169: =+'10 segs'!KF17 -> 
B170: AVERAGE | C170: =+'2 segs'!D10 ->  | D170: =+'2 segs'!E10 ->  | E170: =+'2 segs'!F10 ->  | F170: =+'2 segs'!G10 ->  | G170: =+'2 segs'!H10 ->  | H170: =+'2 segs'!I10 ->  | I170: =+'2 segs'!J10 ->  | J170: =+'2 segs'!K10 ->  | K170: =+'2 segs'!L10 ->  | L170: =+'2 segs'!M10 ->  | M170: =+'2 segs'!N10 ->  | N170: =+'2 segs'!O10 ->  | O170: =+'2 segs'!P10 ->  | P170: =+'2 segs'!Q10 ->  | Q170: =+'2 segs'!R10 ->  | R170: =+'2 segs'!S10 ->  | S170: =+'2 segs'!T10 ->  | T170: =+'2 segs'!U10 ->  | U170: =+'2 segs'!V10 ->  | V170: =+'2 segs'!W10 -> 
B171: Respondents | C171: Number | D171: % | E171: SSE/Segment
B172: Segment 1 | C172: =+'10 segs'!BH9 -> 0 | D172: =IFERROR(C172/C$182,"") ->  | E172: =+'10 segs'!JY19 -> 0 | F172: SSE Total | G172: =SUM(E172:E181) -> 0
B173: Segment 2 | C173: =+'10 segs'!BI9 -> 0 | D173: =IFERROR(C173/C$182,"") ->  | E173: =+'10 segs'!JZ19 -> 0
B174: Segment 3 | C174: =+'10 segs'!BJ9 -> 0 | E174: =+'10 segs'!KA19 -> 0
B175: Segment 4 | C175: =+'10 segs'!BK9 -> 0 | E175: =+'10 segs'!KB19 -> 0
B176: Segment 5 | C176: =+'10 segs'!BL9 -> 0 | E176: =+'10 segs'!KC19 -> 0
B177: Segment 6 | C177: =+'10 segs'!BM9 -> 0 | E177: =+'10 segs'!KD19 -> 0
B178: Segment 7 | C178: =+'10 segs'!BN9 -> 0 | E178: =+'10 segs'!KE19 -> 0
B179: Segment 8 | C179: =+'10 segs'!BO9 -> 0 | E179: =+'10 segs'!KF19 -> 0
B180: Segment 9 | C180: =+'10 segs'!BP9 -> 0 | E180: =+'10 segs'!KG19 -> 0
B181: Segment 10 | C181: =+'10 segs'!BQ9 -> 0 | E181: =+'10 segs'!KH19 -> 0
B182: TOTAL | C182: =SUM(C172:C181) -> 0 | E182: =SUM(E172:E181) -> 0
B183: Take care: Some random data may appear, unless you run the relevant clustering macro. Please ignore this output if it occurs.

Sheet Allocation
B2: IMPORTANT: You MUST run the relevant clustering macro first. Please use the 'segs' tab/s below.
B3: Number of respondents per segment
B4: Number of respondents per segment | C4: Allocated Segment for 2 Clusters | D4: Allocated Segment for 3 Clusters | E4: Allocated Segment for 4 Clusters | F4: Allocated Segment for 5 Clusters | G4: Allocated Segment for 6 Clusters | H4: Allocated Segment for 7 Clusters | I4: Allocated Segment for 8 Clusters | J4: Allocated Segment for 9 Clusters | K4: Allocated Segment for 10 Clusters
B5: No. in Segment 1 | C5: =COUNTIF(C$30:C$1029,1) -> 0 | D5: =COUNTIF(D$30:D$1029,1) -> 0 | E5: 0 | F5: 0 | G5: 0 | H5: 0 | I5: 0 | J5: 0 | K5: 0
B6: No. in Segment 2 | C6: =COUNTIF(C$30:C$1029,2) -> 0 | D6: =COUNTIF(D$30:D$1029,2) -> 0 | E6: 0 | F6: 0 | G6: 0 | H6: 0 | I6: 0 | J6: 0 | K6: 0
B7: No. in Segment 3 | D7: =COUNTIF(D$30:D$1029,3) -> 0 | E7: =COUNTIF(E$30:E$1029,3) -> 0 | F7: 0 | G7: 0 | H7: 0 | I7: 0 | J7: 0 | K7: 0
B8: No. in Segment 4 | E8: =COUNTIF(E$30:E$1029,4) -> 0 | F8: =COUNTIF(F$30:F$1029,4) -> 0 | G8: 0 | H8: 0 | I8: 0 | J8: 0 | K8: 0
B9: No. in Segment 5 | F9: =COUNTIF(F$30:F$1029,5) -> 0 | G9: =COUNTIF(G$30:G$1029,5) -> 0 | H9: 0 | I9: 0 | J9: 0 | K9: 0
B10: No. in Segment 6 | G10: =COUNTIF(G$30:G$1029,6) -> 0 | H10: =COUNTIF(H$30:H$1029,6) -> 0 | I10: 0 | J10: 0 | K10: 0
B11: No. in Segment 7 | H11: =COUNTIF(H$30:H$1029,7) -> 0 | I11: =COUNTIF(I$30:I$1029,7) -> 0 | J11: 0 | K11: 0
B12: No. in Segment 8 | I12: =COUNTIF(I$30:I$1029,8) -> 0 | J12: =COUNTIF(J$30:J$1029,8) -> 0 | K12: 0
B13: No. in Segment 9 | J13: =COUNTIF(J$30:J$1029,9) -> 0 | K13: =COUNTIF(K$30:K$1029,9) -> 0
B14: No. in Segment 10 | K14: =COUNTIF(K$30:K$1029,10) -> 0
B15: TOTAL | C15: =SUM(C5:C14) -> 0 | D15: =SUM(D5:D14) -> 0 | E15: 0 | F15: 0 | G15: 0 | H15: 0 | I15: 0 | J15: 0 | K15: 0
B16: Anchor respondent for each segment
B17: Variable/data number shown | C17: 2 Clusters | D17: 3 Clusters | E17: 4 Clusters | F17: 5 Clusters | G17: 6 Clusters | H17: 7 Clusters | I17: 8 Clusters | J17: 9 Clusters | K17: 10 Clusters
B18: Segment 1 | C18: =IF(C$15>0,'2 segs'!Y2,"") ->  | D18: =IF(D$15>0,'3 segs'!Y2,"") ->  | E18: =IF(E$15>0,'4 segs'!Y2,"") ->  | F18: =IF(F$15>0,'5 segs'!Y2,"") ->  | G18: =IF(G$15>0,'6 segs'!Y2,"") ->  | H18: =IF(H$15>0,'7 segs'!Y2,"") ->  | I18: =IF(I$15>0,'8 segs'!Y2,"") ->  | J18: =IF(J$15>0,'9 segs'!Y2,"") ->  | K18: =IF(K$15>0,'10 segs'!Y2,"") -> 
B19: Segment 2 | C19: =IF(C$15>0,'2 segs'!Y3,"") ->  | D19: =IF(D$15>0,'3 segs'!Y3,"") ->  | E19: =IF(E$15>0,'4 segs'!Y3,"") ->  | F19: =IF(F$15>0,'5 segs'!Y3,"") ->  | G19: =IF(G$15>0,'6 segs'!Y3,"") ->  | H19: =IF(H$15>0,'7 segs'!Y3,"") ->  | I19: =IF(I$15>0,'8 segs'!Y3,"") ->  | J19: =IF(J$15>0,'9 segs'!Y3,"") ->  | K19: =IF(K$15>0,'10 segs'!Y3,"") -> 
B20: Segment 3 | D20: =IF(D$15>0,'3 segs'!Y4,"") ->  | E20: =IF(E$15>0,'4 segs'!Y4,"") ->  | F20: =IF(F$15>0,'5 segs'!Y4,"") ->  | G20: =IF(G$15>0,'6 segs'!Y4,"") ->  | H20: =IF(H$15>0,'7 segs'!Y4,"") ->  | I20: =IF(I$15>0,'8 segs'!Y4,"") ->  | J20: =IF(J$15>0,'9 segs'!Y4,"") ->  | K20: =IF(K$15>0,'10 segs'!Y4,"") -> 
B21: Segment 4 | E21: =IF(E$15>0,'4 segs'!Y5,"") ->  | F21: =IF(F$15>0,'5 segs'!Y5,"") ->  | G21: =IF(G$15>0,'6 segs'!Y5,"") ->  | H21: =IF(H$15>0,'7 segs'!Y5,"") ->  | I21: =IF(I$15>0,'8 segs'!Y5,"") ->  | J21: =IF(J$15>0,'9 segs'!Y5,"") ->  | K21: =IF(K$15>0,'10 segs'!Y5,"") -> 
B22: Segment 5 | F22: =IF(F$15>0,'5 segs'!Y6,"") ->  | G22: =IF(G$15>0,'6 segs'!Y6,"") ->  | H22: =IF(H$15>0,'7 segs'!Y6,"") ->  | I22: =IF(I$15>0,'8 segs'!Y6,"") ->  | J22: =IF(J$15>0,'9 segs'!Y6,"") ->  | K22: =IF(K$15>0,'10 segs'!Y6,"") -> 
B23: Segment 6 | G23: =IF(G$15>0,'6 segs'!Y7,"") ->  | H23: =IF(H$15>0,'7 segs'!Y7,"") ->  | I23: =IF(I$15>0,'8 segs'!Y7,"") ->  | J23: =IF(J$15>0,'9 segs'!Y7,"") ->  | K23: =IF(K$15>0,'10 segs'!Y7,"") -> 
B24: Segment 7 | H24: =IF(H$15>0,'7 segs'!Y8,"") ->  | I24: =IF(I$15>0,'8 segs'!Y8,"") ->  | J24: =IF(J$15>0,'9 segs'!Y8,"") ->  | K24: =IF(K$15>0,'10 segs'!Y8,"") -> 
B25: Segment 8 | I25: =IF(I$15>0,'8 segs'!Y9,"") ->  | J25: =IF(J$15>0,'9 segs'!Y9,"") ->  | K25: =IF(K$15>0,'10 segs'!Y9,"") -> 
B26: Segment 9 | J26: =IF(J$15>0,'9 segs'!Y10,"") ->  | K26: =IF(K$15>0,'10 segs'!Y10,"") -> 
B27: Segment 10 | K27: =IF(K$15>0,'10 segs'!Y11,"") -> 
B28: In which cluster/segment is the respondent allocated?
B29: Respondent (Case) | C29: Allocated Segment for 2 Clusters | D29: Allocated Segment for 3 Clusters | E29: Allocated Segment for 4 Clusters | F29: Allocated Segment for 5 Clusters | G29: Allocated Segment for 6 Clusters | H29: Allocated Segment for 7 Clusters | I29: Allocated Segment for 8 Clusters | J29: Allocated Segment for 9 Clusters | K29: Allocated Segment for 10 Clusters
B30: 1 | C30: =+'2 segs'!AX14 ->  | D30: =+'3 segs'!AY14 ->  | E30: =+'4 segs'!AZ14 ->  | F30: =+'5 segs'!BA14 ->  | G30: =+'6 segs'!BB14 ->  | H30: =+'7 segs'!BC14 ->  | I30: =+'8 segs'!BD14 ->  | J30: =+'9 segs'!BE14 ->  | K30: =+'10 segs'!BF14 -> 
B31: 2 | C31: =+'2 segs'!AX15 ->  | D31: =+'3 segs'!AY15 ->  | E31: =+'4 segs'!AZ15 ->  | F31: =+'5 segs'!BA15 ->  | G31: =+'6 segs'!BB15 ->  | H31: =+'7 segs'!BC15 ->  | I31: =+'8 segs'!BD15 ->  | J31: =+'9 segs'!BE15 ->  | K31: =+'10 segs'!BF15 -> 
B32: 3 | C32: =+'2 segs'!AX16 ->  | D32: =+'3 segs'!AY16 ->  | E32: =+'4 segs'!AZ16 ->  | F32: =+'5 segs'!BA16 ->  | G32: =+'6 segs'!BB16 ->  | H32: =+'7 segs'!BC16 ->  | I32: =+'8 segs'!BD16 ->  | J32: =+'9 segs'!BE16 ->  | K32: =+'10 segs'!BF16 -> 
B33: 4 | C33: =+'2 segs'!AX17 ->  | D33: =+'3 segs'!AY17 ->  | E33: =+'4 segs'!AZ17 ->  | F33: =+'5 segs'!BA17 ->  | G33: =+'6 segs'!BB17 ->  | H33: =+'7 segs'!BC17 ->  | I33: =+'8 segs'!BD17 ->  | J33: =+'9 segs'!BE17 ->  | K33: =+'10 segs'!BF17 -> 
B34: 5 | C34: =+'2 segs'!AX18 ->  | D34: =+'3 segs'!AY18 ->  | E34: =+'4 segs'!AZ18 ->  | F34: =+'5 segs'!BA18 ->  | G34: =+'6 segs'!BB18 ->  | H34: =+'7 segs'!BC18 ->  | I34: =+'8 segs'!BD18 ->  | J34: =+'9 segs'!BE18 ->  | K34: =+'10 segs'!BF18 -> 
B35: 6 | C35: =+'2 segs'!AX19 ->  | D35: =+'3 segs'!AY19 ->  | E35: =+'4 segs'!AZ19 ->  | F35: =+'5 segs'!BA19 ->  | G35: =+'6 segs'!BB19 ->  | H35: =+'7 segs'!BC19 ->  | I35: =+'8 segs'!BD19 ->  | J35: =+'9 segs'!BE19 ->  | K35: =+'10 segs'!BF19 -> 
B36: 7 | C36: =+'2 segs'!AX20 ->  | D36: =+'3 segs'!AY20 ->  | E36: =+'4 segs'!AZ20 ->  | F36: =+'5 segs'!BA20 ->  | G36: =+'6 segs'!BB20 ->  | H36: =+'7 segs'!BC20 ->  | I36: =+'8 segs'!BD20 ->  | J36: =+'9 segs'!BE20 ->  | K36: =+'10 segs'!BF20 -> 
B37: 8 | C37: =+'2 segs'!AX21 ->  | D37: =+'3 segs'!AY21 ->  | E37: =+'4 segs'!AZ21 ->  | F37: =+'5 segs'!BA21 ->  | G37: =+'6 segs'!BB21 ->  | H37: =+'7 segs'!BC21 ->  | I37: =+'8 segs'!BD21 ->  | J37: =+'9 segs'!BE21 ->  | K37: =+'10 segs'!BF21 -> 
B38: 9 | C38: =+'2 segs'!AX22 ->  | D38: =+'3 segs'!AY22 ->  | E38: =+'4 segs'!AZ22 ->  | F38: =+'5 segs'!BA22 ->  | G38: =+'6 segs'!BB22 ->  | H38: =+'7 segs'!BC22 ->  | I38: =+'8 segs'!BD22 ->  | J38: =+'9 segs'!BE22 ->  | K38: =+'10 segs'!BF22 -> 
B39: 10 | C39: =+'2 segs'!AX23 ->  | D39: =+'3 segs'!AY23 ->  | E39: =+'4 segs'!AZ23 ->  | F39: =+'5 segs'!BA23 ->  | G39: =+'6 segs'!BB23 ->  | H39: =+'7 segs'!BC23 ->  | I39: =+'8 segs'!BD23 ->  | J39: =+'9 segs'!BE23 ->  | K39: =+'10 segs'!BF23 -> 
B40: 11 | C40: =+'2 segs'!AX24 ->  | D40: =+'3 segs'!AY24 ->  | E40: =+'4 segs'!AZ24 ->  | F40: =+'5 segs'!BA24 ->  | G40: =+'6 segs'!BB24 ->  | H40: =+'7 segs'!BC24 ->  | I40: =+'8 segs'!BD24 ->  | J40: =+'9 segs'!BE24 ->  | K40: =+'10 segs'!BF24 -> 
B41: 12 | C41: =+'2 segs'!AX25 ->  | D41: =+'3 segs'!AY25 ->  | E41: =+'4 segs'!AZ25 ->  | F41: =+'5 segs'!BA25 ->  | G41: =+'6 segs'!BB25 ->  | H41: =+'7 segs'!BC25 ->  | I41: =+'8 segs'!BD25 ->  | J41: =+'9 segs'!BE25 ->  | K41: =+'10 segs'!BF25 -> 
B42: 13 | C42: =+'2 segs'!AX26 ->  | D42: =+'3 segs'!AY26 ->  | E42: =+'4 segs'!AZ26 ->  | F42: =+'5 segs'!BA26 ->  | G42: =+'6 segs'!BB26 ->  | H42: =+'7 segs'!BC26 ->  | I42: =+'8 segs'!BD26 ->  | J42: =+'9 segs'!BE26 ->  | K42: =+'10 segs'!BF26 -> 
B43: 14 | C43: =+'2 segs'!AX27 ->  | D43: =+'3 segs'!AY27 ->  | E43: =+'4 segs'!AZ27 ->  | F43: =+'5 segs'!BA27 ->  | G43: =+'6 segs'!BB27 ->  | H43: =+'7 segs'!BC27 ->  | I43: =+'8 segs'!BD27 ->  | J43: =+'9 segs'!BE27 ->  | K43: =+'10 segs'!BF27 -> 
B44: 15 | C44: =+'2 segs'!AX28 ->  | D44: =+'3 segs'!AY28 ->  | E44: =+'4 segs'!AZ28 ->  | F44: =+'5 segs'!BA28 ->  | G44: =+'6 segs'!BB28 ->  | H44: =+'7 segs'!BC28 ->  | I44: =+'8 segs'!BD28 ->  | J44: =+'9 segs'!BE28 ->  | K44: =+'10 segs'!BF28 -> 
B45: 16 | C45: =+'2 segs'!AX29 ->  | D45: =+'3 segs'!AY29 ->  | E45: =+'4 segs'!AZ29 ->  | F45: =+'5 segs'!BA29 ->  | G45: =+'6 segs'!BB29 ->  | H45: =+'7 segs'!BC29 ->  | I45: =+'8 segs'!BD29 ->  | J45: =+'9 segs'!BE29 ->  | K45: =+'10 segs'!BF29 -> 
B46: 17 | C46: =+'2 segs'!AX30 ->  | D46: =+'3 segs'!AY30 ->  | E46: =+'4 segs'!AZ30 ->  | F46: =+'5 segs'!BA30 ->  | G46: =+'6 segs'!BB30 ->  | H46: =+'7 segs'!BC30 ->  | I46: =+'8 segs'!BD30 ->  | J46: =+'9 segs'!BE30 ->  | K46: =+'10 segs'!BF30 -> 
B47: 18 | C47: =+'2 segs'!AX31 ->  | D47: =+'3 segs'!AY31 ->  | E47: =+'4 segs'!AZ31 ->  | F47: =+'5 segs'!BA31 ->  | G47: =+'6 segs'!BB31 ->  | H47: =+'7 segs'!BC31 ->  | I47: =+'8 segs'!BD31 ->  | J47: =+'9 segs'!BE31 ->  | K47: =+'10 segs'!BF31 -> 
B48: 19 | C48: =+'2 segs'!AX32 ->  | D48: =+'3 segs'!AY32 ->  | E48: =+'4 segs'!AZ32 ->  | F48: =+'5 segs'!BA32 ->  | G48: =+'6 segs'!BB32 ->  | H48: =+'7 segs'!BC32 ->  | I48: =+'8 segs'!BD32 ->  | J48: =+'9 segs'!BE32 ->  | K48: =+'10 segs'!BF32 -> 
B49: 20 | C49: =+'2 segs'!AX33 ->  | D49: =+'3 segs'!AY33 ->  | E49: =+'4 segs'!AZ33 ->  | F49: =+'5 segs'!BA33 ->  | G49: =+'6 segs'!BB33 ->  | H49: =+'7 segs'!BC33 ->  | I49: =+'8 segs'!BD33 ->  | J49: =+'9 segs'!BE33 ->  | K49: =+'10 segs'!BF33 -> 
B50: 21 | C50: =+'2 segs'!AX34 ->  | D50: =+'3 segs'!AY34 ->  | E50: =+'4 segs'!AZ34 ->  | F50: =+'5 segs'!BA34 ->  | G50: =+'6 segs'!BB34 ->  | H50: =+'7 segs'!BC34 ->  | I50: =+'8 segs'!BD34 ->  | J50: =+'9 segs'!BE34 ->  | K50: =+'10 segs'!BF34 -> 
B51: 22 | C51: =+'2 segs'!AX35 ->  | D51: =+'3 segs'!AY35 ->  | E51: =+'4 segs'!AZ35 ->  | F51: =+'5 segs'!BA35 ->  | G51: =+'6 segs'!BB35 ->  | H51: =+'7 segs'!BC35 ->  | I51: =+'8 segs'!BD35 ->  | J51: =+'9 segs'!BE35 ->  | K51: =+'10 segs'!BF35 -> 
B52: 23 | C52: =+'2 segs'!AX36 ->  | D52: =+'3 segs'!AY36 ->  | E52: =+'4 segs'!AZ36 ->  | F52: =+'5 segs'!BA36 ->  | G52: =+'6 segs'!BB36 ->  | H52: =+'7 segs'!BC36 ->  | I52: =+'8 segs'!BD36 ->  | J52: =+'9 segs'!BE36 ->  | K52: =+'10 segs'!BF36 -> 
B53: 24 | C53: =+'2 segs'!AX37 ->  | D53: =+'3 segs'!AY37 ->  | E53: =+'4 segs'!AZ37 ->  | F53: =+'5 segs'!BA37 ->  | G53: =+'6 segs'!BB37 ->  | H53: =+'7 segs'!BC37 ->  | I53: =+'8 segs'!BD37 ->  | J53: =+'9 segs'!BE37 ->  | K53: =+'10 segs'!BF37 -> 
B54: 25 | C54: =+'2 segs'!AX38 ->  | D54: =+'3 segs'!AY38 ->  | E54: =+'4 segs'!AZ38 ->  | F54: =+'5 segs'!BA38 ->  | G54: =+'6 segs'!BB38 ->  | H54: =+'7 segs'!BC38 ->  | I54: =+'8 segs'!BD38 ->  | J54: =+'9 segs'!BE38 ->  | K54: =+'10 segs'!BF38 -> 
B55: 26 | C55: =+'2 segs'!AX39 ->  | D55: =+'3 segs'!AY39 ->  | E55: =+'4 segs'!AZ39 ->  | F55: =+'5 segs'!BA39 ->  | G55: =+'6 segs'!BB39 ->  | H55: =+'7 segs'!BC39 ->  | I55: =+'8 segs'!BD39 ->  | J55: =+'9 segs'!BE39 ->  | K55: =+'10 segs'!BF39 -> 
B56: 27 | C56: =+'2 segs'!AX40 ->  | D56: =+'3 segs'!AY40 ->  | E56: =+'4 segs'!AZ40 ->  | F56: =+'5 segs'!BA40 ->  | G56: =+'6 segs'!BB40 ->  | H56: =+'7 segs'!BC40 ->  | I56: =+'8 segs'!BD40 ->  | J56: =+'9 segs'!BE40 ->  | K56: =+'10 segs'!BF40 -> 
B57: 28 | C57: =+'2 segs'!AX41 ->  | D57: =+'3 segs'!AY41 ->  | E57: =+'4 segs'!AZ41 ->  | F57: =+'5 segs'!BA41 ->  | G57: =+'6 segs'!BB41 ->  | H57: =+'7 segs'!BC41 ->  | I57: =+'8 segs'!BD41 ->  | J57: =+'9 segs'!BE41 ->  | K57: =+'10 segs'!BF41 -> 
B58: 29 | C58: =+'2 segs'!AX42 ->  | D58: =+'3 segs'!AY42 ->  | E58: =+'4 segs'!AZ42 ->  | F58: =+'5 segs'!BA42 ->  | G58: =+'6 segs'!BB42 ->  | H58: =+'7 segs'!BC42 ->  | I58: =+'8 segs'!BD42 ->  | J58: =+'9 segs'!BE42 ->  | K58: =+'10 segs'!BF42 -> 
B59: 30 | C59: =+'2 segs'!AX43 ->  | D59: =+'3 segs'!AY43 ->  | E59: =+'4 segs'!AZ43 ->  | F59: =+'5 segs'!BA43 ->  | G59: =+'6 segs'!BB43 ->  | H59: =+'7 segs'!BC43 ->  | I59: =+'8 segs'!BD43 ->  | J59: =+'9 segs'!BE43 ->  | K59: =+'10 segs'!BF43 -> 
B60: 31 | C60: =+'2 segs'!AX44 ->  | D60: =+'3 segs'!AY44 ->  | E60: =+'4 segs'!AZ44 ->  | F60: =+'5 segs'!BA44 ->  | G60: =+'6 segs'!BB44 ->  | H60: =+'7 segs'!BC44 ->  | I60: =+'8 segs'!BD44 ->  | J60: =+'9 segs'!BE44 ->  | K60: =+'10 segs'!BF44 -> 
B61: 32 | C61: =+'2 segs'!AX45 ->  | D61: =+'3 segs'!AY45 ->  | E61: =+'4 segs'!AZ45 ->  | F61: =+'5 segs'!BA45 ->  | G61: =+'6 segs'!BB45 ->  | H61: =+'7 segs'!BC45 ->  | I61: =+'8 segs'!BD45 ->  | J61: =+'9 segs'!BE45 ->  | K61: =+'10 segs'!BF45 -> 
B62: 33 | C62: =+'2 segs'!AX46 ->  | D62: =+'3 segs'!AY46 ->  | E62: =+'4 segs'!AZ46 ->  | F62: =+'5 segs'!BA46 ->  | G62: =+'6 segs'!BB46 ->  | H62: =+'7 segs'!BC46 ->  | I62: =+'8 segs'!BD46 ->  | J62: =+'9 segs'!BE46 ->  | K62: =+'10 segs'!BF46 -> 
B63: 34 | C63: =+'2 segs'!AX47 ->  | D63: =+'3 segs'!AY47 ->  | E63: =+'4 segs'!AZ47 ->  | F63: =+'5 segs'!BA47 ->  | G63: =+'6 segs'!BB47 ->  | H63: =+'7 segs'!BC47 ->  | I63: =+'8 segs'!BD47 ->  | J63: =+'9 segs'!BE47 ->  | K63: =+'10 segs'!BF47 -> 
B64: 35 | C64: =+'2 segs'!AX48 ->  | D64: =+'3 segs'!AY48 ->  | E64: =+'4 segs'!AZ48 ->  | F64: =+'5 segs'!BA48 ->  | G64: =+'6 segs'!BB48 ->  | H64: =+'7 segs'!BC48 ->  | I64: =+'8 segs'!BD48 ->  | J64: =+'9 segs'!BE48 ->  | K64: =+'10 segs'!BF48 -> 
B65: 36 | C65: =+'2 segs'!AX49 ->  | D65: =+'3 segs'!AY49 ->  | E65: =+'4 segs'!AZ49 ->  | F65: =+'5 segs'!BA49 ->  | G65: =+'6 segs'!BB49 ->  | H65: =+'7 segs'!BC49 ->  | I65: =+'8 segs'!BD49 ->  | J65: =+'9 segs'!BE49 ->  | K65: =+'10 segs'!BF49 -> 
B66: 37 | C66: =+'2 segs'!AX50 ->  | D66: =+'3 segs'!AY50 ->  | E66: =+'4 segs'!AZ50 ->  | F66: =+'5 segs'!BA50 ->  | G66: =+'6 segs'!BB50 ->  | H66: =+'7 segs'!BC50 ->  | I66: =+'8 segs'!BD50 ->  | J66: =+'9 segs'!BE50 ->  | K66: =+'10 segs'!BF50 -> 
B67: 38 | C67: =+'2 segs'!AX51 ->  | D67: =+'3 segs'!AY51 ->  | E67: =+'4 segs'!AZ51 ->  | F67: =+'5 segs'!BA51 ->  | G67: =+'6 segs'!BB51 ->  | H67: =+'7 segs'!BC51 ->  | I67: =+'8 segs'!BD51 ->  | J67: =+'9 segs'!BE51 ->  | K67: =+'10 segs'!BF51 -> 
B68: 39 | C68: =+'2 segs'!AX52 ->  | D68: =+'3 segs'!AY52 ->  | E68: =+'4 segs'!AZ52 ->  | F68: =+'5 segs'!BA52 ->  | G68: =+'6 segs'!BB52 ->  | H68: =+'7 segs'!BC52 ->  | I68: =+'8 segs'!BD52 ->  | J68: =+'9 segs'!BE52 ->  | K68: =+'10 segs'!BF52 -> 
B69: 40 | C69: =+'2 segs'!AX53 ->  | D69: =+'3 segs'!AY53 ->  | E69: =+'4 segs'!AZ53 ->  | F69: =+'5 segs'!BA53 ->  | G69: =+'6 segs'!BB53 ->  | H69: =+'7 segs'!BC53 ->  | I69: =+'8 segs'!BD53 ->  | J69: =+'9 segs'!BE53 ->  | K69: =+'10 segs'!BF53 -> 
B70: 41 | C70: =+'2 segs'!AX54 ->  | D70: =+'3 segs'!AY54 ->  | E70: =+'4 segs'!AZ54 ->  | F70: =+'5 segs'!BA54 ->  | G70: =+'6 segs'!BB54 ->  | H70: =+'7 segs'!BC54 ->  | I70: =+'8 segs'!BD54 ->  | J70: =+'9 segs'!BE54 ->  | K70: =+'10 segs'!BF54 -> 
B71: 42 | C71: =+'2 segs'!AX55 ->  | D71: =+'3 segs'!AY55 ->  | E71: =+'4 segs'!AZ55 ->  | F71: =+'5 segs'!BA55 ->  | G71: =+'6 segs'!BB55 ->  | H71: =+'7 segs'!BC55 ->  | I71: =+'8 segs'!BD55 ->  | J71: =+'9 segs'!BE55 ->  | K71: =+'10 segs'!BF55 -> 
B72: 43 | C72: =+'2 segs'!AX56 ->  | D72: =+'3 segs'!AY56 ->  | E72: =+'4 segs'!AZ56 ->  | F72: =+'5 segs'!BA56 ->  | G72: =+'6 segs'!BB56 ->  | H72: =+'7 segs'!BC56 ->  | I72: =+'8 segs'!BD56 ->  | J72: =+'9 segs'!BE56 ->  | K72: =+'10 segs'!BF56 -> 
B73: 44 | C73: =+'2 segs'!AX57 ->  | D73: =+'3 segs'!AY57 ->  | E73: =+'4 segs'!AZ57 ->  | F73: =+'5 segs'!BA57 ->  | G73: =+'6 segs'!BB57 ->  | H73: =+'7 segs'!BC57 ->  | I73: =+'8 segs'!BD57 ->  | J73: =+'9 segs'!BE57 ->  | K73: =+'10 segs'!BF57 -> 
B74: 45 | C74: =+'2 segs'!AX58 ->  | D74: =+'3 segs'!AY58 ->  | E74: =+'4 segs'!AZ58 ->  | F74: =+'5 segs'!BA58 ->  | G74: =+'6 segs'!BB58 ->  | H74: =+'7 segs'!BC58 ->  | I74: =+'8 segs'!BD58 ->  | J74: =+'9 segs'!BE58 ->  | K74: =+'10 segs'!BF58 -> 
B75: 46 | C75: =+'2 segs'!AX59 ->  | D75: =+'3 segs'!AY59 ->  | E75: =+'4 segs'!AZ59 ->  | F75: =+'5 segs'!BA59 ->  | G75: =+'6 segs'!BB59 ->  | H75: =+'7 segs'!BC59 ->  | I75: =+'8 segs'!BD59 ->  | J75: =+'9 segs'!BE59 ->  | K75: =+'10 segs'!BF59 -> 
B76: 47 | C76: =+'2 segs'!AX60 ->  | D76: =+'3 segs'!AY60 ->  | E76: =+'4 segs'!AZ60 ->  | F76: =+'5 segs'!BA60 ->  | G76: =+'6 segs'!BB60 ->  | H76: =+'7 segs'!BC60 ->  | I76: =+'8 segs'!BD60 ->  | J76: =+'9 segs'!BE60 ->  | K76: =+'10 segs'!BF60 -> 
B77: 48 | C77: =+'2 segs'!AX61 ->  | D77: =+'3 segs'!AY61 ->  | E77: =+'4 segs'!AZ61 ->  | F77: =+'5 segs'!BA61 ->  | G77: =+'6 segs'!BB61 ->  | H77: =+'7 segs'!BC61 ->  | I77: =+'8 segs'!BD61 ->  | J77: =+'9 segs'!BE61 ->  | K77: =+'10 segs'!BF61 -> 
B78: 49 | C78: =+'2 segs'!AX62 ->  | D78: =+'3 segs'!AY62 ->  | E78: =+'4 segs'!AZ62 ->  | F78: =+'5 segs'!BA62 ->  | G78: =+'6 segs'!BB62 ->  | H78: =+'7 segs'!BC62 ->  | I78: =+'8 segs'!BD62 ->  | J78: =+'9 segs'!BE62 ->  | K78: =+'10 segs'!BF62 -> 
B79: 50 | C79: =+'2 segs'!AX63 ->  | D79: =+'3 segs'!AY63 ->  | E79: =+'4 segs'!AZ63 ->  | F79: =+'5 segs'!BA63 ->  | G79: =+'6 segs'!BB63 ->  | H79: =+'7 segs'!BC63 ->  | I79: =+'8 segs'!BD63 ->  | J79: =+'9 segs'!BE63 ->  | K79: =+'10 segs'!BF63 -> 
B80: 51 | C80: =+'2 segs'!AX64 ->  | D80: =+'3 segs'!AY64 ->  | E80: =+'4 segs'!AZ64 ->  | F80: =+'5 segs'!BA64 ->  | G80: =+'6 segs'!BB64 ->  | H80: =+'7 segs'!BC64 ->  | I80: =+'8 segs'!BD64 ->  | J80: =+'9 segs'!BE64 ->  | K80: =+'10 segs'!BF64 -> 
B81: 52 | C81: =+'2 segs'!AX65 ->  | D81: =+'3 segs'!AY65 ->  | E81: =+'4 segs'!AZ65 ->  | F81: =+'5 segs'!BA65 ->  | G81: =+'6 segs'!BB65 ->  | H81: =+'7 segs'!BC65 ->  | I81: =+'8 segs'!BD65 ->  | J81: =+'9 segs'!BE65 ->  | K81: =+'10 segs'!BF65 -> 
B82: 53 | C82: =+'2 segs'!AX66 ->  | D82: =+'3 segs'!AY66 ->  | E82: =+'4 segs'!AZ66 ->  | F82: =+'5 segs'!BA66 ->  | G82: =+'6 segs'!BB66 ->  | H82: =+'7 segs'!BC66 ->  | I82: =+'8 segs'!BD66 ->  | J82: =+'9 segs'!BE66 ->  | K82: =+'10 segs'!BF66 -> 
B83: 54 | C83: =+'2 segs'!AX67 ->  | D83: =+'3 segs'!AY67 ->  | E83: =+'4 segs'!AZ67 ->  | F83: =+'5 segs'!BA67 ->  | G83: =+'6 segs'!BB67 ->  | H83: =+'7 segs'!BC67 ->  | I83: =+'8 segs'!BD67 ->  | J83: =+'9 segs'!BE67 ->  | K83: =+'10 segs'!BF67 -> 
B84: 55 | C84: =+'2 segs'!AX68 ->  | D84: =+'3 segs'!AY68 ->  | E84: =+'4 segs'!AZ68 ->  | F84: =+'5 segs'!BA68 ->  | G84: =+'6 segs'!BB68 ->  | H84: =+'7 segs'!BC68 ->  | I84: =+'8 segs'!BD68 ->  | J84: =+'9 segs'!BE68 ->  | K84: =+'10 segs'!BF68 -> 
B85: 56 | C85: =+'2 segs'!AX69 ->  | D85: =+'3 segs'!AY69 ->  | E85: =+'4 segs'!AZ69 ->  | F85: =+'5 segs'!BA69 ->  | G85: =+'6 segs'!BB69 ->  | H85: =+'7 segs'!BC69 ->  | I85: =+'8 segs'!BD69 ->  | J85: =+'9 segs'!BE69 ->  | K85: =+'10 segs'!BF69 -> 
B86: 57 | C86: =+'2 segs'!AX70 ->  | D86: =+'3 segs'!AY70 ->  | E86: =+'4 segs'!AZ70 ->  | F86: =+'5 segs'!BA70 ->  | G86: =+'6 segs'!BB70 ->  | H86: =+'7 segs'!BC70 ->  | I86: =+'8 segs'!BD70 ->  | J86: =+'9 segs'!BE70 ->  | K86: =+'10 segs'!BF70 -> 
B87: 58 | C87: =+'2 segs'!AX71 ->  | D87: =+'3 segs'!AY71 ->  | E87: =+'4 segs'!AZ71 ->  | F87: =+'5 segs'!BA71 ->  | G87: =+'6 segs'!BB71 ->  | H87: =+'7 segs'!BC71 ->  | I87: =+'8 segs'!BD71 ->  | J87: =+'9 segs'!BE71 ->  | K87: =+'10 segs'!BF71 -> 
B88: 59 | C88: =+'2 segs'!AX72 ->  | D88: =+'3 segs'!AY72 ->  | E88: =+'4 segs'!AZ72 ->  | F88: =+'5 segs'!BA72 ->  | G88: =+'6 segs'!BB72 ->  | H88: =+'7 segs'!BC72 ->  | I88: =+'8 segs'!BD72 ->  | J88: =+'9 segs'!BE72 ->  | K88: =+'10 segs'!BF72 -> 
B89: 60 | C89: =+'2 segs'!AX73 ->  | D89: =+'3 segs'!AY73 ->  | E89: =+'4 segs'!AZ73 ->  | F89: =+'5 segs'!BA73 ->  | G89: =+'6 segs'!BB73 ->  | H89: =+'7 segs'!BC73 ->  | I89: =+'8 segs'!BD73 ->  | J89: =+'9 segs'!BE73 ->  | K89: =+'10 segs'!BF73 -> 
B90: 61 | C90: =+'2 segs'!AX74 ->  | D90: =+'3 segs'!AY74 ->  | E90: =+'4 segs'!AZ74 ->  | F90: =+'5 segs'!BA74 ->  | G90: =+'6 segs'!BB74 ->  | H90: =+'7 segs'!BC74 ->  | I90: =+'8 segs'!BD74 ->  | J90: =+'9 segs'!BE74 ->  | K90: =+'10 segs'!BF74 -> 
B91: 62 | C91: =+'2 segs'!AX75 ->  | D91: =+'3 segs'!AY75 ->  | E91: =+'4 segs'!AZ75 ->  | F91: =+'5 segs'!BA75 ->  | G91: =+'6 segs'!BB75 ->  | H91: =+'7 segs'!BC75 ->  | I91: =+'8 segs'!BD75 ->  | J91: =+'9 segs'!BE75 ->  | K91: =+'10 segs'!BF75 -> 
B92: 63 | C92: =+'2 segs'!AX76 ->  | D92: =+'3 segs'!AY76 ->  | E92: =+'4 segs'!AZ76 ->  | F92: =+'5 segs'!BA76 ->  | G92: =+'6 segs'!BB76 ->  | H92: =+'7 segs'!BC76 ->  | I92: =+'8 segs'!BD76 ->  | J92: =+'9 segs'!BE76 ->  | K92: =+'10 segs'!BF76 -> 
B93: 64 | C93: =+'2 segs'!AX77 ->  | D93: =+'3 segs'!AY77 ->  | E93: =+'4 segs'!AZ77 ->  | F93: =+'5 segs'!BA77 ->  | G93: =+'6 segs'!BB77 ->  | H93: =+'7 segs'!BC77 ->  | I93: =+'8 segs'!BD77 ->  | J93: =+'9 segs'!BE77 ->  | K93: =+'10 segs'!BF77 -> 
B94: 65 | C94: =+'2 segs'!AX78 ->  | D94: =+'3 segs'!AY78 ->  | E94: =+'4 segs'!AZ78 ->  | F94: =+'5 segs'!BA78 ->  | G94: =+'6 segs'!BB78 ->  | H94: =+'7 segs'!BC78 ->  | I94: =+'8 segs'!BD78 ->  | J94: =+'9 segs'!BE78 ->  | K94: =+'10 segs'!BF78 -> 
B95: 66 | C95: =+'2 segs'!AX79 ->  | D95: =+'3 segs'!AY79 ->  | E95: =+'4 segs'!AZ79 ->  | F95: =+'5 segs'!BA79 ->  | G95: =+'6 segs'!BB79 ->  | H95: =+'7 segs'!BC79 ->  | I95: =+'8 segs'!BD79 ->  | J95: =+'9 segs'!BE79 ->  | K95: =+'10 segs'!BF79 -> 
B96: 67 | C96: =+'2 segs'!AX80 ->  | D96: =+'3 segs'!AY80 ->  | E96: =+'4 segs'!AZ80 ->  | F96: =+'5 segs'!BA80 ->  | G96: =+'6 segs'!BB80 ->  | H96: =+'7 segs'!BC80 ->  | I96: =+'8 segs'!BD80 ->  | J96: =+'9 segs'!BE80 ->  | K96: =+'10 segs'!BF80 -> 
B97: 68 | C97: =+'2 segs'!AX81 ->  | D97: =+'3 segs'!AY81 ->  | E97: =+'4 segs'!AZ81 ->  | F97: =+'5 segs'!BA81 ->  | G97: =+'6 segs'!BB81 ->  | H97: =+'7 segs'!BC81 ->  | I97: =+'8 segs'!BD81 ->  | J97: =+'9 segs'!BE81 ->  | K97: =+'10 segs'!BF81 -> 
B98: 69 | C98: =+'2 segs'!AX82 ->  | D98: =+'3 segs'!AY82 ->  | E98: =+'4 segs'!AZ82 ->  | F98: =+'5 segs'!BA82 ->  | G98: =+'6 segs'!BB82 ->  | H98: =+'7 segs'!BC82 ->  | I98: =+'8 segs'!BD82 ->  | J98: =+'9 segs'!BE82 ->  | K98: =+'10 segs'!BF82 -> 
B99: 70 | C99: =+'2 segs'!AX83 ->  | D99: =+'3 segs'!AY83 ->  | E99: =+'4 segs'!AZ83 ->  | F99: =+'5 segs'!BA83 ->  | G99: =+'6 segs'!BB83 ->  | H99: =+'7 segs'!BC83 ->  | I99: =+'8 segs'!BD83 ->  | J99: =+'9 segs'!BE83 ->  | K99: =+'10 segs'!BF83 -> 
B100: 71 | C100: =+'2 segs'!AX84 ->  | D100: =+'3 segs'!AY84 ->  | E100: =+'4 segs'!AZ84 ->  | F100: =+'5 segs'!BA84 ->  | G100: =+'6 segs'!BB84 ->  | H100: =+'7 segs'!BC84 ->  | I100: =+'8 segs'!BD84 ->  | J100: =+'9 segs'!BE84 ->  | K100: =+'10 segs'!BF84 -> 
B101: 72 | C101: =+'2 segs'!AX85 ->  | D101: =+'3 segs'!AY85 ->  | E101: =+'4 segs'!AZ85 ->  | F101: =+'5 segs'!BA85 ->  | G101: =+'6 segs'!BB85 ->  | H101: =+'7 segs'!BC85 ->  | I101: =+'8 segs'!BD85 ->  | J101: =+'9 segs'!BE85 ->  | K101: =+'10 segs'!BF85 -> 
B102: 73 | C102: =+'2 segs'!AX86 ->  | D102: =+'3 segs'!AY86 ->  | E102: =+'4 segs'!AZ86 ->  | F102: =+'5 segs'!BA86 ->  | G102: =+'6 segs'!BB86 ->  | H102: =+'7 segs'!BC86 ->  | I102: =+'8 segs'!BD86 ->  | J102: =+'9 segs'!BE86 ->  | K102: =+'10 segs'!BF86 -> 
B103: 74 | C103: =+'2 segs'!AX87 ->  | D103: =+'3 segs'!AY87 ->  | E103: =+'4 segs'!AZ87 ->  | F103: =+'5 segs'!BA87 ->  | G103: =+'6 segs'!BB87 ->  | H103: =+'7 segs'!BC87 ->  | I103: =+'8 segs'!BD87 ->  | J103: =+'9 segs'!BE87 ->  | K103: =+'10 segs'!BF87 -> 
B104: 75 | C104: =+'2 segs'!AX88 ->  | D104: =+'3 segs'!AY88 ->  | E104: =+'4 segs'!AZ88 ->  | F104: =+'5 segs'!BA88 ->  | G104: =+'6 segs'!BB88 ->  | H104: =+'7 segs'!BC88 ->  | I104: =+'8 segs'!BD88 ->  | J104: =+'9 segs'!BE88 ->  | K104: =+'10 segs'!BF88 -> 
B105: 76 | C105: =+'2 segs'!AX89 ->  | D105: =+'3 segs'!AY89 ->  | E105: =+'4 segs'!AZ89 ->  | F105: =+'5 segs'!BA89 ->  | G105: =+'6 segs'!BB89 ->  | H105: =+'7 segs'!BC89 ->  | I105: =+'8 segs'!BD89 ->  | J105: =+'9 segs'!BE89 ->  | K105: =+'10 segs'!BF89 -> 
B106: 77 | C106: =+'2 segs'!AX90 ->  | D106: =+'3 segs'!AY90 ->  | E106: =+'4 segs'!AZ90 ->  | F106: =+'5 segs'!BA90 ->  | G106: =+'6 segs'!BB90 ->  | H106: =+'7 segs'!BC90 ->  | I106: =+'8 segs'!BD90 ->  | J106: =+'9 segs'!BE90 ->  | K106: =+'10 segs'!BF90 -> 
B107: 78 | C107: =+'2 segs'!AX91 ->  | D107: =+'3 segs'!AY91 ->  | E107: =+'4 segs'!AZ91 ->  | F107: =+'5 segs'!BA91 ->  | G107: =+'6 segs'!BB91 ->  | H107: =+'7 segs'!BC91 ->  | I107: =+'8 segs'!BD91 ->  | J107: =+'9 segs'!BE91 ->  | K107: =+'10 segs'!BF91 -> 
B108: 79 | C108: =+'2 segs'!AX92 ->  | D108: =+'3 segs'!AY92 ->  | E108: =+'4 segs'!AZ92 ->  | F108: =+'5 segs'!BA92 ->  | G108: =+'6 segs'!BB92 ->  | H108: =+'7 segs'!BC92 ->  | I108: =+'8 segs'!BD92 ->  | J108: =+'9 segs'!BE92 ->  | K108: =+'10 segs'!BF92 -> 
B109: 80 | C109: =+'2 segs'!AX93 ->  | D109: =+'3 segs'!AY93 ->  | E109: =+'4 segs'!AZ93 ->  | F109: =+'5 segs'!BA93 ->  | G109: =+'6 segs'!BB93 ->  | H109: =+'7 segs'!BC93 ->  | I109: =+'8 segs'!BD93 ->  | J109: =+'9 segs'!BE93 ->  | K109: =+'10 segs'!BF93 -> 
B110: 81 | C110: =+'2 segs'!AX94 ->  | D110: =+'3 segs'!AY94 ->  | E110: =+'4 segs'!AZ94 ->  | F110: =+'5 segs'!BA94 ->  | G110: =+'6 segs'!BB94 ->  | H110: =+'7 segs'!BC94 ->  | I110: =+'8 segs'!BD94 ->  | J110: =+'9 segs'!BE94 ->  | K110: =+'10 segs'!BF94 -> 
B111: 82 | C111: =+'2 segs'!AX95 ->  | D111: =+'3 segs'!AY95 ->  | E111: =+'4 segs'!AZ95 ->  | F111: =+'5 segs'!BA95 ->  | G111: =+'6 segs'!BB95 ->  | H111: =+'7 segs'!BC95 ->  | I111: =+'8 segs'!BD95 ->  | J111: =+'9 segs'!BE95 ->  | K111: =+'10 segs'!BF95 -> 
B112: 83 | C112: =+'2 segs'!AX96 ->  | D112: =+'3 segs'!AY96 ->  | E112: =+'4 segs'!AZ96 ->  | F112: =+'5 segs'!BA96 ->  | G112: =+'6 segs'!BB96 ->  | H112: =+'7 segs'!BC96 ->  | I112: =+'8 segs'!BD96 ->  | J112: =+'9 segs'!BE96 ->  | K112: =+'10 segs'!BF96 -> 
B113: 84 | C113: =+'2 segs'!AX97 ->  | D113: =+'3 segs'!AY97 ->  | E113: =+'4 segs'!AZ97 ->  | F113: =+'5 segs'!BA97 ->  | G113: =+'6 segs'!BB97 ->  | H113: =+'7 segs'!BC97 ->  | I113: =+'8 segs'!BD97 ->  | J113: =+'9 segs'!BE97 ->  | K113: =+'10 segs'!BF97 -> 
B114: 85 | C114: =+'2 segs'!AX98 ->  | D114: =+'3 segs'!AY98 ->  | E114: =+'4 segs'!AZ98 ->  | F114: =+'5 segs'!BA98 ->  | G114: =+'6 segs'!BB98 ->  | H114: =+'7 segs'!BC98 ->  | I114: =+'8 segs'!BD98 ->  | J114: =+'9 segs'!BE98 ->  | K114: =+'10 segs'!BF98 -> 
B115: 86 | C115: =+'2 segs'!AX99 ->  | D115: =+'3 segs'!AY99 ->  | E115: =+'4 segs'!AZ99 ->  | F115: =+'5 segs'!BA99 ->  | G115: =+'6 segs'!BB99 ->  | H115: =+'7 segs'!BC99 ->  | I115: =+'8 segs'!BD99 ->  | J115: =+'9 segs'!BE99 ->  | K115: =+'10 segs'!BF99 -> 
B116: 87 | C116: =+'2 segs'!AX100 ->  | D116: =+'3 segs'!AY100 ->  | E116: =+'4 segs'!AZ100 ->  | F116: =+'5 segs'!BA100 ->  | G116: =+'6 segs'!BB100 ->  | H116: =+'7 segs'!BC100 ->  | I116: =+'8 segs'!BD100 ->  | J116: =+'9 segs'!BE100 ->  | K116: =+'10 segs'!BF100 -> 
B117: 88 | C117: =+'2 segs'!AX101 ->  | D117: =+'3 segs'!AY101 ->  | E117: =+'4 segs'!AZ101 ->  | F117: =+'5 segs'!BA101 ->  | G117: =+'6 segs'!BB101 ->  | H117: =+'7 segs'!BC101 ->  | I117: =+'8 segs'!BD101 ->  | J117: =+'9 segs'!BE101 ->  | K117: =+'10 segs'!BF101 -> 
B118: 89 | C118: =+'2 segs'!AX102 ->  | D118: =+'3 segs'!AY102 ->  | E118: =+'4 segs'!AZ102 ->  | F118: =+'5 segs'!BA102 ->  | G118: =+'6 segs'!BB102 ->  | H118: =+'7 segs'!BC102 ->  | I118: =+'8 segs'!BD102 ->  | J118: =+'9 segs'!BE102 ->  | K118: =+'10 segs'!BF102 -> 
B119: 90 | C119: =+'2 segs'!AX103 ->  | D119: =+'3 segs'!AY103 ->  | E119: =+'4 segs'!AZ103 ->  | F119: =+'5 segs'!BA103 ->  | G119: =+'6 segs'!BB103 ->  | H119: =+'7 segs'!BC103 ->  | I119: =+'8 segs'!BD103 ->  | J119: =+'9 segs'!BE103 ->  | K119: =+'10 segs'!BF103 -> 
B120: 91 | C120: =+'2 segs'!AX104 ->  | D120: =+'3 segs'!AY104 ->  | E120: =+'4 segs'!AZ104 ->  | F120: =+'5 segs'!BA104 ->  | G120: =+'6 segs'!BB104 ->  | H120: =+'7 segs'!BC104 ->  | I120: =+'8 segs'!BD104 ->  | J120: =+'9 segs'!BE104 ->  | K120: =+'10 segs'!BF104 -> 
B121: 92 | C121: =+'2 segs'!AX105 ->  | D121: =+'3 segs'!AY105 ->  | E121: =+'4 segs'!AZ105 ->  | F121: =+'5 segs'!BA105 ->  | G121: =+'6 segs'!BB105 ->  | H121: =+'7 segs'!BC105 ->  | I121: =+'8 segs'!BD105 ->  | J121: =+'9 segs'!BE105 ->  | K121: =+'10 segs'!BF105 -> 
B122: 93 | C122: =+'2 segs'!AX106 ->  | D122: =+'3 segs'!AY106 ->  | E122: =+'4 segs'!AZ106 ->  | F122: =+'5 segs'!BA106 ->  | G122: =+'6 segs'!BB106 ->  | H122: =+'7 segs'!BC106 ->  | I122: =+'8 segs'!BD106 ->  | J122: =+'9 segs'!BE106 ->  | K122: =+'10 segs'!BF106 -> 
B123: 94 | C123: =+'2 segs'!AX107 ->  | D123: =+'3 segs'!AY107 ->  | E123: =+'4 segs'!AZ107 ->  | F123: =+'5 segs'!BA107 ->  | G123: =+'6 segs'!BB107 ->  | H123: =+'7 segs'!BC107 ->  | I123: =+'8 segs'!BD107 ->  | J123: =+'9 segs'!BE107 ->  | K123: =+'10 segs'!BF107 -> 
B124: 95 | C124: =+'2 segs'!AX108 ->  | D124: =+'3 segs'!AY108 ->  | E124: =+'4 segs'!AZ108 ->  | F124: =+'5 segs'!BA108 ->  | G124: =+'6 segs'!BB108 ->  | H124: =+'7 segs'!BC108 ->  | I124: =+'8 segs'!BD108 ->  | J124: =+'9 segs'!BE108 ->  | K124: =+'10 segs'!BF108 -> 
B125: 96 | C125: =+'2 segs'!AX109 ->  | D125: =+'3 segs'!AY109 ->  | E125: =+'4 segs'!AZ109 ->  | F125: =+'5 segs'!BA109 ->  | G125: =+'6 segs'!BB109 ->  | H125: =+'7 segs'!BC109 ->  | I125: =+'8 segs'!BD109 ->  | J125: =+'9 segs'!BE109 ->  | K125: =+'10 segs'!BF109 -> 
B126: 97 | C126: =+'2 segs'!AX110 ->  | D126: =+'3 segs'!AY110 ->  | E126: =+'4 segs'!AZ110 ->  | F126: =+'5 segs'!BA110 ->  | G126: =+'6 segs'!BB110 ->  | H126: =+'7 segs'!BC110 ->  | I126: =+'8 segs'!BD110 ->  | J126: =+'9 segs'!BE110 ->  | K126: =+'10 segs'!BF110 -> 
B127: 98 | C127: =+'2 segs'!AX111 ->  | D127: =+'3 segs'!AY111 ->  | E127: =+'4 segs'!AZ111 ->  | F127: =+'5 segs'!BA111 ->  | G127: =+'6 segs'!BB111 ->  | H127: =+'7 segs'!BC111 ->  | I127: =+'8 segs'!BD111 ->  | J127: =+'9 segs'!BE111 ->  | K127: =+'10 segs'!BF111 -> 
B128: 99 | C128: =+'2 segs'!AX112 ->  | D128: =+'3 segs'!AY112 ->  | E128: =+'4 segs'!AZ112 ->  | F128: =+'5 segs'!BA112 ->  | G128: =+'6 segs'!BB112 ->  | H128: =+'7 segs'!BC112 ->  | I128: =+'8 segs'!BD112 ->  | J128: =+'9 segs'!BE112 ->  | K128: =+'10 segs'!BF112 -> 
B129: 100 | C129: =+'2 segs'!AX113 ->  | D129: =+'3 segs'!AY113 ->  | E129: =+'4 segs'!AZ113 ->  | F129: =+'5 segs'!BA113 ->  | G129: =+'6 segs'!BB113 ->  | H129: =+'7 segs'!BC113 ->  | I129: =+'8 segs'!BD113 ->  | J129: =+'9 segs'!BE113 ->  | K129: =+'10 segs'!BF113 -> 
B130: 101 | C130: =+'2 segs'!AX114 ->  | D130: =+'3 segs'!AY114 ->  | E130: =+'4 segs'!AZ114 ->  | F130: =+'5 segs'!BA114 ->  | G130: =+'6 segs'!BB114 ->  | H130: =+'7 segs'!BC114 ->  | I130: =+'8 segs'!BD114 ->  | J130: =+'9 segs'!BE114 ->  | K130: =+'10 segs'!BF114 -> 
B131: 102 | C131: =+'2 segs'!AX115 ->  | D131: =+'3 segs'!AY115 ->  | E131: =+'4 segs'!AZ115 ->  | F131: =+'5 segs'!BA115 ->  | G131: =+'6 segs'!BB115 ->  | H131: =+'7 segs'!BC115 ->  | I131: =+'8 segs'!BD115 ->  | J131: =+'9 segs'!BE115 ->  | K131: =+'10 segs'!BF115 -> 
B132: 103 | C132: =+'2 segs'!AX116 ->  | D132: =+'3 segs'!AY116 ->  | E132: =+'4 segs'!AZ116 ->  | F132: =+'5 segs'!BA116 ->  | G132: =+'6 segs'!BB116 ->  | H132: =+'7 segs'!BC116 ->  | I132: =+'8 segs'!BD116 ->  | J132: =+'9 segs'!BE116 ->  | K132: =+'10 segs'!BF116 -> 
B133: 104 | C133: =+'2 segs'!AX117 ->  | D133: =+'3 segs'!AY117 ->  | E133: =+'4 segs'!AZ117 ->  | F133: =+'5 segs'!BA117 ->  | G133: =+'6 segs'!BB117 ->  | H133: =+'7 segs'!BC117 ->  | I133: =+'8 segs'!BD117 ->  | J133: =+'9 segs'!BE117 ->  | K133: =+'10 segs'!BF117 -> 
B134: 105 | C134: =+'2 segs'!AX118 ->  | D134: =+'3 segs'!AY118 ->  | E134: =+'4 segs'!AZ118 ->  | F134: =+'5 segs'!BA118 ->  | G134: =+'6 segs'!BB118 ->  | H134: =+'7 segs'!BC118 ->  | I134: =+'8 segs'!BD118 ->  | J134: =+'9 segs'!BE118 ->  | K134: =+'10 segs'!BF118 -> 
B135: 106 | C135: =+'2 segs'!AX119 ->  | D135: =+'3 segs'!AY119 ->  | E135: =+'4 segs'!AZ119 ->  | F135: =+'5 segs'!BA119 ->  | G135: =+'6 segs'!BB119 ->  | H135: =+'7 segs'!BC119 ->  | I135: =+'8 segs'!BD119 ->  | J135: =+'9 segs'!BE119 ->  | K135: =+'10 segs'!BF119 -> 
B136: 107 | C136: =+'2 segs'!AX120 ->  | D136: =+'3 segs'!AY120 ->  | E136: =+'4 segs'!AZ120 ->  | F136: =+'5 segs'!BA120 ->  | G136: =+'6 segs'!BB120 ->  | H136: =+'7 segs'!BC120 ->  | I136: =+'8 segs'!BD120 ->  | J136: =+'9 segs'!BE120 ->  | K136: =+'10 segs'!BF120 -> 
B137: 108 | C137: =+'2 segs'!AX121 ->  | D137: =+'3 segs'!AY121 ->  | E137: =+'4 segs'!AZ121 ->  | F137: =+'5 segs'!BA121 ->  | G137: =+'6 segs'!BB121 ->  | H137: =+'7 segs'!BC121 ->  | I137: =+'8 segs'!BD121 ->  | J137: =+'9 segs'!BE121 ->  | K137: =+'10 segs'!BF121 -> 
B138: 109 | C138: =+'2 segs'!AX122 ->  | D138: =+'3 segs'!AY122 ->  | E138: =+'4 segs'!AZ122 ->  | F138: =+'5 segs'!BA122 ->  | G138: =+'6 segs'!BB122 ->  | H138: =+'7 segs'!BC122 ->  | I138: =+'8 segs'!BD122 ->  | J138: =+'9 segs'!BE122 ->  | K138: =+'10 segs'!BF122 -> 
B139: 110 | C139: =+'2 segs'!AX123 ->  | D139: =+'3 segs'!AY123 ->  | E139: =+'4 segs'!AZ123 ->  | F139: =+'5 segs'!BA123 ->  | G139: =+'6 segs'!BB123 ->  | H139: =+'7 segs'!BC123 ->  | I139: =+'8 segs'!BD123 ->  | J139: =+'9 segs'!BE123 ->  | K139: =+'10 segs'!BF123 -> 
B140: 111 | C140: =+'2 segs'!AX124 ->  | D140: =+'3 segs'!AY124 ->  | E140: =+'4 segs'!AZ124 ->  | F140: =+'5 segs'!BA124 ->  | G140: =+'6 segs'!BB124 ->  | H140: =+'7 segs'!BC124 ->  | I140: =+'8 segs'!BD124 ->  | J140: =+'9 segs'!BE124 ->  | K140: =+'10 segs'!BF124 -> 
B141: 112 | C141: =+'2 segs'!AX125 ->  | D141: =+'3 segs'!AY125 ->  | E141: =+'4 segs'!AZ125 ->  | F141: =+'5 segs'!BA125 ->  | G141: =+'6 segs'!BB125 ->  | H141: =+'7 segs'!BC125 ->  | I141: =+'8 segs'!BD125 ->  | J141: =+'9 segs'!BE125 ->  | K141: =+'10 segs'!BF125 -> 
B142: 113 | C142: =+'2 segs'!AX126 ->  | D142: =+'3 segs'!AY126 ->  | E142: =+'4 segs'!AZ126 ->  | F142: =+'5 segs'!BA126 ->  | G142: =+'6 segs'!BB126 ->  | H142: =+'7 segs'!BC126 ->  | I142: =+'8 segs'!BD126 ->  | J142: =+'9 segs'!BE126 ->  | K142: =+'10 segs'!BF126 -> 
B143: 114 | C143: =+'2 segs'!AX127 ->  | D143: =+'3 segs'!AY127 ->  | E143: =+'4 segs'!AZ127 ->  | F143: =+'5 segs'!BA127 ->  | G143: =+'6 segs'!BB127 ->  | H143: =+'7 segs'!BC127 ->  | I143: =+'8 segs'!BD127 ->  | J143: =+'9 segs'!BE127 ->  | K143: =+'10 segs'!BF127 -> 
B144: 115 | C144: =+'2 segs'!AX128 ->  | D144: =+'3 segs'!AY128 ->  | E144: =+'4 segs'!AZ128 ->  | F144: =+'5 segs'!BA128 ->  | G144: =+'6 segs'!BB128 ->  | H144: =+'7 segs'!BC128 ->  | I144: =+'8 segs'!BD128 ->  | J144: =+'9 segs'!BE128 ->  | K144: =+'10 segs'!BF128 -> 
B145: 116 | C145: =+'2 segs'!AX129 ->  | D145: =+'3 segs'!AY129 ->  | E145: =+'4 segs'!AZ129 ->  | F145: =+'5 segs'!BA129 ->  | G145: =+'6 segs'!BB129 ->  | H145: =+'7 segs'!BC129 ->  | I145: =+'8 segs'!BD129 ->  | J145: =+'9 segs'!BE129 ->  | K145: =+'10 segs'!BF129 -> 
B146: 117 | C146: =+'2 segs'!AX130 ->  | D146: =+'3 segs'!AY130 ->  | E146: =+'4 segs'!AZ130 ->  | F146: =+'5 segs'!BA130 ->  | G146: =+'6 segs'!BB130 ->  | H146: =+'7 segs'!BC130 ->  | I146: =+'8 segs'!BD130 ->  | J146: =+'9 segs'!BE130 ->  | K146: =+'10 segs'!BF130 -> 
B147: 118 | C147: =+'2 segs'!AX131 ->  | D147: =+'3 segs'!AY131 ->  | E147: =+'4 segs'!AZ131 ->  | F147: =+'5 segs'!BA131 ->  | G147: =+'6 segs'!BB131 ->  | H147: =+'7 segs'!BC131 ->  | I147: =+'8 segs'!BD131 ->  | J147: =+'9 segs'!BE131 ->  | K147: =+'10 segs'!BF131 -> 
B148: 119 | C148: =+'2 segs'!AX132 ->  | D148: =+'3 segs'!AY132 ->  | E148: =+'4 segs'!AZ132 ->  | F148: =+'5 segs'!BA132 ->  | G148: =+'6 segs'!BB132 ->  | H148: =+'7 segs'!BC132 ->  | I148: =+'8 segs'!BD132 ->  | J148: =+'9 segs'!BE132 ->  | K148: =+'10 segs'!BF132 -> 
B149: 120 | C149: =+'2 segs'!AX133 ->  | D149: =+'3 segs'!AY133 ->  | E149: =+'4 segs'!AZ133 ->  | F149: =+'5 segs'!BA133 ->  | G149: =+'6 segs'!BB133 ->  | H149: =+'7 segs'!BC133 ->  | I149: =+'8 segs'!BD133 ->  | J149: =+'9 segs'!BE133 ->  | K149: =+'10 segs'!BF133 -> 
B150: 121 | C150: =+'2 segs'!AX134 ->  | D150: =+'3 segs'!AY134 ->  | E150: =+'4 segs'!AZ134 ->  | F150: =+'5 segs'!BA134 ->  | G150: =+'6 segs'!BB134 ->  | H150: =+'7 segs'!BC134 ->  | I150: =+'8 segs'!BD134 ->  | J150: =+'9 segs'!BE134 ->  | K150: =+'10 segs'!BF134 -> 
B151: 122 | C151: =+'2 segs'!AX135 ->  | D151: =+'3 segs'!AY135 ->  | E151: =+'4 segs'!AZ135 ->  | F151: =+'5 segs'!BA135 ->  | G151: =+'6 segs'!BB135 ->  | H151: =+'7 segs'!BC135 ->  | I151: =+'8 segs'!BD135 ->  | J151: =+'9 segs'!BE135 ->  | K151: =+'10 segs'!BF135 -> 
B152: 123 | C152: =+'2 segs'!AX136 ->  | D152: =+'3 segs'!AY136 ->  | E152: =+'4 segs'!AZ136 ->  | F152: =+'5 segs'!BA136 ->  | G152: =+'6 segs'!BB136 ->  | H152: =+'7 segs'!BC136 ->  | I152: =+'8 segs'!BD136 ->  | J152: =+'9 segs'!BE136 ->  | K152: =+'10 segs'!BF136 -> 
B153: 124 | C153: =+'2 segs'!AX137 ->  | D153: =+'3 segs'!AY137 ->  | E153: =+'4 segs'!AZ137 ->  | F153: =+'5 segs'!BA137 ->  | G153: =+'6 segs'!BB137 ->  | H153: =+'7 segs'!BC137 ->  | I153: =+'8 segs'!BD137 ->  | J153: =+'9 segs'!BE137 ->  | K153: =+'10 segs'!BF137 -> 
B154: 125 | C154: =+'2 segs'!AX138 ->  | D154: =+'3 segs'!AY138 ->  | E154: =+'4 segs'!AZ138 ->  | F154: =+'5 segs'!BA138 ->  | G154: =+'6 segs'!BB138 ->  | H154: =+'7 segs'!BC138 ->  | I154: =+'8 segs'!BD138 ->  | J154: =+'9 segs'!BE138 ->  | K154: =+'10 segs'!BF138 -> 
B155: 126 | C155: =+'2 segs'!AX139 ->  | D155: =+'3 segs'!AY139 ->  | E155: =+'4 segs'!AZ139 ->  | F155: =+'5 segs'!BA139 ->  | G155: =+'6 segs'!BB139 ->  | H155: =+'7 segs'!BC139 ->  | I155: =+'8 segs'!BD139 ->  | J155: =+'9 segs'!BE139 ->  | K155: =+'10 segs'!BF139 -> 
B156: 127 | C156: =+'2 segs'!AX140 ->  | D156: =+'3 segs'!AY140 ->  | E156: =+'4 segs'!AZ140 ->  | F156: =+'5 segs'!BA140 ->  | G156: =+'6 segs'!BB140 ->  | H156: =+'7 segs'!BC140 ->  | I156: =+'8 segs'!BD140 ->  | J156: =+'9 segs'!BE140 ->  | K156: =+'10 segs'!BF140 -> 
B157: 128 | C157: =+'2 segs'!AX141 ->  | D157: =+'3 segs'!AY141 ->  | E157: =+'4 segs'!AZ141 ->  | F157: =+'5 segs'!BA141 ->  | G157: =+'6 segs'!BB141 ->  | H157: =+'7 segs'!BC141 ->  | I157: =+'8 segs'!BD141 ->  | J157: =+'9 segs'!BE141 ->  | K157: =+'10 segs'!BF141 -> 
B158: 129 | C158: =+'2 segs'!AX142 ->  | D158: =+'3 segs'!AY142 ->  | E158: =+'4 segs'!AZ142 ->  | F158: =+'5 segs'!BA142 ->  | G158: =+'6 segs'!BB142 ->  | H158: =+'7 segs'!BC142 ->  | I158: =+'8 segs'!BD142 ->  | J158: =+'9 segs'!BE142 ->  | K158: =+'10 segs'!BF142 -> 
B159: 130 | C159: =+'2 segs'!AX143 ->  | D159: =+'3 segs'!AY143 ->  | E159: =+'4 segs'!AZ143 ->  | F159: =+'5 segs'!BA143 ->  | G159: =+'6 segs'!BB143 ->  | H159: =+'7 segs'!BC143 ->  | I159: =+'8 segs'!BD143 ->  | J159: =+'9 segs'!BE143 ->  | K159: =+'10 segs'!BF143 -> 
B160: 131 | C160: =+'2 segs'!AX144 ->  | D160: =+'3 segs'!AY144 ->  | E160: =+'4 segs'!AZ144 ->  | F160: =+'5 segs'!BA144 ->  | G160: =+'6 segs'!BB144 ->  | H160: =+'7 segs'!BC144 ->  | I160: =+'8 segs'!BD144 ->  | J160: =+'9 segs'!BE144 ->  | K160: =+'10 segs'!BF144 -> 
B161: 132 | C161: =+'2 segs'!AX145 ->  | D161: =+'3 segs'!AY145 ->  | E161: =+'4 segs'!AZ145 ->  | F161: =+'5 segs'!BA145 ->  | G161: =+'6 segs'!BB145 ->  | H161: =+'7 segs'!BC145 ->  | I161: =+'8 segs'!BD145 ->  | J161: =+'9 segs'!BE145 ->  | K161: =+'10 segs'!BF145 -> 
B162: 133 | C162: =+'2 segs'!AX146 ->  | D162: =+'3 segs'!AY146 ->  | E162: =+'4 segs'!AZ146 ->  | F162: =+'5 segs'!BA146 ->  | G162: =+'6 segs'!BB146 ->  | H162: =+'7 segs'!BC146 ->  | I162: =+'8 segs'!BD146 ->  | J162: =+'9 segs'!BE146 ->  | K162: =+'10 segs'!BF146 -> 
B163: 134 | C163: =+'2 segs'!AX147 ->  | D163: =+'3 segs'!AY147 ->  | E163: =+'4 segs'!AZ147 ->  | F163: =+'5 segs'!BA147 ->  | G163: =+'6 segs'!BB147 ->  | H163: =+'7 segs'!BC147 ->  | I163: =+'8 segs'!BD147 ->  | J163: =+'9 segs'!BE147 ->  | K163: =+'10 segs'!BF147 -> 
B164: 135 | C164: =+'2 segs'!AX148 ->  | D164: =+'3 segs'!AY148 ->  | E164: =+'4 segs'!AZ148 ->  | F164: =+'5 segs'!BA148 ->  | G164: =+'6 segs'!BB148 ->  | H164: =+'7 segs'!BC148 ->  | I164: =+'8 segs'!BD148 ->  | J164: =+'9 segs'!BE148 ->  | K164: =+'10 segs'!BF148 -> 
B165: 136 | C165: =+'2 segs'!AX149 ->  | D165: =+'3 segs'!AY149 ->  | E165: =+'4 segs'!AZ149 ->  | F165: =+'5 segs'!BA149 ->  | G165: =+'6 segs'!BB149 ->  | H165: =+'7 segs'!BC149 ->  | I165: =+'8 segs'!BD149 ->  | J165: =+'9 segs'!BE149 ->  | K165: =+'10 segs'!BF149 -> 
B166: 137 | C166: =+'2 segs'!AX150 ->  | D166: =+'3 segs'!AY150 ->  | E166: =+'4 segs'!AZ150 ->  | F166: =+'5 segs'!BA150 ->  | G166: =+'6 segs'!BB150 ->  | H166: =+'7 segs'!BC150 ->  | I166: =+'8 segs'!BD150 ->  | J166: =+'9 segs'!BE150 ->  | K166: =+'10 segs'!BF150 -> 
B167: 138 | C167: =+'2 segs'!AX151 ->  | D167: =+'3 segs'!AY151 ->  | E167: =+'4 segs'!AZ151 ->  | F167: =+'5 segs'!BA151 ->  | G167: =+'6 segs'!BB151 ->  | H167: =+'7 segs'!BC151 ->  | I167: =+'8 segs'!BD151 ->  | J167: =+'9 segs'!BE151 ->  | K167: =+'10 segs'!BF151 -> 
B168: 139 | C168: =+'2 segs'!AX152 ->  | D168: =+'3 segs'!AY152 ->  | E168: =+'4 segs'!AZ152 ->  | F168: =+'5 segs'!BA152 ->  | G168: =+'6 segs'!BB152 ->  | H168: =+'7 segs'!BC152 ->  | I168: =+'8 segs'!BD152 ->  | J168: =+'9 segs'!BE152 ->  | K168: =+'10 segs'!BF152 -> 
B169: 140 | C169: =+'2 segs'!AX153 ->  | D169: =+'3 segs'!AY153 ->  | E169: =+'4 segs'!AZ153 ->  | F169: =+'5 segs'!BA153 ->  | G169: =+'6 segs'!BB153 ->  | H169: =+'7 segs'!BC153 ->  | I169: =+'8 segs'!BD153 ->  | J169: =+'9 segs'!BE153 ->  | K169: =+'10 segs'!BF153 -> 
B170: 141 | C170: =+'2 segs'!AX154 ->  | D170: =+'3 segs'!AY154 ->  | E170: =+'4 segs'!AZ154 ->  | F170: =+'5 segs'!BA154 ->  | G170: =+'6 segs'!BB154 ->  | H170: =+'7 segs'!BC154 ->  | I170: =+'8 segs'!BD154 ->  | J170: =+'9 segs'!BE154 ->  | K170: =+'10 segs'!BF154 -> 
B171: 142 | C171: =+'2 segs'!AX155 ->  | D171: =+'3 segs'!AY155 ->  | E171: =+'4 segs'!AZ155 ->  | F171: =+'5 segs'!BA155 ->  | G171: =+'6 segs'!BB155 ->  | H171: =+'7 segs'!BC155 ->  | I171: =+'8 segs'!BD155 ->  | J171: =+'9 segs'!BE155 ->  | K171: =+'10 segs'!BF155 -> 
B172: 143 | C172: =+'2 segs'!AX156 ->  | D172: =+'3 segs'!AY156 ->  | E172: =+'4 segs'!AZ156 ->  | F172: =+'5 segs'!BA156 ->  | G172: =+'6 segs'!BB156 ->  | H172: =+'7 segs'!BC156 ->  | I172: =+'8 segs'!BD156 ->  | J172: =+'9 segs'!BE156 ->  | K172: =+'10 segs'!BF156 -> 
B173: 144 | C173: =+'2 segs'!AX157 ->  | D173: =+'3 segs'!AY157 ->  | E173: =+'4 segs'!AZ157 ->  | F173: =+'5 segs'!BA157 ->  | G173: =+'6 segs'!BB157 ->  | H173: =+'7 segs'!BC157 ->  | I173: =+'8 segs'!BD157 ->  | J173: =+'9 segs'!BE157 ->  | K173: =+'10 segs'!BF157 -> 
B174: 145 | C174: =+'2 segs'!AX158 ->  | D174: =+'3 segs'!AY158 ->  | E174: =+'4 segs'!AZ158 ->  | F174: =+'5 segs'!BA158 ->  | G174: =+'6 segs'!BB158 ->  | H174: =+'7 segs'!BC158 ->  | I174: =+'8 segs'!BD158 ->  | J174: =+'9 segs'!BE158 ->  | K174: =+'10 segs'!BF158 -> 
B175: 146 | C175: =+'2 segs'!AX159 ->  | D175: =+'3 segs'!AY159 ->  | E175: =+'4 segs'!AZ159 ->  | F175: =+'5 segs'!BA159 ->  | G175: =+'6 segs'!BB159 ->  | H175: =+'7 segs'!BC159 ->  | I175: =+'8 segs'!BD159 ->  | J175: =+'9 segs'!BE159 ->  | K175: =+'10 segs'!BF159 -> 
B176: 147 | C176: =+'2 segs'!AX160 ->  | D176: =+'3 segs'!AY160 ->  | E176: =+'4 segs'!AZ160 ->  | F176: =+'5 segs'!BA160 ->  | G176: =+'6 segs'!BB160 ->  | H176: =+'7 segs'!BC160 ->  | I176: =+'8 segs'!BD160 ->  | J176: =+'9 segs'!BE160 ->  | K176: =+'10 segs'!BF160 -> 
B177: 148 | C177: =+'2 segs'!AX161 ->  | D177: =+'3 segs'!AY161 ->  | E177: =+'4 segs'!AZ161 ->  | F177: =+'5 segs'!BA161 ->  | G177: =+'6 segs'!BB161 ->  | H177: =+'7 segs'!BC161 ->  | I177: =+'8 segs'!BD161 ->  | J177: =+'9 segs'!BE161 ->  | K177: =+'10 segs'!BF161 -> 
B178: 149 | C178: =+'2 segs'!AX162 ->  | D178: =+'3 segs'!AY162 ->  | E178: =+'4 segs'!AZ162 ->  | F178: =+'5 segs'!BA162 ->  | G178: =+'6 segs'!BB162 ->  | H178: =+'7 segs'!BC162 ->  | I178: =+'8 segs'!BD162 ->  | J178: =+'9 segs'!BE162 ->  | K178: =+'10 segs'!BF162 -> 
B179: 150 | C179: =+'2 segs'!AX163 ->  | D179: =+'3 segs'!AY163 ->  | E179: =+'4 segs'!AZ163 ->  | F179: =+'5 segs'!BA163 ->  | G179: =+'6 segs'!BB163 ->  | H179: =+'7 segs'!BC163 ->  | I179: =+'8 segs'!BD163 ->  | J179: =+'9 segs'!BE163 ->  | K179: =+'10 segs'!BF163 -> 
B180: 151 | C180: =+'2 segs'!AX164 ->  | D180: =+'3 segs'!AY164 ->  | E180: =+'4 segs'!AZ164 ->  | F180: =+'5 segs'!BA164 ->  | G180: =+'6 segs'!BB164 ->  | H180: =+'7 segs'!BC164 ->  | I180: =+'8 segs'!BD164 ->  | J180: =+'9 segs'!BE164 ->  | K180: =+'10 segs'!BF164 -> 
B181: 152 | C181: =+'2 segs'!AX165 ->  | D181: =+'3 segs'!AY165 ->  | E181: =+'4 segs'!AZ165 ->  | F181: =+'5 segs'!BA165 ->  | G181: =+'6 segs'!BB165 ->  | H181: =+'7 segs'!BC165 ->  | I181: =+'8 segs'!BD165 ->  | J181: =+'9 segs'!BE165 ->  | K181: =+'10 segs'!BF165 -> 
B182: 153 | C182: =+'2 segs'!AX166 ->  | D182: =+'3 segs'!AY166 ->  | E182: =+'4 segs'!AZ166 ->  | F182: =+'5 segs'!BA166 ->  | G182: =+'6 segs'!BB166 ->  | H182: =+'7 segs'!BC166 ->  | I182: =+'8 segs'!BD166 ->  | J182: =+'9 segs'!BE166 ->  | K182: =+'10 segs'!BF166 -> 
B183: 154 | C183: =+'2 segs'!AX167 ->  | D183: =+'3 segs'!AY167 ->  | E183: =+'4 segs'!AZ167 ->  | F183: =+'5 segs'!BA167 ->  | G183: =+'6 segs'!BB167 ->  | H183: =+'7 segs'!BC167 ->  | I183: =+'8 segs'!BD167 ->  | J183: =+'9 segs'!BE167 ->  | K183: =+'10 segs'!BF167 -> 
B184: 155 | C184: =+'2 segs'!AX168 ->  | D184: =+'3 segs'!AY168 ->  | E184: =+'4 segs'!AZ168 ->  | F184: =+'5 segs'!BA168 ->  | G184: =+'6 segs'!BB168 ->  | H184: =+'7 segs'!BC168 ->  | I184: =+'8 segs'!BD168 ->  | J184: =+'9 segs'!BE168 ->  | K184: =+'10 segs'!BF168 -> 
B185: 156 | C185: =+'2 segs'!AX169 ->  | D185: =+'3 segs'!AY169 ->  | E185: =+'4 segs'!AZ169 ->  | F185: =+'5 segs'!BA169 ->  | G185: =+'6 segs'!BB169 ->  | H185: =+'7 segs'!BC169 ->  | I185: =+'8 segs'!BD169 ->  | J185: =+'9 segs'!BE169 ->  | K185: =+'10 segs'!BF169 -> 
B186: 157 | C186: =+'2 segs'!AX170 ->  | D186: =+'3 segs'!AY170 ->  | E186: =+'4 segs'!AZ170 ->  | F186: =+'5 segs'!BA170 ->  | G186: =+'6 segs'!BB170 ->  | H186: =+'7 segs'!BC170 ->  | I186: =+'8 segs'!BD170 ->  | J186: =+'9 segs'!BE170 ->  | K186: =+'10 segs'!BF170 -> 
B187: 158 | C187: =+'2 segs'!AX171 ->  | D187: =+'3 segs'!AY171 ->  | E187: =+'4 segs'!AZ171 ->  | F187: =+'5 segs'!BA171 ->  | G187: =+'6 segs'!BB171 ->  | H187: =+'7 segs'!BC171 ->  | I187: =+'8 segs'!BD171 ->  | J187: =+'9 segs'!BE171 ->  | K187: =+'10 segs'!BF171 -> 
B188: 159 | C188: =+'2 segs'!AX172 ->  | D188: =+'3 segs'!AY172 ->  | E188: =+'4 segs'!AZ172 ->  | F188: =+'5 segs'!BA172 ->  | G188: =+'6 segs'!BB172 ->  | H188: =+'7 segs'!BC172 ->  | I188: =+'8 segs'!BD172 ->  | J188: =+'9 segs'!BE172 ->  | K188: =+'10 segs'!BF172 -> 
B189: 160 | C189: =+'2 segs'!AX173 ->  | D189: =+'3 segs'!AY173 ->  | E189: =+'4 segs'!AZ173 ->  | F189: =+'5 segs'!BA173 ->  | G189: =+'6 segs'!BB173 ->  | H189: =+'7 segs'!BC173 ->  | I189: =+'8 segs'!BD173 ->  | J189: =+'9 segs'!BE173 ->  | K189: =+'10 segs'!BF173 -> 
B190: 161 | C190: =+'2 segs'!AX174 ->  | D190: =+'3 segs'!AY174 ->  | E190: =+'4 segs'!AZ174 ->  | F190: =+'5 segs'!BA174 ->  | G190: =+'6 segs'!BB174 ->  | H190: =+'7 segs'!BC174 ->  | I190: =+'8 segs'!BD174 ->  | J190: =+'9 segs'!BE174 ->  | K190: =+'10 segs'!BF174 -> 
B191: 162 | C191: =+'2 segs'!AX175 ->  | D191: =+'3 segs'!AY175 ->  | E191: =+'4 segs'!AZ175 ->  | F191: =+'5 segs'!BA175 ->  | G191: =+'6 segs'!BB175 ->  | H191: =+'7 segs'!BC175 ->  | I191: =+'8 segs'!BD175 ->  | J191: =+'9 segs'!BE175 ->  | K191: =+'10 segs'!BF175 -> 
B192: 163 | C192: =+'2 segs'!AX176 ->  | D192: =+'3 segs'!AY176 ->  | E192: =+'4 segs'!AZ176 ->  | F192: =+'5 segs'!BA176 ->  | G192: =+'6 segs'!BB176 ->  | H192: =+'7 segs'!BC176 ->  | I192: =+'8 segs'!BD176 ->  | J192: =+'9 segs'!BE176 ->  | K192: =+'10 segs'!BF176 -> 
B193: 164 | C193: =+'2 segs'!AX177 ->  | D193: =+'3 segs'!AY177 ->  | E193: =+'4 segs'!AZ177 ->  | F193: =+'5 segs'!BA177 ->  | G193: =+'6 segs'!BB177 ->  | H193: =+'7 segs'!BC177 ->  | I193: =+'8 segs'!BD177 ->  | J193: =+'9 segs'!BE177 ->  | K193: =+'10 segs'!BF177 -> 
B194: 165 | C194: =+'2 segs'!AX178 ->  | D194: =+'3 segs'!AY178 ->  | E194: =+'4 segs'!AZ178 ->  | F194: =+'5 segs'!BA178 ->  | G194: =+'6 segs'!BB178 ->  | H194: =+'7 segs'!BC178 ->  | I194: =+'8 segs'!BD178 ->  | J194: =+'9 segs'!BE178 ->  | K194: =+'10 segs'!BF178 -> 
B195: 166 | C195: =+'2 segs'!AX179 ->  | D195: =+'3 segs'!AY179 ->  | E195: =+'4 segs'!AZ179 ->  | F195: =+'5 segs'!BA179 ->  | G195: =+'6 segs'!BB179 ->  | H195: =+'7 segs'!BC179 ->  | I195: =+'8 segs'!BD179 ->  | J195: =+'9 segs'!BE179 ->  | K195: =+'10 segs'!BF179 -> 
B196: 167 | C196: =+'2 segs'!AX180 ->  | D196: =+'3 segs'!AY180 ->  | E196: =+'4 segs'!AZ180 ->  | F196: =+'5 segs'!BA180 ->  | G196: =+'6 segs'!BB180 ->  | H196: =+'7 segs'!BC180 ->  | I196: =+'8 segs'!BD180 ->  | J196: =+'9 segs'!BE180 ->  | K196: =+'10 segs'!BF180 -> 
B197: 168 | C197: =+'2 segs'!AX181 ->  | D197: =+'3 segs'!AY181 ->  | E197: =+'4 segs'!AZ181 ->  | F197: =+'5 segs'!BA181 ->  | G197: =+'6 segs'!BB181 ->  | H197: =+'7 segs'!BC181 ->  | I197: =+'8 segs'!BD181 ->  | J197: =+'9 segs'!BE181 ->  | K197: =+'10 segs'!BF181 -> 
B198: 169 | C198: =+'2 segs'!AX182 ->  | D198: =+'3 segs'!AY182 ->  | E198: =+'4 segs'!AZ182 ->  | F198: =+'5 segs'!BA182 ->  | G198: =+'6 segs'!BB182 ->  | H198: =+'7 segs'!BC182 ->  | I198: =+'8 segs'!BD182 ->  | J198: =+'9 segs'!BE182 ->  | K198: =+'10 segs'!BF182 -> 
B199: 170 | C199: =+'2 segs'!AX183 ->  | D199: =+'3 segs'!AY183 ->  | E199: =+'4 segs'!AZ183 ->  | F199: =+'5 segs'!BA183 ->  | G199: =+'6 segs'!BB183 ->  | H199: =+'7 segs'!BC183 ->  | I199: =+'8 segs'!BD183 ->  | J199: =+'9 segs'!BE183 ->  | K199: =+'10 segs'!BF183 -> 
B200: 171 | C200: =+'2 segs'!AX184 ->  | D200: =+'3 segs'!AY184 ->  | E200: =+'4 segs'!AZ184 ->  | F200: =+'5 segs'!BA184 ->  | G200: =+'6 segs'!BB184 ->  | H200: =+'7 segs'!BC184 ->  | I200: =+'8 segs'!BD184 ->  | J200: =+'9 segs'!BE184 ->  | K200: =+'10 segs'!BF184 -> 
B201: 172 | C201: =+'2 segs'!AX185 ->  | D201: =+'3 segs'!AY185 ->  | E201: =+'4 segs'!AZ185 ->  | F201: =+'5 segs'!BA185 ->  | G201: =+'6 segs'!BB185 ->  | H201: =+'7 segs'!BC185 ->  | I201: =+'8 segs'!BD185 ->  | J201: =+'9 segs'!BE185 ->  | K201: =+'10 segs'!BF185 -> 
... 828 more rows

Sheet SSE
B2: IMPORTANT: You MUST run the relevant clustering macro first. Please use the 'segs' tab/s below.
AV6: 2 | AW6: =+'Cluster outputs'!G12 -> 0
AV7: 3 | AW7: =+'Cluster outputs'!G25 -> 0
AV8: 4 | AW8: =+'Cluster outputs'!G40 -> 0
AV9: 5 | AW9: =+'Cluster outputs'!G57 -> 0
AV10: 6 | AW10: =+'Cluster outputs'!G76 -> 0
AV11: 7 | AW11: =+'Cluster outputs'!G97 -> 0
AV12: 8 | AW12: =+'Cluster outputs'!G120 -> 0
AV13: 9 | AW13: =+'Cluster outputs'!G145 -> 0
AV14: 10 | AW14: =+'Cluster outputs'!G172 -> 0
AT17: Seg 1 | AU17: =+'Cluster outputs'!E12 -> 0 | AV17: =+'Cluster outputs'!E25 -> 0 | AW17: =+'Cluster outputs'!E40 -> 0 | AX17: =+'Cluster outputs'!E57 -> 0 | AY17: =+'Cluster outputs'!E76 -> 0 | AZ17: =+'Cluster outputs'!E97 -> 0 | BA17: =+'Cluster outputs'!E120 -> 0 | BB17: =+'Cluster outputs'!E145 -> 0 | BC17: =+'Cluster outputs'!E172 -> 0
AT18: Seg 2 | AU18: =+'Cluster outputs'!E13 -> 0 | AV18: =+'Cluster outputs'!E26 -> 0 | AW18: =+'Cluster outputs'!E41 -> 0 | AX18: =+'Cluster outputs'!E58 -> 0 | AY18: =+'Cluster outputs'!E77 -> 0 | AZ18: =+'Cluster outputs'!E98 -> 0 | BA18: =+'Cluster outputs'!E121 -> 0 | BB18: =+'Cluster outputs'!E146 -> 0 | BC18: =+'Cluster outputs'!E173 -> 0
AT19: Seg 3 | AV19: =+'Cluster outputs'!E27 -> 0 | AW19: =+'Cluster outputs'!E42 -> 0 | AX19: =+'Cluster outputs'!E59 -> 0 | AY19: =+'Cluster outputs'!E78 -> 0 | AZ19: =+'Cluster outputs'!E99 -> 0 | BA19: =+'Cluster outputs'!E122 -> 0 | BB19: =+'Cluster outputs'!E147 -> 0 | BC19: =+'Cluster outputs'!E174 -> 0
AT20: Seg 4 | AW20: =+'Cluster outputs'!E43 -> 0 | AX20: =+'Cluster outputs'!E60 -> 0 | AY20: =+'Cluster outputs'!E79 -> 0 | AZ20: =+'Cluster outputs'!E100 -> 0 | BA20: =+'Cluster outputs'!E123 -> 0 | BB20: =+'Cluster outputs'!E148 -> 0 | BC20: =+'Cluster outputs'!E175 -> 0
AT21: Seg 5 | AX21: =+'Cluster outputs'!E61 -> 0 | AY21: =+'Cluster outputs'!E80 -> 0 | AZ21: =+'Cluster outputs'!E101 -> 0 | BA21: =+'Cluster outputs'!E124 -> 0 | BB21: =+'Cluster outputs'!E149 -> 0 | BC21: =+'Cluster outputs'!E176 -> 0
AT22: Seg 6 | AY22: =+'Cluster outputs'!E81 -> 0 | AZ22: =+'Cluster outputs'!E102 -> 0 | BA22: =+'Cluster outputs'!E125 -> 0 | BB22: =+'Cluster outputs'!E150 -> 0 | BC22: =+'Cluster outputs'!E177 -> 0
AT23: Seg 7 | AZ23: =+'Cluster outputs'!E103 -> 0 | BA23: =+'Cluster outputs'!E126 -> 0 | BB23: =+'Cluster outputs'!E151 -> 0 | BC23: =+'Cluster outputs'!E178 -> 0
AT24: Seg 8 | BA24: =+'Cluster outputs'!E127 -> 0 | BB24: =+'Cluster outputs'!E152 -> 0 | BC24: =+'Cluster outputs'!E179 -> 0
AT25: Seg 9 | BB25: =+'Cluster outputs'!E153 -> 0 | BC25: =+'Cluster outputs'!E180 -> 0
AT26: Seg 10 | BC26: =+'Cluster outputs'!E181 -> 0

Sheet 2 segs
Y2: 17 | Z2: =VLOOKUP($Y2,full_data,Z$13+1) ->  | AP2: =VLOOKUP($Y2,full_data,AP$13+1) -> 
I3: On Excel, cluster analysis will take around one minute to run. Once completed, you will be automatically taken to the 'Cluster outputs' worksheet. | P3: IMPORTANT: Do not make changes/edits to this worksheet, as there are many "invisible" calculations and formulas contained in this worksheet. | Y3: 14
B7: =+'Data entry'!D1032 -> 0 | JC7: 1 | JD7: 2 | JE7: 3 | JF7: 4 | JG7: 5 | JH7: 6 | JI7: 7 | JJ7: 8 | JK7: 9 | JL7: 10 | JM7: 11 | JN7: 12 | JO7: 13 | JP7: 14 | JQ7: 15 | JR7: 16 | JS7: 17 | JT7: 18 | JU7: 19 | JV7: 20
BI8: =AVERAGE(BI14:BI1013) ->  | BJ8: =AVERAGE(BJ14:BJ1013) ->  | DV8: =AVERAGE(DV14:DV1013) ->  | GH8: =AVERAGE(GH14:GH1013) ->  | IT8: =AVERAGE(IT14:IT1013) ->  | JB8: 1 | JC8: =IFERROR(BI8,"") ->  | JD8: =IFERROR(BJ8,"") -> 
AY9: Count | AZ9: =COUNT(AZ14:AZ1013) -> 0 | BA9: =COUNT(BA14:BA1013) -> 0 | JB9: 2 | JC9: =IFERROR(CC8,"") ->  | JD9: =IFERROR(CD8,"") -> 
C10: Mean | D10: =IFERROR(AVERAGE(D$14:D$1013),"") ->  | E10: =IFERROR(AVERAGE(E$14:E$1013),"") ->  | BI10: 1 | BJ10: =+BI10 -> 1 | BK10: =+BJ10 -> 1 | BL10: 1 | BM10: 1 | BN10: 1 | BO10: 1 | BP10: 1 | BQ10: 1 | BR10: 1 | BS10: 1 | BT10: 1 | BU10: 1 | BV10: 1 | BW10: 1 | BX10: 1 | BY10: 1 | BZ10: 1 | CA10: 1 | CB10: 1 | CC10: 2 | CD10: 2 | CE10: 2 | CF10: 2 | CG10: 2 | CH10: 2 | CI10: 2 | CJ10: 2 | CK10: 2 | CL10: 2 | CM10: 2 | CN10: 2 | CO10: 2 | CP10: 2 | CQ10: 2 | CR10: 2 | CS10: 2 | CT10: 2 | CU10: 2 | CV10: 2 | CW10: 3 | CX10: 3 | CY10: 3 | CZ10: 3 | DA10: 3 | DB10: 3 | DC10: 3 | DD10: 3 | DE10: 3 | DF10: 3 | DG10: 3 | DH10: 3 | DI10: 3 | DJ10: 3 | DK10: 3 | DL10: 3 | DM10: 3 | DN10: 3 | DO10: 3 | DP10: 3 | DQ10: 4 | DR10: 4 | DS10: 4 | DT10: 4 | DU10: 4 | DV10: 4 | DW10: =+DV10 -> 4 | DX10: 4 | DY10: 4 | DZ10: 4 | EA10: 4 | EB10: 4 | EC10: 4 | ED10: 4 | EE10: 4 | EF10: 4 | EG10: 4 | EH10: 4 | EI10: 4 | EJ10: 4 | EK10: 5 | EL10: 5 | EM10: 5 | EN10: 5 | EO10: 5 | EP10: 5 | EQ10: 5 | ER10: 5 | ES10: 5 | ET10: 5 | EU10: 5 | EV10: 5 | EW10: 5 | EX10: 5 | EY10: 5 | EZ10: 5 | FA10: 5 | FB10: 5 | FC10: 5 | FD10: 5 | FE10: 6 | FF10: 6 | FG10: 6 | FH10: 6 | FI10: 6 | FJ10: 6 | FK10: 6 | FL10: 6 | FM10: 6 | FN10: 6 | FO10: 6 | FP10: 6 | FQ10: 6 | FR10: 6 | FS10: 6 | FT10: 6 | FU10: 6 | FV10: 6 | FW10: 6 | FX10: 6 | FY10: 7 | FZ10: 7 | GA10: 7 | GB10: 7 | GC10: 7 | GD10: 7 | GE10: 7 | GF10: 7 | GG10: 7 | GH10: 7 | GI10: =+GH10 -> 7 | GJ10: 7 | GK10: 7 | GL10: 7 | GM10: 7 | GN10: 7 | GO10: 7 | GP10: 7 | GQ10: 7 | GR10: 7 | GS10: 8 | GT10: 8 | GU10: 8 | GV10: 8 | GW10: 8 | GX10: 8 | GY10: 8 | GZ10: 8 | HA10: 8 | HB10: 8 | HC10: 8 | HD10: 8 | HE10: 8 | HF10: 8 | HG10: 8 | HH10: 8 | HI10: 8 | HJ10: 8 | HK10: 8 | HL10: 8 | HM10: 9 | HN10: 9 | HO10: 9 | HP10: 9 | HQ10: 9 | HR10: 9 | HS10: 9 | HT10: 9 | HU10: 9 | HV10: 9 | HW10: 9 | HX10: 9 | HY10: 9 | HZ10: 9 | IA10: 9 | IB10: 9 | IC10: 9 | ID10: 9 | IE10: 9 | IF10: 9 | IG10: 10 | IH10: 10 | II10: 10 | IJ10: 10 | IK10: 10 | IL10: 10 | IM10: 10 | IN10: 10 | IO10: 10 | IP10: 10 | IQ10: 10 | IR10: 10 | IS10: 10 | IT10: 10 | IU10: =+IT10 -> 10 | IV10: 10 | IW10: 10 | IX10: 10 | IY10: 10 | IZ10: 10
C11: STD Dev | D11: =_xlfn.STDEV.P(D$14:D$1013) ->  | E11: =_xlfn.STDEV.P(E$14:E$1013) ->  | AW11: =SUM(AW14:AW1013) -> 0 | AY11: SSE | AZ11: =SUM(AZ14:AZ1013) -> 0 | BA11: =SUM(BA14:BA1013) -> 0 | BI11: 1 | BJ11: =+BI11+1 -> 2 | BK11: =+BJ11+1 -> 3 | BL11: 4 | BM11: 5 | BN11: 6 | BO11: 7 | BP11: 8 | BQ11: 9 | BR11: 10 | BS11: 11 | BT11: 12 | BU11: 13 | BV11: 14 | BW11: 15 | BX11: 16 | BY11: 17 | BZ11: 18 | CA11: 19 | CB11: 20 | CC11: 1 | CD11: 2 | CE11: 3 | CF11: 4 | CG11: 5 | CH11: 6 | CI11: 7 | CJ11: 8 | CK11: 9 | CL11: 10 | CM11: 11 | CN11: 12 | CO11: 13 | CP11: 14 | CQ11: 15 | CR11: 16 | CS11: 17 | CT11: 18 | CU11: 19 | CV11: 20 | CW11: 1 | CX11: 2 | CY11: 3 | CZ11: 4 | DA11: 5 | DB11: 6 | DC11: 7 | DD11: 8 | DE11: 9 | DF11: 10 | DG11: 11 | DH11: 12 | DI11: 13 | DJ11: 14 | DK11: 15 | DL11: 16 | DM11: 17 | DN11: 18 | DO11: 19 | DP11: 20 | DQ11: 1 | DR11: 2 | DS11: 3 | DT11: 4 | DU11: 5 | DV11: 6 | DW11: =+DV11+1 -> 7 | DX11: 8 | DY11: 9 | DZ11: 10 | EA11: 11 | EB11: 12 | EC11: 13 | ED11: 14 | EE11: 15 | EF11: 16 | EG11: 17 | EH11: 18 | EI11: 19 | EJ11: 20 | EK11: 1 | EL11: 2 | EM11: 3 | EN11: 4 | EO11: 5 | EP11: 6 | EQ11: 7 | ER11: 8 | ES11: 9 | ET11: 10 | EU11: 11 | EV11: 12 | EW11: 13 | EX11: 14 | EY11: 15 | EZ11: 16 | FA11: 17 | FB11: 18 | FC11: 19 | FD11: 20 | FE11: 1 | FF11: 2 | FG11: 3 | FH11: 4 | FI11: 5 | FJ11: 6 | FK11: 7 | FL11: 8 | FM11: 9 | FN11: 10 | FO11: 11 | FP11: 12 | FQ11: 13 | FR11: 14 | FS11: 15 | FT11: 16 | FU11: 17 | FV11: 18 | FW11: 19 | FX11: 20 | FY11: 1 | FZ11: 2 | GA11: 3 | GB11: 4 | GC11: 5 | GD11: 6 | GE11: 7 | GF11: 8 | GG11: 9 | GH11: 10 | GI11: =+GH11+1 -> 11 | GJ11: 12 | GK11: 13 | GL11: 14 | GM11: 15 | GN11: 16 | GO11: 17 | GP11: 18 | GQ11: 19 | GR11: 20 | GS11: 1 | GT11: 2 | GU11: 3 | GV11: 4 | GW11: 5 | GX11: 6 | GY11: 7 | GZ11: 8 | HA11: 9 | HB11: 10 | HC11: 11 | HD11: 12 | HE11: 13 | HF11: 14 | HG11: 15 | HH11: 16 | HI11: 17 | HJ11: 18 | HK11: 19 | HL11: 20 | HM11: 1 | HN11: 2 | HO11: 3 | HP11: 4 | HQ11: 5 | HR11: 6 | HS11: 7 | HT11: 8 | HU11: 9 | HV11: 10 | HW11: 11 | HX11: 12 | HY11: 13 | HZ11: 14 | IA11: 15 | IB11: 16 | IC11: 17 | ID11: 18 | IE11: 19 | IF11: 20 | IG11: 1 | IH11: 2 | II11: 3 | IJ11: 4 | IK11: 5 | IL11: 6 | IM11: 7 | IN11: 8 | IO11: 9 | IP11: 10 | IQ11: 11 | IR11: 12 | IS11: 13 | IT11: 14 | IU11: =+IT11+1 -> 15 | IV11: 16 | IW11: 17 | IX11: 18 | IY11: 19 | IZ11: 20
D13: 1 | E13: =+D13+1 -> 2 | F13: =+E13+1 -> 3 | G13: 4 | H13: 5 | I13: 6 | J13: 7 | K13: 8 | L13: 9 | M13: 10 | N13: 11 | O13: 12 | P13: 13 | Q13: 14 | R13: 15 | S13: 16 | T13: 17 | U13: 18 | V13: 19 | W13: 20 | Z13: 1 | AA13: =+Z13+1 -> 2 | AB13: =+AA13+1 -> 3 | AC13: 4 | AD13: 5 | AE13: 6 | AF13: 7 | AG13: 8 | AH13: 9 | AI13: 10 | AJ13: 11 | AK13: 12 | AL13: 13 | AM13: 14 | AN13: 15 | AO13: 16 | AP13: 17 | AQ13: 18 | AR13: 19 | AS13: 20 | AU13: 1 | AV13: 2 | AW13: Min | AX13: Match | AZ13: 1 | BA13: 2
C14: 1 | D14: =IF('Data entry'!C17<>"",'Data entry'!C17,"") ->  | E14: =IF('Data entry'!D17<>"",'Data entry'!D17,"") ->  | F14: =IF('Data entry'!E17<>"",'Data entry'!E17,"") ->  | G14: =IF('Data entry'!F17<>"",'Data entry'!F17,"") ->  | H14: =IF('Data entry'!G17<>"",'Data entry'!G17,"") ->  | I14: =IF('Data entry'!H17<>"",'Data entry'!H17,"") ->  | J14: =IF('Data entry'!I17<>"",'Data entry'!I17,"") ->  | K14: =IF('Data entry'!J17<>"",'Data entry'!J17,"") ->  | L14: =IF('Data entry'!K17<>"",'Data entry'!K17,"") ->  | M14: =IF('Data entry'!L17<>"",'Data entry'!L17,"") ->  | N14: =IF('Data entry'!M17<>"",'Data entry'!M17,"") ->  | O14: =IF('Data entry'!N17<>"",'Data entry'!N17,"") ->  | P14: =IF('Data entry'!O17<>"",'Data entry'!O17,"") ->  | Q14: =IF('Data entry'!P17<>"",'Data entry'!P17,"") ->  | R14: =IF('Data entry'!Q17<>"",'Data entry'!Q17,"") ->  | S14: =IF('Data entry'!R17<>"",'Data entry'!R17,"") ->  | T14: =IF('Data entry'!S17<>"",'Data entry'!S17,"") ->  | U14: =IF('Data entry'!T17<>"",'Data entry'!T17,"") ->  | V14: =IF('Data entry'!U17<>"",'Data entry'!U17,"") ->  | W14: =IF('Data entry'!V17<>"",'Data entry'!V17,"") ->  | Y14: 1 | Z14: =IFERROR(STANDARDIZE(D14,D$10,D$11),"") ->  | AA14: =IFERROR(STANDARDIZE(E14,E$10,E$11),"") ->  | AB14: =IFERROR(STANDARDIZE(F14,F$10,F$11),"") ->  | AU14: =IFERROR(SUMXMY2($Z$2:$AS$2,$Z14:$AS14),"") ->  | AV14: =IFERROR(SUMXMY2($Z$3:$AS$3,$Z14:$AS14),"") ->  | AW14: =MIN(AU14:AV14) -> 0 | AX14: =IFERROR(MATCH(AW14,AU14:AV14,0),"") ->  | AZ14: =IF($AX14=AZ$13,AU14,"") ->  | BA14: =IF($AX14=BA$13,AV14,"") ->  | BI14: =IF($AX14=BI$10,D14,"") ->  | BJ14: =IF($AX14=BJ$10,E14,"") ->  | CC14: =IF($AX14=CC$10,D14,"") ->  | CD14: =IF($AX14=CD$10,E14,"") -> 
C15: =+C14+1 -> 2 | D15: =IF('Data entry'!C18<>"",'Data entry'!C18,"") ->  | E15: =IF('Data entry'!D18<>"",'Data entry'!D18,"") ->  | F15: =IF('Data entry'!E18<>"",'Data entry'!E18,"") ->  | G15: =IF('Data entry'!F18<>"",'Data entry'!F18,"") ->  | H15: =IF('Data entry'!G18<>"",'Data entry'!G18,"") ->  | I15: =IF('Data entry'!H18<>"",'Data entry'!H18,"") ->  | J15: =IF('Data entry'!I18<>"",'Data entry'!I18,"") ->  | K15: =IF('Data entry'!J18<>"",'Data entry'!J18,"") ->  | L15: =IF('Data entry'!K18<>"",'Data entry'!K18,"") ->  | M15: =IF('Data entry'!L18<>"",'Data entry'!L18,"") ->  | N15: =IF('Data entry'!M18<>"",'Data entry'!M18,"") ->  | O15: =IF('Data entry'!N18<>"",'Data entry'!N18,"") ->  | P15: =IF('Data entry'!O18<>"",'Data entry'!O18,"") ->  | Q15: =IF('Data entry'!P18<>"",'Data entry'!P18,"") ->  | R15: =IF('Data entry'!Q18<>"",'Data entry'!Q18,"") ->  | S15: =IF('Data entry'!R18<>"",'Data entry'!R18,"") ->  | T15: =IF('Data entry'!S18<>"",'Data entry'!S18,"") ->  | U15: =IF('Data entry'!T18<>"",'Data entry'!T18,"") ->  | V15: =IF('Data entry'!U18<>"",'Data entry'!U18,"") ->  | W15: =IF('Data entry'!V18<>"",'Data entry'!V18,"") ->  | Y15: =+Y14+1 -> 2 | Z15: =IFERROR(STANDARDIZE(D15,D$10,D$11),"") ->  | AA15: =IFERROR(STANDARDIZE(E15,E$10,E$11),"") ->  | AB15: =IFERROR(STANDARDIZE(F15,F$10,F$11),"") ->  | AC15: =IFERROR(STANDARDIZE(G15,G$10,G$11),"") ->  | AD15: =IFERROR(STANDARDIZE(H15,H$10,H$11),"") ->  | AE15: =IFERROR(STANDARDIZE(I15,I$10,I$11),"") ->  | AF15: =IFERROR(STANDARDIZE(J15,J$10,J$11),"") ->  | AG15: =IFERROR(STANDARDIZE(K15,K$10,K$11),"") ->  | AH15: =IFERROR(STANDARDIZE(L15,L$10,L$11),"") ->  | AI15: =IFERROR(STANDARDIZE(M15,M$10,M$11),"") ->  | AJ15: =IFERROR(STANDARDIZE(N15,N$10,N$11),"") ->  | AK15: =IFERROR(STANDARDIZE(O15,O$10,O$11),"") ->  | AL15: =IFERROR(STANDARDIZE(P15,P$10,P$11),"") ->  | AM15: =IFERROR(STANDARDIZE(Q15,Q$10,Q$11),"") ->  | AN15: =IFERROR(STANDARDIZE(R15,R$10,R$11),"") ->  | AO15: =IFERROR(STANDARDIZE(S15,S$10,S$11),"") ->  | AP15: =IFERROR(STANDARDIZE(T15,T$10,T$11),"") ->  | AQ15: =IFERROR(STANDARDIZE(U15,U$10,U$11),"") ->  | AR15: =IFERROR(STANDARDIZE(V15,V$10,V$11),"") ->  | AS15: =IFERROR(STANDARDIZE(W15,W$10,W$11),"") ->  | AU15: =IFERROR(SUMXMY2($Z$2:$AS$2,$Z15:$AS15),"") ->  | AV15: =IFERROR(SUMXMY2($Z$3:$AS$3,$Z15:$AS15),"") ->  | AW15: 0 | AX15: =IFERROR(MATCH(AW15,AU15:AV15,0),"") ->  | BI15: =IF($AX15=BI$10,D15,"") ->  | BJ15: =IF($AX15=BJ$10,E15,"") ->  | BK15: =IF($AX15=BK$10,F15,"") ->  | BL15: =IF($AX15=BL$10,G15,"") ->  | BM15: =IF($AX15=BM$10,H15,"") ->  | BN15: =IF($AX15=BN$10,I15,"") ->  | BO15: =IF($AX15=BO$10,J15,"") ->  | BP15: =IF($AX15=BP$10,K15,"") ->  | BQ15: =IF($AX15=BQ$10,L15,"") ->  | BR15: =IF($AX15=BR$10,M15,"") ->  | BS15: =IF($AX15=BS$10,N15,"") ->  | BT15: =IF($AX15=BT$10,O15,"") ->  | BU15: =IF($AX15=BU$10,P15,"") ->  | BV15: =IF($AX15=BV$10,Q15,"") ->  | BW15: =IF($AX15=BW$10,R15,"") ->  | BX15: =IF($AX15=BX$10,S15,"") ->  | BY15: =IF($AX15=BY$10,T15,"") ->  | BZ15: =IF($AX15=BZ$10,U15,"") ->  | CA15: =IF($AX15=CA$10,V15,"") ->  | CB15: =IF($AX15=CB$10,W15,"") ->  | CC15: =IF($AX15=CC$10,D15,"") ->  | CD15: =IF($AX15=CD$10,E15,"") ->  | CE15: =IF($AX15=CE$10,F15,"") ->  | CF15: =IF($AX15=CF$10,G15,"") ->  | CG15: =IF($AX15=CG$10,H15,"") ->  | CH15: =IF($AX15=CH$10,I15,"") ->  | CI15: =IF($AX15=CI$10,J15,"") ->  | CJ15: =IF($AX15=CJ$10,K15,"") ->  | CK15: =IF($AX15=CK$10,L15,"") ->  | CL15: =IF($AX15=CL$10,M15,"") ->  | CM15: =IF($AX15=CM$10,N15,"") ->  | CN15: =IF($AX15=CN$10,O15,"") ->  | CO15: =IF($AX15=CO$10,P15,"") ->  | CP15: =IF($AX15=CP$10,Q15,"") ->  | CQ15: =IF($AX15=CQ$10,R15,"") ->  | CR15: =IF($AX15=CR$10,S15,"") ->  | CS15: =IF($AX15=CS$10,T15,"") ->  | CT15: =IF($AX15=CT$10,U15,"") ->  | CU15: =IF($AX15=CU$10,V15,"") ->  | CV15: =IF($AX15=CV$10,W15,"") -> 
C16: =+C15+1 -> 3 | D16: =IF('Data entry'!C19<>"",'Data entry'!C19,"") ->  | E16: =IF('Data entry'!D19<>"",'Data entry'!D19,"") ->  | F16: =IF('Data entry'!E19<>"",'Data entry'!E19,"") ->  | G16: =IF('Data entry'!F19<>"",'Data entry'!F19,"") ->  | H16: =IF('Data entry'!G19<>"",'Data entry'!G19,"") ->  | I16: =IF('Data entry'!H19<>"",'Data entry'!H19,"") ->  | J16: =IF('Data entry'!I19<>"",'Data entry'!I19,"") ->  | K16: =IF('Data entry'!J19<>"",'Data entry'!J19,"") ->  | L16: =IF('Data entry'!K19<>"",'Data entry'!K19,"") ->  | M16: =IF('Data entry'!L19<>"",'Data entry'!L19,"") ->  | N16: =IF('Data entry'!M19<>"",'Data entry'!M19,"") ->  | O16: =IF('Data entry'!N19<>"",'Data entry'!N19,"") ->  | P16: =IF('Data entry'!O19<>"",'Data entry'!O19,"") ->  | Q16: =IF('Data entry'!P19<>"",'Data entry'!P19,"") ->  | R16: =IF('Data entry'!Q19<>"",'Data entry'!Q19,"") ->  | S16: =IF('Data entry'!R19<>"",'Data entry'!R19,"") ->  | T16: =IF('Data entry'!S19<>"",'Data entry'!S19,"") ->  | U16: =IF('Data entry'!T19<>"",'Data entry'!T19,"") ->  | V16: =IF('Data entry'!U19<>"",'Data entry'!U19,"") ->  | W16: =IF('Data entry'!V19<>"",'Data entry'!V19,"") ->  | Y16: =+Y15+1 -> 3 | AW16: 0
C17: 4 | D17: =IF('Data entry'!C20<>"",'Data entry'!C20,"") ->  | E17: =IF('Data entry'!D20<>"",'Data entry'!D20,"") ->  | F17: =IF('Data entry'!E20<>"",'Data entry'!E20,"") ->  | G17: =IF('Data entry'!F20<>"",'Data entry'!F20,"") ->  | H17: =IF('Data entry'!G20<>"",'Data entry'!G20,"") ->  | I17: =IF('Data entry'!H20<>"",'Data entry'!H20,"") ->  | J17: =IF('Data entry'!I20<>"",'Data entry'!I20,"") ->  | K17: =IF('Data entry'!J20<>"",'Data entry'!J20,"") ->  | L17: =IF('Data entry'!K20<>"",'Data entry'!K20,"") ->  | M17: =IF('Data entry'!L20<>"",'Data entry'!L20,"") ->  | N17: =IF('Data entry'!M20<>"",'Data entry'!M20,"") ->  | O17: =IF('Data entry'!N20<>"",'Data entry'!N20,"") ->  | P17: =IF('Data entry'!O20<>"",'Data entry'!O20,"") ->  | Q17: =IF('Data entry'!P20<>"",'Data entry'!P20,"") ->  | R17: =IF('Data entry'!Q20<>"",'Data entry'!Q20,"") ->  | S17: =IF('Data entry'!R20<>"",'Data entry'!R20,"") ->  | T17: =IF('Data entry'!S20<>"",'Data entry'!S20,"") ->  | U17: =IF('Data entry'!T20<>"",'Data entry'!T20,"") ->  | V17: =IF('Data entry'!U20<>"",'Data entry'!U20,"") ->  | W17: =IF('Data entry'!V20<>"",'Data entry'!V20,"") ->  | Y17: 4 | AW17: 0
C18: 5 | D18: =IF('Data entry'!C21<>"",'Data entry'!C21,"") ->  | E18: =IF('Data entry'!D21<>"",'Data entry'!D21,"") ->  | F18: =IF('Data entry'!E21<>"",'Data entry'!E21,"") ->  | G18: =IF('Data entry'!F21<>"",'Data entry'!F21,"") ->  | H18: =IF('Data entry'!G21<>"",'Data entry'!G21,"") ->  | I18: =IF('Data entry'!H21<>"",'Data entry'!H21,"") ->  | J18: =IF('Data entry'!I21<>"",'Data entry'!I21,"") ->  | K18: =IF('Data entry'!J21<>"",'Data entry'!J21,"") ->  | L18: =IF('Data entry'!K21<>"",'Data entry'!K21,"") ->  | M18: =IF('Data entry'!L21<>"",'Data entry'!L21,"") ->  | N18: =IF('Data entry'!M21<>"",'Data entry'!M21,"") ->  | O18: =IF('Data entry'!N21<>"",'Data entry'!N21,"") ->  | P18: =IF('Data entry'!O21<>"",'Data entry'!O21,"") ->  | Q18: =IF('Data entry'!P21<>"",'Data entry'!P21,"") ->  | R18: =IF('Data entry'!Q21<>"",'Data entry'!Q21,"") ->  | S18: =IF('Data entry'!R21<>"",'Data entry'!R21,"") ->  | T18: =IF('Data entry'!S21<>"",'Data entry'!S21,"") ->  | U18: =IF('Data entry'!T21<>"",'Data entry'!T21,"") ->  | V18: =IF('Data entry'!U21<>"",'Data entry'!U21,"") ->  | W18: =IF('Data entry'!V21<>"",'Data entry'!V21,"") ->  | Y18: 5 | AW18: 0
C19: 6 | D19: =IF('Data entry'!C22<>"",'Data entry'!C22,"") ->  | E19: =IF('Data entry'!D22<>"",'Data entry'!D22,"") ->  | F19: =IF('Data entry'!E22<>"",'Data entry'!E22,"") ->  | G19: =IF('Data entry'!F22<>"",'Data entry'!F22,"") ->  | H19: =IF('Data entry'!G22<>"",'Data entry'!G22,"") ->  | I19: =IF('Data entry'!H22<>"",'Data entry'!H22,"") ->  | J19: =IF('Data entry'!I22<>"",'Data entry'!I22,"") ->  | K19: =IF('Data entry'!J22<>"",'Data entry'!J22,"") ->  | L19: =IF('Data entry'!K22<>"",'Data entry'!K22,"") ->  | M19: =IF('Data entry'!L22<>"",'Data entry'!L22,"") ->  | N19: =IF('Data entry'!M22<>"",'Data entry'!M22,"") ->  | O19: =IF('Data entry'!N22<>"",'Data entry'!N22,"") ->  | P19: =IF('Data entry'!O22<>"",'Data entry'!O22,"") ->  | Q19: =IF('Data entry'!P22<>"",'Data entry'!P22,"") ->  | R19: =IF('Data entry'!Q22<>"",'Data entry'!Q22,"") ->  | S19: =IF('Data entry'!R22<>"",'Data entry'!R22,"") ->  | T19: =IF('Data entry'!S22<>"",'Data entry'!S22,"") ->  | U19: =IF('Data entry'!T22<>"",'Data entry'!T22,"") ->  | V19: =IF('Data entry'!U22<>"",'Data entry'!U22,"") ->  | W19: =IF('Data entry'!V22<>"",'Data entry'!V22,"") ->  | Y19: 6 | AW19: 0 | JO19: =SUM(JO21:JO1020) -> 0 | JP19: =SUM(JP21:JP1020) -> 0
C20: 7 | D20: =IF('Data entry'!C23<>"",'Data entry'!C23,"") ->  | E20: =IF('Data entry'!D23<>"",'Data entry'!D23,"") ->  | F20: =IF('Data entry'!E23<>"",'Data entry'!E23,"") ->  | G20: =IF('Data entry'!F23<>"",'Data entry'!F23,"") ->  | H20: =IF('Data entry'!G23<>"",'Data entry'!G23,"") ->  | I20: =IF('Data entry'!H23<>"",'Data entry'!H23,"") ->  | J20: =IF('Data entry'!I23<>"",'Data entry'!I23,"") ->  | K20: =IF('Data entry'!J23<>"",'Data entry'!J23,"") ->  | L20: =IF('Data entry'!K23<>"",'Data entry'!K23,"") ->  | M20: =IF('Data entry'!L23<>"",'Data entry'!L23,"") ->  | N20: =IF('Data entry'!M23<>"",'Data entry'!M23,"") ->  | O20: =IF('Data entry'!N23<>"",'Data entry'!N23,"") ->  | P20: =IF('Data entry'!O23<>"",'Data entry'!O23,"") ->  | Q20: =IF('Data entry'!P23<>"",'Data entry'!P23,"") ->  | R20: =IF('Data entry'!Q23<>"",'Data entry'!Q23,"") ->  | S20: =IF('Data entry'!R23<>"",'Data entry'!R23,"") ->  | T20: =IF('Data entry'!S23<>"",'Data entry'!S23,"") ->  | U20: =IF('Data entry'!T23<>"",'Data entry'!T23,"") ->  | V20: =IF('Data entry'!U23<>"",'Data entry'!U23,"") ->  | W20: =IF('Data entry'!V23<>"",'Data entry'!V23,"") ->  | Y20: 7 | AW20: 0 | JC20: 1 | JD20: 2 | JM20: Min | JN20: Match | JO20: 1 | JP20: 2
C21: 8 | D21: =IF('Data entry'!C24<>"",'Data entry'!C24,"") ->  | E21: =IF('Data entry'!D24<>"",'Data entry'!D24,"") ->  | F21: =IF('Data entry'!E24<>"",'Data entry'!E24,"") ->  | G21: =IF('Data entry'!F24<>"",'Data entry'!F24,"") ->  | H21: =IF('Data entry'!G24<>"",'Data entry'!G24,"") ->  | I21: =IF('Data entry'!H24<>"",'Data entry'!H24,"") ->  | J21: =IF('Data entry'!I24<>"",'Data entry'!I24,"") ->  | K21: =IF('Data entry'!J24<>"",'Data entry'!J24,"") ->  | L21: =IF('Data entry'!K24<>"",'Data entry'!K24,"") ->  | M21: =IF('Data entry'!L24<>"",'Data entry'!L24,"") ->  | N21: =IF('Data entry'!M24<>"",'Data entry'!M24,"") ->  | O21: =IF('Data entry'!N24<>"",'Data entry'!N24,"") ->  | P21: =IF('Data entry'!O24<>"",'Data entry'!O24,"") ->  | Q21: =IF('Data entry'!P24<>"",'Data entry'!P24,"") ->  | R21: =IF('Data entry'!Q24<>"",'Data entry'!Q24,"") ->  | S21: =IF('Data entry'!R24<>"",'Data entry'!R24,"") ->  | T21: =IF('Data entry'!S24<>"",'Data entry'!S24,"") ->  | U21: =IF('Data entry'!T24<>"",'Data entry'!T24,"") ->  | V21: =IF('Data entry'!U24<>"",'Data entry'!U24,"") ->  | W21: =IF('Data entry'!V24<>"",'Data entry'!V24,"") ->  | Y21: 8 | AW21: 0 | JC21: =IFERROR(SUMXMY2(JC$8:JV$8,$D14:$W14),"") ->  | JD21: =IFERROR(SUMXMY2(JC$9:JV$9,$D14:$W14),"") ->  | JM21: =MIN(JC21:JD21) -> 0 | JN21: =+AX14 ->  | JO21: =IF($JN21=JO$20,JC21,"") ->  | JP21: =IF($JN21=JP$20,JD21,"") -> 
C22: 9 | D22: =IF('Data entry'!C25<>"",'Data entry'!C25,"") ->  | E22: =IF('Data entry'!D25<>"",'Data entry'!D25,"") ->  | F22: =IF('Data entry'!E25<>"",'Data entry'!E25,"") ->  | G22: =IF('Data entry'!F25<>"",'Data entry'!F25,"") ->  | H22: =IF('Data entry'!G25<>"",'Data entry'!G25,"") ->  | I22: =IF('Data entry'!H25<>"",'Data entry'!H25,"") ->  | J22: =IF('Data entry'!I25<>"",'Data entry'!I25,"") ->  | K22: =IF('Data entry'!J25<>"",'Data entry'!J25,"") ->  | L22: =IF('Data entry'!K25<>"",'Data entry'!K25,"") ->  | M22: =IF('Data entry'!L25<>"",'Data entry'!L25,"") ->  | N22: =IF('Data entry'!M25<>"",'Data entry'!M25,"") ->  | O22: =IF('Data entry'!N25<>"",'Data entry'!N25,"") ->  | P22: =IF('Data entry'!O25<>"",'Data entry'!O25,"") ->  | Q22: =IF('Data entry'!P25<>"",'Data entry'!P25,"") ->  | R22: =IF('Data entry'!Q25<>"",'Data entry'!Q25,"") ->  | S22: =IF('Data entry'!R25<>"",'Data entry'!R25,"") ->  | T22: =IF('Data entry'!S25<>"",'Data entry'!S25,"") ->  | U22: =IF('Data entry'!T25<>"",'Data entry'!T25,"") ->  | V22: =IF('Data entry'!U25<>"",'Data entry'!U25,"") ->  | W22: =IF('Data entry'!V25<>"",'Data entry'!V25,"") ->  | Y22: 9 | AW22: 0 | JC22: =IFERROR(SUMXMY2(JC$8:JV$8,$D15:$W15),"") ->  | JD22: =IFERROR(SUMXMY2(JC$9:JV$9,$D15:$W15),"") ->  | JM22: =MIN(JC22:JD22) -> 0 | JN22: =+AX15 ->  | JO22: =IF($JN22=JO$20,JC22,"") ->  | JP22: =IF($JN22=JP$20,JD22,"") -> 
C23: 10 | D23: =IF('Data entry'!C26<>"",'Data entry'!C26,"") ->  | E23: =IF('Data entry'!D26<>"",'Data entry'!D26,"") ->  | F23: =IF('Data entry'!E26<>"",'Data entry'!E26,"") ->  | G23: =IF('Data entry'!F26<>"",'Data entry'!F26,"") ->  | H23: =IF('Data entry'!G26<>"",'Data entry'!G26,"") ->  | I23: =IF('Data entry'!H26<>"",'Data entry'!H26,"") ->  | J23: =IF('Data entry'!I26<>"",'Data entry'!I26,"") ->  | K23: =IF('Data entry'!J26<>"",'Data entry'!J26,"") ->  | L23: =IF('Data entry'!K26<>"",'Data entry'!K26,"") ->  | M23: =IF('Data entry'!L26<>"",'Data entry'!L26,"") ->  | N23: =IF('Data entry'!M26<>"",'Data entry'!M26,"") ->  | O23: =IF('Data entry'!N26<>"",'Data entry'!N26,"") ->  | P23: =IF('Data entry'!O26<>"",'Data entry'!O26,"") ->  | Q23: =IF('Data entry'!P26<>"",'Data entry'!P26,"") ->  | R23: =IF('Data entry'!Q26<>"",'Data entry'!Q26,"") ->  | S23: =IF('Data entry'!R26<>"",'Data entry'!R26,"") ->  | T23: =IF('Data entry'!S26<>"",'Data entry'!S26,"") ->  | U23: =IF('Data entry'!T26<>"",'Data entry'!T26,"") ->  | V23: =IF('Data entry'!U26<>"",'Data entry'!U26,"") ->  | W23: =IF('Data entry'!V26<>"",'Data entry'!V26,"") ->  | Y23: 10 | AW23: 0 | JM23: 0
C24: 11 | D24: =IF('Data entry'!C27<>"",'Data entry'!C27,"") ->  | E24: =IF('Data entry'!D27<>"",'Data entry'!D27,"") ->  | F24: =IF('Data entry'!E27<>"",'Data entry'!E27,"") ->  | G24: =IF('Data entry'!F27<>"",'Data entry'!F27,"") ->  | H24: =IF('Data entry'!G27<>"",'Data entry'!G27,"") ->  | I24: =IF('Data entry'!H27<>"",'Data entry'!H27,"") ->  | J24: =IF('Data entry'!I27<>"",'Data entry'!I27,"") ->  | K24: =IF('Data entry'!J27<>"",'Data entry'!J27,"") ->  | L24: =IF('Data entry'!K27<>"",'Data entry'!K27,"") ->  | M24: =IF('Data entry'!L27<>"",'Data entry'!L27,"") ->  | N24: =IF('Data entry'!M27<>"",'Data entry'!M27,"") ->  | O24: =IF('Data entry'!N27<>"",'Data entry'!N27,"") ->  | P24: =IF('Data entry'!O27<>"",'Data entry'!O27,"") ->  | Q24: =IF('Data entry'!P27<>"",'Data entry'!P27,"") ->  | R24: =IF('Data entry'!Q27<>"",'Data entry'!Q27,"") ->  | S24: =IF('Data entry'!R27<>"",'Data entry'!R27,"") ->  | T24: =IF('Data entry'!S27<>"",'Data entry'!S27,"") ->  | U24: =IF('Data entry'!T27<>"",'Data entry'!T27,"") ->  | V24: =IF('Data entry'!U27<>"",'Data entry'!U27,"") ->  | W24: =IF('Data entry'!V27<>"",'Data entry'!V27,"") ->  | Y24: 11 | AW24: 0 | JM24: 0
C25: 12 | D25: =IF('Data entry'!C28<>"",'Data entry'!C28,"") ->  | E25: =IF('Data entry'!D28<>"",'Data entry'!D28,"") ->  | F25: =IF('Data entry'!E28<>"",'Data entry'!E28,"") ->  | G25: =IF('Data entry'!F28<>"",'Data entry'!F28,"") ->  | H25: =IF('Data entry'!G28<>"",'Data entry'!G28,"") ->  | I25: =IF('Data entry'!H28<>"",'Data entry'!H28,"") ->  | J25: =IF('Data entry'!I28<>"",'Data entry'!I28,"") ->  | K25: =IF('Data entry'!J28<>"",'Data entry'!J28,"") ->  | L25: =IF('Data entry'!K28<>"",'Data entry'!K28,"") ->  | M25: =IF('Data entry'!L28<>"",'Data entry'!L28,"") ->  | N25: =IF('Data entry'!M28<>"",'Data entry'!M28,"") ->  | O25: =IF('Data entry'!N28<>"",'Data entry'!N28,"") ->  | P25: =IF('Data entry'!O28<>"",'Data entry'!O28,"") ->  | Q25: =IF('Data entry'!P28<>"",'Data entry'!P28,"") ->  | R25: =IF('Data entry'!Q28<>"",'Data entry'!Q28,"") ->  | S25: =IF('Data entry'!R28<>"",'Data entry'!R28,"") ->  | T25: =IF('Data entry'!S28<>"",'Data entry'!S28,"") ->  | U25: =IF('Data entry'!T28<>"",'Data entry'!T28,"") ->  | V25: =IF('Data entry'!U28<>"",'Data entry'!U28,"") ->  | W25: =IF('Data entry'!V28<>"",'Data entry'!V28,"") ->  | Y25: 12 | AW25: 0 | JM25: 0
C26: 13 | D26: =IF('Data entry'!C29<>"",'Data entry'!C29,"") ->  | E26: =IF('Data entry'!D29<>"",'Data entry'!D29,"") ->  | F26: =IF('Data entry'!E29<>"",'Data entry'!E29,"") ->  | G26: =IF('Data entry'!F29<>"",'Data entry'!F29,"") ->  | H26: =IF('Data entry'!G29<>"",'Data entry'!G29,"") ->  | I26: =IF('Data entry'!H29<>"",'Data entry'!H29,"") ->  | J26: =IF('Data entry'!I29<>"",'Data entry'!I29,"") ->  | K26: =IF('Data entry'!J29<>"",'Data entry'!J29,"") ->  | L26: =IF('Data entry'!K29<>"",'Data entry'!K29,"") ->  | M26: =IF('Data entry'!L29<>"",'Data entry'!L29,"") ->  | N26: =IF('Data entry'!M29<>"",'Data entry'!M29,"") ->  | O26: =IF('Data entry'!N29<>"",'Data entry'!N29,"") ->  | P26: =IF('Data entry'!O29<>"",'Data entry'!O29,"") ->  | Q26: =IF('Data entry'!P29<>"",'Data entry'!P29,"") ->  | R26: =IF('Data entry'!Q29<>"",'Data entry'!Q29,"") ->  | S26: =IF('Data entry'!R29<>"",'Data entry'!R29,"") ->  | T26: =IF('Data entry'!S29<>"",'Data entry'!S29,"") ->  | U26: =IF('Data entry'!T29<>"",'Data entry'!T29,"") ->  | V26: =IF('Data entry'!U29<>"",'Data entry'!U29,"") ->  | W26: =IF('Data entry'!V29<>"",'Data entry'!V29,"") ->  | Y26: 13 | AW26: 0 | JM26: 0
C27: 14 | D27: =IF('Data entry'!C30<>"",'Data entry'!C30,"") ->  | E27: =IF('Data entry'!D30<>"",'Data entry'!D30,"") ->  | F27: =IF('Data entry'!E30<>"",'Data entry'!E30,"") ->  | G27: =IF('Data entry'!F30<>"",'Data entry'!F30,"") ->  | H27: =IF('Data entry'!G30<>"",'Data entry'!G30,"") ->  | I27: =IF('Data entry'!H30<>"",'Data entry'!H30,"") ->  | J27: =IF('Data entry'!I30<>"",'Data entry'!I30,"") ->  | K27: =IF('Data entry'!J30<>"",'Data entry'!J30,"") ->  | L27: =IF('Data entry'!K30<>"",'Data entry'!K30,"") ->  | M27: =IF('Data entry'!L30<>"",'Data entry'!L30,"") ->  | N27: =IF('Data entry'!M30<>"",'Data entry'!M30,"") ->  | O27: =IF('Data entry'!N30<>"",'Data entry'!N30,"") ->  | P27: =IF('Data entry'!O30<>"",'Data entry'!O30,"") ->  | Q27: =IF('Data entry'!P30<>"",'Data entry'!P30,"") ->  | R27: =IF('Data entry'!Q30<>"",'Data entry'!Q30,"") ->  | S27: =IF('Data entry'!R30<>"",'Data entry'!R30,"") ->  | T27: =IF('Data entry'!S30<>"",'Data entry'!S30,"") ->  | U27: =IF('Data entry'!T30<>"",'Data entry'!T30,"") ->  | V27: =IF('Data entry'!U30<>"",'Data entry'!U30,"") ->  | W27: =IF('Data entry'!V30<>"",'Data entry'!V30,"") ->  | Y27: 14 | AW27: 0 | JM27: 0
C28: 15 | D28: =IF('Data entry'!C31<>"",'Data entry'!C31,"") ->  | E28: =IF('Data entry'!D31<>"",'Data entry'!D31,"") ->  | F28: =IF('Data entry'!E31<>"",'Data entry'!E31,"") ->  | G28: =IF('Data entry'!F31<>"",'Data entry'!F31,"") ->  | H28: =IF('Data entry'!G31<>"",'Data entry'!G31,"") ->  | I28: =IF('Data entry'!H31<>"",'Data entry'!H31,"") ->  | J28: =IF('Data entry'!I31<>"",'Data entry'!I31,"") ->  | K28: =IF('Data entry'!J31<>"",'Data entry'!J31,"") ->  | L28: =IF('Data entry'!K31<>"",'Data entry'!K31,"") ->  | M28: =IF('Data entry'!L31<>"",'Data entry'!L31,"") ->  | N28: =IF('Data entry'!M31<>"",'Data entry'!M31,"") ->  | O28: =IF('Data entry'!N31<>"",'Data entry'!N31,"") ->  | P28: =IF('Data entry'!O31<>"",'Data entry'!O31,"") ->  | Q28: =IF('Data entry'!P31<>"",'Data entry'!P31,"") ->  | R28: =IF('Data entry'!Q31<>"",'Data entry'!Q31,"") ->  | S28: =IF('Data entry'!R31<>"",'Data entry'!R31,"") ->  | T28: =IF('Data entry'!S31<>"",'Data entry'!S31,"") ->  | U28: =IF('Data entry'!T31<>"",'Data entry'!T31,"") ->  | V28: =IF('Data entry'!U31<>"",'Data entry'!U31,"") ->  | W28: =IF('Data entry'!V31<>"",'Data entry'!V31,"") ->  | Y28: 15 | AW28: 0 | JM28: 0
C29: 16 | D29: =IF('Data entry'!C32<>"",'Data entry'!C32,"") ->  | E29: =IF('Data entry'!D32<>"",'Data entry'!D32,"") ->  | F29: =IF('Data entry'!E32<>"",'Data entry'!E32,"") ->  | G29: =IF('Data entry'!F32<>"",'Data entry'!F32,"") ->  | H29: =IF('Data entry'!G32<>"",'Data entry'!G32,"") ->  | I29: =IF('Data entry'!H32<>"",'Data entry'!H32,"") ->  | J29: =IF('Data entry'!I32<>"",'Data entry'!I32,"") ->  | K29: =IF('Data entry'!J32<>"",'Data entry'!J32,"") ->  | L29: =IF('Data entry'!K32<>"",'Data entry'!K32,"") ->  | M29: =IF('Data entry'!L32<>"",'Data entry'!L32,"") ->  | N29: =IF('Data entry'!M32<>"",'Data entry'!M32,"") ->  | O29: =IF('Data entry'!N32<>"",'Data entry'!N32,"") ->  | P29: =IF('Data entry'!O32<>"",'Data entry'!O32,"") ->  | Q29: =IF('Data entry'!P32<>"",'Data entry'!P32,"") ->  | R29: =IF('Data entry'!Q32<>"",'Data entry'!Q32,"") ->  | S29: =IF('Data entry'!R32<>"",'Data entry'!R32,"") ->  | T29: =IF('Data entry'!S32<>"",'Data entry'!S32,"") ->  | U29: =IF('Data entry'!T32<>"",'Data entry'!T32,"") ->  | V29: =IF('Data entry'!U32<>"",'Data entry'!U32,"") ->  | W29: =IF('Data entry'!V32<>"",'Data entry'!V32,"") ->  | Y29: 16 | AW29: 0 | JM29: 0
C30: 17 | D30: =IF('Data entry'!C33<>"",'Data entry'!C33,"") ->  | E30: =IF('Data entry'!D33<>"",'Data entry'!D33,"") ->  | F30: =IF('Data entry'!E33<>"",'Data entry'!E33,"") ->  | G30: =IF('Data entry'!F33<>"",'Data entry'!F33,"") ->  | H30: =IF('Data entry'!G33<>"",'Data entry'!G33,"") ->  | I30: =IF('Data entry'!H33<>"",'Data entry'!H33,"") ->  | J30: =IF('Data entry'!I33<>"",'Data entry'!I33,"") ->  | K30: =IF('Data entry'!J33<>"",'Data entry'!J33,"") ->  | L30: =IF('Data entry'!K33<>"",'Data entry'!K33,"") ->  | M30: =IF('Data entry'!L33<>"",'Data entry'!L33,"") ->  | N30: =IF('Data entry'!M33<>"",'Data entry'!M33,"") ->  | O30: =IF('Data entry'!N33<>"",'Data entry'!N33,"") ->  | P30: =IF('Data entry'!O33<>"",'Data entry'!O33,"") ->  | Q30: =IF('Data entry'!P33<>"",'Data entry'!P33,"") ->  | R30: =IF('Data entry'!Q33<>"",'Data entry'!Q33,"") ->  | S30: =IF('Data entry'!R33<>"",'Data entry'!R33,"") ->  | T30: =IF('Data entry'!S33<>"",'Data entry'!S33,"") ->  | U30: =IF('Data entry'!T33<>"",'Data entry'!T33,"") ->  | V30: =IF('Data entry'!U33<>"",'Data entry'!U33,"") ->  | W30: =IF('Data entry'!V33<>"",'Data entry'!V33,"") ->  | Y30: 17 | AW30: 0 | JM30: 0
C31: 18 | D31: =IF('Data entry'!C34<>"",'Data entry'!C34,"") ->  | E31: =IF('Data entry'!D34<>"",'Data entry'!D34,"") ->  | F31: =IF('Data entry'!E34<>"",'Data entry'!E34,"") ->  | G31: =IF('Data entry'!F34<>"",'Data entry'!F34,"") ->  | H31: =IF('Data entry'!G34<>"",'Data entry'!G34,"") ->  | I31: =IF('Data entry'!H34<>"",'Data entry'!H34,"") ->  | J31: =IF('Data entry'!I34<>"",'Data entry'!I34,"") ->  | K31: =IF('Data entry'!J34<>"",'Data entry'!J34,"") ->  | L31: =IF('Data entry'!K34<>"",'Data entry'!K34,"") ->  | M31: =IF('Data entry'!L34<>"",'Data entry'!L34,"") ->  | N31: =IF('Data entry'!M34<>"",'Data entry'!M34,"") ->  | O31: =IF('Data entry'!N34<>"",'Data entry'!N34,"") ->  | P31: =IF('Data entry'!O34<>"",'Data entry'!O34,"") ->  | Q31: =IF('Data entry'!P34<>"",'Data entry'!P34,"") ->  | R31: =IF('Data entry'!Q34<>"",'Data entry'!Q34,"") ->  | S31: =IF('Data entry'!R34<>"",'Data entry'!R34,"") ->  | T31: =IF('Data entry'!S34<>"",'Data entry'!S34,"") ->  | U31: =IF('Data entry'!T34<>"",'Data entry'!T34,"") ->  | V31: =IF('Data entry'!U34<>"",'Data entry'!U34,"") ->  | W31: =IF('Data entry'!V34<>"",'Data entry'!V34,"") ->  | Y31: 18 | AW31: 0 | JM31: 0
C32: 19 | D32: =IF('Data entry'!C35<>"",'Data entry'!C35,"") ->  | E32: =IF('Data entry'!D35<>"",'Data entry'!D35,"") ->  | F32: =IF('Data entry'!E35<>"",'Data entry'!E35,"") ->  | G32: =IF('Data entry'!F35<>"",'Data entry'!F35,"") ->  | H32: =IF('Data entry'!G35<>"",'Data entry'!G35,"") ->  | I32: =IF('Data entry'!H35<>"",'Data entry'!H35,"") ->  | J32: =IF('Data entry'!I35<>"",'Data entry'!I35,"") ->  | K32: =IF('Data entry'!J35<>"",'Data entry'!J35,"") ->  | L32: =IF('Data entry'!K35<>"",'Data entry'!K35,"") ->  | M32: =IF('Data entry'!L35<>"",'Data entry'!L35,"") ->  | N32: =IF('Data entry'!M35<>"",'Data entry'!M35,"") ->  | O32: =IF('Data entry'!N35<>"",'Data entry'!N35,"") ->  | P32: =IF('Data entry'!O35<>"",'Data entry'!O35,"") ->  | Q32: =IF('Data entry'!P35<>"",'Data entry'!P35,"") ->  | R32: =IF('Data entry'!Q35<>"",'Data entry'!Q35,"") ->  | S32: =IF('Data entry'!R35<>"",'Data entry'!R35,"") ->  | T32: =IF('Data entry'!S35<>"",'Data entry'!S35,"") ->  | U32: =IF('Data entry'!T35<>"",'Data entry'!T35,"") ->  | V32: =IF('Data entry'!U35<>"",'Data entry'!U35,"") ->  | W32: =IF('Data entry'!V35<>"",'Data entry'!V35,"") ->  | Y32: 19 | AW32: 0 | JM32: 0
C33: 20 | D33: =IF('Data entry'!C36<>"",'Data entry'!C36,"") ->  | E33: =IF('Data entry'!D36<>"",'Data entry'!D36,"") ->  | F33: =IF('Data entry'!E36<>"",'Data entry'!E36,"") ->  | G33: =IF('Data entry'!F36<>"",'Data entry'!F36,"") ->  | H33: =IF('Data entry'!G36<>"",'Data entry'!G36,"") ->  | I33: =IF('Data entry'!H36<>"",'Data entry'!H36,"") ->  | J33: =IF('Data entry'!I36<>"",'Data entry'!I36,"") ->  | K33: =IF('Data entry'!J36<>"",'Data entry'!J36,"") ->  | L33: =IF('Data entry'!K36<>"",'Data entry'!K36,"") ->  | M33: =IF('Data entry'!L36<>"",'Data entry'!L36,"") ->  | N33: =IF('Data entry'!M36<>"",'Data entry'!M36,"") ->  | O33: =IF('Data entry'!N36<>"",'Data entry'!N36,"") ->  | P33: =IF('Data entry'!O36<>"",'Data entry'!O36,"") ->  | Q33: =IF('Data entry'!P36<>"",'Data entry'!P36,"") ->  | R33: =IF('Data entry'!Q36<>"",'Data entry'!Q36,"") ->  | S33: =IF('Data entry'!R36<>"",'Data entry'!R36,"") ->  | T33: =IF('Data entry'!S36<>"",'Data entry'!S36,"") ->  | U33: =IF('Data entry'!T36<>"",'Data entry'!T36,"") ->  | V33: =IF('Data entry'!U36<>"",'Data entry'!U36,"") ->  | W33: =IF('Data entry'!V36<>"",'Data entry'!V36,"") ->  | Y33: 20 | AW33: 0 | JM33: 0
C34: 21 | D34: =IF('Data entry'!C37<>"",'Data entry'!C37,"") ->  | E34: =IF('Data entry'!D37<>"",'Data entry'!D37,"") ->  | F34: =IF('Data entry'!E37<>"",'Data entry'!E37,"") ->  | G34: =IF('Data entry'!F37<>"",'Data entry'!F37,"") ->  | H34: =IF('Data entry'!G37<>"",'Data entry'!G37,"") ->  | I34: =IF('Data entry'!H37<>"",'Data entry'!H37,"") ->  | J34: =IF('Data entry'!I37<>"",'Data entry'!I37,"") ->  | K34: =IF('Data entry'!J37<>"",'Data entry'!J37,"") ->  | L34: =IF('Data entry'!K37<>"",'Data entry'!K37,"") ->  | M34: =IF('Data entry'!L37<>"",'Data entry'!L37,"") ->  | N34: =IF('Data entry'!M37<>"",'Data entry'!M37,"") ->  | O34: =IF('Data entry'!N37<>"",'Data entry'!N37,"") ->  | P34: =IF('Data entry'!O37<>"",'Data entry'!O37,"") ->  | Q34: =IF('Data entry'!P37<>"",'Data entry'!P37,"") ->  | R34: =IF('Data entry'!Q37<>"",'Data entry'!Q37,"") ->  | S34: =IF('Data entry'!R37<>"",'Data entry'!R37,"") ->  | T34: =IF('Data entry'!S37<>"",'Data entry'!S37,"") ->  | U34: =IF('Data entry'!T37<>"",'Data entry'!T37,"") ->  | V34: =IF('Data entry'!U37<>"",'Data entry'!U37,"") ->  | W34: =IF('Data entry'!V37<>"",'Data entry'!V37,"") ->  | Y34: 21 | AW34: 0 | JM34: 0
C35: 22 | D35: =IF('Data entry'!C38<>"",'Data entry'!C38,"") ->  | E35: =IF('Data entry'!D38<>"",'Data entry'!D38,"") ->  | F35: =IF('Data entry'!E38<>"",'Data entry'!E38,"") ->  | G35: =IF('Data entry'!F38<>"",'Data entry'!F38,"") ->  | H35: =IF('Data entry'!G38<>"",'Data entry'!G38,"") ->  | I35: =IF('Data entry'!H38<>"",'Data entry'!H38,"") ->  | J35: =IF('Data entry'!I38<>"",'Data entry'!I38,"") ->  | K35: =IF('Data entry'!J38<>"",'Data entry'!J38,"") ->  | L35: =IF('Data entry'!K38<>"",'Data entry'!K38,"") ->  | M35: =IF('Data entry'!L38<>"",'Data entry'!L38,"") ->  | N35: =IF('Data entry'!M38<>"",'Data entry'!M38,"") ->  | O35: =IF('Data entry'!N38<>"",'Data entry'!N38,"") ->  | P35: =IF('Data entry'!O38<>"",'Data entry'!O38,"") ->  | Q35: =IF('Data entry'!P38<>"",'Data entry'!P38,"") ->  | R35: =IF('Data entry'!Q38<>"",'Data entry'!Q38,"") ->  | S35: =IF('Data entry'!R38<>"",'Data entry'!R38,"") ->  | T35: =IF('Data entry'!S38<>"",'Data entry'!S38,"") ->  | U35: =IF('Data entry'!T38<>"",'Data entry'!T38,"") ->  | V35: =IF('Data entry'!U38<>"",'Data entry'!U38,"") ->  | W35: =IF('Data entry'!V38<>"",'Data entry'!V38,"") ->  | Y35: 22 | AW35: 0 | JM35: 0
C36: 23 | D36: =IF('Data entry'!C39<>"",'Data entry'!C39,"") ->  | E36: =IF('Data entry'!D39<>"",'Data entry'!D39,"") ->  | F36: =IF('Data entry'!E39<>"",'Data entry'!E39,"") ->  | G36: =IF('Data entry'!F39<>"",'Data entry'!F39,"") ->  | H36: =IF('Data entry'!G39<>"",'Data entry'!G39,"") ->  | I36: =IF('Data entry'!H39<>"",'Data entry'!H39,"") ->  | J36: =IF('Data entry'!I39<>"",'Data entry'!I39,"") ->  | K36: =IF('Data entry'!J39<>"",'Data entry'!J39,"") ->  | L36: =IF('Data entry'!K39<>"",'Data entry'!K39,"") ->  | M36: =IF('Data entry'!L39<>"",'Data entry'!L39,"") ->  | N36: =IF('Data entry'!M39<>"",'Data entry'!M39,"") ->  | O36: =IF('Data entry'!N39<>"",'Data entry'!N39,"") ->  | P36: =IF('Data entry'!O39<>"",'Data entry'!O39,"") ->  | Q36: =IF('Data entry'!P39<>"",'Data entry'!P39,"") ->  | R36: =IF('Data entry'!Q39<>"",'Data entry'!Q39,"") ->  | S36: =IF('Data entry'!R39<>"",'Data entry'!R39,"") ->  | T36: =IF('Data entry'!S39<>"",'Data entry'!S39,"") ->  | U36: =IF('Data entry'!T39<>"",'Data entry'!T39,"") ->  | V36: =IF('Data entry'!U39<>"",'Data entry'!U39,"") ->  | W36: =IF('Data entry'!V39<>"",'Data entry'!V39,"") ->  | Y36: 23 | AW36: 0 | JM36: 0
C37: 24 | D37: =IF('Data entry'!C40<>"",'Data entry'!C40,"") ->  | E37: =IF('Data entry'!D40<>"",'Data entry'!D40,"") ->  | F37: =IF('Data entry'!E40<>"",'Data entry'!E40,"") ->  | G37: =IF('Data entry'!F40<>"",'Data entry'!F40,"") ->  | H37: =IF('Data entry'!G40<>"",'Data entry'!G40,"") ->  | I37: =IF('Data entry'!H40<>"",'Data entry'!H40,"") ->  | J37: =IF('Data entry'!I40<>"",'Data entry'!I40,"") ->  | K37: =IF('Data entry'!J40<>"",'Data entry'!J40,"") ->  | L37: =IF('Data entry'!K40<>"",'Data entry'!K40,"") ->  | M37: =IF('Data entry'!L40<>"",'Data entry'!L40,"") ->  | N37: =IF('Data entry'!M40<>"",'Data entry'!M40,"") ->  | O37: =IF('Data entry'!N40<>"",'Data entry'!N40,"") ->  | P37: =IF('Data entry'!O40<>"",'Data entry'!O40,"") ->  | Q37: =IF('Data entry'!P40<>"",'Data entry'!P40,"") ->  | R37: =IF('Data entry'!Q40<>"",'Data entry'!Q40,"") ->  | S37: =IF('Data entry'!R40<>"",'Data entry'!R40,"") ->  | T37: =IF('Data entry'!S40<>"",'Data entry'!S40,"") ->  | U37: =IF('Data entry'!T40<>"",'Data entry'!T40,"") ->  | V37: =IF('Data entry'!U40<>"",'Data entry'!U40,"") ->  | W37: =IF('Data entry'!V40<>"",'Data entry'!V40,"") ->  | Y37: 24 | AW37: 0 | JM37: 0
C38: 25 | D38: =IF('Data entry'!C41<>"",'Data entry'!C41,"") ->  | E38: =IF('Data entry'!D41<>"",'Data entry'!D41,"") ->  | F38: =IF('Data entry'!E41<>"",'Data entry'!E41,"") ->  | G38: =IF('Data entry'!F41<>"",'Data entry'!F41,"") ->  | H38: =IF('Data entry'!G41<>"",'Data entry'!G41,"") ->  | I38: =IF('Data entry'!H41<>"",'Data entry'!H41,"") ->  | J38: =IF('Data entry'!I41<>"",'Data entry'!I41,"") ->  | K38: =IF('Data entry'!J41<>"",'Data entry'!J41,"") ->  | L38: =IF('Data entry'!K41<>"",'Data entry'!K41,"") ->  | M38: =IF('Data entry'!L41<>"",'Data entry'!L41,"") ->  | N38: =IF('Data entry'!M41<>"",'Data entry'!M41,"") ->  | O38: =IF('Data entry'!N41<>"",'Data entry'!N41,"") ->  | P38: =IF('Data entry'!O41<>"",'Data entry'!O41,"") ->  | Q38: =IF('Data entry'!P41<>"",'Data entry'!P41,"") ->  | R38: =IF('Data entry'!Q41<>"",'Data entry'!Q41,"") ->  | S38: =IF('Data entry'!R41<>"",'Data entry'!R41,"") ->  | T38: =IF('Data entry'!S41<>"",'Data entry'!S41,"") ->  | U38: =IF('Data entry'!T41<>"",'Data entry'!T41,"") ->  | V38: =IF('Data entry'!U41<>"",'Data entry'!U41,"") ->  | W38: =IF('Data entry'!V41<>"",'Data entry'!V41,"") ->  | Y38: 25 | AW38: 0 | JM38: 0
C39: 26 | D39: =IF('Data entry'!C42<>"",'Data entry'!C42,"") ->  | E39: =IF('Data entry'!D42<>"",'Data entry'!D42,"") ->  | F39: =IF('Data entry'!E42<>"",'Data entry'!E42,"") ->  | G39: =IF('Data entry'!F42<>"",'Data entry'!F42,"") ->  | H39: =IF('Data entry'!G42<>"",'Data entry'!G42,"") ->  | I39: =IF('Data entry'!H42<>"",'Data entry'!H42,"") ->  | J39: =IF('Data entry'!I42<>"",'Data entry'!I42,"") ->  | K39: =IF('Data entry'!J42<>"",'Data entry'!J42,"") ->  | L39: =IF('Data entry'!K42<>"",'Data entry'!K42,"") ->  | M39: =IF('Data entry'!L42<>"",'Data entry'!L42,"") ->  | N39: =IF('Data entry'!M42<>"",'Data entry'!M42,"") ->  | O39: =IF('Data entry'!N42<>"",'Data entry'!N42,"") ->  | P39: =IF('Data entry'!O42<>"",'Data entry'!O42,"") ->  | Q39: =IF('Data entry'!P42<>"",'Data entry'!P42,"") ->  | R39: =IF('Data entry'!Q42<>"",'Data entry'!Q42,"") ->  | S39: =IF('Data entry'!R42<>"",'Data entry'!R42,"") ->  | T39: =IF('Data entry'!S42<>"",'Data entry'!S42,"") ->  | U39: =IF('Data entry'!T42<>"",'Data entry'!T42,"") ->  | V39: =IF('Data entry'!U42<>"",'Data entry'!U42,"") ->  | W39: =IF('Data entry'!V42<>"",'Data entry'!V42,"") ->  | Y39: 26 | AW39: 0 | JM39: 0
C40: 27 | D40: =IF('Data entry'!C43<>"",'Data entry'!C43,"") ->  | E40: =IF('Data entry'!D43<>"",'Data entry'!D43,"") ->  | F40: =IF('Data entry'!E43<>"",'Data entry'!E43,"") ->  | G40: =IF('Data entry'!F43<>"",'Data entry'!F43,"") ->  | H40: =IF('Data entry'!G43<>"",'Data entry'!G43,"") ->  | I40: =IF('Data entry'!H43<>"",'Data entry'!H43,"") ->  | J40: =IF('Data entry'!I43<>"",'Data entry'!I43,"") ->  | K40: =IF('Data entry'!J43<>"",'Data entry'!J43,"") ->  | L40: =IF('Data entry'!K43<>"",'Data entry'!K43,"") ->  | M40: =IF('Data entry'!L43<>"",'Data entry'!L43,"") ->  | N40: =IF('Data entry'!M43<>"",'Data entry'!M43,"") ->  | O40: =IF('Data entry'!N43<>"",'Data entry'!N43,"") ->  | P40: =IF('Data entry'!O43<>"",'Data entry'!O43,"") ->  | Q40: =IF('Data entry'!P43<>"",'Data entry'!P43,"") ->  | R40: =IF('Data entry'!Q43<>"",'Data entry'!Q43,"") ->  | S40: =IF('Data entry'!R43<>"",'Data entry'!R43,"") ->  | T40: =IF('Data entry'!S43<>"",'Data entry'!S43,"") ->  | U40: =IF('Data entry'!T43<>"",'Data entry'!T43,"") ->  | V40: =IF('Data entry'!U43<>"",'Data entry'!U43,"") ->  | W40: =IF('Data entry'!V43<>"",'Data entry'!V43,"") ->  | Y40: 27 | AW40: 0 | JM40: 0
C41: 28 | D41: =IF('Data entry'!C44<>"",'Data entry'!C44,"") ->  | E41: =IF('Data entry'!D44<>"",'Data entry'!D44,"") ->  | F41: =IF('Data entry'!E44<>"",'Data entry'!E44,"") ->  | G41: =IF('Data entry'!F44<>"",'Data entry'!F44,"") ->  | H41: =IF('Data entry'!G44<>"",'Data entry'!G44,"") ->  | I41: =IF('Data entry'!H44<>"",'Data entry'!H44,"") ->  | J41: =IF('Data entry'!I44<>"",'Data entry'!I44,"") ->  | K41: =IF('Data entry'!J44<>"",'Data entry'!J44,"") ->  | L41: =IF('Data entry'!K44<>"",'Data entry'!K44,"") ->  | M41: =IF('Data entry'!L44<>"",'Data entry'!L44,"") ->  | N41: =IF('Data entry'!M44<>"",'Data entry'!M44,"") ->  | O41: =IF('Data entry'!N44<>"",'Data entry'!N44,"") ->  | P41: =IF('Data entry'!O44<>"",'Data entry'!O44,"") ->  | Q41: =IF('Data entry'!P44<>"",'Data entry'!P44,"") ->  | R41: =IF('Data entry'!Q44<>"",'Data entry'!Q44,"") ->  | S41: =IF('Data entry'!R44<>"",'Data entry'!R44,"") ->  | T41: =IF('Data entry'!S44<>"",'Data entry'!S44,"") ->  | U41: =IF('Data entry'!T44<>"",'Data entry'!T44,"") ->  | V41: =IF('Data entry'!U44<>"",'Data entry'!U44,"") ->  | W41: =IF('Data entry'!V44<>"",'Data entry'!V44,"") ->  | Y41: 28 | AW41: 0 | JM41: 0
C42: 29 | D42: =IF('Data entry'!C45<>"",'Data entry'!C45,"") ->  | E42: =IF('Data entry'!D45<>"",'Data entry'!D45,"") ->  | F42: =IF('Data entry'!E45<>"",'Data entry'!E45,"") ->  | G42: =IF('Data entry'!F45<>"",'Data entry'!F45,"") ->  | H42: =IF('Data entry'!G45<>"",'Data entry'!G45,"") ->  | I42: =IF('Data entry'!H45<>"",'Data entry'!H45,"") ->  | J42: =IF('Data entry'!I45<>"",'Data entry'!I45,"") ->  | K42: =IF('Data entry'!J45<>"",'Data entry'!J45,"") ->  | L42: =IF('Data entry'!K45<>"",'Data entry'!K45,"") ->  | M42: =IF('Data entry'!L45<>"",'Data entry'!L45,"") ->  | N42: =IF('Data entry'!M45<>"",'Data entry'!M45,"") ->  | O42: =IF('Data entry'!N45<>"",'Data entry'!N45,"") ->  | P42: =IF('Data entry'!O45<>"",'Data entry'!O45,"") ->  | Q42: =IF('Data entry'!P45<>"",'Data entry'!P45,"") ->  | R42: =IF('Data entry'!Q45<>"",'Data entry'!Q45,"") ->  | S42: =IF('Data entry'!R45<>"",'Data entry'!R45,"") ->  | T42: =IF('Data entry'!S45<>"",'Data entry'!S45,"") ->  | U42: =IF('Data entry'!T45<>"",'Data entry'!T45,"") ->  | V42: =IF('Data entry'!U45<>"",'Data entry'!U45,"") ->  | W42: =IF('Data entry'!V45<>"",'Data entry'!V45,"") ->  | Y42: 29 | AW42: 0 | JM42: 0
C43: 30 | D43: =IF('Data entry'!C46<>"",'Data entry'!C46,"") ->  | E43: =IF('Data entry'!D46<>"",'Data entry'!D46,"") ->  | F43: =IF('Data entry'!E46<>"",'Data entry'!E46,"") ->  | G43: =IF('Data entry'!F46<>"",'Data entry'!F46,"") ->  | H43: =IF('Data entry'!G46<>"",'Data entry'!G46,"") ->  | I43: =IF('Data entry'!H46<>"",'Data entry'!H46,"") ->  | J43: =IF('Data entry'!I46<>"",'Data entry'!I46,"") ->  | K43: =IF('Data entry'!J46<>"",'Data entry'!J46,"") ->  | L43: =IF('Data entry'!K46<>"",'Data entry'!K46,"") ->  | M43: =IF('Data entry'!L46<>"",'Data entry'!L46,"") ->  | N43: =IF('Data entry'!M46<>"",'Data entry'!M46,"") ->  | O43: =IF('Data entry'!N46<>"",'Data entry'!N46,"") ->  | P43: =IF('Data entry'!O46<>"",'Data entry'!O46,"") ->  | Q43: =IF('Data entry'!P46<>"",'Data entry'!P46,"") ->  | R43: =IF('Data entry'!Q46<>"",'Data entry'!Q46,"") ->  | S43: =IF('Data entry'!R46<>"",'Data entry'!R46,"") ->  | T43: =IF('Data entry'!S46<>"",'Data entry'!S46,"") ->  | U43: =IF('Data entry'!T46<>"",'Data entry'!T46,"") ->  | V43: =IF('Data entry'!U46<>"",'Data entry'!U46,"") ->  | W43: =IF('Data entry'!V46<>"",'Data entry'!V46,"") ->  | Y43: 30 | AW43: 0 | JM43: 0
C44: 31 | D44: =IF('Data entry'!C47<>"",'Data entry'!C47,"") ->  | E44: =IF('Data entry'!D47<>"",'Data entry'!D47,"") ->  | F44: =IF('Data entry'!E47<>"",'Data entry'!E47,"") ->  | G44: =IF('Data entry'!F47<>"",'Data entry'!F47,"") ->  | H44: =IF('Data entry'!G47<>"",'Data entry'!G47,"") ->  | I44: =IF('Data entry'!H47<>"",'Data entry'!H47,"") ->  | J44: =IF('Data entry'!I47<>"",'Data entry'!I47,"") ->  | K44: =IF('Data entry'!J47<>"",'Data entry'!J47,"") ->  | L44: =IF('Data entry'!K47<>"",'Data entry'!K47,"") ->  | M44: =IF('Data entry'!L47<>"",'Data entry'!L47,"") ->  | N44: =IF('Data entry'!M47<>"",'Data entry'!M47,"") ->  | O44: =IF('Data entry'!N47<>"",'Data entry'!N47,"") ->  | P44: =IF('Data entry'!O47<>"",'Data entry'!O47,"") ->  | Q44: =IF('Data entry'!P47<>"",'Data entry'!P47,"") ->  | R44: =IF('Data entry'!Q47<>"",'Data entry'!Q47,"") ->  | S44: =IF('Data entry'!R47<>"",'Data entry'!R47,"") ->  | T44: =IF('Data entry'!S47<>"",'Data entry'!S47,"") ->  | U44: =IF('Data entry'!T47<>"",'Data entry'!T47,"") ->  | V44: =IF('Data entry'!U47<>"",'Data entry'!U47,"") ->  | W44: =IF('Data entry'!V47<>"",'Data entry'!V47,"") ->  | Y44: 31 | AW44: 0 | JM44: 0
C45: 32 | D45: =IF('Data entry'!C48<>"",'Data entry'!C48,"") ->  | E45: =IF('Data entry'!D48<>"",'Data entry'!D48,"") ->  | F45: =IF('Data entry'!E48<>"",'Data entry'!E48,"") ->  | G45: =IF('Data entry'!F48<>"",'Data entry'!F48,"") ->  | H45: =IF('Data entry'!G48<>"",'Data entry'!G48,"") ->  | I45: =IF('Data entry'!H48<>"",'Data entry'!H48,"") ->  | J45: =IF('Data entry'!I48<>"",'Data entry'!I48,"") ->  | K45: =IF('Data entry'!J48<>"",'Data entry'!J48,"") ->  | L45: =IF('Data entry'!K48<>"",'Data entry'!K48,"") ->  | M45: =IF('Data entry'!L48<>"",'Data entry'!L48,"") ->  | N45: =IF('Data entry'!M48<>"",'Data entry'!M48,"") ->  | O45: =IF('Data entry'!N48<>"",'Data entry'!N48,"") ->  | P45: =IF('Data entry'!O48<>"",'Data entry'!O48,"") ->  | Q45: =IF('Data entry'!P48<>"",'Data entry'!P48,"") ->  | R45: =IF('Data entry'!Q48<>"",'Data entry'!Q48,"") ->  | S45: =IF('Data entry'!R48<>"",'Data entry'!R48,"") ->  | T45: =IF('Data entry'!S48<>"",'Data entry'!S48,"") ->  | U45: =IF('Data entry'!T48<>"",'Data entry'!T48,"") ->  | V45: =IF('Data entry'!U48<>"",'Data entry'!U48,"") ->  | W45: =IF('Data entry'!V48<>"",'Data entry'!V48,"") ->  | Y45: 32 | AW45: 0 | JM45: 0
C46: 33 | D46: =IF('Data entry'!C49<>"",'Data entry'!C49,"") ->  | E46: =IF('Data entry'!D49<>"",'Data entry'!D49,"") ->  | F46: =IF('Data entry'!E49<>"",'Data entry'!E49,"") ->  | G46: =IF('Data entry'!F49<>"",'Data entry'!F49,"") ->  | H46: =IF('Data entry'!G49<>"",'Data entry'!G49,"") ->  | I46: =IF('Data entry'!H49<>"",'Data entry'!H49,"") ->  | J46: =IF('Data entry'!I49<>"",'Data entry'!I49,"") ->  | K46: =IF('Data entry'!J49<>"",'Data entry'!J49,"") ->  | L46: =IF('Data entry'!K49<>"",'Data entry'!K49,"") ->  | M46: =IF('Data entry'!L49<>"",'Data entry'!L49,"") ->  | N46: =IF('Data entry'!M49<>"",'Data entry'!M49,"") ->  | O46: =IF('Data entry'!N49<>"",'Data entry'!N49,"") ->  | P46: =IF('Data entry'!O49<>"",'Data entry'!O49,"") ->  | Q46: =IF('Data entry'!P49<>"",'Data entry'!P49,"") ->  | R46: =IF('Data entry'!Q49<>"",'Data entry'!Q49,"") ->  | S46: =IF('Data entry'!R49<>"",'Data entry'!R49,"") ->  | T46: =IF('Data entry'!S49<>"",'Data entry'!S49,"") ->  | U46: =IF('Data entry'!T49<>"",'Data entry'!T49,"") ->  | V46: =IF('Data entry'!U49<>"",'Data entry'!U49,"") ->  | W46: =IF('Data entry'!V49<>"",'Data entry'!V49,"") ->  | Y46: 33 | AW46: 0 | JM46: 0
C47: 34 | D47: =IF('Data entry'!C50<>"",'Data entry'!C50,"") ->  | E47: =IF('Data entry'!D50<>"",'Data entry'!D50,"") ->  | F47: =IF('Data entry'!E50<>"",'Data entry'!E50,"") ->  | G47: =IF('Data entry'!F50<>"",'Data entry'!F50,"") ->  | H47: =IF('Data entry'!G50<>"",'Data entry'!G50,"") ->  | I47: =IF('Data entry'!H50<>"",'Data entry'!H50,"") ->  | J47: =IF('Data entry'!I50<>"",'Data entry'!I50,"") ->  | K47: =IF('Data entry'!J50<>"",'Data entry'!J50,"") ->  | L47: =IF('Data entry'!K50<>"",'Data entry'!K50,"") ->  | M47: =IF('Data entry'!L50<>"",'Data entry'!L50,"") ->  | N47: =IF('Data entry'!M50<>"",'Data entry'!M50,"") ->  | O47: =IF('Data entry'!N50<>"",'Data entry'!N50,"") ->  | P47: =IF('Data entry'!O50<>"",'Data entry'!O50,"") ->  | Q47: =IF('Data entry'!P50<>"",'Data entry'!P50,"") ->  | R47: =IF('Data entry'!Q50<>"",'Data entry'!Q50,"") ->  | S47: =IF('Data entry'!R50<>"",'Data entry'!R50,"") ->  | T47: =IF('Data entry'!S50<>"",'Data entry'!S50,"") ->  | U47: =IF('Data entry'!T50<>"",'Data entry'!T50,"") ->  | V47: =IF('Data entry'!U50<>"",'Data entry'!U50,"") ->  | W47: =IF('Data entry'!V50<>"",'Data entry'!V50,"") ->  | Y47: 34 | AW47: 0 | JM47: 0
C48: 35 | D48: =IF('Data entry'!C51<>"",'Data entry'!C51,"") ->  | E48: =IF('Data entry'!D51<>"",'Data entry'!D51,"") ->  | F48: =IF('Data entry'!E51<>"",'Data entry'!E51,"") ->  | G48: =IF('Data entry'!F51<>"",'Data entry'!F51,"") ->  | H48: =IF('Data entry'!G51<>"",'Data entry'!G51,"") ->  | I48: =IF('Data entry'!H51<>"",'Data entry'!H51,"") ->  | J48: =IF('Data entry'!I51<>"",'Data entry'!I51,"") ->  | K48: =IF('Data entry'!J51<>"",'Data entry'!J51,"") ->  | L48: =IF('Data entry'!K51<>"",'Data entry'!K51,"") ->  | M48: =IF('Data entry'!L51<>"",'Data entry'!L51,"") ->  | N48: =IF('Data entry'!M51<>"",'Data entry'!M51,"") ->  | O48: =IF('Data entry'!N51<>"",'Data entry'!N51,"") ->  | P48: =IF('Data entry'!O51<>"",'Data entry'!O51,"") ->  | Q48: =IF('Data entry'!P51<>"",'Data entry'!P51,"") ->  | R48: =IF('Data entry'!Q51<>"",'Data entry'!Q51,"") ->  | S48: =IF('Data entry'!R51<>"",'Data entry'!R51,"") ->  | T48: =IF('Data entry'!S51<>"",'Data entry'!S51,"") ->  | U48: =IF('Data entry'!T51<>"",'Data entry'!T51,"") ->  | V48: =IF('Data entry'!U51<>"",'Data entry'!U51,"") ->  | W48: =IF('Data entry'!V51<>"",'Data entry'!V51,"") ->  | Y48: 35 | AW48: 0 | JM48: 0
C49: 36 | D49: =IF('Data entry'!C52<>"",'Data entry'!C52,"") ->  | E49: =IF('Data entry'!D52<>"",'Data entry'!D52,"") ->  | F49: =IF('Data entry'!E52<>"",'Data entry'!E52,"") ->  | G49: =IF('Data entry'!F52<>"",'Data entry'!F52,"") ->  | H49: =IF('Data entry'!G52<>"",'Data entry'!G52,"") ->  | I49: =IF('Data entry'!H52<>"",'Data entry'!H52,"") ->  | J49: =IF('Data entry'!I52<>"",'Data entry'!I52,"") ->  | K49: =IF('Data entry'!J52<>"",'Data entry'!J52,"") ->  | L49: =IF('Data entry'!K52<>"",'Data entry'!K52,"") ->  | M49: =IF('Data entry'!L52<>"",'Data entry'!L52,"") ->  | N49: =IF('Data entry'!M52<>"",'Data entry'!M52,"") ->  | O49: =IF('Data entry'!N52<>"",'Data entry'!N52,"") ->  | P49: =IF('Data entry'!O52<>"",'Data entry'!O52,"") ->  | Q49: =IF('Data entry'!P52<>"",'Data entry'!P52,"") ->  | R49: =IF('Data entry'!Q52<>"",'Data entry'!Q52,"") ->  | S49: =IF('Data entry'!R52<>"",'Data entry'!R52,"") ->  | T49: =IF('Data entry'!S52<>"",'Data entry'!S52,"") ->  | U49: =IF('Data entry'!T52<>"",'Data entry'!T52,"") ->  | V49: =IF('Data entry'!U52<>"",'Data entry'!U52,"") ->  | W49: =IF('Data entry'!V52<>"",'Data entry'!V52,"") ->  | Y49: 36 | AW49: 0 | JM49: 0
C50: 37 | D50: =IF('Data entry'!C53<>"",'Data entry'!C53,"") ->  | E50: =IF('Data entry'!D53<>"",'Data entry'!D53,"") ->  | F50: =IF('Data entry'!E53<>"",'Data entry'!E53,"") ->  | G50: =IF('Data entry'!F53<>"",'Data entry'!F53,"") ->  | H50: =IF('Data entry'!G53<>"",'Data entry'!G53,"") ->  | I50: =IF('Data entry'!H53<>"",'Data entry'!H53,"") ->  | J50: =IF('Data entry'!I53<>"",'Data entry'!I53,"") ->  | K50: =IF('Data entry'!J53<>"",'Data entry'!J53,"") ->  | L50: =IF('Data entry'!K53<>"",'Data entry'!K53,"") ->  | M50: =IF('Data entry'!L53<>"",'Data entry'!L53,"") ->  | N50: =IF('Data entry'!M53<>"",'Data entry'!M53,"") ->  | O50: =IF('Data entry'!N53<>"",'Data entry'!N53,"") ->  | P50: =IF('Data entry'!O53<>"",'Data entry'!O53,"") ->  | Q50: =IF('Data entry'!P53<>"",'Data entry'!P53,"") ->  | R50: =IF('Data entry'!Q53<>"",'Data entry'!Q53,"") ->  | S50: =IF('Data entry'!R53<>"",'Data entry'!R53,"") ->  | T50: =IF('Data entry'!S53<>"",'Data entry'!S53,"") ->  | U50: =IF('Data entry'!T53<>"",'Data entry'!T53,"") ->  | V50: =IF('Data entry'!U53<>"",'Data entry'!U53,"") ->  | W50: =IF('Data entry'!V53<>"",'Data entry'!V53,"") ->  | Y50: 37 | AW50: 0 | JM50: 0
C51: 38 | D51: =IF('Data entry'!C54<>"",'Data entry'!C54,"") ->  | E51: =IF('Data entry'!D54<>"",'Data entry'!D54,"") ->  | F51: =IF('Data entry'!E54<>"",'Data entry'!E54,"") ->  | G51: =IF('Data entry'!F54<>"",'Data entry'!F54,"") ->  | H51: =IF('Data entry'!G54<>"",'Data entry'!G54,"") ->  | I51: =IF('Data entry'!H54<>"",'Data entry'!H54,"") ->  | J51: =IF('Data entry'!I54<>"",'Data entry'!I54,"") ->  | K51: =IF('Data entry'!J54<>"",'Data entry'!J54,"") ->  | L51: =IF('Data entry'!K54<>"",'Data entry'!K54,"") ->  | M51: =IF('Data entry'!L54<>"",'Data entry'!L54,"") ->  | N51: =IF('Data entry'!M54<>"",'Data entry'!M54,"") ->  | O51: =IF('Data entry'!N54<>"",'Data entry'!N54,"") ->  | P51: =IF('Data entry'!O54<>"",'Data entry'!O54,"") ->  | Q51: =IF('Data entry'!P54<>"",'Data entry'!P54,"") ->  | R51: =IF('Data entry'!Q54<>"",'Data entry'!Q54,"") ->  | S51: =IF('Data entry'!R54<>"",'Data entry'!R54,"") ->  | T51: =IF('Data entry'!S54<>"",'Data entry'!S54,"") ->  | U51: =IF('Data entry'!T54<>"",'Data entry'!T54,"") ->  | V51: =IF('Data entry'!U54<>"",'Data entry'!U54,"") ->  | W51: =IF('Data entry'!V54<>"",'Data entry'!V54,"") ->  | Y51: 38 | AW51: 0 | JM51: 0
C52: 39 | D52: =IF('Data entry'!C55<>"",'Data entry'!C55,"") ->  | E52: =IF('Data entry'!D55<>"",'Data entry'!D55,"") ->  | F52: =IF('Data entry'!E55<>"",'Data entry'!E55,"") ->  | G52: =IF('Data entry'!F55<>"",'Data entry'!F55,"") ->  | H52: =IF('Data entry'!G55<>"",'Data entry'!G55,"") ->  | I52: =IF('Data entry'!H55<>"",'Data entry'!H55,"") ->  | J52: =IF('Data entry'!I55<>"",'Data entry'!I55,"") ->  | K52: =IF('Data entry'!J55<>"",'Data entry'!J55,"") ->  | L52: =IF('Data entry'!K55<>"",'Data entry'!K55,"") ->  | M52: =IF('Data entry'!L55<>"",'Data entry'!L55,"") ->  | N52: =IF('Data entry'!M55<>"",'Data entry'!M55,"") ->  | O52: =IF('Data entry'!N55<>"",'Data entry'!N55,"") ->  | P52: =IF('Data entry'!O55<>"",'Data entry'!O55,"") ->  | Q52: =IF('Data entry'!P55<>"",'Data entry'!P55,"") ->  | R52: =IF('Data entry'!Q55<>"",'Data entry'!Q55,"") ->  | S52: =IF('Data entry'!R55<>"",'Data entry'!R55,"") ->  | T52: =IF('Data entry'!S55<>"",'Data entry'!S55,"") ->  | U52: =IF('Data entry'!T55<>"",'Data entry'!T55,"") ->  | V52: =IF('Data entry'!U55<>"",'Data entry'!U55,"") ->  | W52: =IF('Data entry'!V55<>"",'Data entry'!V55,"") ->  | Y52: 39 | AW52: 0 | JM52: 0
C53: 40 | D53: =IF('Data entry'!C56<>"",'Data entry'!C56,"") ->  | E53: =IF('Data entry'!D56<>"",'Data entry'!D56,"") ->  | F53: =IF('Data entry'!E56<>"",'Data entry'!E56,"") ->  | G53: =IF('Data entry'!F56<>"",'Data entry'!F56,"") ->  | H53: =IF('Data entry'!G56<>"",'Data entry'!G56,"") ->  | I53: =IF('Data entry'!H56<>"",'Data entry'!H56,"") ->  | J53: =IF('Data entry'!I56<>"",'Data entry'!I56,"") ->  | K53: =IF('Data entry'!J56<>"",'Data entry'!J56,"") ->  | L53: =IF('Data entry'!K56<>"",'Data entry'!K56,"") ->  | M53: =IF('Data entry'!L56<>"",'Data entry'!L56,"") ->  | N53: =IF('Data entry'!M56<>"",'Data entry'!M56,"") ->  | O53: =IF('Data entry'!N56<>"",'Data entry'!N56,"") ->  | P53: =IF('Data entry'!O56<>"",'Data entry'!O56,"") ->  | Q53: =IF('Data entry'!P56<>"",'Data entry'!P56,"") ->  | R53: =IF('Data entry'!Q56<>"",'Data entry'!Q56,"") ->  | S53: =IF('Data entry'!R56<>"",'Data entry'!R56,"") ->  | T53: =IF('Data entry'!S56<>"",'Data entry'!S56,"") ->  | U53: =IF('Data entry'!T56<>"",'Data entry'!T56,"") ->  | V53: =IF('Data entry'!U56<>"",'Data entry'!U56,"") ->  | W53: =IF('Data entry'!V56<>"",'Data entry'!V56,"") ->  | Y53: 40 | AW53: 0 | JM53: 0
C54: 41 | D54: =IF('Data entry'!C57<>"",'Data entry'!C57,"") ->  | E54: =IF('Data entry'!D57<>"",'Data entry'!D57,"") ->  | F54: =IF('Data entry'!E57<>"",'Data entry'!E57,"") ->  | G54: =IF('Data entry'!F57<>"",'Data entry'!F57,"") ->  | H54: =IF('Data entry'!G57<>"",'Data entry'!G57,"") ->  | I54: =IF('Data entry'!H57<>"",'Data entry'!H57,"") ->  | J54: =IF('Data entry'!I57<>"",'Data entry'!I57,"") ->  | K54: =IF('Data entry'!J57<>"",'Data entry'!J57,"") ->  | L54: =IF('Data entry'!K57<>"",'Data entry'!K57,"") ->  | M54: =IF('Data entry'!L57<>"",'Data entry'!L57,"") ->  | N54: =IF('Data entry'!M57<>"",'Data entry'!M57,"") ->  | O54: =IF('Data entry'!N57<>"",'Data entry'!N57,"") ->  | P54: =IF('Data entry'!O57<>"",'Data entry'!O57,"") ->  | Q54: =IF('Data entry'!P57<>"",'Data entry'!P57,"") ->  | R54: =IF('Data entry'!Q57<>"",'Data entry'!Q57,"") ->  | S54: =IF('Data entry'!R57<>"",'Data entry'!R57,"") ->  | T54: =IF('Data entry'!S57<>"",'Data entry'!S57,"") ->  | U54: =IF('Data entry'!T57<>"",'Data entry'!T57,"") ->  | V54: =IF('Data entry'!U57<>"",'Data entry'!U57,"") ->  | W54: =IF('Data entry'!V57<>"",'Data entry'!V57,"") ->  | Y54: 41 | AW54: 0 | JM54: 0
C55: 42 | D55: =IF('Data entry'!C58<>"",'Data entry'!C58,"") ->  | E55: =IF('Data entry'!D58<>"",'Data entry'!D58,"") ->  | F55: =IF('Data entry'!E58<>"",'Data entry'!E58,"") ->  | G55: =IF('Data entry'!F58<>"",'Data entry'!F58,"") ->  | H55: =IF('Data entry'!G58<>"",'Data entry'!G58,"") ->  | I55: =IF('Data entry'!H58<>"",'Data entry'!H58,"") ->  | J55: =IF('Data entry'!I58<>"",'Data entry'!I58,"") ->  | K55: =IF('Data entry'!J58<>"",'Data entry'!J58,"") ->  | L55: =IF('Data entry'!K58<>"",'Data entry'!K58,"") ->  | M55: =IF('Data entry'!L58<>"",'Data entry'!L58,"") ->  | N55: =IF('Data entry'!M58<>"",'Data entry'!M58,"") ->  | O55: =IF('Data entry'!N58<>"",'Data entry'!N58,"") ->  | P55: =IF('Data entry'!O58<>"",'Data entry'!O58,"") ->  | Q55: =IF('Data entry'!P58<>"",'Data entry'!P58,"") ->  | R55: =IF('Data entry'!Q58<>"",'Data entry'!Q58,"") ->  | S55: =IF('Data entry'!R58<>"",'Data entry'!R58,"") ->  | T55: =IF('Data entry'!S58<>"",'Data entry'!S58,"") ->  | U55: =IF('Data entry'!T58<>"",'Data entry'!T58,"") ->  | V55: =IF('Data entry'!U58<>"",'Data entry'!U58,"") ->  | W55: =IF('Data entry'!V58<>"",'Data entry'!V58,"") ->  | Y55: 42 | AW55: 0 | JM55: 0
C56: 43 | D56: =IF('Data entry'!C59<>"",'Data entry'!C59,"") ->  | E56: =IF('Data entry'!D59<>"",'Data entry'!D59,"") ->  | F56: =IF('Data entry'!E59<>"",'Data entry'!E59,"") ->  | G56: =IF('Data entry'!F59<>"",'Data entry'!F59,"") ->  | H56: =IF('Data entry'!G59<>"",'Data entry'!G59,"") ->  | I56: =IF('Data entry'!H59<>"",'Data entry'!H59,"") ->  | J56: =IF('Data entry'!I59<>"",'Data entry'!I59,"") ->  | K56: =IF('Data entry'!J59<>"",'Data entry'!J59,"") ->  | L56: =IF('Data entry'!K59<>"",'Data entry'!K59,"") ->  | M56: =IF('Data entry'!L59<>"",'Data entry'!L59,"") ->  | N56: =IF('Data entry'!M59<>"",'Data entry'!M59,"") ->  | O56: =IF('Data entry'!N59<>"",'Data entry'!N59,"") ->  | P56: =IF('Data entry'!O59<>"",'Data entry'!O59,"") ->  | Q56: =IF('Data entry'!P59<>"",'Data entry'!P59,"") ->  | R56: =IF('Data entry'!Q59<>"",'Data entry'!Q59,"") ->  | S56: =IF('Data entry'!R59<>"",'Data entry'!R59,"") ->  | T56: =IF('Data entry'!S59<>"",'Data entry'!S59,"") ->  | U56: =IF('Data entry'!T59<>"",'Data entry'!T59,"") ->  | V56: =IF('Data entry'!U59<>"",'Data entry'!U59,"") ->  | W56: =IF('Data entry'!V59<>"",'Data entry'!V59,"") ->  | Y56: 43 | AW56: 0 | JM56: 0
C57: 44 | D57: =IF('Data entry'!C60<>"",'Data entry'!C60,"") ->  | E57: =IF('Data entry'!D60<>"",'Data entry'!D60,"") ->  | F57: =IF('Data entry'!E60<>"",'Data entry'!E60,"") ->  | G57: =IF('Data entry'!F60<>"",'Data entry'!F60,"") ->  | H57: =IF('Data entry'!G60<>"",'Data entry'!G60,"") ->  | I57: =IF('Data entry'!H60<>"",'Data entry'!H60,"") ->  | J57: =IF('Data entry'!I60<>"",'Data entry'!I60,"") ->  | K57: =IF('Data entry'!J60<>"",'Data entry'!J60,"") ->  | L57: =IF('Data entry'!K60<>"",'Data entry'!K60,"") ->  | M57: =IF('Data entry'!L60<>"",'Data entry'!L60,"") ->  | N57: =IF('Data entry'!M60<>"",'Data entry'!M60,"") ->  | O57: =IF('Data entry'!N60<>"",'Data entry'!N60,"") ->  | P57: =IF('Data entry'!O60<>"",'Data entry'!O60,"") ->  | Q57: =IF('Data entry'!P60<>"",'Data entry'!P60,"") ->  | R57: =IF('Data entry'!Q60<>"",'Data entry'!Q60,"") ->  | S57: =IF('Data entry'!R60<>"",'Data entry'!R60,"") ->  | T57: =IF('Data entry'!S60<>"",'Data entry'!S60,"") ->  | U57: =IF('Data entry'!T60<>"",'Data entry'!T60,"") ->  | V57: =IF('Data entry'!U60<>"",'Data entry'!U60,"") ->  | W57: =IF('Data entry'!V60<>"",'Data entry'!V60,"") ->  | Y57: 44 | AW57: 0 | JM57: 0
C58: 45 | D58: =IF('Data entry'!C61<>"",'Data entry'!C61,"") ->  | E58: =IF('Data entry'!D61<>"",'Data entry'!D61,"") ->  | F58: =IF('Data entry'!E61<>"",'Data entry'!E61,"") ->  | G58: =IF('Data entry'!F61<>"",'Data entry'!F61,"") ->  | H58: =IF('Data entry'!G61<>"",'Data entry'!G61,"") ->  | I58: =IF('Data entry'!H61<>"",'Data entry'!H61,"") ->  | J58: =IF('Data entry'!I61<>"",'Data entry'!I61,"") ->  | K58: =IF('Data entry'!J61<>"",'Data entry'!J61,"") ->  | L58: =IF('Data entry'!K61<>"",'Data entry'!K61,"") ->  | M58: =IF('Data entry'!L61<>"",'Data entry'!L61,"") ->  | N58: =IF('Data entry'!M61<>"",'Data entry'!M61,"") ->  | O58: =IF('Data entry'!N61<>"",'Data entry'!N61,"") ->  | P58: =IF('Data entry'!O61<>"",'Data entry'!O61,"") ->  | Q58: =IF('Data entry'!P61<>"",'Data entry'!P61,"") ->  | R58: =IF('Data entry'!Q61<>"",'Data entry'!Q61,"") ->  | S58: =IF('Data entry'!R61<>"",'Data entry'!R61,"") ->  | T58: =IF('Data entry'!S61<>"",'Data entry'!S61,"") ->  | U58: =IF('Data entry'!T61<>"",'Data entry'!T61,"") ->  | V58: =IF('Data entry'!U61<>"",'Data entry'!U61,"") ->  | W58: =IF('Data entry'!V61<>"",'Data entry'!V61,"") ->  | Y58: 45 | AW58: 0 | JM58: 0
C59: 46 | D59: =IF('Data entry'!C62<>"",'Data entry'!C62,"") ->  | E59: =IF('Data entry'!D62<>"",'Data entry'!D62,"") ->  | F59: =IF('Data entry'!E62<>"",'Data entry'!E62,"") ->  | G59: =IF('Data entry'!F62<>"",'Data entry'!F62,"") ->  | H59: =IF('Data entry'!G62<>"",'Data entry'!G62,"") ->  | I59: =IF('Data entry'!H62<>"",'Data entry'!H62,"") ->  | J59: =IF('Data entry'!I62<>"",'Data entry'!I62,"") ->  | K59: =IF('Data entry'!J62<>"",'Data entry'!J62,"") ->  | L59: =IF('Data entry'!K62<>"",'Data entry'!K62,"") ->  | M59: =IF('Data entry'!L62<>"",'Data entry'!L62,"") ->  | N59: =IF('Data entry'!M62<>"",'Data entry'!M62,"") ->  | O59: =IF('Data entry'!N62<>"",'Data entry'!N62,"") ->  | P59: =IF('Data entry'!O62<>"",'Data entry'!O62,"") ->  | Q59: =IF('Data entry'!P62<>"",'Data entry'!P62,"") ->  | R59: =IF('Data entry'!Q62<>"",'Data entry'!Q62,"") ->  | S59: =IF('Data entry'!R62<>"",'Data entry'!R62,"") ->  | T59: =IF('Data entry'!S62<>"",'Data entry'!S62,"") ->  | U59: =IF('Data entry'!T62<>"",'Data entry'!T62,"") ->  | V59: =IF('Data entry'!U62<>"",'Data entry'!U62,"") ->  | W59: =IF('Data entry'!V62<>"",'Data entry'!V62,"") ->  | Y59: 46 | AW59: 0 | JM59: 0
C60: 47 | D60: =IF('Data entry'!C63<>"",'Data entry'!C63,"") ->  | E60: =IF('Data entry'!D63<>"",'Data entry'!D63,"") ->  | F60: =IF('Data entry'!E63<>"",'Data entry'!E63,"") ->  | G60: =IF('Data entry'!F63<>"",'Data entry'!F63,"") ->  | H60: =IF('Data entry'!G63<>"",'Data entry'!G63,"") ->  | I60: =IF('Data entry'!H63<>"",'Data entry'!H63,"") ->  | J60: =IF('Data entry'!I63<>"",'Data entry'!I63,"") ->  | K60: =IF('Data entry'!J63<>"",'Data entry'!J63,"") ->  | L60: =IF('Data entry'!K63<>"",'Data entry'!K63,"") ->  | M60: =IF('Data entry'!L63<>"",'Data entry'!L63,"") ->  | N60: =IF('Data entry'!M63<>"",'Data entry'!M63,"") ->  | O60: =IF('Data entry'!N63<>"",'Data entry'!N63,"") ->  | P60: =IF('Data entry'!O63<>"",'Data entry'!O63,"") ->  | Q60: =IF('Data entry'!P63<>"",'Data entry'!P63,"") ->  | R60: =IF('Data entry'!Q63<>"",'Data entry'!Q63,"") ->  | S60: =IF('Data entry'!R63<>"",'Data entry'!R63,"") ->  | T60: =IF('Data entry'!S63<>"",'Data entry'!S63,"") ->  | U60: =IF('Data entry'!T63<>"",'Data entry'!T63,"") ->  | V60: =IF('Data entry'!U63<>"",'Data entry'!U63,"") ->  | W60: =IF('Data entry'!V63<>"",'Data entry'!V63,"") ->  | Y60: 47 | AW60: 0 | JM60: 0
C61: 48 | D61: =IF('Data entry'!C64<>"",'Data entry'!C64,"") ->  | E61: =IF('Data entry'!D64<>"",'Data entry'!D64,"") ->  | F61: =IF('Data entry'!E64<>"",'Data entry'!E64,"") ->  | G61: =IF('Data entry'!F64<>"",'Data entry'!F64,"") ->  | H61: =IF('Data entry'!G64<>"",'Data entry'!G64,"") ->  | I61: =IF('Data entry'!H64<>"",'Data entry'!H64,"") ->  | J61: =IF('Data entry'!I64<>"",'Data entry'!I64,"") ->  | K61: =IF('Data entry'!J64<>"",'Data entry'!J64,"") ->  | L61: =IF('Data entry'!K64<>"",'Data entry'!K64,"") ->  | M61: =IF('Data entry'!L64<>"",'Data entry'!L64,"") ->  | N61: =IF('Data entry'!M64<>"",'Data entry'!M64,"") ->  | O61: =IF('Data entry'!N64<>"",'Data entry'!N64,"") ->  | P61: =IF('Data entry'!O64<>"",'Data entry'!O64,"") ->  | Q61: =IF('Data entry'!P64<>"",'Data entry'!P64,"") ->  | R61: =IF('Data entry'!Q64<>"",'Data entry'!Q64,"") ->  | S61: =IF('Data entry'!R64<>"",'Data entry'!R64,"") ->  | T61: =IF('Data entry'!S64<>"",'Data entry'!S64,"") ->  | U61: =IF('Data entry'!T64<>"",'Data entry'!T64,"") ->  | V61: =IF('Data entry'!U64<>"",'Data entry'!U64,"") ->  | W61: =IF('Data entry'!V64<>"",'Data entry'!V64,"") ->  | Y61: 48 | AW61: 0 | JM61: 0
C62: 49 | D62: =IF('Data entry'!C65<>"",'Data entry'!C65,"") ->  | E62: =IF('Data entry'!D65<>"",'Data entry'!D65,"") ->  | F62: =IF('Data entry'!E65<>"",'Data entry'!E65,"") ->  | G62: =IF('Data entry'!F65<>"",'Data entry'!F65,"") ->  | H62: =IF('Data entry'!G65<>"",'Data entry'!G65,"") ->  | I62: =IF('Data entry'!H65<>"",'Data entry'!H65,"") ->  | J62: =IF('Data entry'!I65<>"",'Data entry'!I65,"") ->  | K62: =IF('Data entry'!J65<>"",'Data entry'!J65,"") ->  | L62: =IF('Data entry'!K65<>"",'Data entry'!K65,"") ->  | M62: =IF('Data entry'!L65<>"",'Data entry'!L65,"") ->  | N62: =IF('Data entry'!M65<>"",'Data entry'!M65,"") ->  | O62: =IF('Data entry'!N65<>"",'Data entry'!N65,"") ->  | P62: =IF('Data entry'!O65<>"",'Data entry'!O65,"") ->  | Q62: =IF('Data entry'!P65<>"",'Data entry'!P65,"") ->  | R62: =IF('Data entry'!Q65<>"",'Data entry'!Q65,"") ->  | S62: =IF('Data entry'!R65<>"",'Data entry'!R65,"") ->  | T62: =IF('Data entry'!S65<>"",'Data entry'!S65,"") ->  | U62: =IF('Data entry'!T65<>"",'Data entry'!T65,"") ->  | V62: =IF('Data entry'!U65<>"",'Data entry'!U65,"") ->  | W62: =IF('Data entry'!V65<>"",'Data entry'!V65,"") ->  | Y62: 49 | AW62: 0 | JM62: 0
C63: 50 | D63: =IF('Data entry'!C66<>"",'Data entry'!C66,"") ->  | E63: =IF('Data entry'!D66<>"",'Data entry'!D66,"") ->  | F63: =IF('Data entry'!E66<>"",'Data entry'!E66,"") ->  | G63: =IF('Data entry'!F66<>"",'Data entry'!F66,"") ->  | H63: =IF('Data entry'!G66<>"",'Data entry'!G66,"") ->  | I63: =IF('Data entry'!H66<>"",'Data entry'!H66,"") ->  | J63: =IF('Data entry'!I66<>"",'Data entry'!I66,"") ->  | K63: =IF('Data entry'!J66<>"",'Data entry'!J66,"") ->  | L63: =IF('Data entry'!K66<>"",'Data entry'!K66,"") ->  | M63: =IF('Data entry'!L66<>"",'Data entry'!L66,"") ->  | N63: =IF('Data entry'!M66<>"",'Data entry'!M66,"") ->  | O63: =IF('Data entry'!N66<>"",'Data entry'!N66,"") ->  | P63: =IF('Data entry'!O66<>"",'Data entry'!O66,"") ->  | Q63: =IF('Data entry'!P66<>"",'Data entry'!P66,"") ->  | R63: =IF('Data entry'!Q66<>"",'Data entry'!Q66,"") ->  | S63: =IF('Data entry'!R66<>"",'Data entry'!R66,"") ->  | T63: =IF('Data entry'!S66<>"",'Data entry'!S66,"") ->  | U63: =IF('Data entry'!T66<>"",'Data entry'!T66,"") ->  | V63: =IF('Data entry'!U66<>"",'Data entry'!U66,"") ->  | W63: =IF('Data entry'!V66<>"",'Data entry'!V66,"") ->  | Y63: 50 | AW63: 0 | JM63: 0
C64: 51 | D64: =IF('Data entry'!C67<>"",'Data entry'!C67,"") ->  | E64: =IF('Data entry'!D67<>"",'Data entry'!D67,"") ->  | F64: =IF('Data entry'!E67<>"",'Data entry'!E67,"") ->  | G64: =IF('Data entry'!F67<>"",'Data entry'!F67,"") ->  | H64: =IF('Data entry'!G67<>"",'Data entry'!G67,"") ->  | I64: =IF('Data entry'!H67<>"",'Data entry'!H67,"") ->  | J64: =IF('Data entry'!I67<>"",'Data entry'!I67,"") ->  | K64: =IF('Data entry'!J67<>"",'Data entry'!J67,"") ->  | L64: =IF('Data entry'!K67<>"",'Data entry'!K67,"") ->  | M64: =IF('Data entry'!L67<>"",'Data entry'!L67,"") ->  | N64: =IF('Data entry'!M67<>"",'Data entry'!M67,"") ->  | O64: =IF('Data entry'!N67<>"",'Data entry'!N67,"") ->  | P64: =IF('Data entry'!O67<>"",'Data entry'!O67,"") ->  | Q64: =IF('Data entry'!P67<>"",'Data entry'!P67,"") ->  | R64: =IF('Data entry'!Q67<>"",'Data entry'!Q67,"") ->  | S64: =IF('Data entry'!R67<>"",'Data entry'!R67,"") ->  | T64: =IF('Data entry'!S67<>"",'Data entry'!S67,"") ->  | U64: =IF('Data entry'!T67<>"",'Data entry'!T67,"") ->  | V64: =IF('Data entry'!U67<>"",'Data entry'!U67,"") ->  | W64: =IF('Data entry'!V67<>"",'Data entry'!V67,"") ->  | Y64: 51 | AW64: 0 | JM64: 0
C65: 52 | D65: =IF('Data entry'!C68<>"",'Data entry'!C68,"") ->  | E65: =IF('Data entry'!D68<>"",'Data entry'!D68,"") ->  | F65: =IF('Data entry'!E68<>"",'Data entry'!E68,"") ->  | G65: =IF('Data entry'!F68<>"",'Data entry'!F68,"") ->  | H65: =IF('Data entry'!G68<>"",'Data entry'!G68,"") ->  | I65: =IF('Data entry'!H68<>"",'Data entry'!H68,"") ->  | J65: =IF('Data entry'!I68<>"",'Data entry'!I68,"") ->  | K65: =IF('Data entry'!J68<>"",'Data entry'!J68,"") ->  | L65: =IF('Data entry'!K68<>"",'Data entry'!K68,"") ->  | M65: =IF('Data entry'!L68<>"",'Data entry'!L68,"") ->  | N65: =IF('Data entry'!M68<>"",'Data entry'!M68,"") ->  | O65: =IF('Data entry'!N68<>"",'Data entry'!N68,"") ->  | P65: =IF('Data entry'!O68<>"",'Data entry'!O68,"") ->  | Q65: =IF('Data entry'!P68<>"",'Data entry'!P68,"") ->  | R65: =IF('Data entry'!Q68<>"",'Data entry'!Q68,"") ->  | S65: =IF('Data entry'!R68<>"",'Data entry'!R68,"") ->  | T65: =IF('Data entry'!S68<>"",'Data entry'!S68,"") ->  | U65: =IF('Data entry'!T68<>"",'Data entry'!T68,"") ->  | V65: =IF('Data entry'!U68<>"",'Data entry'!U68,"") ->  | W65: =IF('Data entry'!V68<>"",'Data entry'!V68,"") ->  | Y65: 52 | AW65: 0 | JM65: 0
C66: 53 | D66: =IF('Data entry'!C69<>"",'Data entry'!C69,"") ->  | E66: =IF('Data entry'!D69<>"",'Data entry'!D69,"") ->  | F66: =IF('Data entry'!E69<>"",'Data entry'!E69,"") ->  | G66: =IF('Data entry'!F69<>"",'Data entry'!F69,"") ->  | H66: =IF('Data entry'!G69<>"",'Data entry'!G69,"") ->  | I66: =IF('Data entry'!H69<>"",'Data entry'!H69,"") ->  | J66: =IF('Data entry'!I69<>"",'Data entry'!I69,"") ->  | K66: =IF('Data entry'!J69<>"",'Data entry'!J69,"") ->  | L66: =IF('Data entry'!K69<>"",'Data entry'!K69,"") ->  | M66: =IF('Data entry'!L69<>"",'Data entry'!L69,"") ->  | N66: =IF('Data entry'!M69<>"",'Data entry'!M69,"") ->  | O66: =IF('Data entry'!N69<>"",'Data entry'!N69,"") ->  | P66: =IF('Data entry'!O69<>"",'Data entry'!O69,"") ->  | Q66: =IF('Data entry'!P69<>"",'Data entry'!P69,"") ->  | R66: =IF('Data entry'!Q69<>"",'Data entry'!Q69,"") ->  | S66: =IF('Data entry'!R69<>"",'Data entry'!R69,"") ->  | T66: =IF('Data entry'!S69<>"",'Data entry'!S69,"") ->  | U66: =IF('Data entry'!T69<>"",'Data entry'!T69,"") ->  | V66: =IF('Data entry'!U69<>"",'Data entry'!U69,"") ->  | W66: =IF('Data entry'!V69<>"",'Data entry'!V69,"") ->  | Y66: 53 | AW66: 0 | JM66: 0
C67: 54 | D67: =IF('Data entry'!C70<>"",'Data entry'!C70,"") ->  | E67: =IF('Data entry'!D70<>"",'Data entry'!D70,"") ->  | F67: =IF('Data entry'!E70<>"",'Data entry'!E70,"") ->  | G67: =IF('Data entry'!F70<>"",'Data entry'!F70,"") ->  | H67: =IF('Data entry'!G70<>"",'Data entry'!G70,"") ->  | I67: =IF('Data entry'!H70<>"",'Data entry'!H70,"") ->  | J67: =IF('Data entry'!I70<>"",'Data entry'!I70,"") ->  | K67: =IF('Data entry'!J70<>"",'Data entry'!J70,"") ->  | L67: =IF('Data entry'!K70<>"",'Data entry'!K70,"") ->  | M67: =IF('Data entry'!L70<>"",'Data entry'!L70,"") ->  | N67: =IF('Data entry'!M70<>"",'Data entry'!M70,"") ->  | O67: =IF('Data entry'!N70<>"",'Data entry'!N70,"") ->  | P67: =IF('Data entry'!O70<>"",'Data entry'!O70,"") ->  | Q67: =IF('Data entry'!P70<>"",'Data entry'!P70,"") ->  | R67: =IF('Data entry'!Q70<>"",'Data entry'!Q70,"") ->  | S67: =IF('Data entry'!R70<>"",'Data entry'!R70,"") ->  | T67: =IF('Data entry'!S70<>"",'Data entry'!S70,"") ->  | U67: =IF('Data entry'!T70<>"",'Data entry'!T70,"") ->  | V67: =IF('Data entry'!U70<>"",'Data entry'!U70,"") ->  | W67: =IF('Data entry'!V70<>"",'Data entry'!V70,"") ->  | Y67: 54 | AW67: 0 | JM67: 0
C68: 55 | D68: =IF('Data entry'!C71<>"",'Data entry'!C71,"") ->  | E68: =IF('Data entry'!D71<>"",'Data entry'!D71,"") ->  | F68: =IF('Data entry'!E71<>"",'Data entry'!E71,"") ->  | G68: =IF('Data entry'!F71<>"",'Data entry'!F71,"") ->  | H68: =IF('Data entry'!G71<>"",'Data entry'!G71,"") ->  | I68: =IF('Data entry'!H71<>"",'Data entry'!H71,"") ->  | J68: =IF('Data entry'!I71<>"",'Data entry'!I71,"") ->  | K68: =IF('Data entry'!J71<>"",'Data entry'!J71,"") ->  | L68: =IF('Data entry'!K71<>"",'Data entry'!K71,"") ->  | M68: =IF('Data entry'!L71<>"",'Data entry'!L71,"") ->  | N68: =IF('Data entry'!M71<>"",'Data entry'!M71,"") ->  | O68: =IF('Data entry'!N71<>"",'Data entry'!N71,"") ->  | P68: =IF('Data entry'!O71<>"",'Data entry'!O71,"") ->  | Q68: =IF('Data entry'!P71<>"",'Data entry'!P71,"") ->  | R68: =IF('Data entry'!Q71<>"",'Data entry'!Q71,"") ->  | S68: =IF('Data entry'!R71<>"",'Data entry'!R71,"") ->  | T68: =IF('Data entry'!S71<>"",'Data entry'!S71,"") ->  | U68: =IF('Data entry'!T71<>"",'Data entry'!T71,"") ->  | V68: =IF('Data entry'!U71<>"",'Data entry'!U71,"") ->  | W68: =IF('Data entry'!V71<>"",'Data entry'!V71,"") ->  | Y68: 55 | AW68: 0 | JM68: 0
C69: 56 | D69: =IF('Data entry'!C72<>"",'Data entry'!C72,"") ->  | E69: =IF('Data entry'!D72<>"",'Data entry'!D72,"") ->  | F69: =IF('Data entry'!E72<>"",'Data entry'!E72,"") ->  | G69: =IF('Data entry'!F72<>"",'Data entry'!F72,"") ->  | H69: =IF('Data entry'!G72<>"",'Data entry'!G72,"") ->  | I69: =IF('Data entry'!H72<>"",'Data entry'!H72,"") ->  | J69: =IF('Data entry'!I72<>"",'Data entry'!I72,"") ->  | K69: =IF('Data entry'!J72<>"",'Data entry'!J72,"") ->  | L69: =IF('Data entry'!K72<>"",'Data entry'!K72,"") ->  | M69: =IF('Data entry'!L72<>"",'Data entry'!L72,"") ->  | N69: =IF('Data entry'!M72<>"",'Data entry'!M72,"") ->  | O69: =IF('Data entry'!N72<>"",'Data entry'!N72,"") ->  | P69: =IF('Data entry'!O72<>"",'Data entry'!O72,"") ->  | Q69: =IF('Data entry'!P72<>"",'Data entry'!P72,"") ->  | R69: =IF('Data entry'!Q72<>"",'Data entry'!Q72,"") ->  | S69: =IF('Data entry'!R72<>"",'Data entry'!R72,"") ->  | T69: =IF('Data entry'!S72<>"",'Data entry'!S72,"") ->  | U69: =IF('Data entry'!T72<>"",'Data entry'!T72,"") ->  | V69: =IF('Data entry'!U72<>"",'Data entry'!U72,"") ->  | W69: =IF('Data entry'!V72<>"",'Data entry'!V72,"") ->  | Y69: 56 | AW69: 0 | JM69: 0
C70: 57 | D70: =IF('Data entry'!C73<>"",'Data entry'!C73,"") ->  | E70: =IF('Data entry'!D73<>"",'Data entry'!D73,"") ->  | F70: =IF('Data entry'!E73<>"",'Data entry'!E73,"") ->  | G70: =IF('Data entry'!F73<>"",'Data entry'!F73,"") ->  | H70: =IF('Data entry'!G73<>"",'Data entry'!G73,"") ->  | I70: =IF('Data entry'!H73<>"",'Data entry'!H73,"") ->  | J70: =IF('Data entry'!I73<>"",'Data entry'!I73,"") ->  | K70: =IF('Data entry'!J73<>"",'Data entry'!J73,"") ->  | L70: =IF('Data entry'!K73<>"",'Data entry'!K73,"") ->  | M70: =IF('Data entry'!L73<>"",'Data entry'!L73,"") ->  | N70: =IF('Data entry'!M73<>"",'Data entry'!M73,"") ->  | O70: =IF('Data entry'!N73<>"",'Data entry'!N73,"") ->  | P70: =IF('Data entry'!O73<>"",'Data entry'!O73,"") ->  | Q70: =IF('Data entry'!P73<>"",'Data entry'!P73,"") ->  | R70: =IF('Data entry'!Q73<>"",'Data entry'!Q73,"") ->  | S70: =IF('Data entry'!R73<>"",'Data entry'!R73,"") ->  | T70: =IF('Data entry'!S73<>"",'Data entry'!S73,"") ->  | U70: =IF('Data entry'!T73<>"",'Data entry'!T73,"") ->  | V70: =IF('Data entry'!U73<>"",'Data entry'!U73,"") ->  | W70: =IF('Data entry'!V73<>"",'Data entry'!V73,"") ->  | Y70: 57 | AW70: 0 | JM70: 0
C71: 58 | D71: =IF('Data entry'!C74<>"",'Data entry'!C74,"") ->  | E71: =IF('Data entry'!D74<>"",'Data entry'!D74,"") ->  | F71: =IF('Data entry'!E74<>"",'Data entry'!E74,"") ->  | G71: =IF('Data entry'!F74<>"",'Data entry'!F74,"") ->  | H71: =IF('Data entry'!G74<>"",'Data entry'!G74,"") ->  | I71: =IF('Data entry'!H74<>"",'Data entry'!H74,"") ->  | J71: =IF('Data entry'!I74<>"",'Data entry'!I74,"") ->  | K71: =IF('Data entry'!J74<>"",'Data entry'!J74,"") ->  | L71: =IF('Data entry'!K74<>"",'Data entry'!K74,"") ->  | M71: =IF('Data entry'!L74<>"",'Data entry'!L74,"") ->  | N71: =IF('Data entry'!M74<>"",'Data entry'!M74,"") ->  | O71: =IF('Data entry'!N74<>"",'Data entry'!N74,"") ->  | P71: =IF('Data entry'!O74<>"",'Data entry'!O74,"") ->  | Q71: =IF('Data entry'!P74<>"",'Data entry'!P74,"") ->  | R71: =IF('Data entry'!Q74<>"",'Data entry'!Q74,"") ->  | S71: =IF('Data entry'!R74<>"",'Data entry'!R74,"") ->  | T71: =IF('Data entry'!S74<>"",'Data entry'!S74,"") ->  | U71: =IF('Data entry'!T74<>"",'Data entry'!T74,"") ->  | V71: =IF('Data entry'!U74<>"",'Data entry'!U74,"") ->  | W71: =IF('Data entry'!V74<>"",'Data entry'!V74,"") ->  | Y71: 58 | AW71: 0 | JM71: 0
C72: 59 | D72: =IF('Data entry'!C75<>"",'Data entry'!C75,"") ->  | E72: =IF('Data entry'!D75<>"",'Data entry'!D75,"") ->  | F72: =IF('Data entry'!E75<>"",'Data entry'!E75,"") ->  | G72: =IF('Data entry'!F75<>"",'Data entry'!F75,"") ->  | H72: =IF('Data entry'!G75<>"",'Data entry'!G75,"") ->  | I72: =IF('Data entry'!H75<>"",'Data entry'!H75,"") ->  | J72: =IF('Data entry'!I75<>"",'Data entry'!I75,"") ->  | K72: =IF('Data entry'!J75<>"",'Data entry'!J75,"") ->  | L72: =IF('Data entry'!K75<>"",'Data entry'!K75,"") ->  | M72: =IF('Data entry'!L75<>"",'Data entry'!L75,"") ->  | N72: =IF('Data entry'!M75<>"",'Data entry'!M75,"") ->  | O72: =IF('Data entry'!N75<>"",'Data entry'!N75,"") ->  | P72: =IF('Data entry'!O75<>"",'Data entry'!O75,"") ->  | Q72: =IF('Data entry'!P75<>"",'Data entry'!P75,"") ->  | R72: =IF('Data entry'!Q75<>"",'Data entry'!Q75,"") ->  | S72: =IF('Data entry'!R75<>"",'Data entry'!R75,"") ->  | T72: =IF('Data entry'!S75<>"",'Data entry'!S75,"") ->  | U72: =IF('Data entry'!T75<>"",'Data entry'!T75,"") ->  | V72: =IF('Data entry'!U75<>"",'Data entry'!U75,"") ->  | W72: =IF('Data entry'!V75<>"",'Data entry'!V75,"") ->  | Y72: 59 | AW72: 0 | JM72: 0
C73: 60 | D73: =IF('Data entry'!C76<>"",'Data entry'!C76,"") ->  | E73: =IF('Data entry'!D76<>"",'Data entry'!D76,"") ->  | F73: =IF('Data entry'!E76<>"",'Data entry'!E76,"") ->  | G73: =IF('Data entry'!F76<>"",'Data entry'!F76,"") ->  | H73: =IF('Data entry'!G76<>"",'Data entry'!G76,"") ->  | I73: =IF('Data entry'!H76<>"",'Data entry'!H76,"") ->  | J73: =IF('Data entry'!I76<>"",'Data entry'!I76,"") ->  | K73: =IF('Data entry'!J76<>"",'Data entry'!J76,"") ->  | L73: =IF('Data entry'!K76<>"",'Data entry'!K76,"") ->  | M73: =IF('Data entry'!L76<>"",'Data entry'!L76,"") ->  | N73: =IF('Data entry'!M76<>"",'Data entry'!M76,"") ->  | O73: =IF('Data entry'!N76<>"",'Data entry'!N76,"") ->  | P73: =IF('Data entry'!O76<>"",'Data entry'!O76,"") ->  | Q73: =IF('Data entry'!P76<>"",'Data entry'!P76,"") ->  | R73: =IF('Data entry'!Q76<>"",'Data entry'!Q76,"") ->  | S73: =IF('Data entry'!R76<>"",'Data entry'!R76,"") ->  | T73: =IF('Data entry'!S76<>"",'Data entry'!S76,"") ->  | U73: =IF('Data entry'!T76<>"",'Data entry'!T76,"") ->  | V73: =IF('Data entry'!U76<>"",'Data entry'!U76,"") ->  | W73: =IF('Data entry'!V76<>"",'Data entry'!V76,"") ->  | Y73: 60 | AW73: 0 | JM73: 0
C74: 61 | D74: =IF('Data entry'!C77<>"",'Data entry'!C77,"") ->  | E74: =IF('Data entry'!D77<>"",'Data entry'!D77,"") ->  | F74: =IF('Data entry'!E77<>"",'Data entry'!E77,"") ->  | G74: =IF('Data entry'!F77<>"",'Data entry'!F77,"") ->  | H74: =IF('Data entry'!G77<>"",'Data entry'!G77,"") ->  | I74: =IF('Data entry'!H77<>"",'Data entry'!H77,"") ->  | J74: =IF('Data entry'!I77<>"",'Data entry'!I77,"") ->  | K74: =IF('Data entry'!J77<>"",'Data entry'!J77,"") ->  | L74: =IF('Data entry'!K77<>"",'Data entry'!K77,"") ->  | M74: =IF('Data entry'!L77<>"",'Data entry'!L77,"") ->  | N74: =IF('Data entry'!M77<>"",'Data entry'!M77,"") ->  | O74: =IF('Data entry'!N77<>"",'Data entry'!N77,"") ->  | P74: =IF('Data entry'!O77<>"",'Data entry'!O77,"") ->  | Q74: =IF('Data entry'!P77<>"",'Data entry'!P77,"") ->  | R74: =IF('Data entry'!Q77<>"",'Data entry'!Q77,"") ->  | S74: =IF('Data entry'!R77<>"",'Data entry'!R77,"") ->  | T74: =IF('Data entry'!S77<>"",'Data entry'!S77,"") ->  | U74: =IF('Data entry'!T77<>"",'Data entry'!T77,"") ->  | V74: =IF('Data entry'!U77<>"",'Data entry'!U77,"") ->  | W74: =IF('Data entry'!V77<>"",'Data entry'!V77,"") ->  | Y74: 61 | AW74: 0 | JM74: 0
C75: 62 | D75: =IF('Data entry'!C78<>"",'Data entry'!C78,"") ->  | E75: =IF('Data entry'!D78<>"",'Data entry'!D78,"") ->  | F75: =IF('Data entry'!E78<>"",'Data entry'!E78,"") ->  | G75: =IF('Data entry'!F78<>"",'Data entry'!F78,"") ->  | H75: =IF('Data entry'!G78<>"",'Data entry'!G78,"") ->  | I75: =IF('Data entry'!H78<>"",'Data entry'!H78,"") ->  | J75: =IF('Data entry'!I78<>"",'Data entry'!I78,"") ->  | K75: =IF('Data entry'!J78<>"",'Data entry'!J78,"") ->  | L75: =IF('Data entry'!K78<>"",'Data entry'!K78,"") ->  | M75: =IF('Data entry'!L78<>"",'Data entry'!L78,"") ->  | N75: =IF('Data entry'!M78<>"",'Data entry'!M78,"") ->  | O75: =IF('Data entry'!N78<>"",'Data entry'!N78,"") ->  | P75: =IF('Data entry'!O78<>"",'Data entry'!O78,"") ->  | Q75: =IF('Data entry'!P78<>"",'Data entry'!P78,"") ->  | R75: =IF('Data entry'!Q78<>"",'Data entry'!Q78,"") ->  | S75: =IF('Data entry'!R78<>"",'Data entry'!R78,"") ->  | T75: =IF('Data entry'!S78<>"",'Data entry'!S78,"") ->  | U75: =IF('Data entry'!T78<>"",'Data entry'!T78,"") ->  | V75: =IF('Data entry'!U78<>"",'Data entry'!U78,"") ->  | W75: =IF('Data entry'!V78<>"",'Data entry'!V78,"") ->  | Y75: 62 | AW75: 0 | JM75: 0
C76: 63 | D76: =IF('Data entry'!C79<>"",'Data entry'!C79,"") ->  | E76: =IF('Data entry'!D79<>"",'Data entry'!D79,"") ->  | F76: =IF('Data entry'!E79<>"",'Data entry'!E79,"") ->  | G76: =IF('Data entry'!F79<>"",'Data entry'!F79,"") ->  | H76: =IF('Data entry'!G79<>"",'Data entry'!G79,"") ->  | I76: =IF('Data entry'!H79<>"",'Data entry'!H79,"") ->  | J76: =IF('Data entry'!I79<>"",'Data entry'!I79,"") ->  | K76: =IF('Data entry'!J79<>"",'Data entry'!J79,"") ->  | L76: =IF('Data entry'!K79<>"",'Data entry'!K79,"") ->  | M76: =IF('Data entry'!L79<>"",'Data entry'!L79,"") ->  | N76: =IF('Data entry'!M79<>"",'Data entry'!M79,"") ->  | O76: =IF('Data entry'!N79<>"",'Data entry'!N79,"") ->  | P76: =IF('Data entry'!O79<>"",'Data entry'!O79,"") ->  | Q76: =IF('Data entry'!P79<>"",'Data entry'!P79,"") ->  | R76: =IF('Data entry'!Q79<>"",'Data entry'!Q79,"") ->  | S76: =IF('Data entry'!R79<>"",'Data entry'!R79,"") ->  | T76: =IF('Data entry'!S79<>"",'Data entry'!S79,"") ->  | U76: =IF('Data entry'!T79<>"",'Data entry'!T79,"") ->  | V76: =IF('Data entry'!U79<>"",'Data entry'!U79,"") ->  | W76: =IF('Data entry'!V79<>"",'Data entry'!V79,"") ->  | Y76: 63 | AW76: 0 | JM76: 0
C77: 64 | D77: =IF('Data entry'!C80<>"",'Data entry'!C80,"") ->  | E77: =IF('Data entry'!D80<>"",'Data entry'!D80,"") ->  | F77: =IF('Data entry'!E80<>"",'Data entry'!E80,"") ->  | G77: =IF('Data entry'!F80<>"",'Data entry'!F80,"") ->  | H77: =IF('Data entry'!G80<>"",'Data entry'!G80,"") ->  | I77: =IF('Data entry'!H80<>"",'Data entry'!H80,"") ->  | J77: =IF('Data entry'!I80<>"",'Data entry'!I80,"") ->  | K77: =IF('Data entry'!J80<>"",'Data entry'!J80,"") ->  | L77: =IF('Data entry'!K80<>"",'Data entry'!K80,"") ->  | M77: =IF('Data entry'!L80<>"",'Data entry'!L80,"") ->  | N77: =IF('Data entry'!M80<>"",'Data entry'!M80,"") ->  | O77: =IF('Data entry'!N80<>"",'Data entry'!N80,"") ->  | P77: =IF('Data entry'!O80<>"",'Data entry'!O80,"") ->  | Q77: =IF('Data entry'!P80<>"",'Data entry'!P80,"") ->  | R77: =IF('Data entry'!Q80<>"",'Data entry'!Q80,"") ->  | S77: =IF('Data entry'!R80<>"",'Data entry'!R80,"") ->  | T77: =IF('Data entry'!S80<>"",'Data entry'!S80,"") ->  | U77: =IF('Data entry'!T80<>"",'Data entry'!T80,"") ->  | V77: =IF('Data entry'!U80<>"",'Data entry'!U80,"") ->  | W77: =IF('Data entry'!V80<>"",'Data entry'!V80,"") ->  | Y77: 64 | AW77: 0 | JM77: 0
C78: 65 | D78: =IF('Data entry'!C81<>"",'Data entry'!C81,"") ->  | E78: =IF('Data entry'!D81<>"",'Data entry'!D81,"") ->  | F78: =IF('Data entry'!E81<>"",'Data entry'!E81,"") ->  | G78: =IF('Data entry'!F81<>"",'Data entry'!F81,"") ->  | H78: =IF('Data entry'!G81<>"",'Data entry'!G81,"") ->  | I78: =IF('Data entry'!H81<>"",'Data entry'!H81,"") ->  | J78: =IF('Data entry'!I81<>"",'Data entry'!I81,"") ->  | K78: =IF('Data entry'!J81<>"",'Data entry'!J81,"") ->  | L78: =IF('Data entry'!K81<>"",'Data entry'!K81,"") ->  | M78: =IF('Data entry'!L81<>"",'Data entry'!L81,"") ->  | N78: =IF('Data entry'!M81<>"",'Data entry'!M81,"") ->  | O78: =IF('Data entry'!N81<>"",'Data entry'!N81,"") ->  | P78: =IF('Data entry'!O81<>"",'Data entry'!O81,"") ->  | Q78: =IF('Data entry'!P81<>"",'Data entry'!P81,"") ->  | R78: =IF('Data entry'!Q81<>"",'Data entry'!Q81,"") ->  | S78: =IF('Data entry'!R81<>"",'Data entry'!R81,"") ->  | T78: =IF('Data entry'!S81<>"",'Data entry'!S81,"") ->  | U78: =IF('Data entry'!T81<>"",'Data entry'!T81,"") ->  | V78: =IF('Data entry'!U81<>"",'Data entry'!U81,"") ->  | W78: =IF('Data entry'!V81<>"",'Data entry'!V81,"") ->  | Y78: 65 | AW78: =MIN(AU78:AV78) -> 0 | AZ78: =IF($AX78=AZ$13,AU78,"") ->  | BA78: =IF($AX78=BA$13,AV78,"") ->  | JM78: 0
C79: 66 | D79: =IF('Data entry'!C82<>"",'Data entry'!C82,"") ->  | E79: =IF('Data entry'!D82<>"",'Data entry'!D82,"") ->  | F79: =IF('Data entry'!E82<>"",'Data entry'!E82,"") ->  | G79: =IF('Data entry'!F82<>"",'Data entry'!F82,"") ->  | H79: =IF('Data entry'!G82<>"",'Data entry'!G82,"") ->  | I79: =IF('Data entry'!H82<>"",'Data entry'!H82,"") ->  | J79: =IF('Data entry'!I82<>"",'Data entry'!I82,"") ->  | K79: =IF('Data entry'!J82<>"",'Data entry'!J82,"") ->  | L79: =IF('Data entry'!K82<>"",'Data entry'!K82,"") ->  | M79: =IF('Data entry'!L82<>"",'Data entry'!L82,"") ->  | N79: =IF('Data entry'!M82<>"",'Data entry'!M82,"") ->  | O79: =IF('Data entry'!N82<>"",'Data entry'!N82,"") ->  | P79: =IF('Data entry'!O82<>"",'Data entry'!O82,"") ->  | Q79: =IF('Data entry'!P82<>"",'Data entry'!P82,"") ->  | R79: =IF('Data entry'!Q82<>"",'Data entry'!Q82,"") ->  | S79: =IF('Data entry'!R82<>"",'Data entry'!R82,"") ->  | T79: =IF('Data entry'!S82<>"",'Data entry'!S82,"") ->  | U79: =IF('Data entry'!T82<>"",'Data entry'!T82,"") ->  | V79: =IF('Data entry'!U82<>"",'Data entry'!U82,"") ->  | W79: =IF('Data entry'!V82<>"",'Data entry'!V82,"") ->  | Y79: 66 | Z79: =IFERROR(STANDARDIZE(D79,D$10,D$11),"") ->  | AA79: =IFERROR(STANDARDIZE(E79,E$10,E$11),"") ->  | AB79: =IFERROR(STANDARDIZE(F79,F$10,F$11),"") ->  | AC79: =IFERROR(STANDARDIZE(G79,G$10,G$11),"") ->  | AD79: =IFERROR(STANDARDIZE(H79,H$10,H$11),"") ->  | AE79: =IFERROR(STANDARDIZE(I79,I$10,I$11),"") ->  | AF79: =IFERROR(STANDARDIZE(J79,J$10,J$11),"") ->  | AG79: =IFERROR(STANDARDIZE(K79,K$10,K$11),"") ->  | AH79: =IFERROR(STANDARDIZE(L79,L$10,L$11),"") ->  | AI79: =IFERROR(STANDARDIZE(M79,M$10,M$11),"") ->  | AJ79: =IFERROR(STANDARDIZE(N79,N$10,N$11),"") ->  | AK79: =IFERROR(STANDARDIZE(O79,O$10,O$11),"") ->  | AL79: =IFERROR(STANDARDIZE(P79,P$10,P$11),"") ->  | AM79: =IFERROR(STANDARDIZE(Q79,Q$10,Q$11),"") ->  | AN79: =IFERROR(STANDARDIZE(R79,R$10,R$11),"") ->  | AO79: =IFERROR(STANDARDIZE(S79,S$10,S$11),"") ->  | AP79: =IFERROR(STANDARDIZE(T79,T$10,T$11),"") ->  | AQ79: =IFERROR(STANDARDIZE(U79,U$10,U$11),"") ->  | AR79: =IFERROR(STANDARDIZE(V79,V$10,V$11),"") ->  | AS79: =IFERROR(STANDARDIZE(W79,W$10,W$11),"") ->  | AU79: =IFERROR(SUMXMY2($Z$2:$AS$2,$Z79:$AS79),"") ->  | AV79: =IFERROR(SUMXMY2($Z$3:$AS$3,$Z79:$AS79),"") ->  | AW79: 0 | AX79: =IFERROR(MATCH(AW79,AU79:AV79,0),"") ->  | BI79: =IF($AX79=BI$10,D79,"") ->  | BJ79: =IF($AX79=BJ$10,E79,"") ->  | BK79: =IF($AX79=BK$10,F79,"") ->  | BL79: =IF($AX79=BL$10,G79,"") ->  | BM79: =IF($AX79=BM$10,H79,"") ->  | BN79: =IF($AX79=BN$10,I79,"") ->  | BO79: =IF($AX79=BO$10,J79,"") ->  | BP79: =IF($AX79=BP$10,K79,"") ->  | BQ79: =IF($AX79=BQ$10,L79,"") ->  | BR79: =IF($AX79=BR$10,M79,"") ->  | BS79: =IF($AX79=BS$10,N79,"") ->  | BT79: =IF($AX79=BT$10,O79,"") ->  | BU79: =IF($AX79=BU$10,P79,"") ->  | BV79: =IF($AX79=BV$10,Q79,"") ->  | BW79: =IF($AX79=BW$10,R79,"") ->  | BX79: =IF($AX79=BX$10,S79,"") ->  | BY79: =IF($AX79=BY$10,T79,"") ->  | BZ79: =IF($AX79=BZ$10,U79,"") ->  | CA79: =IF($AX79=CA$10,V79,"") ->  | CB79: =IF($AX79=CB$10,W79,"") ->  | CC79: =IF($AX79=CC$10,D79,"") ->  | CD79: =IF($AX79=CD$10,E79,"") ->  | CE79: =IF($AX79=CE$10,F79,"") ->  | CF79: =IF($AX79=CF$10,G79,"") ->  | CG79: =IF($AX79=CG$10,H79,"") ->  | CH79: =IF($AX79=CH$10,I79,"") ->  | CI79: =IF($AX79=CI$10,J79,"") ->  | CJ79: =IF($AX79=CJ$10,K79,"") ->  | CK79: =IF($AX79=CK$10,L79,"") ->  | CL79: =IF($AX79=CL$10,M79,"") ->  | CM79: =IF($AX79=CM$10,N79,"") ->  | CN79: =IF($AX79=CN$10,O79,"") ->  | CO79: =IF($AX79=CO$10,P79,"") ->  | CP79: =IF($AX79=CP$10,Q79,"") ->  | CQ79: =IF($AX79=CQ$10,R79,"") ->  | CR79: =IF($AX79=CR$10,S79,"") ->  | CS79: =IF($AX79=CS$10,T79,"") ->  | CT79: =IF($AX79=CT$10,U79,"") ->  | CU79: =IF($AX79=CU$10,V79,"") ->  | CV79: =IF($AX79=CV$10,W79,"") ->  | JM79: 0
C80: =+C79+1 -> 67 | D80: =IF('Data entry'!C83<>"",'Data entry'!C83,"") ->  | E80: =IF('Data entry'!D83<>"",'Data entry'!D83,"") ->  | F80: =IF('Data entry'!E83<>"",'Data entry'!E83,"") ->  | G80: =IF('Data entry'!F83<>"",'Data entry'!F83,"") ->  | H80: =IF('Data entry'!G83<>"",'Data entry'!G83,"") ->  | I80: =IF('Data entry'!H83<>"",'Data entry'!H83,"") ->  | J80: =IF('Data entry'!I83<>"",'Data entry'!I83,"") ->  | K80: =IF('Data entry'!J83<>"",'Data entry'!J83,"") ->  | L80: =IF('Data entry'!K83<>"",'Data entry'!K83,"") ->  | M80: =IF('Data entry'!L83<>"",'Data entry'!L83,"") ->  | N80: =IF('Data entry'!M83<>"",'Data entry'!M83,"") ->  | O80: =IF('Data entry'!N83<>"",'Data entry'!N83,"") ->  | P80: =IF('Data entry'!O83<>"",'Data entry'!O83,"") ->  | Q80: =IF('Data entry'!P83<>"",'Data entry'!P83,"") ->  | R80: =IF('Data entry'!Q83<>"",'Data entry'!Q83,"") ->  | S80: =IF('Data entry'!R83<>"",'Data entry'!R83,"") ->  | T80: =IF('Data entry'!S83<>"",'Data entry'!S83,"") ->  | U80: =IF('Data entry'!T83<>"",'Data entry'!T83,"") ->  | V80: =IF('Data entry'!U83<>"",'Data entry'!U83,"") ->  | W80: =IF('Data entry'!V83<>"",'Data entry'!V83,"") ->  | Y80: =+Y79+1 -> 67 | AW80: 0 | JM80: 0
C81: 68 | D81: =IF('Data entry'!C84<>"",'Data entry'!C84,"") ->  | E81: =IF('Data entry'!D84<>"",'Data entry'!D84,"") ->  | F81: =IF('Data entry'!E84<>"",'Data entry'!E84,"") ->  | G81: =IF('Data entry'!F84<>"",'Data entry'!F84,"") ->  | H81: =IF('Data entry'!G84<>"",'Data entry'!G84,"") ->  | I81: =IF('Data entry'!H84<>"",'Data entry'!H84,"") ->  | J81: =IF('Data entry'!I84<>"",'Data entry'!I84,"") ->  | K81: =IF('Data entry'!J84<>"",'Data entry'!J84,"") ->  | L81: =IF('Data entry'!K84<>"",'Data entry'!K84,"") ->  | M81: =IF('Data entry'!L84<>"",'Data entry'!L84,"") ->  | N81: =IF('Data entry'!M84<>"",'Data entry'!M84,"") ->  | O81: =IF('Data entry'!N84<>"",'Data entry'!N84,"") ->  | P81: =IF('Data entry'!O84<>"",'Data entry'!O84,"") ->  | Q81: =IF('Data entry'!P84<>"",'Data entry'!P84,"") ->  | R81: =IF('Data entry'!Q84<>"",'Data entry'!Q84,"") ->  | S81: =IF('Data entry'!R84<>"",'Data entry'!R84,"") ->  | T81: =IF('Data entry'!S84<>"",'Data entry'!S84,"") ->  | U81: =IF('Data entry'!T84<>"",'Data entry'!T84,"") ->  | V81: =IF('Data entry'!U84<>"",'Data entry'!U84,"") ->  | W81: =IF('Data entry'!V84<>"",'Data entry'!V84,"") ->  | Y81: 68 | AW81: 0 | JM81: 0
C82: 69 | D82: =IF('Data entry'!C85<>"",'Data entry'!C85,"") ->  | E82: =IF('Data entry'!D85<>"",'Data entry'!D85,"") ->  | F82: =IF('Data entry'!E85<>"",'Data entry'!E85,"") ->  | G82: =IF('Data entry'!F85<>"",'Data entry'!F85,"") ->  | H82: =IF('Data entry'!G85<>"",'Data entry'!G85,"") ->  | I82: =IF('Data entry'!H85<>"",'Data entry'!H85,"") ->  | J82: =IF('Data entry'!I85<>"",'Data entry'!I85,"") ->  | K82: =IF('Data entry'!J85<>"",'Data entry'!J85,"") ->  | L82: =IF('Data entry'!K85<>"",'Data entry'!K85,"") ->  | M82: =IF('Data entry'!L85<>"",'Data entry'!L85,"") ->  | N82: =IF('Data entry'!M85<>"",'Data entry'!M85,"") ->  | O82: =IF('Data entry'!N85<>"",'Data entry'!N85,"") ->  | P82: =IF('Data entry'!O85<>"",'Data entry'!O85,"") ->  | Q82: =IF('Data entry'!P85<>"",'Data entry'!P85,"") ->  | R82: =IF('Data entry'!Q85<>"",'Data entry'!Q85,"") ->  | S82: =IF('Data entry'!R85<>"",'Data entry'!R85,"") ->  | T82: =IF('Data entry'!S85<>"",'Data entry'!S85,"") ->  | U82: =IF('Data entry'!T85<>"",'Data entry'!T85,"") ->  | V82: =IF('Data entry'!U85<>"",'Data entry'!U85,"") ->  | W82: =IF('Data entry'!V85<>"",'Data entry'!V85,"") ->  | Y82: 69 | AW82: 0 | JM82: 0
C83: 70 | D83: =IF('Data entry'!C86<>"",'Data entry'!C86,"") ->  | E83: =IF('Data entry'!D86<>"",'Data entry'!D86,"") ->  | F83: =IF('Data entry'!E86<>"",'Data entry'!E86,"") ->  | G83: =IF('Data entry'!F86<>"",'Data entry'!F86,"") ->  | H83: =IF('Data entry'!G86<>"",'Data entry'!G86,"") ->  | I83: =IF('Data entry'!H86<>"",'Data entry'!H86,"") ->  | J83: =IF('Data entry'!I86<>"",'Data entry'!I86,"") ->  | K83: =IF('Data entry'!J86<>"",'Data entry'!J86,"") ->  | L83: =IF('Data entry'!K86<>"",'Data entry'!K86,"") ->  | M83: =IF('Data entry'!L86<>"",'Data entry'!L86,"") ->  | N83: =IF('Data entry'!M86<>"",'Data entry'!M86,"") ->  | O83: =IF('Data entry'!N86<>"",'Data entry'!N86,"") ->  | P83: =IF('Data entry'!O86<>"",'Data entry'!O86,"") ->  | Q83: =IF('Data entry'!P86<>"",'Data entry'!P86,"") ->  | R83: =IF('Data entry'!Q86<>"",'Data entry'!Q86,"") ->  | S83: =IF('Data entry'!R86<>"",'Data entry'!R86,"") ->  | T83: =IF('Data entry'!S86<>"",'Data entry'!S86,"") ->  | U83: =IF('Data entry'!T86<>"",'Data entry'!T86,"") ->  | V83: =IF('Data entry'!U86<>"",'Data entry'!U86,"") ->  | W83: =IF('Data entry'!V86<>"",'Data entry'!V86,"") ->  | Y83: 70 | AW83: 0 | JM83: 0
C84: 71 | D84: =IF('Data entry'!C87<>"",'Data entry'!C87,"") ->  | E84: =IF('Data entry'!D87<>"",'Data entry'!D87,"") ->  | F84: =IF('Data entry'!E87<>"",'Data entry'!E87,"") ->  | G84: =IF('Data entry'!F87<>"",'Data entry'!F87,"") ->  | H84: =IF('Data entry'!G87<>"",'Data entry'!G87,"") ->  | I84: =IF('Data entry'!H87<>"",'Data entry'!H87,"") ->  | J84: =IF('Data entry'!I87<>"",'Data entry'!I87,"") ->  | K84: =IF('Data entry'!J87<>"",'Data entry'!J87,"") ->  | L84: =IF('Data entry'!K87<>"",'Data entry'!K87,"") ->  | M84: =IF('Data entry'!L87<>"",'Data entry'!L87,"") ->  | N84: =IF('Data entry'!M87<>"",'Data entry'!M87,"") ->  | O84: =IF('Data entry'!N87<>"",'Data entry'!N87,"") ->  | P84: =IF('Data entry'!O87<>"",'Data entry'!O87,"") ->  | Q84: =IF('Data entry'!P87<>"",'Data entry'!P87,"") ->  | R84: =IF('Data entry'!Q87<>"",'Data entry'!Q87,"") ->  | S84: =IF('Data entry'!R87<>"",'Data entry'!R87,"") ->  | T84: =IF('Data entry'!S87<>"",'Data entry'!S87,"") ->  | U84: =IF('Data entry'!T87<>"",'Data entry'!T87,"") ->  | V84: =IF('Data entry'!U87<>"",'Data entry'!U87,"") ->  | W84: =IF('Data entry'!V87<>"",'Data entry'!V87,"") ->  | Y84: 71 | AW84: 0 | JM84: 0
C85: 72 | D85: =IF('Data entry'!C88<>"",'Data entry'!C88,"") ->  | E85: =IF('Data entry'!D88<>"",'Data entry'!D88,"") ->  | F85: =IF('Data entry'!E88<>"",'Data entry'!E88,"") ->  | G85: =IF('Data entry'!F88<>"",'Data entry'!F88,"") ->  | H85: =IF('Data entry'!G88<>"",'Data entry'!G88,"") ->  | I85: =IF('Data entry'!H88<>"",'Data entry'!H88,"") ->  | J85: =IF('Data entry'!I88<>"",'Data entry'!I88,"") ->  | K85: =IF('Data entry'!J88<>"",'Data entry'!J88,"") ->  | L85: =IF('Data entry'!K88<>"",'Data entry'!K88,"") ->  | M85: =IF('Data entry'!L88<>"",'Data entry'!L88,"") ->  | N85: =IF('Data entry'!M88<>"",'Data entry'!M88,"") ->  | O85: =IF('Data entry'!N88<>"",'Data entry'!N88,"") ->  | P85: =IF('Data entry'!O88<>"",'Data entry'!O88,"") ->  | Q85: =IF('Data entry'!P88<>"",'Data entry'!P88,"") ->  | R85: =IF('Data entry'!Q88<>"",'Data entry'!Q88,"") ->  | S85: =IF('Data entry'!R88<>"",'Data entry'!R88,"") ->  | T85: =IF('Data entry'!S88<>"",'Data entry'!S88,"") ->  | U85: =IF('Data entry'!T88<>"",'Data entry'!T88,"") ->  | V85: =IF('Data entry'!U88<>"",'Data entry'!U88,"") ->  | W85: =IF('Data entry'!V88<>"",'Data entry'!V88,"") ->  | Y85: 72 | AW85: 0 | JM85: 0
C86: 73 | D86: =IF('Data entry'!C89<>"",'Data entry'!C89,"") ->  | E86: =IF('Data entry'!D89<>"",'Data entry'!D89,"") ->  | F86: =IF('Data entry'!E89<>"",'Data entry'!E89,"") ->  | G86: =IF('Data entry'!F89<>"",'Data entry'!F89,"") ->  | H86: =IF('Data entry'!G89<>"",'Data entry'!G89,"") ->  | I86: =IF('Data entry'!H89<>"",'Data entry'!H89,"") ->  | J86: =IF('Data entry'!I89<>"",'Data entry'!I89,"") ->  | K86: =IF('Data entry'!J89<>"",'Data entry'!J89,"") ->  | L86: =IF('Data entry'!K89<>"",'Data entry'!K89,"") ->  | M86: =IF('Data entry'!L89<>"",'Data entry'!L89,"") ->  | N86: =IF('Data entry'!M89<>"",'Data entry'!M89,"") ->  | O86: =IF('Data entry'!N89<>"",'Data entry'!N89,"") ->  | P86: =IF('Data entry'!O89<>"",'Data entry'!O89,"") ->  | Q86: =IF('Data entry'!P89<>"",'Data entry'!P89,"") ->  | R86: =IF('Data entry'!Q89<>"",'Data entry'!Q89,"") ->  | S86: =IF('Data entry'!R89<>"",'Data entry'!R89,"") ->  | T86: =IF('Data entry'!S89<>"",'Data entry'!S89,"") ->  | U86: =IF('Data entry'!T89<>"",'Data entry'!T89,"") ->  | V86: =IF('Data entry'!U89<>"",'Data entry'!U89,"") ->  | W86: =IF('Data entry'!V89<>"",'Data entry'!V89,"") ->  | Y86: 73 | AW86: 0 | JC86: =IFERROR(SUMXMY2(JC$8:JV$8,$D79:$W79),"") ->  | JD86: =IFERROR(SUMXMY2(JC$9:JV$9,$D79:$W79),"") ->  | JM86: =MIN(JC86:JD86) -> 0 | JN86: =+AX79 ->  | JO86: =IF($JN86=JO$20,JC86,"") ->  | JP86: =IF($JN86=JP$20,JD86,"") -> 
C87: 74 | D87: =IF('Data entry'!C90<>"",'Data entry'!C90,"") ->  | E87: =IF('Data entry'!D90<>"",'Data entry'!D90,"") ->  | F87: =IF('Data entry'!E90<>"",'Data entry'!E90,"") ->  | G87: =IF('Data entry'!F90<>"",'Data entry'!F90,"") ->  | H87: =IF('Data entry'!G90<>"",'Data entry'!G90,"") ->  | I87: =IF('Data entry'!H90<>"",'Data entry'!H90,"") ->  | J87: =IF('Data entry'!I90<>"",'Data entry'!I90,"") ->  | K87: =IF('Data entry'!J90<>"",'Data entry'!J90,"") ->  | L87: =IF('Data entry'!K90<>"",'Data entry'!K90,"") ->  | M87: =IF('Data entry'!L90<>"",'Data entry'!L90,"") ->  | N87: =IF('Data entry'!M90<>"",'Data entry'!M90,"") ->  | O87: =IF('Data entry'!N90<>"",'Data entry'!N90,"") ->  | P87: =IF('Data entry'!O90<>"",'Data entry'!O90,"") ->  | Q87: =IF('Data entry'!P90<>"",'Data entry'!P90,"") ->  | R87: =IF('Data entry'!Q90<>"",'Data entry'!Q90,"") ->  | S87: =IF('Data entry'!R90<>"",'Data entry'!R90,"") ->  | T87: =IF('Data entry'!S90<>"",'Data entry'!S90,"") ->  | U87: =IF('Data entry'!T90<>"",'Data entry'!T90,"") ->  | V87: =IF('Data entry'!U90<>"",'Data entry'!U90,"") ->  | W87: =IF('Data entry'!V90<>"",'Data entry'!V90,"") ->  | Y87: 74 | AW87: 0 | JM87: 0
C88: 75 | D88: =IF('Data entry'!C91<>"",'Data entry'!C91,"") ->  | E88: =IF('Data entry'!D91<>"",'Data entry'!D91,"") ->  | F88: =IF('Data entry'!E91<>"",'Data entry'!E91,"") ->  | G88: =IF('Data entry'!F91<>"",'Data entry'!F91,"") ->  | H88: =IF('Data entry'!G91<>"",'Data entry'!G91,"") ->  | I88: =IF('Data entry'!H91<>"",'Data entry'!H91,"") ->  | J88: =IF('Data entry'!I91<>"",'Data entry'!I91,"") ->  | K88: =IF('Data entry'!J91<>"",'Data entry'!J91,"") ->  | L88: =IF('Data entry'!K91<>"",'Data entry'!K91,"") ->  | M88: =IF('Data entry'!L91<>"",'Data entry'!L91,"") ->  | N88: =IF('Data entry'!M91<>"",'Data entry'!M91,"") ->  | O88: =IF('Data entry'!N91<>"",'Data entry'!N91,"") ->  | P88: =IF('Data entry'!O91<>"",'Data entry'!O91,"") ->  | Q88: =IF('Data entry'!P91<>"",'Data entry'!P91,"") ->  | R88: =IF('Data entry'!Q91<>"",'Data entry'!Q91,"") ->  | S88: =IF('Data entry'!R91<>"",'Data entry'!R91,"") ->  | T88: =IF('Data entry'!S91<>"",'Data entry'!S91,"") ->  | U88: =IF('Data entry'!T91<>"",'Data entry'!T91,"") ->  | V88: =IF('Data entry'!U91<>"",'Data entry'!U91,"") ->  | W88: =IF('Data entry'!V91<>"",'Data entry'!V91,"") ->  | Y88: 75 | AW88: 0 | JM88: 0
C89: 76 | D89: =IF('Data entry'!C92<>"",'Data entry'!C92,"") ->  | E89: =IF('Data entry'!D92<>"",'Data entry'!D92,"") ->  | F89: =IF('Data entry'!E92<>"",'Data entry'!E92,"") ->  | G89: =IF('Data entry'!F92<>"",'Data entry'!F92,"") ->  | H89: =IF('Data entry'!G92<>"",'Data entry'!G92,"") ->  | I89: =IF('Data entry'!H92<>"",'Data entry'!H92,"") ->  | J89: =IF('Data entry'!I92<>"",'Data entry'!I92,"") ->  | K89: =IF('Data entry'!J92<>"",'Data entry'!J92,"") ->  | L89: =IF('Data entry'!K92<>"",'Data entry'!K92,"") ->  | M89: =IF('Data entry'!L92<>"",'Data entry'!L92,"") ->  | N89: =IF('Data entry'!M92<>"",'Data entry'!M92,"") ->  | O89: =IF('Data entry'!N92<>"",'Data entry'!N92,"") ->  | P89: =IF('Data entry'!O92<>"",'Data entry'!O92,"") ->  | Q89: =IF('Data entry'!P92<>"",'Data entry'!P92,"") ->  | R89: =IF('Data entry'!Q92<>"",'Data entry'!Q92,"") ->  | S89: =IF('Data entry'!R92<>"",'Data entry'!R92,"") ->  | T89: =IF('Data entry'!S92<>"",'Data entry'!S92,"") ->  | U89: =IF('Data entry'!T92<>"",'Data entry'!T92,"") ->  | V89: =IF('Data entry'!U92<>"",'Data entry'!U92,"") ->  | W89: =IF('Data entry'!V92<>"",'Data entry'!V92,"") ->  | Y89: 76 | AW89: 0 | JM89: 0
C90: 77 | D90: =IF('Data entry'!C93<>"",'Data entry'!C93,"") ->  | E90: =IF('Data entry'!D93<>"",'Data entry'!D93,"") ->  | F90: =IF('Data entry'!E93<>"",'Data entry'!E93,"") ->  | G90: =IF('Data entry'!F93<>"",'Data entry'!F93,"") ->  | H90: =IF('Data entry'!G93<>"",'Data entry'!G93,"") ->  | I90: =IF('Data entry'!H93<>"",'Data entry'!H93,"") ->  | J90: =IF('Data entry'!I93<>"",'Data entry'!I93,"") ->  | K90: =IF('Data entry'!J93<>"",'Data entry'!J93,"") ->  | L90: =IF('Data entry'!K93<>"",'Data entry'!K93,"") ->  | M90: =IF('Data entry'!L93<>"",'Data entry'!L93,"") ->  | N90: =IF('Data entry'!M93<>"",'Data entry'!M93,"") ->  | O90: =IF('Data entry'!N93<>"",'Data entry'!N93,"") ->  | P90: =IF('Data entry'!O93<>"",'Data entry'!O93,"") ->  | Q90: =IF('Data entry'!P93<>"",'Data entry'!P93,"") ->  | R90: =IF('Data entry'!Q93<>"",'Data entry'!Q93,"") ->  | S90: =IF('Data entry'!R93<>"",'Data entry'!R93,"") ->  | T90: =IF('Data entry'!S93<>"",'Data entry'!S93,"") ->  | U90: =IF('Data entry'!T93<>"",'Data entry'!T93,"") ->  | V90: =IF('Data entry'!U93<>"",'Data entry'!U93,"") ->  | W90: =IF('Data entry'!V93<>"",'Data entry'!V93,"") ->  | Y90: 77 | AW90: 0 | JM90: 0
C91: 78 | D91: =IF('Data entry'!C94<>"",'Data entry'!C94,"") ->  | E91: =IF('Data entry'!D94<>"",'Data entry'!D94,"") ->  | F91: =IF('Data entry'!E94<>"",'Data entry'!E94,"") ->  | G91: =IF('Data entry'!F94<>"",'Data entry'!F94,"") ->  | H91: =IF('Data entry'!G94<>"",'Data entry'!G94,"") ->  | I91: =IF('Data entry'!H94<>"",'Data entry'!H94,"") ->  | J91: =IF('Data entry'!I94<>"",'Data entry'!I94,"") ->  | K91: =IF('Data entry'!J94<>"",'Data entry'!J94,"") ->  | L91: =IF('Data entry'!K94<>"",'Data entry'!K94,"") ->  | M91: =IF('Data entry'!L94<>"",'Data entry'!L94,"") ->  | N91: =IF('Data entry'!M94<>"",'Data entry'!M94,"") ->  | O91: =IF('Data entry'!N94<>"",'Data entry'!N94,"") ->  | P91: =IF('Data entry'!O94<>"",'Data entry'!O94,"") ->  | Q91: =IF('Data entry'!P94<>"",'Data entry'!P94,"") ->  | R91: =IF('Data entry'!Q94<>"",'Data entry'!Q94,"") ->  | S91: =IF('Data entry'!R94<>"",'Data entry'!R94,"") ->  | T91: =IF('Data entry'!S94<>"",'Data entry'!S94,"") ->  | U91: =IF('Data entry'!T94<>"",'Data entry'!T94,"") ->  | V91: =IF('Data entry'!U94<>"",'Data entry'!U94,"") ->  | W91: =IF('Data entry'!V94<>"",'Data entry'!V94,"") ->  | Y91: 78 | AW91: 0 | JM91: 0
C92: 79 | D92: =IF('Data entry'!C95<>"",'Data entry'!C95,"") ->  | E92: =IF('Data entry'!D95<>"",'Data entry'!D95,"") ->  | F92: =IF('Data entry'!E95<>"",'Data entry'!E95,"") ->  | G92: =IF('Data entry'!F95<>"",'Data entry'!F95,"") ->  | H92: =IF('Data entry'!G95<>"",'Data entry'!G95,"") ->  | I92: =IF('Data entry'!H95<>"",'Data entry'!H95,"") ->  | J92: =IF('Data entry'!I95<>"",'Data entry'!I95,"") ->  | K92: =IF('Data entry'!J95<>"",'Data entry'!J95,"") ->  | L92: =IF('Data entry'!K95<>"",'Data entry'!K95,"") ->  | M92: =IF('Data entry'!L95<>"",'Data entry'!L95,"") ->  | N92: =IF('Data entry'!M95<>"",'Data entry'!M95,"") ->  | O92: =IF('Data entry'!N95<>"",'Data entry'!N95,"") ->  | P92: =IF('Data entry'!O95<>"",'Data entry'!O95,"") ->  | Q92: =IF('Data entry'!P95<>"",'Data entry'!P95,"") ->  | R92: =IF('Data entry'!Q95<>"",'Data entry'!Q95,"") ->  | S92: =IF('Data entry'!R95<>"",'Data entry'!R95,"") ->  | T92: =IF('Data entry'!S95<>"",'Data entry'!S95,"") ->  | U92: =IF('Data entry'!T95<>"",'Data entry'!T95,"") ->  | V92: =IF('Data entry'!U95<>"",'Data entry'!U95,"") ->  | W92: =IF('Data entry'!V95<>"",'Data entry'!V95,"") ->  | Y92: 79 | AW92: 0 | JM92: 0
C93: 80 | D93: =IF('Data entry'!C96<>"",'Data entry'!C96,"") ->  | E93: =IF('Data entry'!D96<>"",'Data entry'!D96,"") ->  | F93: =IF('Data entry'!E96<>"",'Data entry'!E96,"") ->  | G93: =IF('Data entry'!F96<>"",'Data entry'!F96,"") ->  | H93: =IF('Data entry'!G96<>"",'Data entry'!G96,"") ->  | I93: =IF('Data entry'!H96<>"",'Data entry'!H96,"") ->  | J93: =IF('Data entry'!I96<>"",'Data entry'!I96,"") ->  | K93: =IF('Data entry'!J96<>"",'Data entry'!J96,"") ->  | L93: =IF('Data entry'!K96<>"",'Data entry'!K96,"") ->  | M93: =IF('Data entry'!L96<>"",'Data entry'!L96,"") ->  | N93: =IF('Data entry'!M96<>"",'Data entry'!M96,"") ->  | O93: =IF('Data entry'!N96<>"",'Data entry'!N96,"") ->  | P93: =IF('Data entry'!O96<>"",'Data entry'!O96,"") ->  | Q93: =IF('Data entry'!P96<>"",'Data entry'!P96,"") ->  | R93: =IF('Data entry'!Q96<>"",'Data entry'!Q96,"") ->  | S93: =IF('Data entry'!R96<>"",'Data entry'!R96,"") ->  | T93: =IF('Data entry'!S96<>"",'Data entry'!S96,"") ->  | U93: =IF('Data entry'!T96<>"",'Data entry'!T96,"") ->  | V93: =IF('Data entry'!U96<>"",'Data entry'!U96,"") ->  | W93: =IF('Data entry'!V96<>"",'Data entry'!V96,"") ->  | Y93: 80 | AW93: 0 | JM93: 0
C94: 81 | D94: =IF('Data entry'!C97<>"",'Data entry'!C97,"") ->  | E94: =IF('Data entry'!D97<>"",'Data entry'!D97,"") ->  | F94: =IF('Data entry'!E97<>"",'Data entry'!E97,"") ->  | G94: =IF('Data entry'!F97<>"",'Data entry'!F97,"") ->  | H94: =IF('Data entry'!G97<>"",'Data entry'!G97,"") ->  | I94: =IF('Data entry'!H97<>"",'Data entry'!H97,"") ->  | J94: =IF('Data entry'!I97<>"",'Data entry'!I97,"") ->  | K94: =IF('Data entry'!J97<>"",'Data entry'!J97,"") ->  | L94: =IF('Data entry'!K97<>"",'Data entry'!K97,"") ->  | M94: =IF('Data entry'!L97<>"",'Data entry'!L97,"") ->  | N94: =IF('Data entry'!M97<>"",'Data entry'!M97,"") ->  | O94: =IF('Data entry'!N97<>"",'Data entry'!N97,"") ->  | P94: =IF('Data entry'!O97<>"",'Data entry'!O97,"") ->  | Q94: =IF('Data entry'!P97<>"",'Data entry'!P97,"") ->  | R94: =IF('Data entry'!Q97<>"",'Data entry'!Q97,"") ->  | S94: =IF('Data entry'!R97<>"",'Data entry'!R97,"") ->  | T94: =IF('Data entry'!S97<>"",'Data entry'!S97,"") ->  | U94: =IF('Data entry'!T97<>"",'Data entry'!T97,"") ->  | V94: =IF('Data entry'!U97<>"",'Data entry'!U97,"") ->  | W94: =IF('Data entry'!V97<>"",'Data entry'!V97,"") ->  | Y94: 81 | AW94: 0 | JM94: 0
C95: 82 | D95: =IF('Data entry'!C98<>"",'Data entry'!C98,"") ->  | E95: =IF('Data entry'!D98<>"",'Data entry'!D98,"") ->  | F95: =IF('Data entry'!E98<>"",'Data entry'!E98,"") ->  | G95: =IF('Data entry'!F98<>"",'Data entry'!F98,"") ->  | H95: =IF('Data entry'!G98<>"",'Data entry'!G98,"") ->  | I95: =IF('Data entry'!H98<>"",'Data entry'!H98,"") ->  | J95: =IF('Data entry'!I98<>"",'Data entry'!I98,"") ->  | K95: =IF('Data entry'!J98<>"",'Data entry'!J98,"") ->  | L95: =IF('Data entry'!K98<>"",'Data entry'!K98,"") ->  | M95: =IF('Data entry'!L98<>"",'Data entry'!L98,"") ->  | N95: =IF('Data entry'!M98<>"",'Data entry'!M98,"") ->  | O95: =IF('Data entry'!N98<>"",'Data entry'!N98,"") ->  | P95: =IF('Data entry'!O98<>"",'Data entry'!O98,"") ->  | Q95: =IF('Data entry'!P98<>"",'Data entry'!P98,"") ->  | R95: =IF('Data entry'!Q98<>"",'Data entry'!Q98,"") ->  | S95: =IF('Data entry'!R98<>"",'Data entry'!R98,"") ->  | T95: =IF('Data entry'!S98<>"",'Data entry'!S98,"") ->  | U95: =IF('Data entry'!T98<>"",'Data entry'!T98,"") ->  | V95: =IF('Data entry'!U98<>"",'Data entry'!U98,"") ->  | W95: =IF('Data entry'!V98<>"",'Data entry'!V98,"") ->  | Y95: 82 | AW95: 0 | JM95: 0
C96: 83 | D96: =IF('Data entry'!C99<>"",'Data entry'!C99,"") ->  | E96: =IF('Data entry'!D99<>"",'Data entry'!D99,"") ->  | F96: =IF('Data entry'!E99<>"",'Data entry'!E99,"") ->  | G96: =IF('Data entry'!F99<>"",'Data entry'!F99,"") ->  | H96: =IF('Data entry'!G99<>"",'Data entry'!G99,"") ->  | I96: =IF('Data entry'!H99<>"",'Data entry'!H99,"") ->  | J96: =IF('Data entry'!I99<>"",'Data entry'!I99,"") ->  | K96: =IF('Data entry'!J99<>"",'Data entry'!J99,"") ->  | L96: =IF('Data entry'!K99<>"",'Data entry'!K99,"") ->  | M96: =IF('Data entry'!L99<>"",'Data entry'!L99,"") ->  | N96: =IF('Data entry'!M99<>"",'Data entry'!M99,"") ->  | O96: =IF('Data entry'!N99<>"",'Data entry'!N99,"") ->  | P96: =IF('Data entry'!O99<>"",'Data entry'!O99,"") ->  | Q96: =IF('Data entry'!P99<>"",'Data entry'!P99,"") ->  | R96: =IF('Data entry'!Q99<>"",'Data entry'!Q99,"") ->  | S96: =IF('Data entry'!R99<>"",'Data entry'!R99,"") ->  | T96: =IF('Data entry'!S99<>"",'Data entry'!S99,"") ->  | U96: =IF('Data entry'!T99<>"",'Data entry'!T99,"") ->  | V96: =IF('Data entry'!U99<>"",'Data entry'!U99,"") ->  | W96: =IF('Data entry'!V99<>"",'Data entry'!V99,"") ->  | Y96: 83 | AW96: 0 | JM96: 0
C97: 84 | D97: =IF('Data entry'!C100<>"",'Data entry'!C100,"") ->  | E97: =IF('Data entry'!D100<>"",'Data entry'!D100,"") ->  | F97: =IF('Data entry'!E100<>"",'Data entry'!E100,"") ->  | G97: =IF('Data entry'!F100<>"",'Data entry'!F100,"") ->  | H97: =IF('Data entry'!G100<>"",'Data entry'!G100,"") ->  | I97: =IF('Data entry'!H100<>"",'Data entry'!H100,"") ->  | J97: =IF('Data entry'!I100<>"",'Data entry'!I100,"") ->  | K97: =IF('Data entry'!J100<>"",'Data entry'!J100,"") ->  | L97: =IF('Data entry'!K100<>"",'Data entry'!K100,"") ->  | M97: =IF('Data entry'!L100<>"",'Data entry'!L100,"") ->  | N97: =IF('Data entry'!M100<>"",'Data entry'!M100,"") ->  | O97: =IF('Data entry'!N100<>"",'Data entry'!N100,"") ->  | P97: =IF('Data entry'!O100<>"",'Data entry'!O100,"") ->  | Q97: =IF('Data entry'!P100<>"",'Data entry'!P100,"") ->  | R97: =IF('Data entry'!Q100<>"",'Data entry'!Q100,"") ->  | S97: =IF('Data entry'!R100<>"",'Data entry'!R100,"") ->  | T97: =IF('Data entry'!S100<>"",'Data entry'!S100,"") ->  | U97: =IF('Data entry'!T100<>"",'Data entry'!T100,"") ->  | V97: =IF('Data entry'!U100<>"",'Data entry'!U100,"") ->  | W97: =IF('Data entry'!V100<>"",'Data entry'!V100,"") ->  | Y97: 84 | AW97: 0 | JM97: 0
C98: 85 | D98: =IF('Data entry'!C101<>"",'Data entry'!C101,"") ->  | E98: =IF('Data entry'!D101<>"",'Data entry'!D101,"") ->  | F98: =IF('Data entry'!E101<>"",'Data entry'!E101,"") ->  | G98: =IF('Data entry'!F101<>"",'Data entry'!F101,"") ->  | H98: =IF('Data entry'!G101<>"",'Data entry'!G101,"") ->  | I98: =IF('Data entry'!H101<>"",'Data entry'!H101,"") ->  | J98: =IF('Data entry'!I101<>"",'Data entry'!I101,"") ->  | K98: =IF('Data entry'!J101<>"",'Data entry'!J101,"") ->  | L98: =IF('Data entry'!K101<>"",'Data entry'!K101,"") ->  | M98: =IF('Data entry'!L101<>"",'Data entry'!L101,"") ->  | N98: =IF('Data entry'!M101<>"",'Data entry'!M101,"") ->  | O98: =IF('Data entry'!N101<>"",'Data entry'!N101,"") ->  | P98: =IF('Data entry'!O101<>"",'Data entry'!O101,"") ->  | Q98: =IF('Data entry'!P101<>"",'Data entry'!P101,"") ->  | R98: =IF('Data entry'!Q101<>"",'Data entry'!Q101,"") ->  | S98: =IF('Data entry'!R101<>"",'Data entry'!R101,"") ->  | T98: =IF('Data entry'!S101<>"",'Data entry'!S101,"") ->  | U98: =IF('Data entry'!T101<>"",'Data entry'!T101,"") ->  | V98: =IF('Data entry'!U101<>"",'Data entry'!U101,"") ->  | W98: =IF('Data entry'!V101<>"",'Data entry'!V101,"") ->  | Y98: 85 | AW98: 0 | JM98: 0
C99: 86 | D99: =IF('Data entry'!C102<>"",'Data entry'!C102,"") ->  | E99: =IF('Data entry'!D102<>"",'Data entry'!D102,"") ->  | F99: =IF('Data entry'!E102<>"",'Data entry'!E102,"") ->  | G99: =IF('Data entry'!F102<>"",'Data entry'!F102,"") ->  | H99: =IF('Data entry'!G102<>"",'Data entry'!G102,"") ->  | I99: =IF('Data entry'!H102<>"",'Data entry'!H102,"") ->  | J99: =IF('Data entry'!I102<>"",'Data entry'!I102,"") ->  | K99: =IF('Data entry'!J102<>"",'Data entry'!J102,"") ->  | L99: =IF('Data entry'!K102<>"",'Data entry'!K102,"") ->  | M99: =IF('Data entry'!L102<>"",'Data entry'!L102,"") ->  | N99: =IF('Data entry'!M102<>"",'Data entry'!M102,"") ->  | O99: =IF('Data entry'!N102<>"",'Data entry'!N102,"") ->  | P99: =IF('Data entry'!O102<>"",'Data entry'!O102,"") ->  | Q99: =IF('Data entry'!P102<>"",'Data entry'!P102,"") ->  | R99: =IF('Data entry'!Q102<>"",'Data entry'!Q102,"") ->  | S99: =IF('Data entry'!R102<>"",'Data entry'!R102,"") ->  | T99: =IF('Data entry'!S102<>"",'Data entry'!S102,"") ->  | U99: =IF('Data entry'!T102<>"",'Data entry'!T102,"") ->  | V99: =IF('Data entry'!U102<>"",'Data entry'!U102,"") ->  | W99: =IF('Data entry'!V102<>"",'Data entry'!V102,"") ->  | Y99: 86 | AW99: 0 | JM99: 0
C100: 87 | D100: =IF('Data entry'!C103<>"",'Data entry'!C103,"") ->  | E100: =IF('Data entry'!D103<>"",'Data entry'!D103,"") ->  | F100: =IF('Data entry'!E103<>"",'Data entry'!E103,"") ->  | G100: =IF('Data entry'!F103<>"",'Data entry'!F103,"") ->  | H100: =IF('Data entry'!G103<>"",'Data entry'!G103,"") ->  | I100: =IF('Data entry'!H103<>"",'Data entry'!H103,"") ->  | J100: =IF('Data entry'!I103<>"",'Data entry'!I103,"") ->  | K100: =IF('Data entry'!J103<>"",'Data entry'!J103,"") ->  | L100: =IF('Data entry'!K103<>"",'Data entry'!K103,"") ->  | M100: =IF('Data entry'!L103<>"",'Data entry'!L103,"") ->  | N100: =IF('Data entry'!M103<>"",'Data entry'!M103,"") ->  | O100: =IF('Data entry'!N103<>"",'Data entry'!N103,"") ->  | P100: =IF('Data entry'!O103<>"",'Data entry'!O103,"") ->  | Q100: =IF('Data entry'!P103<>"",'Data entry'!P103,"") ->  | R100: =IF('Data entry'!Q103<>"",'Data entry'!Q103,"") ->  | S100: =IF('Data entry'!R103<>"",'Data entry'!R103,"") ->  | T100: =IF('Data entry'!S103<>"",'Data entry'!S103,"") ->  | U100: =IF('Data entry'!T103<>"",'Data entry'!T103,"") ->  | V100: =IF('Data entry'!U103<>"",'Data entry'!U103,"") ->  | W100: =IF('Data entry'!V103<>"",'Data entry'!V103,"") ->  | Y100: 87 | AW100: 0 | JM100: 0
C101: 88 | D101: =IF('Data entry'!C104<>"",'Data entry'!C104,"") ->  | E101: =IF('Data entry'!D104<>"",'Data entry'!D104,"") ->  | F101: =IF('Data entry'!E104<>"",'Data entry'!E104,"") ->  | G101: =IF('Data entry'!F104<>"",'Data entry'!F104,"") ->  | H101: =IF('Data entry'!G104<>"",'Data entry'!G104,"") ->  | I101: =IF('Data entry'!H104<>"",'Data entry'!H104,"") ->  | J101: =IF('Data entry'!I104<>"",'Data entry'!I104,"") ->  | K101: =IF('Data entry'!J104<>"",'Data entry'!J104,"") ->  | L101: =IF('Data entry'!K104<>"",'Data entry'!K104,"") ->  | M101: =IF('Data entry'!L104<>"",'Data entry'!L104,"") ->  | N101: =IF('Data entry'!M104<>"",'Data entry'!M104,"") ->  | O101: =IF('Data entry'!N104<>"",'Data entry'!N104,"") ->  | P101: =IF('Data entry'!O104<>"",'Data entry'!O104,"") ->  | Q101: =IF('Data entry'!P104<>"",'Data entry'!P104,"") ->  | R101: =IF('Data entry'!Q104<>"",'Data entry'!Q104,"") ->  | S101: =IF('Data entry'!R104<>"",'Data entry'!R104,"") ->  | T101: =IF('Data entry'!S104<>"",'Data entry'!S104,"") ->  | U101: =IF('Data entry'!T104<>"",'Data entry'!T104,"") ->  | V101: =IF('Data entry'!U104<>"",'Data entry'!U104,"") ->  | W101: =IF('Data entry'!V104<>"",'Data entry'!V104,"") ->  | Y101: 88 | AW101: 0 | JM101: 0
C102: 89 | D102: =IF('Data entry'!C105<>"",'Data entry'!C105,"") ->  | E102: =IF('Data entry'!D105<>"",'Data entry'!D105,"") ->  | F102: =IF('Data entry'!E105<>"",'Data entry'!E105,"") ->  | G102: =IF('Data entry'!F105<>"",'Data entry'!F105,"") ->  | H102: =IF('Data entry'!G105<>"",'Data entry'!G105,"") ->  | I102: =IF('Data entry'!H105<>"",'Data entry'!H105,"") ->  | J102: =IF('Data entry'!I105<>"",'Data entry'!I105,"") ->  | K102: =IF('Data entry'!J105<>"",'Data entry'!J105,"") ->  | L102: =IF('Data entry'!K105<>"",'Data entry'!K105,"") ->  | M102: =IF('Data entry'!L105<>"",'Data entry'!L105,"") ->  | N102: =IF('Data entry'!M105<>"",'Data entry'!M105,"") ->  | O102: =IF('Data entry'!N105<>"",'Data entry'!N105,"") ->  | P102: =IF('Data entry'!O105<>"",'Data entry'!O105,"") ->  | Q102: =IF('Data entry'!P105<>"",'Data entry'!P105,"") ->  | R102: =IF('Data entry'!Q105<>"",'Data entry'!Q105,"") ->  | S102: =IF('Data entry'!R105<>"",'Data entry'!R105,"") ->  | T102: =IF('Data entry'!S105<>"",'Data entry'!S105,"") ->  | U102: =IF('Data entry'!T105<>"",'Data entry'!T105,"") ->  | V102: =IF('Data entry'!U105<>"",'Data entry'!U105,"") ->  | W102: =IF('Data entry'!V105<>"",'Data entry'!V105,"") ->  | Y102: 89 | AW102: 0 | JM102: 0
C103: 90 | D103: =IF('Data entry'!C106<>"",'Data entry'!C106,"") ->  | E103: =IF('Data entry'!D106<>"",'Data entry'!D106,"") ->  | F103: =IF('Data entry'!E106<>"",'Data entry'!E106,"") ->  | G103: =IF('Data entry'!F106<>"",'Data entry'!F106,"") ->  | H103: =IF('Data entry'!G106<>"",'Data entry'!G106,"") ->  | I103: =IF('Data entry'!H106<>"",'Data entry'!H106,"") ->  | J103: =IF('Data entry'!I106<>"",'Data entry'!I106,"") ->  | K103: =IF('Data entry'!J106<>"",'Data entry'!J106,"") ->  | L103: =IF('Data entry'!K106<>"",'Data entry'!K106,"") ->  | M103: =IF('Data entry'!L106<>"",'Data entry'!L106,"") ->  | N103: =IF('Data entry'!M106<>"",'Data entry'!M106,"") ->  | O103: =IF('Data entry'!N106<>"",'Data entry'!N106,"") ->  | P103: =IF('Data entry'!O106<>"",'Data entry'!O106,"") ->  | Q103: =IF('Data entry'!P106<>"",'Data entry'!P106,"") ->  | R103: =IF('Data entry'!Q106<>"",'Data entry'!Q106,"") ->  | S103: =IF('Data entry'!R106<>"",'Data entry'!R106,"") ->  | T103: =IF('Data entry'!S106<>"",'Data entry'!S106,"") ->  | U103: =IF('Data entry'!T106<>"",'Data entry'!T106,"") ->  | V103: =IF('Data entry'!U106<>"",'Data entry'!U106,"") ->  | W103: =IF('Data entry'!V106<>"",'Data entry'!V106,"") ->  | Y103: 90 | AW103: 0 | JM103: 0
C104: 91 | D104: =IF('Data entry'!C107<>"",'Data entry'!C107,"") ->  | E104: =IF('Data entry'!D107<>"",'Data entry'!D107,"") ->  | F104: =IF('Data entry'!E107<>"",'Data entry'!E107,"") ->  | G104: =IF('Data entry'!F107<>"",'Data entry'!F107,"") ->  | H104: =IF('Data entry'!G107<>"",'Data entry'!G107,"") ->  | I104: =IF('Data entry'!H107<>"",'Data entry'!H107,"") ->  | J104: =IF('Data entry'!I107<>"",'Data entry'!I107,"") ->  | K104: =IF('Data entry'!J107<>"",'Data entry'!J107,"") ->  | L104: =IF('Data entry'!K107<>"",'Data entry'!K107,"") ->  | M104: =IF('Data entry'!L107<>"",'Data entry'!L107,"") ->  | N104: =IF('Data entry'!M107<>"",'Data entry'!M107,"") ->  | O104: =IF('Data entry'!N107<>"",'Data entry'!N107,"") ->  | P104: =IF('Data entry'!O107<>"",'Data entry'!O107,"") ->  | Q104: =IF('Data entry'!P107<>"",'Data entry'!P107,"") ->  | R104: =IF('Data entry'!Q107<>"",'Data entry'!Q107,"") ->  | S104: =IF('Data entry'!R107<>"",'Data entry'!R107,"") ->  | T104: =IF('Data entry'!S107<>"",'Data entry'!S107,"") ->  | U104: =IF('Data entry'!T107<>"",'Data entry'!T107,"") ->  | V104: =IF('Data entry'!U107<>"",'Data entry'!U107,"") ->  | W104: =IF('Data entry'!V107<>"",'Data entry'!V107,"") ->  | Y104: 91 | AW104: 0 | JM104: 0
C105: 92 | D105: =IF('Data entry'!C108<>"",'Data entry'!C108,"") ->  | E105: =IF('Data entry'!D108<>"",'Data entry'!D108,"") ->  | F105: =IF('Data entry'!E108<>"",'Data entry'!E108,"") ->  | G105: =IF('Data entry'!F108<>"",'Data entry'!F108,"") ->  | H105: =IF('Data entry'!G108<>"",'Data entry'!G108,"") ->  | I105: =IF('Data entry'!H108<>"",'Data entry'!H108,"") ->  | J105: =IF('Data entry'!I108<>"",'Data entry'!I108,"") ->  | K105: =IF('Data entry'!J108<>"",'Data entry'!J108,"") ->  | L105: =IF('Data entry'!K108<>"",'Data entry'!K108,"") ->  | M105: =IF('Data entry'!L108<>"",'Data entry'!L108,"") ->  | N105: =IF('Data entry'!M108<>"",'Data entry'!M108,"") ->  | O105: =IF('Data entry'!N108<>"",'Data entry'!N108,"") ->  | P105: =IF('Data entry'!O108<>"",'Data entry'!O108,"") ->  | Q105: =IF('Data entry'!P108<>"",'Data entry'!P108,"") ->  | R105: =IF('Data entry'!Q108<>"",'Data entry'!Q108,"") ->  | S105: =IF('Data entry'!R108<>"",'Data entry'!R108,"") ->  | T105: =IF('Data entry'!S108<>"",'Data entry'!S108,"") ->  | U105: =IF('Data entry'!T108<>"",'Data entry'!T108,"") ->  | V105: =IF('Data entry'!U108<>"",'Data entry'!U108,"") ->  | W105: =IF('Data entry'!V108<>"",'Data entry'!V108,"") ->  | Y105: 92 | AW105: 0 | JM105: 0
C106: 93 | D106: =IF('Data entry'!C109<>"",'Data entry'!C109,"") ->  | E106: =IF('Data entry'!D109<>"",'Data entry'!D109,"") ->  | F106: =IF('Data entry'!E109<>"",'Data entry'!E109,"") ->  | G106: =IF('Data entry'!F109<>"",'Data entry'!F109,"") ->  | H106: =IF('Data entry'!G109<>"",'Data entry'!G109,"") ->  | I106: =IF('Data entry'!H109<>"",'Data entry'!H109,"") ->  | J106: =IF('Data entry'!I109<>"",'Data entry'!I109,"") ->  | K106: =IF('Data entry'!J109<>"",'Data entry'!J109,"") ->  | L106: =IF('Data entry'!K109<>"",'Data entry'!K109,"") ->  | M106: =IF('Data entry'!L109<>"",'Data entry'!L109,"") ->  | N106: =IF('Data entry'!M109<>"",'Data entry'!M109,"") ->  | O106: =IF('Data entry'!N109<>"",'Data entry'!N109,"") ->  | P106: =IF('Data entry'!O109<>"",'Data entry'!O109,"") ->  | Q106: =IF('Data entry'!P109<>"",'Data entry'!P109,"") ->  | R106: =IF('Data entry'!Q109<>"",'Data entry'!Q109,"") ->  | S106: =IF('Data entry'!R109<>"",'Data entry'!R109,"") ->  | T106: =IF('Data entry'!S109<>"",'Data entry'!S109,"") ->  | U106: =IF('Data entry'!T109<>"",'Data entry'!T109,"") ->  | V106: =IF('Data entry'!U109<>"",'Data entry'!U109,"") ->  | W106: =IF('Data entry'!V109<>"",'Data entry'!V109,"") ->  | Y106: 93 | AW106: 0 | JM106: 0
C107: 94 | D107: =IF('Data entry'!C110<>"",'Data entry'!C110,"") ->  | E107: =IF('Data entry'!D110<>"",'Data entry'!D110,"") ->  | F107: =IF('Data entry'!E110<>"",'Data entry'!E110,"") ->  | G107: =IF('Data entry'!F110<>"",'Data entry'!F110,"") ->  | H107: =IF('Data entry'!G110<>"",'Data entry'!G110,"") ->  | I107: =IF('Data entry'!H110<>"",'Data entry'!H110,"") ->  | J107: =IF('Data entry'!I110<>"",'Data entry'!I110,"") ->  | K107: =IF('Data entry'!J110<>"",'Data entry'!J110,"") ->  | L107: =IF('Data entry'!K110<>"",'Data entry'!K110,"") ->  | M107: =IF('Data entry'!L110<>"",'Data entry'!L110,"") ->  | N107: =IF('Data entry'!M110<>"",'Data entry'!M110,"") ->  | O107: =IF('Data entry'!N110<>"",'Data entry'!N110,"") ->  | P107: =IF('Data entry'!O110<>"",'Data entry'!O110,"") ->  | Q107: =IF('Data entry'!P110<>"",'Data entry'!P110,"") ->  | R107: =IF('Data entry'!Q110<>"",'Data entry'!Q110,"") ->  | S107: =IF('Data entry'!R110<>"",'Data entry'!R110,"") ->  | T107: =IF('Data entry'!S110<>"",'Data entry'!S110,"") ->  | U107: =IF('Data entry'!T110<>"",'Data entry'!T110,"") ->  | V107: =IF('Data entry'!U110<>"",'Data entry'!U110,"") ->  | W107: =IF('Data entry'!V110<>"",'Data entry'!V110,"") ->  | Y107: 94 | AW107: 0 | JM107: 0
C108: 95 | D108: =IF('Data entry'!C111<>"",'Data entry'!C111,"") ->  | E108: =IF('Data entry'!D111<>"",'Data entry'!D111,"") ->  | F108: =IF('Data entry'!E111<>"",'Data entry'!E111,"") ->  | G108: =IF('Data entry'!F111<>"",'Data entry'!F111,"") ->  | H108: =IF('Data entry'!G111<>"",'Data entry'!G111,"") ->  | I108: =IF('Data entry'!H111<>"",'Data entry'!H111,"") ->  | J108: =IF('Data entry'!I111<>"",'Data entry'!I111,"") ->  | K108: =IF('Data entry'!J111<>"",'Data entry'!J111,"") ->  | L108: =IF('Data entry'!K111<>"",'Data entry'!K111,"") ->  | M108: =IF('Data entry'!L111<>"",'Data entry'!L111,"") ->  | N108: =IF('Data entry'!M111<>"",'Data entry'!M111,"") ->  | O108: =IF('Data entry'!N111<>"",'Data entry'!N111,"") ->  | P108: =IF('Data entry'!O111<>"",'Data entry'!O111,"") ->  | Q108: =IF('Data entry'!P111<>"",'Data entry'!P111,"") ->  | R108: =IF('Data entry'!Q111<>"",'Data entry'!Q111,"") ->  | S108: =IF('Data entry'!R111<>"",'Data entry'!R111,"") ->  | T108: =IF('Data entry'!S111<>"",'Data entry'!S111,"") ->  | U108: =IF('Data entry'!T111<>"",'Data entry'!T111,"") ->  | V108: =IF('Data entry'!U111<>"",'Data entry'!U111,"") ->  | W108: =IF('Data entry'!V111<>"",'Data entry'!V111,"") ->  | Y108: 95 | AW108: 0 | JM108: 0
C109: 96 | D109: =IF('Data entry'!C112<>"",'Data entry'!C112,"") ->  | E109: =IF('Data entry'!D112<>"",'Data entry'!D112,"") ->  | F109: =IF('Data entry'!E112<>"",'Data entry'!E112,"") ->  | G109: =IF('Data entry'!F112<>"",'Data entry'!F112,"") ->  | H109: =IF('Data entry'!G112<>"",'Data entry'!G112,"") ->  | I109: =IF('Data entry'!H112<>"",'Data entry'!H112,"") ->  | J109: =IF('Data entry'!I112<>"",'Data entry'!I112,"") ->  | K109: =IF('Data entry'!J112<>"",'Data entry'!J112,"") ->  | L109: =IF('Data entry'!K112<>"",'Data entry'!K112,"") ->  | M109: =IF('Data entry'!L112<>"",'Data entry'!L112,"") ->  | N109: =IF('Data entry'!M112<>"",'Data entry'!M112,"") ->  | O109: =IF('Data entry'!N112<>"",'Data entry'!N112,"") ->  | P109: =IF('Data entry'!O112<>"",'Data entry'!O112,"") ->  | Q109: =IF('Data entry'!P112<>"",'Data entry'!P112,"") ->  | R109: =IF('Data entry'!Q112<>"",'Data entry'!Q112,"") ->  | S109: =IF('Data entry'!R112<>"",'Data entry'!R112,"") ->  | T109: =IF('Data entry'!S112<>"",'Data entry'!S112,"") ->  | U109: =IF('Data entry'!T112<>"",'Data entry'!T112,"") ->  | V109: =IF('Data entry'!U112<>"",'Data entry'!U112,"") ->  | W109: =IF('Data entry'!V112<>"",'Data entry'!V112,"") ->  | Y109: 96 | AW109: 0 | JM109: 0
C110: 97 | D110: =IF('Data entry'!C113<>"",'Data entry'!C113,"") ->  | E110: =IF('Data entry'!D113<>"",'Data entry'!D113,"") ->  | F110: =IF('Data entry'!E113<>"",'Data entry'!E113,"") ->  | G110: =IF('Data entry'!F113<>"",'Data entry'!F113,"") ->  | H110: =IF('Data entry'!G113<>"",'Data entry'!G113,"") ->  | I110: =IF('Data entry'!H113<>"",'Data entry'!H113,"") ->  | J110: =IF('Data entry'!I113<>"",'Data entry'!I113,"") ->  | K110: =IF('Data entry'!J113<>"",'Data entry'!J113,"") ->  | L110: =IF('Data entry'!K113<>"",'Data entry'!K113,"") ->  | M110: =IF('Data entry'!L113<>"",'Data entry'!L113,"") ->  | N110: =IF('Data entry'!M113<>"",'Data entry'!M113,"") ->  | O110: =IF('Data entry'!N113<>"",'Data entry'!N113,"") ->  | P110: =IF('Data entry'!O113<>"",'Data entry'!O113,"") ->  | Q110: =IF('Data entry'!P113<>"",'Data entry'!P113,"") ->  | R110: =IF('Data entry'!Q113<>"",'Data entry'!Q113,"") ->  | S110: =IF('Data entry'!R113<>"",'Data entry'!R113,"") ->  | T110: =IF('Data entry'!S113<>"",'Data entry'!S113,"") ->  | U110: =IF('Data entry'!T113<>"",'Data entry'!T113,"") ->  | V110: =IF('Data entry'!U113<>"",'Data entry'!U113,"") ->  | W110: =IF('Data entry'!V113<>"",'Data entry'!V113,"") ->  | Y110: 97 | AW110: 0 | JM110: 0
C111: 98 | D111: =IF('Data entry'!C114<>"",'Data entry'!C114,"") ->  | E111: =IF('Data entry'!D114<>"",'Data entry'!D114,"") ->  | F111: =IF('Data entry'!E114<>"",'Data entry'!E114,"") ->  | G111: =IF('Data entry'!F114<>"",'Data entry'!F114,"") ->  | H111: =IF('Data entry'!G114<>"",'Data entry'!G114,"") ->  | I111: =IF('Data entry'!H114<>"",'Data entry'!H114,"") ->  | J111: =IF('Data entry'!I114<>"",'Data entry'!I114,"") ->  | K111: =IF('Data entry'!J114<>"",'Data entry'!J114,"") ->  | L111: =IF('Data entry'!K114<>"",'Data entry'!K114,"") ->  | M111: =IF('Data entry'!L114<>"",'Data entry'!L114,"") ->  | N111: =IF('Data entry'!M114<>"",'Data entry'!M114,"") ->  | O111: =IF('Data entry'!N114<>"",'Data entry'!N114,"") ->  | P111: =IF('Data entry'!O114<>"",'Data entry'!O114,"") ->  | Q111: =IF('Data entry'!P114<>"",'Data entry'!P114,"") ->  | R111: =IF('Data entry'!Q114<>"",'Data entry'!Q114,"") ->  | S111: =IF('Data entry'!R114<>"",'Data entry'!R114,"") ->  | T111: =IF('Data entry'!S114<>"",'Data entry'!S114,"") ->  | U111: =IF('Data entry'!T114<>"",'Data entry'!T114,"") ->  | V111: =IF('Data entry'!U114<>"",'Data entry'!U114,"") ->  | W111: =IF('Data entry'!V114<>"",'Data entry'!V114,"") ->  | Y111: 98 | AW111: 0 | JM111: 0
C112: 99 | D112: =IF('Data entry'!C115<>"",'Data entry'!C115,"") ->  | E112: =IF('Data entry'!D115<>"",'Data entry'!D115,"") ->  | F112: =IF('Data entry'!E115<>"",'Data entry'!E115,"") ->  | G112: =IF('Data entry'!F115<>"",'Data entry'!F115,"") ->  | H112: =IF('Data entry'!G115<>"",'Data entry'!G115,"") ->  | I112: =IF('Data entry'!H115<>"",'Data entry'!H115,"") ->  | J112: =IF('Data entry'!I115<>"",'Data entry'!I115,"") ->  | K112: =IF('Data entry'!J115<>"",'Data entry'!J115,"") ->  | L112: =IF('Data entry'!K115<>"",'Data entry'!K115,"") ->  | M112: =IF('Data entry'!L115<>"",'Data entry'!L115,"") ->  | N112: =IF('Data entry'!M115<>"",'Data entry'!M115,"") ->  | O112: =IF('Data entry'!N115<>"",'Data entry'!N115,"") ->  | P112: =IF('Data entry'!O115<>"",'Data entry'!O115,"") ->  | Q112: =IF('Data entry'!P115<>"",'Data entry'!P115,"") ->  | R112: =IF('Data entry'!Q115<>"",'Data entry'!Q115,"") ->  | S112: =IF('Data entry'!R115<>"",'Data entry'!R115,"") ->  | T112: =IF('Data entry'!S115<>"",'Data entry'!S115,"") ->  | U112: =IF('Data entry'!T115<>"",'Data entry'!T115,"") ->  | V112: =IF('Data entry'!U115<>"",'Data entry'!U115,"") ->  | W112: =IF('Data entry'!V115<>"",'Data entry'!V115,"") ->  | Y112: 99 | AW112: 0 | JM112: 0
C113: 100 | D113: =IF('Data entry'!C116<>"",'Data entry'!C116,"") ->  | E113: =IF('Data entry'!D116<>"",'Data entry'!D116,"") ->  | F113: =IF('Data entry'!E116<>"",'Data entry'!E116,"") ->  | G113: =IF('Data entry'!F116<>"",'Data entry'!F116,"") ->  | H113: =IF('Data entry'!G116<>"",'Data entry'!G116,"") ->  | I113: =IF('Data entry'!H116<>"",'Data entry'!H116,"") ->  | J113: =IF('Data entry'!I116<>"",'Data entry'!I116,"") ->  | K113: =IF('Data entry'!J116<>"",'Data entry'!J116,"") ->  | L113: =IF('Data entry'!K116<>"",'Data entry'!K116,"") ->  | M113: =IF('Data entry'!L116<>"",'Data entry'!L116,"") ->  | N113: =IF('Data entry'!M116<>"",'Data entry'!M116,"") ->  | O113: =IF('Data entry'!N116<>"",'Data entry'!N116,"") ->  | P113: =IF('Data entry'!O116<>"",'Data entry'!O116,"") ->  | Q113: =IF('Data entry'!P116<>"",'Data entry'!P116,"") ->  | R113: =IF('Data entry'!Q116<>"",'Data entry'!Q116,"") ->  | S113: =IF('Data entry'!R116<>"",'Data entry'!R116,"") ->  | T113: =IF('Data entry'!S116<>"",'Data entry'!S116,"") ->  | U113: =IF('Data entry'!T116<>"",'Data entry'!T116,"") ->  | V113: =IF('Data entry'!U116<>"",'Data entry'!U116,"") ->  | W113: =IF('Data entry'!V116<>"",'Data entry'!V116,"") ->  | Y113: 100 | AW113: 0 | JM113: 0
C114: 101 | D114: =IF([2]Sheet1!B104<>"",[2]Sheet1!B104,"") ->  | E114: =IF([2]Sheet1!C104<>"",[2]Sheet1!C104,"") ->  | F114: =IF([2]Sheet1!D104<>"",[2]Sheet1!D104,"") ->  | G114: =IF([2]Sheet1!E104<>"",[2]Sheet1!E104,"") ->  | H114: =IF([2]Sheet1!F104<>"",[2]Sheet1!F104,"") ->  | I114: =IF([2]Sheet1!G104<>"",[2]Sheet1!G104,"") ->  | J114: =IF([2]Sheet1!H104<>"",[2]Sheet1!H104,"") ->  | K114: =IF([2]Sheet1!I104<>"",[2]Sheet1!I104,"") ->  | L114: =IF([2]Sheet1!J104<>"",[2]Sheet1!J104,"") ->  | M114: =IF([2]Sheet1!K104<>"",[2]Sheet1!K104,"") ->  | N114: =IF([2]Sheet1!L104<>"",[2]Sheet1!L104,"") ->  | O114: =IF([2]Sheet1!M104<>"",[2]Sheet1!M104,"") ->  | P114: =IF([2]Sheet1!N104<>"",[2]Sheet1!N104,"") ->  | Q114: =IF([2]Sheet1!O104<>"",[2]Sheet1!O104,"") ->  | R114: =IF([2]Sheet1!P104<>"",[2]Sheet1!P104,"") ->  | S114: =IF([2]Sheet1!Q104<>"",[2]Sheet1!Q104,"") ->  | T114: =IF([2]Sheet1!R104<>"",[2]Sheet1!R104,"") ->  | U114: =IF([2]Sheet1!S104<>"",[2]Sheet1!S104,"") ->  | V114: =IF([2]Sheet1!T104<>"",[2]Sheet1!T104,"") ->  | W114: =IF([2]Sheet1!U104<>"",[2]Sheet1!U104,"") ->  | Y114: 101 | AW114: 0 | JM114: 0
C115: 102 | D115: =IF([2]Sheet1!B105<>"",[2]Sheet1!B105,"") ->  | E115: =IF([2]Sheet1!C105<>"",[2]Sheet1!C105,"") ->  | F115: =IF([2]Sheet1!D105<>"",[2]Sheet1!D105,"") ->  | G115: =IF([2]Sheet1!E105<>"",[2]Sheet1!E105,"") ->  | H115: =IF([2]Sheet1!F105<>"",[2]Sheet1!F105,"") ->  | I115: =IF([2]Sheet1!G105<>"",[2]Sheet1!G105,"") ->  | J115: =IF([2]Sheet1!H105<>"",[2]Sheet1!H105,"") ->  | K115: =IF([2]Sheet1!I105<>"",[2]Sheet1!I105,"") ->  | L115: =IF([2]Sheet1!J105<>"",[2]Sheet1!J105,"") ->  | M115: =IF([2]Sheet1!K105<>"",[2]Sheet1!K105,"") ->  | N115: =IF([2]Sheet1!L105<>"",[2]Sheet1!L105,"") ->  | O115: =IF([2]Sheet1!M105<>"",[2]Sheet1!M105,"") ->  | P115: =IF([2]Sheet1!N105<>"",[2]Sheet1!N105,"") ->  | Q115: =IF([2]Sheet1!O105<>"",[2]Sheet1!O105,"") ->  | R115: =IF([2]Sheet1!P105<>"",[2]Sheet1!P105,"") ->  | S115: =IF([2]Sheet1!Q105<>"",[2]Sheet1!Q105,"") ->  | T115: =IF([2]Sheet1!R105<>"",[2]Sheet1!R105,"") ->  | U115: =IF([2]Sheet1!S105<>"",[2]Sheet1!S105,"") ->  | V115: =IF([2]Sheet1!T105<>"",[2]Sheet1!T105,"") ->  | W115: =IF([2]Sheet1!U105<>"",[2]Sheet1!U105,"") ->  | Y115: 102 | AW115: 0 | JM115: 0
C116: 103 | D116: =IF([2]Sheet1!B106<>"",[2]Sheet1!B106,"") ->  | E116: =IF([2]Sheet1!C106<>"",[2]Sheet1!C106,"") ->  | F116: =IF([2]Sheet1!D106<>"",[2]Sheet1!D106,"") ->  | G116: =IF([2]Sheet1!E106<>"",[2]Sheet1!E106,"") ->  | H116: =IF([2]Sheet1!F106<>"",[2]Sheet1!F106,"") ->  | I116: =IF([2]Sheet1!G106<>"",[2]Sheet1!G106,"") ->  | J116: =IF([2]Sheet1!H106<>"",[2]Sheet1!H106,"") ->  | K116: =IF([2]Sheet1!I106<>"",[2]Sheet1!I106,"") ->  | L116: =IF([2]Sheet1!J106<>"",[2]Sheet1!J106,"") ->  | M116: =IF([2]Sheet1!K106<>"",[2]Sheet1!K106,"") ->  | N116: =IF([2]Sheet1!L106<>"",[2]Sheet1!L106,"") ->  | O116: =IF([2]Sheet1!M106<>"",[2]Sheet1!M106,"") ->  | P116: =IF([2]Sheet1!N106<>"",[2]Sheet1!N106,"") ->  | Q116: =IF([2]Sheet1!O106<>"",[2]Sheet1!O106,"") ->  | R116: =IF([2]Sheet1!P106<>"",[2]Sheet1!P106,"") ->  | S116: =IF([2]Sheet1!Q106<>"",[2]Sheet1!Q106,"") ->  | T116: =IF([2]Sheet1!R106<>"",[2]Sheet1!R106,"") ->  | U116: =IF([2]Sheet1!S106<>"",[2]Sheet1!S106,"") ->  | V116: =IF([2]Sheet1!T106<>"",[2]Sheet1!T106,"") ->  | W116: =IF([2]Sheet1!U106<>"",[2]Sheet1!U106,"") ->  | Y116: 103 | AW116: 0 | JM116: 0
C117: 104 | D117: =IF([2]Sheet1!B107<>"",[2]Sheet1!B107,"") ->  | E117: =IF([2]Sheet1!C107<>"",[2]Sheet1!C107,"") ->  | F117: =IF([2]Sheet1!D107<>"",[2]Sheet1!D107,"") ->  | G117: =IF([2]Sheet1!E107<>"",[2]Sheet1!E107,"") ->  | H117: =IF([2]Sheet1!F107<>"",[2]Sheet1!F107,"") ->  | I117: =IF([2]Sheet1!G107<>"",[2]Sheet1!G107,"") ->  | J117: =IF([2]Sheet1!H107<>"",[2]Sheet1!H107,"") ->  | K117: =IF([2]Sheet1!I107<>"",[2]Sheet1!I107,"") ->  | L117: =IF([2]Sheet1!J107<>"",[2]Sheet1!J107,"") ->  | M117: =IF([2]Sheet1!K107<>"",[2]Sheet1!K107,"") ->  | N117: =IF([2]Sheet1!L107<>"",[2]Sheet1!L107,"") ->  | O117: =IF([2]Sheet1!M107<>"",[2]Sheet1!M107,"") ->  | P117: =IF([2]Sheet1!N107<>"",[2]Sheet1!N107,"") ->  | Q117: =IF([2]Sheet1!O107<>"",[2]Sheet1!O107,"") ->  | R117: =IF([2]Sheet1!P107<>"",[2]Sheet1!P107,"") ->  | S117: =IF([2]Sheet1!Q107<>"",[2]Sheet1!Q107,"") ->  | T117: =IF([2]Sheet1!R107<>"",[2]Sheet1!R107,"") ->  | U117: =IF([2]Sheet1!S107<>"",[2]Sheet1!S107,"") ->  | V117: =IF([2]Sheet1!T107<>"",[2]Sheet1!T107,"") ->  | W117: =IF([2]Sheet1!U107<>"",[2]Sheet1!U107,"") ->  | Y117: 104 | AW117: 0 | JM117: 0
C118: 105 | D118: =IF([2]Sheet1!B108<>"",[2]Sheet1!B108,"") ->  | E118: =IF([2]Sheet1!C108<>"",[2]Sheet1!C108,"") ->  | F118: =IF([2]Sheet1!D108<>"",[2]Sheet1!D108,"") ->  | G118: =IF([2]Sheet1!E108<>"",[2]Sheet1!E108,"") ->  | H118: =IF([2]Sheet1!F108<>"",[2]Sheet1!F108,"") ->  | I118: =IF([2]Sheet1!G108<>"",[2]Sheet1!G108,"") ->  | J118: =IF([2]Sheet1!H108<>"",[2]Sheet1!H108,"") ->  | K118: =IF([2]Sheet1!I108<>"",[2]Sheet1!I108,"") ->  | L118: =IF([2]Sheet1!J108<>"",[2]Sheet1!J108,"") ->  | M118: =IF([2]Sheet1!K108<>"",[2]Sheet1!K108,"") ->  | N118: =IF([2]Sheet1!L108<>"",[2]Sheet1!L108,"") ->  | O118: =IF([2]Sheet1!M108<>"",[2]Sheet1!M108,"") ->  | P118: =IF([2]Sheet1!N108<>"",[2]Sheet1!N108,"") ->  | Q118: =IF([2]Sheet1!O108<>"",[2]Sheet1!O108,"") ->  | R118: =IF([2]Sheet1!P108<>"",[2]Sheet1!P108,"") ->  | S118: =IF([2]Sheet1!Q108<>"",[2]Sheet1!Q108,"") ->  | T118: =IF([2]Sheet1!R108<>"",[2]Sheet1!R108,"") ->  | U118: =IF([2]Sheet1!S108<>"",[2]Sheet1!S108,"") ->  | V118: =IF([2]Sheet1!T108<>"",[2]Sheet1!T108,"") ->  | W118: =IF([2]Sheet1!U108<>"",[2]Sheet1!U108,"") ->  | Y118: 105 | AW118: 0 | JM118: 0
C119: 106 | D119: =IF([2]Sheet1!B109<>"",[2]Sheet1!B109,"") ->  | E119: =IF([2]Sheet1!C109<>"",[2]Sheet1!C109,"") ->  | F119: =IF([2]Sheet1!D109<>"",[2]Sheet1!D109,"") ->  | G119: =IF([2]Sheet1!E109<>"",[2]Sheet1!E109,"") ->  | H119: =IF([2]Sheet1!F109<>"",[2]Sheet1!F109,"") ->  | I119: =IF([2]Sheet1!G109<>"",[2]Sheet1!G109,"") ->  | J119: =IF([2]Sheet1!H109<>"",[2]Sheet1!H109,"") ->  | K119: =IF([2]Sheet1!I109<>"",[2]Sheet1!I109,"") ->  | L119: =IF([2]Sheet1!J109<>"",[2]Sheet1!J109,"") ->  | M119: =IF([2]Sheet1!K109<>"",[2]Sheet1!K109,"") ->  | N119: =IF([2]Sheet1!L109<>"",[2]Sheet1!L109,"") ->  | O119: =IF([2]Sheet1!M109<>"",[2]Sheet1!M109,"") ->  | P119: =IF([2]Sheet1!N109<>"",[2]Sheet1!N109,"") ->  | Q119: =IF([2]Sheet1!O109<>"",[2]Sheet1!O109,"") ->  | R119: =IF([2]Sheet1!P109<>"",[2]Sheet1!P109,"") ->  | S119: =IF([2]Sheet1!Q109<>"",[2]Sheet1!Q109,"") ->  | T119: =IF([2]Sheet1!R109<>"",[2]Sheet1!R109,"") ->  | U119: =IF([2]Sheet1!S109<>"",[2]Sheet1!S109,"") ->  | V119: =IF([2]Sheet1!T109<>"",[2]Sheet1!T109,"") ->  | W119: =IF([2]Sheet1!U109<>"",[2]Sheet1!U109,"") ->  | Y119: 106 | AW119: 0 | JM119: 0
C120: 107 | D120: =IF([2]Sheet1!B110<>"",[2]Sheet1!B110,"") ->  | E120: =IF([2]Sheet1!C110<>"",[2]Sheet1!C110,"") ->  | F120: =IF([2]Sheet1!D110<>"",[2]Sheet1!D110,"") ->  | G120: =IF([2]Sheet1!E110<>"",[2]Sheet1!E110,"") ->  | H120: =IF([2]Sheet1!F110<>"",[2]Sheet1!F110,"") ->  | I120: =IF([2]Sheet1!G110<>"",[2]Sheet1!G110,"") ->  | J120: =IF([2]Sheet1!H110<>"",[2]Sheet1!H110,"") ->  | K120: =IF([2]Sheet1!I110<>"",[2]Sheet1!I110,"") ->  | L120: =IF([2]Sheet1!J110<>"",[2]Sheet1!J110,"") ->  | M120: =IF([2]Sheet1!K110<>"",[2]Sheet1!K110,"") ->  | N120: =IF([2]Sheet1!L110<>"",[2]Sheet1!L110,"") ->  | O120: =IF([2]Sheet1!M110<>"",[2]Sheet1!M110,"") ->  | P120: =IF([2]Sheet1!N110<>"",[2]Sheet1!N110,"") ->  | Q120: =IF([2]Sheet1!O110<>"",[2]Sheet1!O110,"") ->  | R120: =IF([2]Sheet1!P110<>"",[2]Sheet1!P110,"") ->  | S120: =IF([2]Sheet1!Q110<>"",[2]Sheet1!Q110,"") ->  | T120: =IF([2]Sheet1!R110<>"",[2]Sheet1!R110,"") ->  | U120: =IF([2]Sheet1!S110<>"",[2]Sheet1!S110,"") ->  | V120: =IF([2]Sheet1!T110<>"",[2]Sheet1!T110,"") ->  | W120: =IF([2]Sheet1!U110<>"",[2]Sheet1!U110,"") ->  | Y120: 107 | AW120: 0 | JM120: 0
C121: 108 | D121: =IF([2]Sheet1!B111<>"",[2]Sheet1!B111,"") ->  | E121: =IF([2]Sheet1!C111<>"",[2]Sheet1!C111,"") ->  | F121: =IF([2]Sheet1!D111<>"",[2]Sheet1!D111,"") ->  | G121: =IF([2]Sheet1!E111<>"",[2]Sheet1!E111,"") ->  | H121: =IF([2]Sheet1!F111<>"",[2]Sheet1!F111,"") ->  | I121: =IF([2]Sheet1!G111<>"",[2]Sheet1!G111,"") ->  | J121: =IF([2]Sheet1!H111<>"",[2]Sheet1!H111,"") ->  | K121: =IF([2]Sheet1!I111<>"",[2]Sheet1!I111,"") ->  | L121: =IF([2]Sheet1!J111<>"",[2]Sheet1!J111,"") ->  | M121: =IF([2]Sheet1!K111<>"",[2]Sheet1!K111,"") ->  | N121: =IF([2]Sheet1!L111<>"",[2]Sheet1!L111,"") ->  | O121: =IF([2]Sheet1!M111<>"",[2]Sheet1!M111,"") ->  | P121: =IF([2]Sheet1!N111<>"",[2]Sheet1!N111,"") ->  | Q121: =IF([2]Sheet1!O111<>"",[2]Sheet1!O111,"") ->  | R121: =IF([2]Sheet1!P111<>"",[2]Sheet1!P111,"") ->  | S121: =IF([2]Sheet1!Q111<>"",[2]Sheet1!Q111,"") ->  | T121: =IF([2]Sheet1!R111<>"",[2]Sheet1!R111,"") ->  | U121: =IF([2]Sheet1!S111<>"",[2]Sheet1!S111,"") ->  | V121: =IF([2]Sheet1!T111<>"",[2]Sheet1!T111,"") ->  | W121: =IF([2]Sheet1!U111<>"",[2]Sheet1!U111,"") ->  | Y121: 108 | AW121: 0 | JM121: 0
C122: 109 | D122: =IF([2]Sheet1!B112<>"",[2]Sheet1!B112,"") ->  | E122: =IF([2]Sheet1!C112<>"",[2]Sheet1!C112,"") ->  | F122: =IF([2]Sheet1!D112<>"",[2]Sheet1!D112,"") ->  | G122: =IF([2]Sheet1!E112<>"",[2]Sheet1!E112,"") ->  | H122: =IF([2]Sheet1!F112<>"",[2]Sheet1!F112,"") ->  | I122: =IF([2]Sheet1!G112<>"",[2]Sheet1!G112,"") ->  | J122: =IF([2]Sheet1!H112<>"",[2]Sheet1!H112,"") ->  | K122: =IF([2]Sheet1!I112<>"",[2]Sheet1!I112,"") ->  | L122: =IF([2]Sheet1!J112<>"",[2]Sheet1!J112,"") ->  | M122: =IF([2]Sheet1!K112<>"",[2]Sheet1!K112,"") ->  | N122: =IF([2]Sheet1!L112<>"",[2]Sheet1!L112,"") ->  | O122: =IF([2]Sheet1!M112<>"",[2]Sheet1!M112,"") ->  | P122: =IF([2]Sheet1!N112<>"",[2]Sheet1!N112,"") ->  | Q122: =IF([2]Sheet1!O112<>"",[2]Sheet1!O112,"") ->  | R122: =IF([2]Sheet1!P112<>"",[2]Sheet1!P112,"") ->  | S122: =IF([2]Sheet1!Q112<>"",[2]Sheet1!Q112,"") ->  | T122: =IF([2]Sheet1!R112<>"",[2]Sheet1!R112,"") ->  | U122: =IF([2]Sheet1!S112<>"",[2]Sheet1!S112,"") ->  | V122: =IF([2]Sheet1!T112<>"",[2]Sheet1!T112,"") ->  | W122: =IF([2]Sheet1!U112<>"",[2]Sheet1!U112,"") ->  | Y122: 109 | AW122: 0 | JM122: 0
C123: 110 | D123: =IF([2]Sheet1!B113<>"",[2]Sheet1!B113,"") ->  | E123: =IF([2]Sheet1!C113<>"",[2]Sheet1!C113,"") ->  | F123: =IF([2]Sheet1!D113<>"",[2]Sheet1!D113,"") ->  | G123: =IF([2]Sheet1!E113<>"",[2]Sheet1!E113,"") ->  | H123: =IF([2]Sheet1!F113<>"",[2]Sheet1!F113,"") ->  | I123: =IF([2]Sheet1!G113<>"",[2]Sheet1!G113,"") ->  | J123: =IF([2]Sheet1!H113<>"",[2]Sheet1!H113,"") ->  | K123: =IF([2]Sheet1!I113<>"",[2]Sheet1!I113,"") ->  | L123: =IF([2]Sheet1!J113<>"",[2]Sheet1!J113,"") ->  | M123: =IF([2]Sheet1!K113<>"",[2]Sheet1!K113,"") ->  | N123: =IF([2]Sheet1!L113<>"",[2]Sheet1!L113,"") ->  | O123: =IF([2]Sheet1!M113<>"",[2]Sheet1!M113,"") ->  | P123: =IF([2]Sheet1!N113<>"",[2]Sheet1!N113,"") ->  | Q123: =IF([2]Sheet1!O113<>"",[2]Sheet1!O113,"") ->  | R123: =IF([2]Sheet1!P113<>"",[2]Sheet1!P113,"") ->  | S123: =IF([2]Sheet1!Q113<>"",[2]Sheet1!Q113,"") ->  | T123: =IF([2]Sheet1!R113<>"",[2]Sheet1!R113,"") ->  | U123: =IF([2]Sheet1!S113<>"",[2]Sheet1!S113,"") ->  | V123: =IF([2]Sheet1!T113<>"",[2]Sheet1!T113,"") ->  | W123: =IF([2]Sheet1!U113<>"",[2]Sheet1!U113,"") ->  | Y123: 110 | AW123: 0 | JM123: 0
C124: 111 | D124: =IF([2]Sheet1!B114<>"",[2]Sheet1!B114,"") ->  | E124: =IF([2]Sheet1!C114<>"",[2]Sheet1!C114,"") ->  | F124: =IF([2]Sheet1!D114<>"",[2]Sheet1!D114,"") ->  | G124: =IF([2]Sheet1!E114<>"",[2]Sheet1!E114,"") ->  | H124: =IF([2]Sheet1!F114<>"",[2]Sheet1!F114,"") ->  | I124: =IF([2]Sheet1!G114<>"",[2]Sheet1!G114,"") ->  | J124: =IF([2]Sheet1!H114<>"",[2]Sheet1!H114,"") ->  | K124: =IF([2]Sheet1!I114<>"",[2]Sheet1!I114,"") ->  | L124: =IF([2]Sheet1!J114<>"",[2]Sheet1!J114,"") ->  | M124: =IF([2]Sheet1!K114<>"",[2]Sheet1!K114,"") ->  | N124: =IF([2]Sheet1!L114<>"",[2]Sheet1!L114,"") ->  | O124: =IF([2]Sheet1!M114<>"",[2]Sheet1!M114,"") ->  | P124: =IF([2]Sheet1!N114<>"",[2]Sheet1!N114,"") ->  | Q124: =IF([2]Sheet1!O114<>"",[2]Sheet1!O114,"") ->  | R124: =IF([2]Sheet1!P114<>"",[2]Sheet1!P114,"") ->  | S124: =IF([2]Sheet1!Q114<>"",[2]Sheet1!Q114,"") ->  | T124: =IF([2]Sheet1!R114<>"",[2]Sheet1!R114,"") ->  | U124: =IF([2]Sheet1!S114<>"",[2]Sheet1!S114,"") ->  | V124: =IF([2]Sheet1!T114<>"",[2]Sheet1!T114,"") ->  | W124: =IF([2]Sheet1!U114<>"",[2]Sheet1!U114,"") ->  | Y124: 111 | AW124: 0 | JM124: 0
C125: 112 | D125: =IF([2]Sheet1!B115<>"",[2]Sheet1!B115,"") ->  | E125: =IF([2]Sheet1!C115<>"",[2]Sheet1!C115,"") ->  | F125: =IF([2]Sheet1!D115<>"",[2]Sheet1!D115,"") ->  | G125: =IF([2]Sheet1!E115<>"",[2]Sheet1!E115,"") ->  | H125: =IF([2]Sheet1!F115<>"",[2]Sheet1!F115,"") ->  | I125: =IF([2]Sheet1!G115<>"",[2]Sheet1!G115,"") ->  | J125: =IF([2]Sheet1!H115<>"",[2]Sheet1!H115,"") ->  | K125: =IF([2]Sheet1!I115<>"",[2]Sheet1!I115,"") ->  | L125: =IF([2]Sheet1!J115<>"",[2]Sheet1!J115,"") ->  | M125: =IF([2]Sheet1!K115<>"",[2]Sheet1!K115,"") ->  | N125: =IF([2]Sheet1!L115<>"",[2]Sheet1!L115,"") ->  | O125: =IF([2]Sheet1!M115<>"",[2]Sheet1!M115,"") ->  | P125: =IF([2]Sheet1!N115<>"",[2]Sheet1!N115,"") ->  | Q125: =IF([2]Sheet1!O115<>"",[2]Sheet1!O115,"") ->  | R125: =IF([2]Sheet1!P115<>"",[2]Sheet1!P115,"") ->  | S125: =IF([2]Sheet1!Q115<>"",[2]Sheet1!Q115,"") ->  | T125: =IF([2]Sheet1!R115<>"",[2]Sheet1!R115,"") ->  | U125: =IF([2]Sheet1!S115<>"",[2]Sheet1!S115,"") ->  | V125: =IF([2]Sheet1!T115<>"",[2]Sheet1!T115,"") ->  | W125: =IF([2]Sheet1!U115<>"",[2]Sheet1!U115,"") ->  | Y125: 112 | AW125: 0 | JM125: 0
... 156 more rows

Sheet 3 segs
G2: On Excel, cluster analysis will take around one minute to run. Once completed, you will be automatically taken to the 'Cluster outputs' worksheet. | N2: IMPORTANT: Do not make changes/edits to this worksheet, as there are many "invisible" calculations and formulas contained in this worksheet. | Y2: 9 | Z2: =VLOOKUP($Y2,full_data,Z$13+1) ->  | AP2: =VLOOKUP($Y2,full_data,AP$13+1) -> 
Y3: 23
Y4: 3
B7: =+'Data entry'!D1032 -> 0 | JD7: 1 | JE7: 2 | JF7: 3 | JG7: 4 | JH7: 5 | JI7: 6 | JJ7: 7 | JK7: 8 | JL7: 9 | JM7: 10 | JN7: 11 | JO7: 12 | JP7: 13 | JQ7: 14 | JR7: 15 | JS7: 16 | JT7: 17 | JU7: 18 | JV7: 19 | JW7: 20
BJ8: =AVERAGE(BJ14:BJ1013) ->  | BK8: =AVERAGE(BK14:BK1013) ->  | DW8: =AVERAGE(DW14:DW1013) ->  | GI8: =AVERAGE(GI14:GI1013) ->  | IU8: =AVERAGE(IU14:IU1013) ->  | JC8: 1 | JD8: =IFERROR(BJ8,"") ->  | JE8: =IFERROR(BK8,"") -> 
AZ9: Count | BA9: =COUNT(BA14:BA1013) -> 0 | BB9: =COUNT(BB14:BB1013) -> 0 | BC9: 0 | JC9: 2 | JD9: =IFERROR(CD8,"") ->  | JE9: =IFERROR(CE8,"") -> 
C10: Mean | D10: =AVERAGE(D$14:D$1013) ->  | E10: =AVERAGE(E$14:E$1013) ->  | BJ10: 1 | BK10: =+BJ10 -> 1 | BL10: =+BK10 -> 1 | BM10: 1 | BN10: 1 | BO10: 1 | BP10: 1 | BQ10: 1 | BR10: 1 | BS10: 1 | BT10: 1 | BU10: 1 | BV10: 1 | BW10: 1 | BX10: 1 | BY10: 1 | BZ10: 1 | CA10: 1 | CB10: 1 | CC10: 1 | CD10: 2 | CE10: 2 | CF10: 2 | CG10: 2 | CH10: 2 | CI10: 2 | CJ10: 2 | CK10: 2 | CL10: 2 | CM10: 2 | CN10: 2 | CO10: 2 | CP10: 2 | CQ10: 2 | CR10: 2 | CS10: 2 | CT10: 2 | CU10: 2 | CV10: 2 | CW10: 2 | CX10: 3 | CY10: 3 | CZ10: 3 | DA10: 3 | DB10: 3 | DC10: 3 | DD10: 3 | DE10: 3 | DF10: 3 | DG10: 3 | DH10: 3 | DI10: 3 | DJ10: 3 | DK10: 3 | DL10: 3 | DM10: 3 | DN10: 3 | DO10: 3 | DP10: 3 | DQ10: 3 | DR10: 4 | DS10: 4 | DT10: 4 | DU10: 4 | DV10: 4 | DW10: 4 | DX10: =+DW10 -> 4 | DY10: 4 | DZ10: 4 | EA10: 4 | EB10: 4 | EC10: 4 | ED10: 4 | EE10: 4 | EF10: 4 | EG10: 4 | EH10: 4 | EI10: 4 | EJ10: 4 | EK10: 4 | EL10: 5 | EM10: 5 | EN10: 5 | EO10: 5 | EP10: 5 | EQ10: 5 | ER10: 5 | ES10: 5 | ET10: 5 | EU10: 5 | EV10: 5 | EW10: 5 | EX10: 5 | EY10: 5 | EZ10: 5 | FA10: 5 | FB10: 5 | FC10: 5 | FD10: 5 | FE10: 5 | FF10: 6 | FG10: 6 | FH10: 6 | FI10: 6 | FJ10: 6 | FK10: 6 | FL10: 6 | FM10: 6 | FN10: 6 | FO10: 6 | FP10: 6 | FQ10: 6 | FR10: 6 | FS10: 6 | FT10: 6 | FU10: 6 | FV10: 6 | FW10: 6 | FX10: 6 | FY10: 6 | FZ10: 7 | GA10: 7 | GB10: 7 | GC10: 7 | GD10: 7 | GE10: 7 | GF10: 7 | GG10: 7 | GH10: 7 | GI10: 7 | GJ10: =+GI10 -> 7 | GK10: 7 | GL10: 7 | GM10: 7 | GN10: 7 | GO10: 7 | GP10: 7 | GQ10: 7 | GR10: 7 | GS10: 7 | GT10: 8 | GU10: 8 | GV10: 8 | GW10: 8 | GX10: 8 | GY10: 8 | GZ10: 8 | HA10: 8 | HB10: 8 | HC10: 8 | HD10: 8 | HE10: 8 | HF10: 8 | HG10: 8 | HH10: 8 | HI10: 8 | HJ10: 8 | HK10: 8 | HL10: 8 | HM10: 8 | HN10: 9 | HO10: 9 | HP10: 9 | HQ10: 9 | HR10: 9 | HS10: 9 | HT10: 9 | HU10: 9 | HV10: 9 | HW10: 9 | HX10: 9 | HY10: 9 | HZ10: 9 | IA10: 9 | IB10: 9 | IC10: 9 | ID10: 9 | IE10: 9 | IF10: 9 | IG10: 9 | IH10: 10 | II10: 10 | IJ10: 10 | IK10: 10 | IL10: 10 | IM10: 10 | IN10: 10 | IO10: 10 | IP10: 10 | IQ10: 10 | IR10: 10 | IS10: 10 | IT10: 10 | IU10: 10 | IV10: =+IU10 -> 10 | IW10: 10 | IX10: 10 | IY10: 10 | IZ10: 10 | JA10: 10 | JC10: 3 | JD10: =IFERROR(CX8,"") ->  | JE10: =IFERROR(CY8,"") -> 
C11: STD Dev | D11: =_xlfn.STDEV.P(D$14:D$1013) ->  | E11: =_xlfn.STDEV.P(E$14:E$1013) ->  | AX11: =SUM(AX14:AX1013) -> 0 | BA11: =SUM(BA14:BA1013) -> 0 | BB11: =SUM(BB14:BB1013) -> 0 | BC11: 0 | BJ11: 1 | BK11: =+BJ11+1 -> 2 | BL11: =+BK11+1 -> 3 | BM11: 4 | BN11: 5 | BO11: 6 | BP11: 7 | BQ11: 8 | BR11: 9 | BS11: 10 | BT11: 11 | BU11: 12 | BV11: 13 | BW11: 14 | BX11: 15 | BY11: 16 | BZ11: 17 | CA11: 18 | CB11: 19 | CC11: 20 | CD11: 1 | CE11: 2 | CF11: 3 | CG11: 4 | CH11: 5 | CI11: 6 | CJ11: 7 | CK11: 8 | CL11: 9 | CM11: 10 | CN11: 11 | CO11: 12 | CP11: 13 | CQ11: 14 | CR11: 15 | CS11: 16 | CT11: 17 | CU11: 18 | CV11: 19 | CW11: 20 | CX11: 1 | CY11: 2 | CZ11: 3 | DA11: 4 | DB11: 5 | DC11: 6 | DD11: 7 | DE11: 8 | DF11: 9 | DG11: 10 | DH11: 11 | DI11: 12 | DJ11: 13 | DK11: 14 | DL11: 15 | DM11: 16 | DN11: 17 | DO11: 18 | DP11: 19 | DQ11: 20 | DR11: 1 | DS11: 2 | DT11: 3 | DU11: 4 | DV11: 5 | DW11: 6 | DX11: =+DW11+1 -> 7 | DY11: 8 | DZ11: 9 | EA11: 10 | EB11: 11 | EC11: 12 | ED11: 13 | EE11: 14 | EF11: 15 | EG11: 16 | EH11: 17 | EI11: 18 | EJ11: 19 | EK11: 20 | EL11: 1 | EM11: 2 | EN11: 3 | EO11: 4 | EP11: 5 | EQ11: 6 | ER11: 7 | ES11: 8 | ET11: 9 | EU11: 10 | EV11: 11 | EW11: 12 | EX11: 13 | EY11: 14 | EZ11: 15 | FA11: 16 | FB11: 17 | FC11: 18 | FD11: 19 | FE11: 20 | FF11: 1 | FG11: 2 | FH11: 3 | FI11: 4 | FJ11: 5 | FK11: 6 | FL11: 7 | FM11: 8 | FN11: 9 | FO11: 10 | FP11: 11 | FQ11: 12 | FR11: 13 | FS11: 14 | FT11: 15 | FU11: 16 | FV11: 17 | FW11: 18 | FX11: 19 | FY11: 20 | FZ11: 1 | GA11: 2 | GB11: 3 | GC11: 4 | GD11: 5 | GE11: 6 | GF11: 7 | GG11: 8 | GH11: 9 | GI11: 10 | GJ11: =+GI11+1 -> 11 | GK11: 12 | GL11: 13 | GM11: 14 | GN11: 15 | GO11: 16 | GP11: 17 | GQ11: 18 | GR11: 19 | GS11: 20 | GT11: 1 | GU11: 2 | GV11: 3 | GW11: 4 | GX11: 5 | GY11: 6 | GZ11: 7 | HA11: 8 | HB11: 9 | HC11: 10 | HD11: 11 | HE11: 12 | HF11: 13 | HG11: 14 | HH11: 15 | HI11: 16 | HJ11: 17 | HK11: 18 | HL11: 19 | HM11: 20 | HN11: 1 | HO11: 2 | HP11: 3 | HQ11: 4 | HR11: 5 | HS11: 6 | HT11: 7 | HU11: 8 | HV11: 9 | HW11: 10 | HX11: 11 | HY11: 12 | HZ11: 13 | IA11: 14 | IB11: 15 | IC11: 16 | ID11: 17 | IE11: 18 | IF11: 19 | IG11: 20 | IH11: 1 | II11: 2 | IJ11: 3 | IK11: 4 | IL11: 5 | IM11: 6 | IN11: 7 | IO11: 8 | IP11: 9 | IQ11: 10 | IR11: 11 | IS11: 12 | IT11: 13 | IU11: 14 | IV11: =+IU11+1 -> 15 | IW11: 16 | IX11: 17 | IY11: 18 | IZ11: 19 | JA11: 20
D13: 1 | E13: =+D13+1 -> 2 | F13: =+E13+1 -> 3 | G13: 4 | H13: 5 | I13: 6 | J13: 7 | K13: 8 | L13: 9 | M13: 10 | N13: 11 | O13: 12 | P13: 13 | Q13: 14 | R13: 15 | S13: 16 | T13: 17 | U13: 18 | V13: 19 | W13: 20 | Z13: 1 | AA13: =+Z13+1 -> 2 | AB13: =+AA13+1 -> 3 | AC13: 4 | AD13: 5 | AE13: 6 | AF13: 7 | AG13: 8 | AH13: 9 | AI13: 10 | AJ13: 11 | AK13: 12 | AL13: 13 | AM13: 14 | AN13: 15 | AO13: 16 | AP13: 17 | AQ13: 18 | AR13: 19 | AS13: 20 | AU13: 1 | AV13: 2 | AW13: 3 | AX13: Min | AY13: Match | BA13: 1 | BB13: 2 | BC13: 3
C14: 1 | D14: =IF('Data entry'!C17<>"",'Data entry'!C17,"") ->  | E14: =IF('Data entry'!D17<>"",'Data entry'!D17,"") ->  | F14: =IF('Data entry'!E17<>"",'Data entry'!E17,"") ->  | G14: =IF('Data entry'!F17<>"",'Data entry'!F17,"") ->  | H14: =IF('Data entry'!G17<>"",'Data entry'!G17,"") ->  | I14: =IF('Data entry'!H17<>"",'Data entry'!H17,"") ->  | J14: =IF('Data entry'!I17<>"",'Data entry'!I17,"") ->  | K14: =IF('Data entry'!J17<>"",'Data entry'!J17,"") ->  | L14: =IF('Data entry'!K17<>"",'Data entry'!K17,"") ->  | M14: =IF('Data entry'!L17<>"",'Data entry'!L17,"") ->  | N14: =IF('Data entry'!M17<>"",'Data entry'!M17,"") ->  | O14: =IF('Data entry'!N17<>"",'Data entry'!N17,"") ->  | P14: =IF('Data entry'!O17<>"",'Data entry'!O17,"") ->  | Q14: =IF('Data entry'!P17<>"",'Data entry'!P17,"") ->  | R14: =IF('Data entry'!Q17<>"",'Data entry'!Q17,"") ->  | S14: =IF('Data entry'!R17<>"",'Data entry'!R17,"") ->  | T14: =IF('Data entry'!S17<>"",'Data entry'!S17,"") ->  | U14: =IF('Data entry'!T17<>"",'Data entry'!T17,"") ->  | V14: =IF('Data entry'!U17<>"",'Data entry'!U17,"") ->  | W14: =IF('Data entry'!V17<>"",'Data entry'!V17,"") ->  | Y14: 1 | Z14: =IFERROR(STANDARDIZE(D14,D$10,D$11),"") ->  | AA14: =IFERROR(STANDARDIZE(E14,E$10,E$11),"") ->  | AU14: =IFERROR(SUMXMY2($Z$2:$AS$2,$Z14:$AS14),"") ->  | AV14: =IFERROR(SUMXMY2($Z$3:$AS$3,$Z14:$AS14),"") ->  | AW14: =IFERROR(SUMXMY2($Z$4:$AS$4,$Z14:$AS14),"") ->  | AX14: =MIN(AU14:AW14) -> 0 | AY14: =IFERROR(MATCH(AX14,AU14:AW14,0),"") ->  | BA14: =IF($AY14=BA$13,AU14,"") ->  | BB14: =IF($AY14=BB$13,AV14,"") ->  | BC14: =IF($AY14=BC$13,AW14,"") ->  | BJ14: =IF($AY14=BJ$10,D14,"") ->  | BK14: =IF($AY14=BK$10,E14,"") ->  | CD14: =IF($AY14=CD$10,D14,"") ->  | CE14: =IF($AY14=CE$10,E14,"") ->  | CX14: =IF($AY14=CX$10,D14,"") ->  | CY14: =IF($AY14=CY$10,E14,"") -> 
C15: =+C14+1 -> 2 | D15: =IF('Data entry'!C18<>"",'Data entry'!C18,"") ->  | E15: =IF('Data entry'!D18<>"",'Data entry'!D18,"") ->  | F15: =IF('Data entry'!E18<>"",'Data entry'!E18,"") ->  | G15: =IF('Data entry'!F18<>"",'Data entry'!F18,"") ->  | H15: =IF('Data entry'!G18<>"",'Data entry'!G18,"") ->  | I15: =IF('Data entry'!H18<>"",'Data entry'!H18,"") ->  | J15: =IF('Data entry'!I18<>"",'Data entry'!I18,"") ->  | K15: =IF('Data entry'!J18<>"",'Data entry'!J18,"") ->  | L15: =IF('Data entry'!K18<>"",'Data entry'!K18,"") ->  | M15: =IF('Data entry'!L18<>"",'Data entry'!L18,"") ->  | N15: =IF('Data entry'!M18<>"",'Data entry'!M18,"") ->  | O15: =IF('Data entry'!N18<>"",'Data entry'!N18,"") ->  | P15: =IF('Data entry'!O18<>"",'Data entry'!O18,"") ->  | Q15: =IF('Data entry'!P18<>"",'Data entry'!P18,"") ->  | R15: =IF('Data entry'!Q18<>"",'Data entry'!Q18,"") ->  | S15: =IF('Data entry'!R18<>"",'Data entry'!R18,"") ->  | T15: =IF('Data entry'!S18<>"",'Data entry'!S18,"") ->  | U15: =IF('Data entry'!T18<>"",'Data entry'!T18,"") ->  | V15: =IF('Data entry'!U18<>"",'Data entry'!U18,"") ->  | W15: =IF('Data entry'!V18<>"",'Data entry'!V18,"") ->  | Y15: =+Y14+1 -> 2 | Z15: =IFERROR(STANDARDIZE(D15,D$10,D$11),"") ->  | AA15: =IFERROR(STANDARDIZE(E15,E$10,E$11),"") ->  | AB15: =IFERROR(STANDARDIZE(F15,F$10,F$11),"") ->  | AC15: =IFERROR(STANDARDIZE(G15,G$10,G$11),"") ->  | AD15: =IFERROR(STANDARDIZE(H15,H$10,H$11),"") ->  | AE15: =IFERROR(STANDARDIZE(I15,I$10,I$11),"") ->  | AF15: =IFERROR(STANDARDIZE(J15,J$10,J$11),"") ->  | AG15: =IFERROR(STANDARDIZE(K15,K$10,K$11),"") ->  | AH15: =IFERROR(STANDARDIZE(L15,L$10,L$11),"") ->  | AI15: =IFERROR(STANDARDIZE(M15,M$10,M$11),"") ->  | AJ15: =IFERROR(STANDARDIZE(N15,N$10,N$11),"") ->  | AK15: =IFERROR(STANDARDIZE(O15,O$10,O$11),"") ->  | AL15: =IFERROR(STANDARDIZE(P15,P$10,P$11),"") ->  | AM15: =IFERROR(STANDARDIZE(Q15,Q$10,Q$11),"") ->  | AN15: =IFERROR(STANDARDIZE(R15,R$10,R$11),"") ->  | AO15: =IFERROR(STANDARDIZE(S15,S$10,S$11),"") ->  | AP15: =IFERROR(STANDARDIZE(T15,T$10,T$11),"") ->  | AQ15: =IFERROR(STANDARDIZE(U15,U$10,U$11),"") ->  | AR15: =IFERROR(STANDARDIZE(V15,V$10,V$11),"") ->  | AS15: =IFERROR(STANDARDIZE(W15,W$10,W$11),"") ->  | AU15: =IFERROR(SUMXMY2($Z$2:$AS$2,$Z15:$AS15),"") ->  | AV15: =IFERROR(SUMXMY2($Z$3:$AS$3,$Z15:$AS15),"") ->  | AW15: =IFERROR(SUMXMY2($Z$4:$AS$4,$Z15:$AS15),"") ->  | AX15: 0 | AY15: =IFERROR(MATCH(AX15,AU15:AW15,0),"") ->  | BJ15: =IF($AY15=BJ$10,D15,"") ->  | BK15: =IF($AY15=BK$10,E15,"") ->  | BL15: =IF($AY15=BL$10,F15,"") ->  | BM15: =IF($AY15=BM$10,G15,"") ->  | BN15: =IF($AY15=BN$10,H15,"") ->  | BO15: =IF($AY15=BO$10,I15,"") ->  | BP15: =IF($AY15=BP$10,J15,"") ->  | BQ15: =IF($AY15=BQ$10,K15,"") ->  | BR15: =IF($AY15=BR$10,L15,"") ->  | BS15: =IF($AY15=BS$10,M15,"") ->  | BT15: =IF($AY15=BT$10,N15,"") ->  | BU15: =IF($AY15=BU$10,O15,"") ->  | BV15: =IF($AY15=BV$10,P15,"") ->  | BW15: =IF($AY15=BW$10,Q15,"") ->  | BX15: =IF($AY15=BX$10,R15,"") ->  | BY15: =IF($AY15=BY$10,S15,"") ->  | BZ15: =IF($AY15=BZ$10,T15,"") ->  | CA15: =IF($AY15=CA$10,U15,"") ->  | CB15: =IF($AY15=CB$10,V15,"") ->  | CC15: =IF($AY15=CC$10,W15,"") ->  | CD15: =IF($AY15=CD$10,D15,"") ->  | CE15: =IF($AY15=CE$10,E15,"") ->  | CF15: =IF($AY15=CF$10,F15,"") ->  | CG15: =IF($AY15=CG$10,G15,"") ->  | CH15: =IF($AY15=CH$10,H15,"") ->  | CI15: =IF($AY15=CI$10,I15,"") ->  | CJ15: =IF($AY15=CJ$10,J15,"") ->  | CK15: =IF($AY15=CK$10,K15,"") ->  | CL15: =IF($AY15=CL$10,L15,"") ->  | CM15: =IF($AY15=CM$10,M15,"") ->  | CN15: =IF($AY15=CN$10,N15,"") ->  | CO15: =IF($AY15=CO$10,O15,"") ->  | CP15: =IF($AY15=CP$10,P15,"") ->  | CQ15: =IF($AY15=CQ$10,Q15,"") ->  | CR15: =IF($AY15=CR$10,R15,"") ->  | CS15: =IF($AY15=CS$10,S15,"") ->  | CT15: =IF($AY15=CT$10,T15,"") ->  | CU15: =IF($AY15=CU$10,U15,"") ->  | CV15: =IF($AY15=CV$10,V15,"") ->  | CW15: =IF($AY15=CW$10,W15,"") ->  | CX15: =IF($AY15=CX$10,D15,"") ->  | CY15: =IF($AY15=CY$10,E15,"") ->  | CZ15: =IF($AY15=CZ$10,F15,"") ->  | DA15: =IF($AY15=DA$10,G15,"") ->  | DB15: =IF($AY15=DB$10,H15,"") ->  | DC15: =IF($AY15=DC$10,I15,"") ->  | DD15: =IF($AY15=DD$10,J15,"") ->  | DE15: =IF($AY15=DE$10,K15,"") ->  | DF15: =IF($AY15=DF$10,L15,"") ->  | DG15: =IF($AY15=DG$10,M15,"") ->  | DH15: =IF($AY15=DH$10,N15,"") ->  | DI15: =IF($AY15=DI$10,O15,"") ->  | DJ15: =IF($AY15=DJ$10,P15,"") ->  | DK15: =IF($AY15=DK$10,Q15,"") ->  | DL15: =IF($AY15=DL$10,R15,"") ->  | DM15: =IF($AY15=DM$10,S15,"") ->  | DN15: =IF($AY15=DN$10,T15,"") ->  | DO15: =IF($AY15=DO$10,U15,"") ->  | DP15: =IF($AY15=DP$10,V15,"") ->  | DQ15: =IF($AY15=DQ$10,W15,"") -> 
C16: =+C15+1 -> 3 | D16: =IF('Data entry'!C19<>"",'Data entry'!C19,"") ->  | E16: =IF('Data entry'!D19<>"",'Data entry'!D19,"") ->  | F16: =IF('Data entry'!E19<>"",'Data entry'!E19,"") ->  | G16: =IF('Data entry'!F19<>"",'Data entry'!F19,"") ->  | H16: =IF('Data entry'!G19<>"",'Data entry'!G19,"") ->  | I16: =IF('Data entry'!H19<>"",'Data entry'!H19,"") ->  | J16: =IF('Data entry'!I19<>"",'Data entry'!I19,"") ->  | K16: =IF('Data entry'!J19<>"",'Data entry'!J19,"") ->  | L16: =IF('Data entry'!K19<>"",'Data entry'!K19,"") ->  | M16: =IF('Data entry'!L19<>"",'Data entry'!L19,"") ->  | N16: =IF('Data entry'!M19<>"",'Data entry'!M19,"") ->  | O16: =IF('Data entry'!N19<>"",'Data entry'!N19,"") ->  | P16: =IF('Data entry'!O19<>"",'Data entry'!O19,"") ->  | Q16: =IF('Data entry'!P19<>"",'Data entry'!P19,"") ->  | R16: =IF('Data entry'!Q19<>"",'Data entry'!Q19,"") ->  | S16: =IF('Data entry'!R19<>"",'Data entry'!R19,"") ->  | T16: =IF('Data entry'!S19<>"",'Data entry'!S19,"") ->  | U16: =IF('Data entry'!T19<>"",'Data entry'!T19,"") ->  | V16: =IF('Data entry'!U19<>"",'Data entry'!U19,"") ->  | W16: =IF('Data entry'!V19<>"",'Data entry'!V19,"") ->  | Y16: =+Y15+1 -> 3 | AX16: 0
C17: 4 | D17: =IF('Data entry'!C20<>"",'Data entry'!C20,"") ->  | E17: =IF('Data entry'!D20<>"",'Data entry'!D20,"") ->  | F17: =IF('Data entry'!E20<>"",'Data entry'!E20,"") ->  | G17: =IF('Data entry'!F20<>"",'Data entry'!F20,"") ->  | H17: =IF('Data entry'!G20<>"",'Data entry'!G20,"") ->  | I17: =IF('Data entry'!H20<>"",'Data entry'!H20,"") ->  | J17: =IF('Data entry'!I20<>"",'Data entry'!I20,"") ->  | K17: =IF('Data entry'!J20<>"",'Data entry'!J20,"") ->  | L17: =IF('Data entry'!K20<>"",'Data entry'!K20,"") ->  | M17: =IF('Data entry'!L20<>"",'Data entry'!L20,"") ->  | N17: =IF('Data entry'!M20<>"",'Data entry'!M20,"") ->  | O17: =IF('Data entry'!N20<>"",'Data entry'!N20,"") ->  | P17: =IF('Data entry'!O20<>"",'Data entry'!O20,"") ->  | Q17: =IF('Data entry'!P20<>"",'Data entry'!P20,"") ->  | R17: =IF('Data entry'!Q20<>"",'Data entry'!Q20,"") ->  | S17: =IF('Data entry'!R20<>"",'Data entry'!R20,"") ->  | T17: =IF('Data entry'!S20<>"",'Data entry'!S20,"") ->  | U17: =IF('Data entry'!T20<>"",'Data entry'!T20,"") ->  | V17: =IF('Data entry'!U20<>"",'Data entry'!U20,"") ->  | W17: =IF('Data entry'!V20<>"",'Data entry'!V20,"") ->  | Y17: 4 | AX17: 0
C18: 5 | D18: =IF('Data entry'!C21<>"",'Data entry'!C21,"") ->  | E18: =IF('Data entry'!D21<>"",'Data entry'!D21,"") ->  | F18: =IF('Data entry'!E21<>"",'Data entry'!E21,"") ->  | G18: =IF('Data entry'!F21<>"",'Data entry'!F21,"") ->  | H18: =IF('Data entry'!G21<>"",'Data entry'!G21,"") ->  | I18: =IF('Data entry'!H21<>"",'Data entry'!H21,"") ->  | J18: =IF('Data entry'!I21<>"",'Data entry'!I21,"") ->  | K18: =IF('Data entry'!J21<>"",'Data entry'!J21,"") ->  | L18: =IF('Data entry'!K21<>"",'Data entry'!K21,"") ->  | M18: =IF('Data entry'!L21<>"",'Data entry'!L21,"") ->  | N18: =IF('Data entry'!M21<>"",'Data entry'!M21,"") ->  | O18: =IF('Data entry'!N21<>"",'Data entry'!N21,"") ->  | P18: =IF('Data entry'!O21<>"",'Data entry'!O21,"") ->  | Q18: =IF('Data entry'!P21<>"",'Data entry'!P21,"") ->  | R18: =IF('Data entry'!Q21<>"",'Data entry'!Q21,"") ->  | S18: =IF('Data entry'!R21<>"",'Data entry'!R21,"") ->  | T18: =IF('Data entry'!S21<>"",'Data entry'!S21,"") ->  | U18: =IF('Data entry'!T21<>"",'Data entry'!T21,"") ->  | V18: =IF('Data entry'!U21<>"",'Data entry'!U21,"") ->  | W18: =IF('Data entry'!V21<>"",'Data entry'!V21,"") ->  | Y18: 5 | AX18: 0
C19: 6 | D19: =IF('Data entry'!C22<>"",'Data entry'!C22,"") ->  | E19: =IF('Data entry'!D22<>"",'Data entry'!D22,"") ->  | F19: =IF('Data entry'!E22<>"",'Data entry'!E22,"") ->  | G19: =IF('Data entry'!F22<>"",'Data entry'!F22,"") ->  | H19: =IF('Data entry'!G22<>"",'Data entry'!G22,"") ->  | I19: =IF('Data entry'!H22<>"",'Data entry'!H22,"") ->  | J19: =IF('Data entry'!I22<>"",'Data entry'!I22,"") ->  | K19: =IF('Data entry'!J22<>"",'Data entry'!J22,"") ->  | L19: =IF('Data entry'!K22<>"",'Data entry'!K22,"") ->  | M19: =IF('Data entry'!L22<>"",'Data entry'!L22,"") ->  | N19: =IF('Data entry'!M22<>"",'Data entry'!M22,"") ->  | O19: =IF('Data entry'!N22<>"",'Data entry'!N22,"") ->  | P19: =IF('Data entry'!O22<>"",'Data entry'!O22,"") ->  | Q19: =IF('Data entry'!P22<>"",'Data entry'!P22,"") ->  | R19: =IF('Data entry'!Q22<>"",'Data entry'!Q22,"") ->  | S19: =IF('Data entry'!R22<>"",'Data entry'!R22,"") ->  | T19: =IF('Data entry'!S22<>"",'Data entry'!S22,"") ->  | U19: =IF('Data entry'!T22<>"",'Data entry'!T22,"") ->  | V19: =IF('Data entry'!U22<>"",'Data entry'!U22,"") ->  | W19: =IF('Data entry'!V22<>"",'Data entry'!V22,"") ->  | Y19: 6 | AX19: 0 | JP19: =SUM(JP21:JP1020) -> 0 | JQ19: =SUM(JQ21:JQ1020) -> 0 | JR19: 0
C20: 7 | D20: =IF('Data entry'!C23<>"",'Data entry'!C23,"") ->  | E20: =IF('Data entry'!D23<>"",'Data entry'!D23,"") ->  | F20: =IF('Data entry'!E23<>"",'Data entry'!E23,"") ->  | G20: =IF('Data entry'!F23<>"",'Data entry'!F23,"") ->  | H20: =IF('Data entry'!G23<>"",'Data entry'!G23,"") ->  | I20: =IF('Data entry'!H23<>"",'Data entry'!H23,"") ->  | J20: =IF('Data entry'!I23<>"",'Data entry'!I23,"") ->  | K20: =IF('Data entry'!J23<>"",'Data entry'!J23,"") ->  | L20: =IF('Data entry'!K23<>"",'Data entry'!K23,"") ->  | M20: =IF('Data entry'!L23<>"",'Data entry'!L23,"") ->  | N20: =IF('Data entry'!M23<>"",'Data entry'!M23,"") ->  | O20: =IF('Data entry'!N23<>"",'Data entry'!N23,"") ->  | P20: =IF('Data entry'!O23<>"",'Data entry'!O23,"") ->  | Q20: =IF('Data entry'!P23<>"",'Data entry'!P23,"") ->  | R20: =IF('Data entry'!Q23<>"",'Data entry'!Q23,"") ->  | S20: =IF('Data entry'!R23<>"",'Data entry'!R23,"") ->  | T20: =IF('Data entry'!S23<>"",'Data entry'!S23,"") ->  | U20: =IF('Data entry'!T23<>"",'Data entry'!T23,"") ->  | V20: =IF('Data entry'!U23<>"",'Data entry'!U23,"") ->  | W20: =IF('Data entry'!V23<>"",'Data entry'!V23,"") ->  | Y20: 7 | AX20: 0 | JD20: 1 | JE20: 2 | JF20: 3 | JN20: Min | JO20: Match | JP20: 1 | JQ20: 2 | JR20: 3
C21: 8 | D21: =IF('Data entry'!C24<>"",'Data entry'!C24,"") ->  | E21: =IF('Data entry'!D24<>"",'Data entry'!D24,"") ->  | F21: =IF('Data entry'!E24<>"",'Data entry'!E24,"") ->  | G21: =IF('Data entry'!F24<>"",'Data entry'!F24,"") ->  | H21: =IF('Data entry'!G24<>"",'Data entry'!G24,"") ->  | I21: =IF('Data entry'!H24<>"",'Data entry'!H24,"") ->  | J21: =IF('Data entry'!I24<>"",'Data entry'!I24,"") ->  | K21: =IF('Data entry'!J24<>"",'Data entry'!J24,"") ->  | L21: =IF('Data entry'!K24<>"",'Data entry'!K24,"") ->  | M21: =IF('Data entry'!L24<>"",'Data entry'!L24,"") ->  | N21: =IF('Data entry'!M24<>"",'Data entry'!M24,"") ->  | O21: =IF('Data entry'!N24<>"",'Data entry'!N24,"") ->  | P21: =IF('Data entry'!O24<>"",'Data entry'!O24,"") ->  | Q21: =IF('Data entry'!P24<>"",'Data entry'!P24,"") ->  | R21: =IF('Data entry'!Q24<>"",'Data entry'!Q24,"") ->  | S21: =IF('Data entry'!R24<>"",'Data entry'!R24,"") ->  | T21: =IF('Data entry'!S24<>"",'Data entry'!S24,"") ->  | U21: =IF('Data entry'!T24<>"",'Data entry'!T24,"") ->  | V21: =IF('Data entry'!U24<>"",'Data entry'!U24,"") ->  | W21: =IF('Data entry'!V24<>"",'Data entry'!V24,"") ->  | Y21: 8 | AX21: 0 | JD21: =IFERROR(SUMXMY2(JD$8:JW$8,$D14:$W14),"") ->  | JE21: =IFERROR(SUMXMY2(JD$9:JW$9,$D14:$W14),"") ->  | JF21: =IFERROR(SUMXMY2(JD$10:JW$10,$D14:$W14),"") ->  | JN21: =MIN(JD21:JF21) -> 0 | JO21: =+AY14 ->  | JP21: =IF($JO21=JP$20,JD21,"") ->  | JQ21: =IF($JO21=JQ$20,JE21,"") -> 
C22: 9 | D22: =IF('Data entry'!C25<>"",'Data entry'!C25,"") ->  | E22: =IF('Data entry'!D25<>"",'Data entry'!D25,"") ->  | F22: =IF('Data entry'!E25<>"",'Data entry'!E25,"") ->  | G22: =IF('Data entry'!F25<>"",'Data entry'!F25,"") ->  | H22: =IF('Data entry'!G25<>"",'Data entry'!G25,"") ->  | I22: =IF('Data entry'!H25<>"",'Data entry'!H25,"") ->  | J22: =IF('Data entry'!I25<>"",'Data entry'!I25,"") ->  | K22: =IF('Data entry'!J25<>"",'Data entry'!J25,"") ->  | L22: =IF('Data entry'!K25<>"",'Data entry'!K25,"") ->  | M22: =IF('Data entry'!L25<>"",'Data entry'!L25,"") ->  | N22: =IF('Data entry'!M25<>"",'Data entry'!M25,"") ->  | O22: =IF('Data entry'!N25<>"",'Data entry'!N25,"") ->  | P22: =IF('Data entry'!O25<>"",'Data entry'!O25,"") ->  | Q22: =IF('Data entry'!P25<>"",'Data entry'!P25,"") ->  | R22: =IF('Data entry'!Q25<>"",'Data entry'!Q25,"") ->  | S22: =IF('Data entry'!R25<>"",'Data entry'!R25,"") ->  | T22: =IF('Data entry'!S25<>"",'Data entry'!S25,"") ->  | U22: =IF('Data entry'!T25<>"",'Data entry'!T25,"") ->  | V22: =IF('Data entry'!U25<>"",'Data entry'!U25,"") ->  | W22: =IF('Data entry'!V25<>"",'Data entry'!V25,"") ->  | Y22: 9 | AX22: 0 | JD22: =IFERROR(SUMXMY2(JD$8:JW$8,$D15:$W15),"") ->  | JE22: =IFERROR(SUMXMY2(JD$9:JW$9,$D15:$W15),"") ->  | JF22: =IFERROR(SUMXMY2(JD$10:JW$10,$D15:$W15),"") ->  | JN22: =MIN(JD22:JF22) -> 0 | JO22: =+AY15 ->  | JP22: =IF($JO22=JP$20,JD22,"") ->  | JQ22: =IF($JO22=JQ$20,JE22,"") ->  | JR22: =IF($JO22=JR$20,JF22,"") -> 
C23: 10 | D23: =IF('Data entry'!C26<>"",'Data entry'!C26,"") ->  | E23: =IF('Data entry'!D26<>"",'Data entry'!D26,"") ->  | F23: =IF('Data entry'!E26<>"",'Data entry'!E26,"") ->  | G23: =IF('Data entry'!F26<>"",'Data entry'!F26,"") ->  | H23: =IF('Data entry'!G26<>"",'Data entry'!G26,"") ->  | I23: =IF('Data entry'!H26<>"",'Data entry'!H26,"") ->  | J23: =IF('Data entry'!I26<>"",'Data entry'!I26,"") ->  | K23: =IF('Data entry'!J26<>"",'Data entry'!J26,"") ->  | L23: =IF('Data entry'!K26<>"",'Data entry'!K26,"") ->  | M23: =IF('Data entry'!L26<>"",'Data entry'!L26,"") ->  | N23: =IF('Data entry'!M26<>"",'Data entry'!M26,"") ->  | O23: =IF('Data entry'!N26<>"",'Data entry'!N26,"") ->  | P23: =IF('Data entry'!O26<>"",'Data entry'!O26,"") ->  | Q23: =IF('Data entry'!P26<>"",'Data entry'!P26,"") ->  | R23: =IF('Data entry'!Q26<>"",'Data entry'!Q26,"") ->  | S23: =IF('Data entry'!R26<>"",'Data entry'!R26,"") ->  | T23: =IF('Data entry'!S26<>"",'Data entry'!S26,"") ->  | U23: =IF('Data entry'!T26<>"",'Data entry'!T26,"") ->  | V23: =IF('Data entry'!U26<>"",'Data entry'!U26,"") ->  | W23: =IF('Data entry'!V26<>"",'Data entry'!V26,"") ->  | Y23: 10 | AX23: 0 | JN23: 0
C24: 11 | D24: =IF('Data entry'!C27<>"",'Data entry'!C27,"") ->  | E24: =IF('Data entry'!D27<>"",'Data entry'!D27,"") ->  | F24: =IF('Data entry'!E27<>"",'Data entry'!E27,"") ->  | G24: =IF('Data entry'!F27<>"",'Data entry'!F27,"") ->  | H24: =IF('Data entry'!G27<>"",'Data entry'!G27,"") ->  | I24: =IF('Data entry'!H27<>"",'Data entry'!H27,"") ->  | J24: =IF('Data entry'!I27<>"",'Data entry'!I27,"") ->  | K24: =IF('Data entry'!J27<>"",'Data entry'!J27,"") ->  | L24: =IF('Data entry'!K27<>"",'Data entry'!K27,"") ->  | M24: =IF('Data entry'!L27<>"",'Data entry'!L27,"") ->  | N24: =IF('Data entry'!M27<>"",'Data entry'!M27,"") ->  | O24: =IF('Data entry'!N27<>"",'Data entry'!N27,"") ->  | P24: =IF('Data entry'!O27<>"",'Data entry'!O27,"") ->  | Q24: =IF('Data entry'!P27<>"",'Data entry'!P27,"") ->  | R24: =IF('Data entry'!Q27<>"",'Data entry'!Q27,"") ->  | S24: =IF('Data entry'!R27<>"",'Data entry'!R27,"") ->  | T24: =IF('Data entry'!S27<>"",'Data entry'!S27,"") ->  | U24: =IF('Data entry'!T27<>"",'Data entry'!T27,"") ->  | V24: =IF('Data entry'!U27<>"",'Data entry'!U27,"") ->  | W24: =IF('Data entry'!V27<>"",'Data entry'!V27,"") ->  | Y24: 11 | AX24: 0 | JN24: 0
C25: 12 | D25: =IF('Data entry'!C28<>"",'Data entry'!C28,"") ->  | E25: =IF('Data entry'!D28<>"",'Data entry'!D28,"") ->  | F25: =IF('Data entry'!E28<>"",'Data entry'!E28,"") ->  | G25: =IF('Data entry'!F28<>"",'Data entry'!F28,"") ->  | H25: =IF('Data entry'!G28<>"",'Data entry'!G28,"") ->  | I25: =IF('Data entry'!H28<>"",'Data entry'!H28,"") ->  | J25: =IF('Data entry'!I28<>"",'Data entry'!I28,"") ->  | K25: =IF('Data entry'!J28<>"",'Data entry'!J28,"") ->  | L25: =IF('Data entry'!K28<>"",'Data entry'!K28,"") ->  | M25: =IF('Data entry'!L28<>"",'Data entry'!L28,"") ->  | N25: =IF('Data entry'!M28<>"",'Data entry'!M28,"") ->  | O25: =IF('Data entry'!N28<>"",'Data entry'!N28,"") ->  | P25: =IF('Data entry'!O28<>"",'Data entry'!O28,"") ->  | Q25: =IF('Data entry'!P28<>"",'Data entry'!P28,"") ->  | R25: =IF('Data entry'!Q28<>"",'Data entry'!Q28,"") ->  | S25: =IF('Data entry'!R28<>"",'Data entry'!R28,"") ->  | T25: =IF('Data entry'!S28<>"",'Data entry'!S28,"") ->  | U25: =IF('Data entry'!T28<>"",'Data entry'!T28,"") ->  | V25: =IF('Data entry'!U28<>"",'Data entry'!U28,"") ->  | W25: =IF('Data entry'!V28<>"",'Data entry'!V28,"") ->  | Y25: 12 | AX25: 0 | JN25: 0
C26: 13 | D26: =IF('Data entry'!C29<>"",'Data entry'!C29,"") ->  | E26: =IF('Data entry'!D29<>"",'Data entry'!D29,"") ->  | F26: =IF('Data entry'!E29<>"",'Data entry'!E29,"") ->  | G26: =IF('Data entry'!F29<>"",'Data entry'!F29,"") ->  | H26: =IF('Data entry'!G29<>"",'Data entry'!G29,"") ->  | I26: =IF('Data entry'!H29<>"",'Data entry'!H29,"") ->  | J26: =IF('Data entry'!I29<>"",'Data entry'!I29,"") ->  | K26: =IF('Data entry'!J29<>"",'Data entry'!J29,"") ->  | L26: =IF('Data entry'!K29<>"",'Data entry'!K29,"") ->  | M26: =IF('Data entry'!L29<>"",'Data entry'!L29,"") ->  | N26: =IF('Data entry'!M29<>"",'Data entry'!M29,"") ->  | O26: =IF('Data entry'!N29<>"",'Data entry'!N29,"") ->  | P26: =IF('Data entry'!O29<>"",'Data entry'!O29,"") ->  | Q26: =IF('Data entry'!P29<>"",'Data entry'!P29,"") ->  | R26: =IF('Data entry'!Q29<>"",'Data entry'!Q29,"") ->  | S26: =IF('Data entry'!R29<>"",'Data entry'!R29,"") ->  | T26: =IF('Data entry'!S29<>"",'Data entry'!S29,"") ->  | U26: =IF('Data entry'!T29<>"",'Data entry'!T29,"") ->  | V26: =IF('Data entry'!U29<>"",'Data entry'!U29,"") ->  | W26: =IF('Data entry'!V29<>"",'Data entry'!V29,"") ->  | Y26: 13 | AX26: 0 | JN26: 0
C27: 14 | D27: =IF('Data entry'!C30<>"",'Data entry'!C30,"") ->  | E27: =IF('Data entry'!D30<>"",'Data entry'!D30,"") ->  | F27: =IF('Data entry'!E30<>"",'Data entry'!E30,"") ->  | G27: =IF('Data entry'!F30<>"",'Data entry'!F30,"") ->  | H27: =IF('Data entry'!G30<>"",'Data entry'!G30,"") ->  | I27: =IF('Data entry'!H30<>"",'Data entry'!H30,"") ->  | J27: =IF('Data entry'!I30<>"",'Data entry'!I30,"") ->  | K27: =IF('Data entry'!J30<>"",'Data entry'!J30,"") ->  | L27: =IF('Data entry'!K30<>"",'Data entry'!K30,"") ->  | M27: =IF('Data entry'!L30<>"",'Data entry'!L30,"") ->  | N27: =IF('Data entry'!M30<>"",'Data entry'!M30,"") ->  | O27: =IF('Data entry'!N30<>"",'Data entry'!N30,"") ->  | P27: =IF('Data entry'!O30<>"",'Data entry'!O30,"") ->  | Q27: =IF('Data entry'!P30<>"",'Data entry'!P30,"") ->  | R27: =IF('Data entry'!Q30<>"",'Data entry'!Q30,"") ->  | S27: =IF('Data entry'!R30<>"",'Data entry'!R30,"") ->  | T27: =IF('Data entry'!S30<>"",'Data entry'!S30,"") ->  | U27: =IF('Data entry'!T30<>"",'Data entry'!T30,"") ->  | V27: =IF('Data entry'!U30<>"",'Data entry'!U30,"") ->  | W27: =IF('Data entry'!V30<>"",'Data entry'!V30,"") ->  | Y27: 14 | AX27: 0 | JN27: 0
C28: 15 | D28: =IF('Data entry'!C31<>"",'Data entry'!C31,"") ->  | E28: =IF('Data entry'!D31<>"",'Data entry'!D31,"") ->  | F28: =IF('Data entry'!E31<>"",'Data entry'!E31,"") ->  | G28: =IF('Data entry'!F31<>"",'Data entry'!F31,"") ->  | H28: =IF('Data entry'!G31<>"",'Data entry'!G31,"") ->  | I28: =IF('Data entry'!H31<>"",'Data entry'!H31,"") ->  | J28: =IF('Data entry'!I31<>"",'Data entry'!I31,"") ->  | K28: =IF('Data entry'!J31<>"",'Data entry'!J31,"") ->  | L28: =IF('Data entry'!K31<>"",'Data entry'!K31,"") ->  | M28: =IF('Data entry'!L31<>"",'Data entry'!L31,"") ->  | N28: =IF('Data entry'!M31<>"",'Data entry'!M31,"") ->  | O28: =IF('Data entry'!N31<>"",'Data entry'!N31,"") ->  | P28: =IF('Data entry'!O31<>"",'Data entry'!O31,"") ->  | Q28: =IF('Data entry'!P31<>"",'Data entry'!P31,"") ->  | R28: =IF('Data entry'!Q31<>"",'Data entry'!Q31,"") ->  | S28: =IF('Data entry'!R31<>"",'Data entry'!R31,"") ->  | T28: =IF('Data entry'!S31<>"",'Data entry'!S31,"") ->  | U28: =IF('Data entry'!T31<>"",'Data entry'!T31,"") ->  | V28: =IF('Data entry'!U31<>"",'Data entry'!U31,"") ->  | W28: =IF('Data entry'!V31<>"",'Data entry'!V31,"") ->  | Y28: 15 | AX28: 0 | JN28: 0
C29: 16 | D29: =IF('Data entry'!C32<>"",'Data entry'!C32,"") ->  | E29: =IF('Data entry'!D32<>"",'Data entry'!D32,"") ->  | F29: =IF('Data entry'!E32<>"",'Data entry'!E32,"") ->  | G29: =IF('Data entry'!F32<>"",'Data entry'!F32,"") ->  | H29: =IF('Data entry'!G32<>"",'Data entry'!G32,"") ->  | I29: =IF('Data entry'!H32<>"",'Data entry'!H32,"") ->  | J29: =IF('Data entry'!I32<>"",'Data entry'!I32,"") ->  | K29: =IF('Data entry'!J32<>"",'Data entry'!J32,"") ->  | L29: =IF('Data entry'!K32<>"",'Data entry'!K32,"") ->  | M29: =IF('Data entry'!L32<>"",'Data entry'!L32,"") ->  | N29: =IF('Data entry'!M32<>"",'Data entry'!M32,"") ->  | O29: =IF('Data entry'!N32<>"",'Data entry'!N32,"") ->  | P29: =IF('Data entry'!O32<>"",'Data entry'!O32,"") ->  | Q29: =IF('Data entry'!P32<>"",'Data entry'!P32,"") ->  | R29: =IF('Data entry'!Q32<>"",'Data entry'!Q32,"") ->  | S29: =IF('Data entry'!R32<>"",'Data entry'!R32,"") ->  | T29: =IF('Data entry'!S32<>"",'Data entry'!S32,"") ->  | U29: =IF('Data entry'!T32<>"",'Data entry'!T32,"") ->  | V29: =IF('Data entry'!U32<>"",'Data entry'!U32,"") ->  | W29: =IF('Data entry'!V32<>"",'Data entry'!V32,"") ->  | Y29: 16 | AX29: 0 | JN29: 0
C30: 17 | D30: =IF('Data entry'!C33<>"",'Data entry'!C33,"") ->  | E30: =IF('Data entry'!D33<>"",'Data entry'!D33,"") ->  | F30: =IF('Data entry'!E33<>"",'Data entry'!E33,"") ->  | G30: =IF('Data entry'!F33<>"",'Data entry'!F33,"") ->  | H30: =IF('Data entry'!G33<>"",'Data entry'!G33,"") ->  | I30: =IF('Data entry'!H33<>"",'Data entry'!H33,"") ->  | J30: =IF('Data entry'!I33<>"",'Data entry'!I33,"") ->  | K30: =IF('Data entry'!J33<>"",'Data entry'!J33,"") ->  | L30: =IF('Data entry'!K33<>"",'Data entry'!K33,"") ->  | M30: =IF('Data entry'!L33<>"",'Data entry'!L33,"") ->  | N30: =IF('Data entry'!M33<>"",'Data entry'!M33,"") ->  | O30: =IF('Data entry'!N33<>"",'Data entry'!N33,"") ->  | P30: =IF('Data entry'!O33<>"",'Data entry'!O33,"") ->  | Q30: =IF('Data entry'!P33<>"",'Data entry'!P33,"") ->  | R30: =IF('Data entry'!Q33<>"",'Data entry'!Q33,"") ->  | S30: =IF('Data entry'!R33<>"",'Data entry'!R33,"") ->  | T30: =IF('Data entry'!S33<>"",'Data entry'!S33,"") ->  | U30: =IF('Data entry'!T33<>"",'Data entry'!T33,"") ->  | V30: =IF('Data entry'!U33<>"",'Data entry'!U33,"") ->  | W30: =IF('Data entry'!V33<>"",'Data entry'!V33,"") ->  | Y30: 17 | AX30: 0 | JN30: 0
C31: 18 | D31: =IF('Data entry'!C34<>"",'Data entry'!C34,"") ->  | E31: =IF('Data entry'!D34<>"",'Data entry'!D34,"") ->  | F31: =IF('Data entry'!E34<>"",'Data entry'!E34,"") ->  | G31: =IF('Data entry'!F34<>"",'Data entry'!F34,"") ->  | H31: =IF('Data entry'!G34<>"",'Data entry'!G34,"") ->  | I31: =IF('Data entry'!H34<>"",'Data entry'!H34,"") ->  | J31: =IF('Data entry'!I34<>"",'Data entry'!I34,"") ->  | K31: =IF('Data entry'!J34<>"",'Data entry'!J34,"") ->  | L31: =IF('Data entry'!K34<>"",'Data entry'!K34,"") ->  | M31: =IF('Data entry'!L34<>"",'Data entry'!L34,"") ->  | N31: =IF('Data entry'!M34<>"",'Data entry'!M34,"") ->  | O31: =IF('Data entry'!N34<>"",'Data entry'!N34,"") ->  | P31: =IF('Data entry'!O34<>"",'Data entry'!O34,"") ->  | Q31: =IF('Data entry'!P34<>"",'Data entry'!P34,"") ->  | R31: =IF('Data entry'!Q34<>"",'Data entry'!Q34,"") ->  | S31: =IF('Data entry'!R34<>"",'Data entry'!R34,"") ->  | T31: =IF('Data entry'!S34<>"",'Data entry'!S34,"") ->  | U31: =IF('Data entry'!T34<>"",'Data entry'!T34,"") ->  | V31: =IF('Data entry'!U34<>"",'Data entry'!U34,"") ->  | W31: =IF('Data entry'!V34<>"",'Data entry'!V34,"") ->  | Y31: 18 | AX31: 0 | JN31: 0
C32: 19 | D32: =IF('Data entry'!C35<>"",'Data entry'!C35,"") ->  | E32: =IF('Data entry'!D35<>"",'Data entry'!D35,"") ->  | F32: =IF('Data entry'!E35<>"",'Data entry'!E35,"") ->  | G32: =IF('Data entry'!F35<>"",'Data entry'!F35,"") ->  | H32: =IF('Data entry'!G35<>"",'Data entry'!G35,"") ->  | I32: =IF('Data entry'!H35<>"",'Data entry'!H35,"") ->  | J32: =IF('Data entry'!I35<>"",'Data entry'!I35,"") ->  | K32: =IF('Data entry'!J35<>"",'Data entry'!J35,"") ->  | L32: =IF('Data entry'!K35<>"",'Data entry'!K35,"") ->  | M32: =IF('Data entry'!L35<>"",'Data entry'!L35,"") ->  | N32: =IF('Data entry'!M35<>"",'Data entry'!M35,"") ->  | O32: =IF('Data entry'!N35<>"",'Data entry'!N35,"") ->  | P32: =IF('Data entry'!O35<>"",'Data entry'!O35,"") ->  | Q32: =IF('Data entry'!P35<>"",'Data entry'!P35,"") ->  | R32: =IF('Data entry'!Q35<>"",'Data entry'!Q35,"") ->  | S32: =IF('Data entry'!R35<>"",'Data entry'!R35,"") ->  | T32: =IF('Data entry'!S35<>"",'Data entry'!S35,"") ->  | U32: =IF('Data entry'!T35<>"",'Data entry'!T35,"") ->  | V32: =IF('Data entry'!U35<>"",'Data entry'!U35,"") ->  | W32: =IF('Data entry'!V35<>"",'Data entry'!V35,"") ->  | Y32: 19 | AX32: 0 | JN32: 0
C33: 20 | D33: =IF('Data entry'!C36<>"",'Data entry'!C36,"") ->  | E33: =IF('Data entry'!D36<>"",'Data entry'!D36,"") ->  | F33: =IF('Data entry'!E36<>"",'Data entry'!E36,"") ->  | G33: =IF('Data entry'!F36<>"",'Data entry'!F36,"") ->  | H33: =IF('Data entry'!G36<>"",'Data entry'!G36,"") ->  | I33: =IF('Data entry'!H36<>"",'Data entry'!H36,"") ->  | J33: =IF('Data entry'!I36<>"",'Data entry'!I36,"") ->  | K33: =IF('Data entry'!J36<>"",'Data entry'!J36,"") ->  | L33: =IF('Data entry'!K36<>"",'Data entry'!K36,"") ->  | M33: =IF('Data entry'!L36<>"",'Data entry'!L36,"") ->  | N33: =IF('Data entry'!M36<>"",'Data entry'!M36,"") ->  | O33: =IF('Data entry'!N36<>"",'Data entry'!N36,"") ->  | P33: =IF('Data entry'!O36<>"",'Data entry'!O36,"") ->  | Q33: =IF('Data entry'!P36<>"",'Data entry'!P36,"") ->  | R33: =IF('Data entry'!Q36<>"",'Data entry'!Q36,"") ->  | S33: =IF('Data entry'!R36<>"",'Data entry'!R36,"") ->  | T33: =IF('Data entry'!S36<>"",'Data entry'!S36,"") ->  | U33: =IF('Data entry'!T36<>"",'Data entry'!T36,"") ->  | V33: =IF('Data entry'!U36<>"",'Data entry'!U36,"") ->  | W33: =IF('Data entry'!V36<>"",'Data entry'!V36,"") ->  | Y33: 20 | AX33: 0 | JN33: 0
C34: 21 | D34: =IF('Data entry'!C37<>"",'Data entry'!C37,"") ->  | E34: =IF('Data entry'!D37<>"",'Data entry'!D37,"") ->  | F34: =IF('Data entry'!E37<>"",'Data entry'!E37,"") ->  | G34: =IF('Data entry'!F37<>"",'Data entry'!F37,"") ->  | H34: =IF('Data entry'!G37<>"",'Data entry'!G37,"") ->  | I34: =IF('Data entry'!H37<>"",'Data entry'!H37,"") ->  | J34: =IF('Data entry'!I37<>"",'Data entry'!I37,"") ->  | K34: =IF('Data entry'!J37<>"",'Data entry'!J37,"") ->  | L34: =IF('Data entry'!K37<>"",'Data entry'!K37,"") ->  | M34: =IF('Data entry'!L37<>"",'Data entry'!L37,"") ->  | N34: =IF('Data entry'!M37<>"",'Data entry'!M37,"") ->  | O34: =IF('Data entry'!N37<>"",'Data entry'!N37,"") ->  | P34: =IF('Data entry'!O37<>"",'Data entry'!O37,"") ->  | Q34: =IF('Data entry'!P37<>"",'Data entry'!P37,"") ->  | R34: =IF('Data entry'!Q37<>"",'Data entry'!Q37,"") ->  | S34: =IF('Data entry'!R37<>"",'Data entry'!R37,"") ->  | T34: =IF('Data entry'!S37<>"",'Data entry'!S37,"") ->  | U34: =IF('Data entry'!T37<>"",'Data entry'!T37,"") ->  | V34: =IF('Data entry'!U37<>"",'Data entry'!U37,"") ->  | W34: =IF('Data entry'!V37<>"",'Data entry'!V37,"") ->  | Y34: 21 | AX34: 0 | JN34: 0
C35: 22 | D35: =IF('Data entry'!C38<>"",'Data entry'!C38,"") ->  | E35: =IF('Data entry'!D38<>"",'Data entry'!D38,"") ->  | F35: =IF('Data entry'!E38<>"",'Data entry'!E38,"") ->  | G35: =IF('Data entry'!F38<>"",'Data entry'!F38,"") ->  | H35: =IF('Data entry'!G38<>"",'Data entry'!G38,"") ->  | I35: =IF('Data entry'!H38<>"",'Data entry'!H38,"") ->  | J35: =IF('Data entry'!I38<>"",'Data entry'!I38,"") ->  | K35: =IF('Data entry'!J38<>"",'Data entry'!J38,"") ->  | L35: =IF('Data entry'!K38<>"",'Data entry'!K38,"") ->  | M35: =IF('Data entry'!L38<>"",'Data entry'!L38,"") ->  | N35: =IF('Data entry'!M38<>"",'Data entry'!M38,"") ->  | O35: =IF('Data entry'!N38<>"",'Data entry'!N38,"") ->  | P35: =IF('Data entry'!O38<>"",'Data entry'!O38,"") ->  | Q35: =IF('Data entry'!P38<>"",'Data entry'!P38,"") ->  | R35: =IF('Data entry'!Q38<>"",'Data entry'!Q38,"") ->  | S35: =IF('Data entry'!R38<>"",'Data entry'!R38,"") ->  | T35: =IF('Data entry'!S38<>"",'Data entry'!S38,"") ->  | U35: =IF('Data entry'!T38<>"",'Data entry'!T38,"") ->  | V35: =IF('Data entry'!U38<>"",'Data entry'!U38,"") ->  | W35: =IF('Data entry'!V38<>"",'Data entry'!V38,"") ->  | Y35: 22 | AX35: 0 | JN35: 0
C36: 23 | D36: =IF('Data entry'!C39<>"",'Data entry'!C39,"") ->  | E36: =IF('Data entry'!D39<>"",'Data entry'!D39,"") ->  | F36: =IF('Data entry'!E39<>"",'Data entry'!E39,"") ->  | G36: =IF('Data entry'!F39<>"",'Data entry'!F39,"") ->  | H36: =IF('Data entry'!G39<>"",'Data entry'!G39,"") ->  | I36: =IF('Data entry'!H39<>"",'Data entry'!H39,"") ->  | J36: =IF('Data entry'!I39<>"",'Data entry'!I39,"") ->  | K36: =IF('Data entry'!J39<>"",'Data entry'!J39,"") ->  | L36: =IF('Data entry'!K39<>"",'Data entry'!K39,"") ->  | M36: =IF('Data entry'!L39<>"",'Data entry'!L39,"") ->  | N36: =IF('Data entry'!M39<>"",'Data entry'!M39,"") ->  | O36: =IF('Data entry'!N39<>"",'Data entry'!N39,"") ->  | P36: =IF('Data entry'!O39<>"",'Data entry'!O39,"") ->  | Q36: =IF('Data entry'!P39<>"",'Data entry'!P39,"") ->  | R36: =IF('Data entry'!Q39<>"",'Data entry'!Q39,"") ->  | S36: =IF('Data entry'!R39<>"",'Data entry'!R39,"") ->  | T36: =IF('Data entry'!S39<>"",'Data entry'!S39,"") ->  | U36: =IF('Data entry'!T39<>"",'Data entry'!T39,"") ->  | V36: =IF('Data entry'!U39<>"",'Data entry'!U39,"") ->  | W36: =IF('Data entry'!V39<>"",'Data entry'!V39,"") ->  | Y36: 23 | AX36: 0 | JN36: 0
C37: 24 | D37: =IF('Data entry'!C40<>"",'Data entry'!C40,"") ->  | E37: =IF('Data entry'!D40<>"",'Data entry'!D40,"") ->  | F37: =IF('Data entry'!E40<>"",'Data entry'!E40,"") ->  | G37: =IF('Data entry'!F40<>"",'Data entry'!F40,"") ->  | H37: =IF('Data entry'!G40<>"",'Data entry'!G40,"") ->  | I37: =IF('Data entry'!H40<>"",'Data entry'!H40,"") ->  | J37: =IF('Data entry'!I40<>"",'Data entry'!I40,"") ->  | K37: =IF('Data entry'!J40<>"",'Data entry'!J40,"") ->  | L37: =IF('Data entry'!K40<>"",'Data entry'!K40,"") ->  | M37: =IF('Data entry'!L40<>"",'Data entry'!L40,"") ->  | N37: =IF('Data entry'!M40<>"",'Data entry'!M40,"") ->  | O37: =IF('Data entry'!N40<>"",'Data entry'!N40,"") ->  | P37: =IF('Data entry'!O40<>"",'Data entry'!O40,"") ->  | Q37: =IF('Data entry'!P40<>"",'Data entry'!P40,"") ->  | R37: =IF('Data entry'!Q40<>"",'Data entry'!Q40,"") ->  | S37: =IF('Data entry'!R40<>"",'Data entry'!R40,"") ->  | T37: =IF('Data entry'!S40<>"",'Data entry'!S40,"") ->  | U37: =IF('Data entry'!T40<>"",'Data entry'!T40,"") ->  | V37: =IF('Data entry'!U40<>"",'Data entry'!U40,"") ->  | W37: =IF('Data entry'!V40<>"",'Data entry'!V40,"") ->  | Y37: 24 | AX37: 0 | JN37: 0
C38: 25 | D38: =IF('Data entry'!C41<>"",'Data entry'!C41,"") ->  | E38: =IF('Data entry'!D41<>"",'Data entry'!D41,"") ->  | F38: =IF('Data entry'!E41<>"",'Data entry'!E41,"") ->  | G38: =IF('Data entry'!F41<>"",'Data entry'!F41,"") ->  | H38: =IF('Data entry'!G41<>"",'Data entry'!G41,"") ->  | I38: =IF('Data entry'!H41<>"",'Data entry'!H41,"") ->  | J38: =IF('Data entry'!I41<>"",'Data entry'!I41,"") ->  | K38: =IF('Data entry'!J41<>"",'Data entry'!J41,"") ->  | L38: =IF('Data entry'!K41<>"",'Data entry'!K41,"") ->  | M38: =IF('Data entry'!L41<>"",'Data entry'!L41,"") ->  | N38: =IF('Data entry'!M41<>"",'Data entry'!M41,"") ->  | O38: =IF('Data entry'!N41<>"",'Data entry'!N41,"") ->  | P38: =IF('Data entry'!O41<>"",'Data entry'!O41,"") ->  | Q38: =IF('Data entry'!P41<>"",'Data entry'!P41,"") ->  | R38: =IF('Data entry'!Q41<>"",'Data entry'!Q41,"") ->  | S38: =IF('Data entry'!R41<>"",'Data entry'!R41,"") ->  | T38: =IF('Data entry'!S41<>"",'Data entry'!S41,"") ->  | U38: =IF('Data entry'!T41<>"",'Data entry'!T41,"") ->  | V38: =IF('Data entry'!U41<>"",'Data entry'!U41,"") ->  | W38: =IF('Data entry'!V41<>"",'Data entry'!V41,"") ->  | Y38: 25 | AX38: 0 | JN38: 0
C39: 26 | D39: =IF('Data entry'!C42<>"",'Data entry'!C42,"") ->  | E39: =IF('Data entry'!D42<>"",'Data entry'!D42,"") ->  | F39: =IF('Data entry'!E42<>"",'Data entry'!E42,"") ->  | G39: =IF('Data entry'!F42<>"",'Data entry'!F42,"") ->  | H39: =IF('Data entry'!G42<>"",'Data entry'!G42,"") ->  | I39: =IF('Data entry'!H42<>"",'Data entry'!H42,"") ->  | J39: =IF('Data entry'!I42<>"",'Data entry'!I42,"") ->  | K39: =IF('Data entry'!J42<>"",'Data entry'!J42,"") ->  | L39: =IF('Data entry'!K42<>"",'Data entry'!K42,"") ->  | M39: =IF('Data entry'!L42<>"",'Data entry'!L42,"") ->  | N39: =IF('Data entry'!M42<>"",'Data entry'!M42,"") ->  | O39: =IF('Data entry'!N42<>"",'Data entry'!N42,"") ->  | P39: =IF('Data entry'!O42<>"",'Data entry'!O42,"") ->  | Q39: =IF('Data entry'!P42<>"",'Data entry'!P42,"") ->  | R39: =IF('Data entry'!Q42<>"",'Data entry'!Q42,"") ->  | S39: =IF('Data entry'!R42<>"",'Data entry'!R42,"") ->  | T39: =IF('Data entry'!S42<>"",'Data entry'!S42,"") ->  | U39: =IF('Data entry'!T42<>"",'Data entry'!T42,"") ->  | V39: =IF('Data entry'!U42<>"",'Data entry'!U42,"") ->  | W39: =IF('Data entry'!V42<>"",'Data entry'!V42,"") ->  | Y39: 26 | AX39: 0 | JN39: 0
C40: 27 | D40: =IF('Data entry'!C43<>"",'Data entry'!C43,"") ->  | E40: =IF('Data entry'!D43<>"",'Data entry'!D43,"") ->  | F40: =IF('Data entry'!E43<>"",'Data entry'!E43,"") ->  | G40: =IF('Data entry'!F43<>"",'Data entry'!F43,"") ->  | H40: =IF('Data entry'!G43<>"",'Data entry'!G43,"") ->  | I40: =IF('Data entry'!H43<>"",'Data entry'!H43,"") ->  | J40: =IF('Data entry'!I43<>"",'Data entry'!I43,"") ->  | K40: =IF('Data entry'!J43<>"",'Data entry'!J43,"") ->  | L40: =IF('Data entry'!K43<>"",'Data entry'!K43,"") ->  | M40: =IF('Data entry'!L43<>"",'Data entry'!L43,"") ->  | N40: =IF('Data entry'!M43<>"",'Data entry'!M43,"") ->  | O40: =IF('Data entry'!N43<>"",'Data entry'!N43,"") ->  | P40: =IF('Data entry'!O43<>"",'Data entry'!O43,"") ->  | Q40: =IF('Data entry'!P43<>"",'Data entry'!P43,"") ->  | R40: =IF('Data entry'!Q43<>"",'Data entry'!Q43,"") ->  | S40: =IF('Data entry'!R43<>"",'Data entry'!R43,"") ->  | T40: =IF('Data entry'!S43<>"",'Data entry'!S43,"") ->  | U40: =IF('Data entry'!T43<>"",'Data entry'!T43,"") ->  | V40: =IF('Data entry'!U43<>"",'Data entry'!U43,"") ->  | W40: =IF('Data entry'!V43<>"",'Data entry'!V43,"") ->  | Y40: 27 | AX40: 0 | JN40: 0
C41: 28 | D41: =IF('Data entry'!C44<>"",'Data entry'!C44,"") ->  | E41: =IF('Data entry'!D44<>"",'Data entry'!D44,"") ->  | F41: =IF('Data entry'!E44<>"",'Data entry'!E44,"") ->  | G41: =IF('Data entry'!F44<>"",'Data entry'!F44,"") ->  | H41: =IF('Data entry'!G44<>"",'Data entry'!G44,"") ->  | I41: =IF('Data entry'!H44<>"",'Data entry'!H44,"") ->  | J41: =IF('Data entry'!I44<>"",'Data entry'!I44,"") ->  | K41: =IF('Data entry'!J44<>"",'Data entry'!J44,"") ->  | L41: =IF('Data entry'!K44<>"",'Data entry'!K44,"") ->  | M41: =IF('Data entry'!L44<>"",'Data entry'!L44,"") ->  | N41: =IF('Data entry'!M44<>"",'Data entry'!M44,"") ->  | O41: =IF('Data entry'!N44<>"",'Data entry'!N44,"") ->  | P41: =IF('Data entry'!O44<>"",'Data entry'!O44,"") ->  | Q41: =IF('Data entry'!P44<>"",'Data entry'!P44,"") ->  | R41: =IF('Data entry'!Q44<>"",'Data entry'!Q44,"") ->  | S41: =IF('Data entry'!R44<>"",'Data entry'!R44,"") ->  | T41: =IF('Data entry'!S44<>"",'Data entry'!S44,"") ->  | U41: =IF('Data entry'!T44<>"",'Data entry'!T44,"") ->  | V41: =IF('Data entry'!U44<>"",'Data entry'!U44,"") ->  | W41: =IF('Data entry'!V44<>"",'Data entry'!V44,"") ->  | Y41: 28 | AX41: 0 | JN41: 0
C42: 29 | D42: =IF('Data entry'!C45<>"",'Data entry'!C45,"") ->  | E42: =IF('Data entry'!D45<>"",'Data entry'!D45,"") ->  | F42: =IF('Data entry'!E45<>"",'Data entry'!E45,"") ->  | G42: =IF('Data entry'!F45<>"",'Data entry'!F45,"") ->  | H42: =IF('Data entry'!G45<>"",'Data entry'!G45,"") ->  | I42: =IF('Data entry'!H45<>"",'Data entry'!H45,"") ->  | J42: =IF('Data entry'!I45<>"",'Data entry'!I45,"") ->  | K42: =IF('Data entry'!J45<>"",'Data entry'!J45,"") ->  | L42: =IF('Data entry'!K45<>"",'Data entry'!K45,"") ->  | M42: =IF('Data entry'!L45<>"",'Data entry'!L45,"") ->  | N42: =IF('Data entry'!M45<>"",'Data entry'!M45,"") ->  | O42: =IF('Data entry'!N45<>"",'Data entry'!N45,"") ->  | P42: =IF('Data entry'!O45<>"",'Data entry'!O45,"") ->  | Q42: =IF('Data entry'!P45<>"",'Data entry'!P45,"") ->  | R42: =IF('Data entry'!Q45<>"",'Data entry'!Q45,"") ->  | S42: =IF('Data entry'!R45<>"",'Data entry'!R45,"") ->  | T42: =IF('Data entry'!S45<>"",'Data entry'!S45,"") ->  | U42: =IF('Data entry'!T45<>"",'Data entry'!T45,"") ->  | V42: =IF('Data entry'!U45<>"",'Data entry'!U45,"") ->  | W42: =IF('Data entry'!V45<>"",'Data entry'!V45,"") ->  | Y42: 29 | AX42: 0 | JN42: 0
C43: 30 | D43: =IF('Data entry'!C46<>"",'Data entry'!C46,"") ->  | E43: =IF('Data entry'!D46<>"",'Data entry'!D46,"") ->  | F43: =IF('Data entry'!E46<>"",'Data entry'!E46,"") ->  | G43: =IF('Data entry'!F46<>"",'Data entry'!F46,"") ->  | H43: =IF('Data entry'!G46<>"",'Data entry'!G46,"") ->  | I43: =IF('Data entry'!H46<>"",'Data entry'!H46,"") ->  | J43: =IF('Data entry'!I46<>"",'Data entry'!I46,"") ->  | K43: =IF('Data entry'!J46<>"",'Data entry'!J46,"") ->  | L43: =IF('Data entry'!K46<>"",'Data entry'!K46,"") ->  | M43: =IF('Data entry'!L46<>"",'Data entry'!L46,"") ->  | N43: =IF('Data entry'!M46<>"",'Data entry'!M46,"") ->  | O43: =IF('Data entry'!N46<>"",'Data entry'!N46,"") ->  | P43: =IF('Data entry'!O46<>"",'Data entry'!O46,"") ->  | Q43: =IF('Data entry'!P46<>"",'Data entry'!P46,"") ->  | R43: =IF('Data entry'!Q46<>"",'Data entry'!Q46,"") ->  | S43: =IF('Data entry'!R46<>"",'Data entry'!R46,"") ->  | T43: =IF('Data entry'!S46<>"",'Data entry'!S46,"") ->  | U43: =IF('Data entry'!T46<>"",'Data entry'!T46,"") ->  | V43: =IF('Data entry'!U46<>"",'Data entry'!U46,"") ->  | W43: =IF('Data entry'!V46<>"",'Data entry'!V46,"") ->  | Y43: 30 | AX43: 0 | JN43: 0
C44: 31 | D44: =IF('Data entry'!C47<>"",'Data entry'!C47,"") ->  | E44: =IF('Data entry'!D47<>"",'Data entry'!D47,"") ->  | F44: =IF('Data entry'!E47<>"",'Data entry'!E47,"") ->  | G44: =IF('Data entry'!F47<>"",'Data entry'!F47,"") ->  | H44: =IF('Data entry'!G47<>"",'Data entry'!G47,"") ->  | I44: =IF('Data entry'!H47<>"",'Data entry'!H47,"") ->  | J44: =IF('Data entry'!I47<>"",'Data entry'!I47,"") ->  | K44: =IF('Data entry'!J47<>"",'Data entry'!J47,"") ->  | L44: =IF('Data entry'!K47<>"",'Data entry'!K47,"") ->  | M44: =IF('Data entry'!L47<>"",'Data entry'!L47,"") ->  | N44: =IF('Data entry'!M47<>"",'Data entry'!M47,"") ->  | O44: =IF('Data entry'!N47<>"",'Data entry'!N47,"") ->  | P44: =IF('Data entry'!O47<>"",'Data entry'!O47,"") ->  | Q44: =IF('Data entry'!P47<>"",'Data entry'!P47,"") ->  | R44: =IF('Data entry'!Q47<>"",'Data entry'!Q47,"") ->  | S44: =IF('Data entry'!R47<>"",'Data entry'!R47,"") ->  | T44: =IF('Data entry'!S47<>"",'Data entry'!S47,"") ->  | U44: =IF('Data entry'!T47<>"",'Data entry'!T47,"") ->  | V44: =IF('Data entry'!U47<>"",'Data entry'!U47,"") ->  | W44: =IF('Data entry'!V47<>"",'Data entry'!V47,"") ->  | Y44: 31 | AX44: 0 | JN44: 0
C45: 32 | D45: =IF('Data entry'!C48<>"",'Data entry'!C48,"") ->  | E45: =IF('Data entry'!D48<>"",'Data entry'!D48,"") ->  | F45: =IF('Data entry'!E48<>"",'Data entry'!E48,"") ->  | G45: =IF('Data entry'!F48<>"",'Data entry'!F48,"") ->  | H45: =IF('Data entry'!G48<>"",'Data entry'!G48,"") ->  | I45: =IF('Data entry'!H48<>"",'Data entry'!H48,"") ->  | J45: =IF('Data entry'!I48<>"",'Data entry'!I48,"") ->  | K45: =IF('Data entry'!J48<>"",'Data entry'!J48,"") ->  | L45: =IF('Data entry'!K48<>"",'Data entry'!K48,"") ->  | M45: =IF('Data entry'!L48<>"",'Data entry'!L48,"") ->  | N45: =IF('Data entry'!M48<>"",'Data entry'!M48,"") ->  | O45: =IF('Data entry'!N48<>"",'Data entry'!N48,"") ->  | P45: =IF('Data entry'!O48<>"",'Data entry'!O48,"") ->  | Q45: =IF('Data entry'!P48<>"",'Data entry'!P48,"") ->  | R45: =IF('Data entry'!Q48<>"",'Data entry'!Q48,"") ->  | S45: =IF('Data entry'!R48<>"",'Data entry'!R48,"") ->  | T45: =IF('Data entry'!S48<>"",'Data entry'!S48,"") ->  | U45: =IF('Data entry'!T48<>"",'Data entry'!T48,"") ->  | V45: =IF('Data entry'!U48<>"",'Data entry'!U48,"") ->  | W45: =IF('Data entry'!V48<>"",'Data entry'!V48,"") ->  | Y45: 32 | AX45: 0 | JN45: 0
C46: 33 | D46: =IF('Data entry'!C49<>"",'Data entry'!C49,"") ->  | E46: =IF('Data entry'!D49<>"",'Data entry'!D49,"") ->  | F46: =IF('Data entry'!E49<>"",'Data entry'!E49,"") ->  | G46: =IF('Data entry'!F49<>"",'Data entry'!F49,"") ->  | H46: =IF('Data entry'!G49<>"",'Data entry'!G49,"") ->  | I46: =IF('Data entry'!H49<>"",'Data entry'!H49,"") ->  | J46: =IF('Data entry'!I49<>"",'Data entry'!I49,"") ->  | K46: =IF('Data entry'!J49<>"",'Data entry'!J49,"") ->  | L46: =IF('Data entry'!K49<>"",'Data entry'!K49,"") ->  | M46: =IF('Data entry'!L49<>"",'Data entry'!L49,"") ->  | N46: =IF('Data entry'!M49<>"",'Data entry'!M49,"") ->  | O46: =IF('Data entry'!N49<>"",'Data entry'!N49,"") ->  | P46: =IF('Data entry'!O49<>"",'Data entry'!O49,"") ->  | Q46: =IF('Data entry'!P49<>"",'Data entry'!P49,"") ->  | R46: =IF('Data entry'!Q49<>"",'Data entry'!Q49,"") ->  | S46: =IF('Data entry'!R49<>"",'Data entry'!R49,"") ->  | T46: =IF('Data entry'!S49<>"",'Data entry'!S49,"") ->  | U46: =IF('Data entry'!T49<>"",'Data entry'!T49,"") ->  | V46: =IF('Data entry'!U49<>"",'Data entry'!U49,"") ->  | W46: =IF('Data entry'!V49<>"",'Data entry'!V49,"") ->  | Y46: 33 | AX46: 0 | JN46: 0
C47: 34 | D47: =IF('Data entry'!C50<>"",'Data entry'!C50,"") ->  | E47: =IF('Data entry'!D50<>"",'Data entry'!D50,"") ->  | F47: =IF('Data entry'!E50<>"",'Data entry'!E50,"") ->  | G47: =IF('Data entry'!F50<>"",'Data entry'!F50,"") ->  | H47: =IF('Data entry'!G50<>"",'Data entry'!G50,"") ->  | I47: =IF('Data entry'!H50<>"",'Data entry'!H50,"") ->  | J47: =IF('Data entry'!I50<>"",'Data entry'!I50,"") ->  | K47: =IF('Data entry'!J50<>"",'Data entry'!J50,"") ->  | L47: =IF('Data entry'!K50<>"",'Data entry'!K50,"") ->  | M47: =IF('Data entry'!L50<>"",'Data entry'!L50,"") ->  | N47: =IF('Data entry'!M50<>"",'Data entry'!M50,"") ->  | O47: =IF('Data entry'!N50<>"",'Data entry'!N50,"") ->  | P47: =IF('Data entry'!O50<>"",'Data entry'!O50,"") ->  | Q47: =IF('Data entry'!P50<>"",'Data entry'!P50,"") ->  | R47: =IF('Data entry'!Q50<>"",'Data entry'!Q50,"") ->  | S47: =IF('Data entry'!R50<>"",'Data entry'!R50,"") ->  | T47: =IF('Data entry'!S50<>"",'Data entry'!S50,"") ->  | U47: =IF('Data entry'!T50<>"",'Data entry'!T50,"") ->  | V47: =IF('Data entry'!U50<>"",'Data entry'!U50,"") ->  | W47: =IF('Data entry'!V50<>"",'Data entry'!V50,"") ->  | Y47: 34 | AX47: 0 | JN47: 0
